Workbook

Sheet Instructions
A1: ='DNSP Inputs O & M'!$A$3 -> CitiPower
A3: Instructions
A5: This model is to be used for the setting of Public Lighting Tariffs for the Regulatory Period 2016 to 2020 based on forecast inflation rates and Real Pre Tax WACC.
A7: Distributor data input fields are shaded | C7: and located in tabs "DNSP Inputs General" , "DNSP Inputs O & M" and "DNSP Inputs Capex"
A8: NOTE : All Distributor data input fields have been populated with test data in this model.
A12: This model will also to be used for the annual Public Lighting Tariff Approvals in the Regulatory Period 2016 to 2020 based on actual inflation rates and Real Pre Tax WACC.
H70: =G70 -> 0 | I70: =H70 -> 0 | J70: =I70 -> 0 | K70: =J70 -> 0 | L70: =K70 -> 0

Sheet DNSP Inputs General
A1: ='DNSP Inputs O & M'!$A$3 -> CitiPower
D2: 2009 | E2: 2010 | F2: 2011 | G2: 2012 | H2: 2013 | I2: 2014 | J2: 2015 | K2: 2016 | L2: 2017 | M2: 2018 | N2: 2019 | O2: 2020
A3: Capital Expenditue | D3: Nominal $ - Actual | J3: Real 2015 $ - Forecast
A4: (Net of customer contributions)
A6: Poles and Brackets | D6: ='[1]Total - General'!D$6 -> 531468.6752 | E6: ='[1]Total - General'!E$6 -> 393132.521 | F6: ='[1]Total - General'!F$6 -> 731739.197 | G6: ='[1]Total - General'!G$6 -> 446549.6698 | H6: ='[1]Total - General'!H$6 -> 829214.4062 | I6: ='[1]Total - General'!I$6 -> 582455.9671 | J6: ='[1]Total - General'!J$6 -> 379678.3537 | K6: ='Capex 2016-2020'!B22 -> 130247.2504 | L6: ='Capex 2016-2020'!C22 -> 131041.5294 | M6: ='Capex 2016-2020'!D22 -> 131805.0373 | N6: ='Capex 2016-2020'!E22 -> 132579.3604 | O6: ='Capex 2016-2020'!F22 -> 133370.049
A8: Existing Lights
A9: Luminaires | D9: ='[1]Total - General'!D9 -> 1528078.735 | E9: ='[1]Total - General'!E9 -> 180798.5269 | F9: ='[1]Total - General'!F9 -> 155610.0815 | G9: ='[1]Total - General'!G9 -> 264471.52 | H9: ='[1]Total - General'!H9 -> -663200.7381 | I9: ='[1]Total - General'!I9 -> 973875.3023 | J9: ='[1]Total - General'!J9 -> 634828.0255 | K9: ='Capex 2016-2020'!B12-'Capex 2016-2020'!B29 -> -25598.90912 | L9: ='Capex 2016-2020'!C12-'Capex 2016-2020'!C29 -> 84383.27783 | M9: ='Capex 2016-2020'!D12-'Capex 2016-2020'!D29 -> 130029.7679 | N9: ='Capex 2016-2020'!E12-'Capex 2016-2020'!E29 -> 135607.6687 | O9: ='Capex 2016-2020'!F12-'Capex 2016-2020'!F29 -> 140336.0089
A11: Energy Efficient Lights
A12: Luminaires and Ballasts | D12: ='[1]Total - General'!D12 -> 597795.9658 | E12: ='[1]Total - General'!E12 -> 70729.75205 | F12: ='[1]Total - General'!F12 -> 60875.84155 | G12: ='[1]Total - General'!G12 -> 103463.2602 | H12: ='[1]Total - General'!H12 -> -259449.148 | I12: ='[1]Total - General'!I12 -> 380987.3887 | J12: ='[1]Total - General'!J12 -> 248349.528 | K12: ='Capex 2016-2020'!B17 -> 89209.01957 | L12: ='Capex 2016-2020'!C17 -> 92438.18624 | M12: ='Capex 2016-2020'!D17 -> 94132.12545 | N12: ='Capex 2016-2020'!E17 -> 96365.28887 | O12: ='Capex 2016-2020'!F17 -> 98665.70912
A14: Total Net Capex | D14: =SUM(D6,D9,D12) -> 2657343.376 | E14: =SUM(E6,E9,E12) -> 644660.8 | F14: 948225.12 | G14: 814484.45 | H14: -93435.47993 | I14: 1937318.658 | J14: 1262855.907 | K14: 193857.3609 | L14: 307862.9935 | M14: 355966.9306 | N14: 364552.318 | O14: 372371.767
F17: 2011 | G17: 2012 | H17: 2013 | I17: 2014 | J17: 2015 | K17: 2016 | L17: 2017 | M17: 2018 | N17: 2019 | O17: 2020
A18: Operating and Maintenance Expenditure | F18: Nominal $ - Actual | J18: Real 2015 $ - Forecast
A20: Total O & M | F20: ='[1]Total - General'!F20 -> 2230601.628 | G20: ='[1]Total - General'!G20 -> 3901658.947 | H20: ='[1]Total - General'!H20 -> 3489511.98 | I20: ='[1]Total - General'!I20 -> 3246762.454 | J20: ='[1]Total - General'!J20 -> 3217853.628 | K20: ='Cashflow Summary'!K85 -> 2935665.306 | L20: ='Cashflow Summary'!L85 -> 2963484.409 | M20: ='Cashflow Summary'!M85 -> 2984787.378 | N20: ='Cashflow Summary'!N85 -> 3019129.529 | O20: ='Cashflow Summary'!O85 -> 3062530.987
A24: WACC
A25: Regulatoy Period | K25: 2016 | L25: 2017 | M25: 2018 | N25: 2019 | O25: 2020
A26: Real Pre Tax WACC | K26: ='[1]Total - General'!K26 -> 0.05705470052 | L26: ='[1]Total - General'!L26 -> 0.05705470052 | M26: ='[1]Total - General'!M26 -> 0.05705470052 | N26: ='[1]Total - General'!N26 -> 0.05705470052 | O26: ='[1]Total - General'!O26 -> 0.05705470052
A29: CPI Index | B29: CPI Index | C29: Actual CPI | D29: F'cast CPI
A30: 2014-09-30 | B30: ='[1]Total - General'!B30 -> 106.4
A31: 2015-09-30 | C31: =IF(B31="","",B31/B30-1) ->  | D31: ='[1]Total - General'!D31 -> 0.026
A32: 2016-09-30 | D32: ='[1]Total - General'!D32 -> 0.026
A33: 2017-09-30 | D33: ='[1]Total - General'!D33 -> 0.026
A34: 2018-09-30 | D34: ='[1]Total - General'!D34 -> 0.026
A35: 2019-09-30 | D35: ='[1]Total - General'!D35 -> 0.026
A38: Number Of Lights | E38: =J$2 -> 2015 | F38: =F$2 -> 2011 | G38: 2012 | H38: 2013 | I38: 2014 | J38: 2015 | K38: 2016 | L38: 2017 | M38: 2018 | N38: 2019 | O38: 2020 | Q38: ='[1]Total - General'!Q39 -> 2004
E39: Actual Prices | F39: Actual Volumes | J39: Forecast Volumes | Q39: ='[1]Total - General'!Q40 -> Assumed
A40: Existing Lights | B40: Reference Light | D40: Price Factor
A41: Mercury vapour 80 watt | B41: ='[1]Total - General'!B42 -> Mercury vapour 80 watt | D41: ='[1]Total - General'!D42 -> 1 | E41: ='[1]Total - General'!E42 -> 69.0655462 | I41: ='[1]Total - General'!I42 -> 7585.4 | J41: ='[1]Total - General'!J42 -> 3907.4 | K41: ='[1]Total - General'!K42 -> 2657.3252 | L41: ='[1]Total - General'!L42 -> 2118.03888 | M41: ='[1]Total - General'!M42 -> 1897.671242 | N41: ='[1]Total - General'!N42 -> 1700.231368 | O41: ='[1]Total - General'!O42 -> 1523.333779 | Q41: ='[1]Total - General'!Q42 -> 23387.17241
A42: Sodium high pressure 150 watt | B42: ='[1]Total - General'!B43 -> Sodium high pressure 150 watt | D42: ='[1]Total - General'!D43 -> 1 | E42: ='[1]Total - General'!E43 -> 117.6548763 | I42: ='[1]Total - General'!I43 -> 12616.8 | J42: ='[1]Total - General'!J43 -> 12600 | K42: ='[1]Total - General'!K43 -> 12662.72081 | L42: ='[1]Total - General'!L43 -> 12725.75384 | M42: ='[1]Total - General'!M43 -> 12789.10064 | N42: ='[1]Total - General'!N43 -> 12852.76277 | O42: ='[1]Total - General'!O43 -> 12916.7418 | Q42: ='[1]Total - General'!Q43 -> 12294.36642
A43: Sodium high pressure 250 watt | B43: ='[1]Total - General'!B44 -> Sodium high pressure 250 watt | D43: ='[1]Total - General'!D44 -> 1 | E43: ='[1]Total - General'!E44 -> 119.3723261 | I43: ='[1]Total - General'!I44 -> 5246.6 | J43: ='[1]Total - General'!J44 -> 5302.4 | K43: ='[1]Total - General'!K44 -> 5400.640384 | L43: ='[1]Total - General'!L44 -> 5500.70092 | M43: ='[1]Total - General'!M44 -> 5602.61533 | N43: ='[1]Total - General'!N44 -> 5706.417964 | O43: ='[1]Total - General'!O44 -> 5812.143803 | Q43: ='[1]Total - General'!Q44 -> 4621.887909
A44: Fluorescent 20 watt | B44: ='[1]Total - General'!B45 -> Mercury vapour 80 watt | D44: ='[1]Total - General'!D45 -> 1.99 | E44: ='[1]Total - General'!E45 -> 137.4404369 | I44: ='[1]Total - General'!I45 -> 78 | J44: ='[1]Total - General'!J45 -> 78 | K44: ='[1]Total - General'!K45 -> 78 | L44: ='[1]Total - General'!L45 -> 78 | M44: ='[1]Total - General'!M45 -> 78 | N44: ='[1]Total - General'!N45 -> 78 | O44: ='[1]Total - General'!O45 -> 78 | Q44: ='[1]Total - General'!Q45 -> 37
A45: Fluorescent 40 watt | B45: ='[1]Total - General'!B46 -> Mercury vapour 80 watt | D45: ='[1]Total - General'!D46 -> 2 | E45: ='[1]Total - General'!E46 -> 136.6390086 | I45: ='[1]Total - General'!I46 -> 149 | J45: ='[1]Total - General'!J46 -> 149 | K45: ='[1]Total - General'!K46 -> 149 | L45: ='[1]Total - General'!L46 -> 149 | M45: ='[1]Total - General'!M46 -> 149 | N45: ='[1]Total - General'!N46 -> 149 | O45: ='[1]Total - General'!O46 -> 149 | Q45: ='[1]Total - General'!Q46 -> 0
A46: Mercury vapour 50 watt | B46: ='[1]Total - General'!B47 -> Mercury vapour 80 watt | D46: ='[1]Total - General'!D47 -> 1.42 | E46: ='[1]Total - General'!E47 -> 98.0730756 | I46: ='[1]Total - General'!I47 -> 377 | J46: ='[1]Total - General'!J47 -> 151 | K46: ='[1]Total - General'!K47 -> 141.1587115 | L46: ='[1]Total - General'!L47 -> 131.95882 | M46: ='[1]Total - General'!M47 -> 123.3585232 | N46: ='[1]Total - General'!N47 -> 115.3187429 | O46: ='[1]Total - General'!O47 -> 107.8029481 | Q46: ='[1]Total - General'!Q47 -> 596.3439667
A47: Mercury vapour 125 watt | B47: ='[1]Total - General'!B48 -> Mercury vapour 80 watt | D47: ='[1]Total - General'!D48 -> 1.58 | E47: ='[1]Total - General'!E48 -> 109.123563 | I47: ='[1]Total - General'!I48 -> 1315 | J47: ='[1]Total - General'!J48 -> 1280 | K47: ='[1]Total - General'!K48 -> 1208.940076 | L47: ='[1]Total - General'!L48 -> 1141.825084 | M47: ='[1]Total - General'!M48 -> 1078.436019 | N47: ='[1]Total - General'!N48 -> 1018.566033 | O47: ='[1]Total - General'!O48 -> 962.0197637 | Q47: ='[1]Total - General'!Q48 -> 2337.064992
A48: Mercury vapour 250 watt | B48: ='[1]Total - General'!B49 -> Sodium high pressure 250 watt | D48: ='[1]Total - General'!D49 -> 0.84 | E48: ='[1]Total - General'!E49 -> 100.272754 | I48: ='[1]Total - General'!I49 -> 587 | J48: ='[1]Total - General'!J49 -> 562 | K48: ='[1]Total - General'!K49 -> 511.664418 | L48: ='[1]Total - General'!L49 -> 465.837147 | M48: ='[1]Total - General'!M49 -> 424.1143998 | N48: ='[1]Total - General'!N49 -> 386.1285544 | O48: ='[1]Total - General'!O49 -> 351.5449146 | Q48: ='[1]Total - General'!Q49 -> 1136.575209
A49: Mercury vapour 400 watt | B49: ='[1]Total - General'!B50 -> Sodium high pressure 250 watt | D49: ='[1]Total - General'!D50 -> 0.85 | E49: ='[1]Total - General'!E50 -> 101.4664772 | I49: ='[1]Total - General'!I50 -> 296 | J49: ='[1]Total - General'!J50 -> 280 | K49: ='[1]Total - General'!K50 -> 258.4779496 | L49: ='[1]Total - General'!L50 -> 238.61018 | M49: ='[1]Total - General'!M50 -> 220.269536 | N49: ='[1]Total - General'!N50 -> 203.3386358 | O49: ='[1]Total - General'!O50 -> 187.7091201 | Q49: ='[1]Total - General'!Q50 -> 451.8105264
A50: Mercury vapour 700 watt | B50: ='[1]Total - General'!B51 -> Sodium high pressure 250 watt | D50: ='[1]Total - General'!D51 -> 1.25 | E50: ='[1]Total - General'!E51 -> 149.2154077 | I50: ='[1]Total - General'!I51 -> 0 | J50: ='[1]Total - General'!J51 -> 0 | K50: ='[1]Total - General'!K51 -> 0 | L50: ='[1]Total - General'!L51 -> 0 | M50: ='[1]Total - General'!M51 -> 0 | N50: ='[1]Total - General'!N51 -> 0 | O50: ='[1]Total - General'!O51 -> 0 | Q50: ='[1]Total - General'!Q51 -> 4
A51: Sodium high pressure 70 watt | B51: ='[1]Total - General'!B52 -> Mercury vapour 80 watt | D51: ='[1]Total - General'!D52 -> 2.12 | E51: ='[1]Total - General'!E52 -> 146.4189579 | I51: ='[1]Total - General'!I52 -> 453 | J51: ='[1]Total - General'!J52 -> 378 | K51: ='[1]Total - General'!K52 -> 372.7424641 | L51: ='[1]Total - General'!L52 -> 367.5580543 | M51: ='[1]Total - General'!M52 -> 362.4457536 | N51: ='[1]Total - General'!N52 -> 357.404559 | O51: ='[1]Total - General'!O52 -> 352.4334815 | Q51: ='[1]Total - General'!Q52 -> 507.6207552
A52: Sodium high pressure 100 watt | B52: ='[1]Total - General'!B53 -> Sodium high pressure 150 watt | D52: ='[1]Total - General'!D53 -> 1.02 | E52: ='[1]Total - General'!E53 -> 120.0079738 | I52: ='[1]Total - General'!I53 -> 367 | J52: ='[1]Total - General'!J53 -> 363 | K52: ='[1]Total - General'!K53 -> 349.961109 | L52: ='[1]Total - General'!L53 -> 337.3905725 | M52: ='[1]Total - General'!M53 -> 325.2715673 | N52: ='[1]Total - General'!N53 -> 313.5878745 | O52: ='[1]Total - General'!O53 -> 302.3238576 | Q52: ='[1]Total - General'!Q53 -> 445.1585241
A53: Sodium high pressure 220 watt | B53: ='[1]Total - General'!B54 -> Sodium high pressure 250 watt | D53: ='[1]Total - General'!D54 -> 1.002 | E53: ='[1]Total - General'!E54 -> 119.6110708 | I53: ='[1]Total - General'!I54 -> 1884 | J53: ='[1]Total - General'!J54 -> 1875 | K53: ='[1]Total - General'!K54 -> 1814.342427 | L53: ='[1]Total - General'!L54 -> 1755.64717 | M53: ='[1]Total - General'!M54 -> 1698.850745 | N53: ='[1]Total - General'!N54 -> 1643.891725 | O53: ='[1]Total - General'!O54 -> 1590.710668 | Q53: ='[1]Total - General'!Q54 -> 2363
A54: Sodium high pressure 360 watt | B54: ='[1]Total - General'!B55 -> Sodium high pressure 250 watt | D54: ='[1]Total - General'!D55 -> 1.02 | E54: ='[1]Total - General'!E55 -> 121.7597727 | I54: ='[1]Total - General'!I55 -> 233 | J54: ='[1]Total - General'!J55 -> 232 | K54: ='[1]Total - General'!K55 -> 230.4462492 | L54: ='[1]Total - General'!L55 -> 228.9029041 | M54: ='[1]Total - General'!M55 -> 227.3698951 | N54: ='[1]Total - General'!N55 -> 225.8471531 | O54: ='[1]Total - General'!O55 -> 224.3346091 | Q54: ='[1]Total - General'!Q55 -> 292
A55: Sodium high pressure 400 watt | B55: ='[1]Total - General'!B56 -> Sodium high pressure 250 watt | D55: ='[1]Total - General'!D56 -> 1.1 | E55: ='[1]Total - General'!E56 -> 131.3095587 | I55: ='[1]Total - General'!I56 -> 421 | J55: ='[1]Total - General'!J56 -> 399 | K55: ='[1]Total - General'!K56 -> 406.2773462 | L55: ='[1]Total - General'!L56 -> 413.6874236 | M55: ='[1]Total - General'!M56 -> 421.2326532 | N55: ='[1]Total - General'!N56 -> 428.9154999 | O55: ='[1]Total - General'!O56 -> 436.7384738 | Q55: ='[1]Total - General'!Q56 -> 137.7699495
A56: Sodium high pressure 1000 watt | B56: ='[1]Total - General'!B57 -> Sodium high pressure 250 watt | D56: ='[1]Total - General'!D57 -> 1.98 | E56: ='[1]Total - General'!E57 -> 236.3572057 | I56: ='[1]Total - General'!I57 -> 0 | J56: ='[1]Total - General'!J57 -> 0 | K56: ='[1]Total - General'!K57 -> 0 | L56: ='[1]Total - General'!L57 -> 0 | M56: ='[1]Total - General'!M57 -> 0 | N56: ='[1]Total - General'!N57 -> 0 | O56: ='[1]Total - General'!O57 -> 0 | Q56: ='[1]Total - General'!Q57 -> 16
A57: Metal halide 70 watt | B57: ='[1]Total - General'!B58 -> Mercury vapour 80 watt | D57: ='[1]Total - General'!D58 -> 2.12 | E57: ='[1]Total - General'!E58 -> 225.8443361 | I57: ='[1]Total - General'!I58 -> 1156 | J57: ='[1]Total - General'!J58 -> 1138 | K57: ='[1]Total - General'!K58 -> 1185.085935 | L57: ='[1]Total - General'!L58 -> 1234.1201 | M57: ='[1]Total - General'!M58 -> 1285.183104 | N57: ='[1]Total - General'!N58 -> 1338.358893 | O57: ='[1]Total - General'!O58 -> 1393.734886 | Q57: ='[1]Total - General'!Q58 -> 977
A58: Metal halide 100 watt | B58: ='[1]Total - General'!B59 -> Sodium high pressure 150 watt | D58: ='[1]Total - General'!D59 -> 1.57 | E58: ='[1]Total - General'!E59 -> 184.7181558 | I58: ='[1]Total - General'!I59 -> 154 | J58: ='[1]Total - General'!J59 -> 157 | K58: ='[1]Total - General'!K59 -> 145.2058528 | L58: ='[1]Total - General'!L59 -> 134.2977049 | M58: ='[1]Total - General'!M59 -> 124.2089985 | N58: ='[1]Total - General'!N59 -> 114.8781755 | O58: ='[1]Total - General'!O59 -> 106.2483022 | Q58: ='[1]Total - General'!Q59 -> 258.5562966
A59: Metal halide 150 watt | B59: ='[1]Total - General'!B60 -> Sodium high pressure 150 watt | D59: ='[1]Total - General'!D60 -> 1.58 | E59: ='[1]Total - General'!E60 -> 185.8947045 | I59: ='[1]Total - General'!I60 -> 323 | J59: ='[1]Total - General'!J60 -> 328 | K59: ='[1]Total - General'!K60 -> 314.1150074 | L59: ='[1]Total - General'!L60 -> 300.8177985 | M59: ='[1]Total - General'!M60 -> 288.0834909 | N59: ='[1]Total - General'!N60 -> 275.8882558 | O59: ='[1]Total - General'!O60 -> 264.2092729 | Q59: ='[1]Total - General'!Q60 -> 446
A60: Metal halide 250 watt | B60: ='[1]Total - General'!B61 -> Sodium high pressure 250 watt | D60: ='[1]Total - General'!D61 -> 1.2 | E60: ='[1]Total - General'!E61 -> 143.2467914 | I60: ='[1]Total - General'!I61 -> 663 | J60: ='[1]Total - General'!J61 -> 678 | K60: ='[1]Total - General'!K61 -> 772.9642493 | L60: ='[1]Total - General'!L61 -> 881.2296912 | M60: ='[1]Total - General'!M61 -> 1004.659361 | N60: ='[1]Total - General'!N61 -> 1145.37724 | O60: ='[1]Total - General'!O61 -> 1305.804806 | Q60: ='[1]Total - General'!Q61 -> 191.7331646
A61: Metal halide 400 watt | B61: ='[1]Total - General'!B62 -> Sodium high pressure 250 watt | D61: ='[1]Total - General'!D62 -> 1.2 | E61: ='[1]Total - General'!E62 -> 143.2467914 | I61: ='[1]Total - General'!I62 -> 1303 | J61: ='[1]Total - General'!J62 -> 1300 | K61: ='[1]Total - General'!K62 -> 1317.330882 | L61: ='[1]Total - General'!L62 -> 1334.89281 | M61: ='[1]Total - General'!M62 -> 1352.688864 | N61: ='[1]Total - General'!N62 -> 1370.722165 | O61: ='[1]Total - General'!O62 -> 1388.995876 | Q61: ='[1]Total - General'!Q62 -> 1199.185093
A62: Metal halide 1000 watt | B62: ='[1]Total - General'!B63 -> Sodium high pressure 250 watt | D62: ='[1]Total - General'!D63 -> 1.79 | E62: ='[1]Total - General'!E63 -> 213.6764638 | I62: ='[1]Total - General'!I63 -> 2 | J62: ='[1]Total - General'!J63 -> 2 | K62: ='[1]Total - General'!K63 -> 2 | L62: ='[1]Total - General'!L63 -> 0 | M62: ='[1]Total - General'!M63 -> 0 | N62: ='[1]Total - General'!N63 -> 0 | O62: ='[1]Total - General'!O63 -> 0 | Q62: ='[1]Total - General'!Q63 -> 10
A65: Total Existing Lights | I65: =SUM(I41:I64) -> 35209.8 | J65: 31159.8 | K65: 29978.39908 | L65: 29538.2691 | M65: 29452.56012 | N65: 29424.63561 | O65: 29453.83036
A67: Energy Efficient Lights | B67: Reference Light | D67: Price Factor
A68: T5 2X14W | B68: T5 2X14W | D68: ='[1]Total - General'!D69 -> 1 | E68: ='[1]Total - General'!E69 -> 38.14547144 | I68: ='[1]Total - General'!I69 -> 13926 | J68: ='[1]Total - General'!J69 -> 13950 | K68: ='[1]Total - General'!K69 -> 13671 | L68: ='[1]Total - General'!L69 -> 13397.58 | M68: ='[1]Total - General'!M69 -> 12459.7494 | N68: ='[1]Total - General'!N69 -> 11587.56694 | O68: ='[1]Total - General'!O69 -> 10776.43726
A69: T5 2X24W | B69: T5 2X14W | D69: ='[1]Total - General'!D70 -> 0.9861275788 | E69: ='[1]Total - General'!E70 -> 37.61630139 | I69: ='[1]Total - General'!I70 -> 2359 | J69: ='[1]Total - General'!J70 -> 2361 | K69: ='[1]Total - General'!K70 -> 2313.78 | L69: ='[1]Total - General'!L70 -> 2267.5044 | M69: ='[1]Total - General'!M70 -> 2108.779092 | N69: ='[1]Total - General'!N70 -> 1961.164556 | O69: ='[1]Total - General'!O70 -> 1823.883037
A70: CF32 | B70: T5 2X14W | D70: ='[1]Total - General'!D71 -> 0.9687520325 | E70: ='[1]Total - General'!E71 -> 36.95350299 | I70: ='[1]Total - General'!I71 -> 602 | J70: ='[1]Total - General'!J71 -> 608 | K70: ='[1]Total - General'!K71 -> 595.84 | L70: ='[1]Total - General'!L71 -> 583.9232 | M70: ='[1]Total - General'!M71 -> 543.048576 | N70: ='[1]Total - General'!N71 -> 505.0351757 | O70: ='[1]Total - General'!O71 -> 469.6827134
A71: CF42 | B71: T5 2X14W | D71: ='[1]Total - General'!D72 -> 0.9687520325 | E71: ='[1]Total - General'!E72 -> 36.95350299 | I71: ='[1]Total - General'!I72 -> 228 | J71: ='[1]Total - General'!J72 -> 473 | K71: ='[1]Total - General'!K72 -> 463.54 | L71: ='[1]Total - General'!L72 -> 454.2692 | M71: ='[1]Total - General'!M72 -> 422.470356 | N71: ='[1]Total - General'!N72 -> 392.8974311 | O71: ='[1]Total - General'!O72 -> 365.3946109
A72: Category P LED 18 Watt | B72: Category P LED 18 Watt | D72: ='[1]Total - General'!D73 -> 1 | E72: ='[1]Total - General'!E73 -> 23.1450571 | I72: ='[1]Total - General'!I73 -> 212 | J72: ='[1]Total - General'!J73 -> 3989 | K72: ='[1]Total - General'!K73 -> 5239.0748 | L72: ='[1]Total - General'!L73 -> 5778.36112 | M72: ='[1]Total - General'!M73 -> 6317.64744 | N72: ='[1]Total - General'!N73 -> 7581.176928 | O72: ='[1]Total - General'!O73 -> 9097.412314
A73: Category P LED 47 Watt | B73: Category P LED 18 Watt | D73: ='[1]Total - General'!D74 -> 1 | E73: ='[1]Total - General'!E74 -> 23.1450571 | I73: ='[1]Total - General'!I74 -> 78 | J73: ='[1]Total - General'!J74 -> 84 | K73: ='[1]Total - General'!K74 -> 84 | L73: ='[1]Total - General'!L74 -> 84 | M73: ='[1]Total - General'!M74 -> 84 | N73: ='[1]Total - General'!N74 -> 84 | O73: ='[1]Total - General'!O74 -> 84
A74: Total Energy Efficient Lights | I74: =SUM(I68:I73) -> 17405 | J74: 21465 | K74: 22367.2348 | L74: 22565.63792 | M74: 21935.69486 | N74: 22111.84103 | O74: 22616.80993
A76: Total Number of Lights | I76: =SUM(I65,I74) -> 52614.8 | J76: 52624.8 | K76: 52345.63388 | L76: 52103.90702 | M76: 51388.25499 | N76: 51536.47664 | O76: 52070.64029

Sheet DNSP Inputs O & M
A1: Public Lighting Cost Build-up Model
A3: CitiPower | C3: O & M Data Inputs
C5: Real 2015 $
A7: Input parameters | C7: 2015 | D7: 2016 | E7: 2017 | F7: 2018 | G7: 2019 | H7: 2020
A9: Inputs - all lamps
A11: Labour rate (per hour) | C11: ='[1]Total - O&M'!C11 -> 121.4914353 | D11: ='[1]Total - O&M'!D11 -> 123.7674125 | E11: ='[1]Total - O&M'!E11 -> 125.8521179 | F11: ='[1]Total - O&M'!F11 -> 127.9719375 | G11: ='[1]Total - O&M'!G11 -> 130.1274628 | H11: ='[1]Total - O&M'!H11 -> 132.3192952
A12: Labour rate for night patrols (per hour) | C12: ='[1]Total - O&M'!C12 -> 142.6766892 | D12: ='[1]Total - O&M'!D12 -> 145.3495434 | E12: ='[1]Total - O&M'!E12 -> 147.7977724 | F12: ='[1]Total - O&M'!F12 -> 150.2872388 | G12: ='[1]Total - O&M'!G12 -> 152.8186371 | H12: ='[1]Total - O&M'!H12 -> 155.3926736
A13: Elevated platform vehicle (per hour) - urban MV,urban T5 | C13: ='[1]Total - O&M'!C13 -> 76.9531112 | D13: ='[1]Total - O&M'!D13 -> 77.69564122 | E13: ='[1]Total - O&M'!E13 -> 79.36920231 | F13: ='[1]Total - O&M'!F13 -> 80.74617287 | G13: ='[1]Total - O&M'!G13 -> 82.13129241 | H13: ='[1]Total - O&M'!H13 -> 83.56418727
A14: Elevated platform vehicle (per hour) - rural MV, rural T5, S-HP | C14: ='[1]Total - O&M'!C14 -> 57.00342251 | D14: ='[1]Total - O&M'!D14 -> 57.55345553 | E14: ='[1]Total - O&M'!E14 -> 58.79315472 | F14: ='[1]Total - O&M'!F14 -> 59.81315292 | G14: ='[1]Total - O&M'!G14 -> 60.83918751 | H14: ='[1]Total - O&M'!H14 -> 61.90061193
A15: Patrol vehicle (per hour) | C15: ='[1]Total - O&M'!C15 -> 25.26368075 | D15: ='[1]Total - O&M'!D15 -> 25.50745311 | E15: ='[1]Total - O&M'!E15 -> 26.05688266 | F15: ='[1]Total - O&M'!F15 -> 26.50894163 | G15: ='[1]Total - O&M'!G15 -> 26.96367591 | H15: ='[1]Total - O&M'!H15 -> 27.43409482
A16: Number of hours in a day | C16: ='[1]Total - O&M'!C16 -> 8 | D16: ='[1]Total - O&M'!D16 -> 8 | E16: ='[1]Total - O&M'!E16 -> 8 | F16: ='[1]Total - O&M'!F16 -> 8 | G16: ='[1]Total - O&M'!G16 -> 8 | H16: ='[1]Total - O&M'!H16 -> 8
A17: Overheads and 7% margin (see ACS model) | C17: ='[1]Total - O&M'!C17 -> 0.3074223 | D17: ='[1]Total - O&M'!D17 -> 0.3074223 | E17: ='[1]Total - O&M'!E17 -> 0.3074223 | F17: ='[1]Total - O&M'!F17 -> 0.3074223 | G17: ='[1]Total - O&M'!G17 -> 0.3074223 | H17: ='[1]Total - O&M'!H17 -> 0.3074223
A21: Inputs - MV80
A23: Depreciation period | B23: years | C23: ='[1]Total - O&M'!C23 -> 20 | D23: ='[1]Total - O&M'!D23 -> 20 | E23: ='[1]Total - O&M'!E23 -> 20 | F23: ='[1]Total - O&M'!F23 -> 20 | G23: ='[1]Total - O&M'!G23 -> 20 | H23: ='[1]Total - O&M'!H23 -> 20
A24: Lamps - bulk change | B24: years | C24: ='[1]Total - O&M'!C24 -> 4 | D24: ='[1]Total - O&M'!D24 -> 4 | E24: ='[1]Total - O&M'!E24 -> 4 | F24: ='[1]Total - O&M'!F24 -> 4 | G24: ='[1]Total - O&M'!G24 -> 4 | H24: ='[1]Total - O&M'!H24 -> 4
A25: PE cells - bulk change | B25: years | C25: ='[1]Total - O&M'!C25 -> 8 | D25: ='[1]Total - O&M'!D25 -> 8 | E25: ='[1]Total - O&M'!E25 -> 8 | F25: ='[1]Total - O&M'!F25 -> 8 | G25: ='[1]Total - O&M'!G25 -> 8 | H25: ='[1]Total - O&M'!H25 -> 8
A26: Proportion of lamps that fail between bulk change | C26: ='[1]Total - O&M'!C26 -> 0.15 | D26: ='[1]Total - O&M'!D26 -> 0.2313269938 | E26: ='[1]Total - O&M'!E26 -> 0.2313269938 | F26: ='[1]Total - O&M'!F26 -> 0.2313269938 | G26: ='[1]Total - O&M'!G26 -> 0.2313269938 | H26: ='[1]Total - O&M'!H26 -> 0.2313269938
A27: Unit cost - lamp | C27: ='[1]Total - O&M'!C27 -> 5.694427666 | D27: ='[1]Total - O&M'!D27 -> 5.694427666 | E27: ='[1]Total - O&M'!E27 -> 5.694427666 | F27: ='[1]Total - O&M'!F27 -> 5.694427666 | G27: ='[1]Total - O&M'!G27 -> 5.694427666 | H27: ='[1]Total - O&M'!H27 -> 5.694427666
A28: Unit cost - PE cell | C28: ='[1]Total - O&M'!C28 -> 22.98953839 | D28: ='[1]Total - O&M'!D28 -> 22.98953839 | E28: ='[1]Total - O&M'!E28 -> 22.98953839 | F28: ='[1]Total - O&M'!F28 -> 22.98953839 | G28: ='[1]Total - O&M'!G28 -> 22.98953839 | H28: ='[1]Total - O&M'!H28 -> 22.98953839
A29: Unit cost - luminaire | C29: ='[1]Total - O&M'!C29 -> 197.5605047 | D29: ='[1]Total - O&M'!D29 -> 197.5605047 | E29: ='[1]Total - O&M'!E29 -> 197.5605047 | F29: ='[1]Total - O&M'!F29 -> 197.5605047 | G29: ='[1]Total - O&M'!G29 -> 197.5605047 | H29: ='[1]Total - O&M'!H29 -> 197.5605047
A30: Unit cost - miscellaneous materials (bulk lamp) | C30: ='[1]Total - O&M'!C30 -> 1.246045441 | D30: ='[1]Total - O&M'!D30 -> 1.246045441 | E30: ='[1]Total - O&M'!E30 -> 1.246045441 | F30: ='[1]Total - O&M'!F30 -> 1.246045441 | G30: ='[1]Total - O&M'!G30 -> 1.246045441 | H30: ='[1]Total - O&M'!H30 -> 1.246045441
A31: Unit cost - miscellaneous materials (repair) | C31: ='[1]Total - O&M'!C31 -> 12.46045441 | D31: ='[1]Total - O&M'!D31 -> 12.46045441 | E31: ='[1]Total - O&M'!E31 -> 12.46045441 | F31: ='[1]Total - O&M'!F31 -> 12.46045441 | G31: ='[1]Total - O&M'!G31 -> 12.46045441 | H31: ='[1]Total - O&M'!H31 -> 12.46045441
A32: Number of men in crew | C32: ='[1]Total - O&M'!C32 -> 2 | D32: ='[1]Total - O&M'!D32 -> 2 | E32: ='[1]Total - O&M'!E32 -> 2 | F32: ='[1]Total - O&M'!F32 -> 2 | G32: ='[1]Total - O&M'!G32 -> 2 | H32: ='[1]Total - O&M'!H32 -> 2
A33: Number of bulk lamp changes in 1 day - urban | C33: ='[1]Total - O&M'!C33 -> 86.4 | D33: ='[1]Total - O&M'!D33 -> 86.4 | E33: ='[1]Total - O&M'!E33 -> 86.4 | F33: ='[1]Total - O&M'!F33 -> 86.4 | G33: ='[1]Total - O&M'!G33 -> 86.4 | H33: ='[1]Total - O&M'!H33 -> 86.4
A34: Number of repairs in 1 day - urban | C34: ='[1]Total - O&M'!C34 -> 28.8 | D34: ='[1]Total - O&M'!D34 -> 28.8 | E34: ='[1]Total - O&M'!E34 -> 28.8 | F34: ='[1]Total - O&M'!F34 -> 28.8 | G34: ='[1]Total - O&M'!G34 -> 28.8 | H34: ='[1]Total - O&M'!H34 -> 28.8
A35: % of repairs - lamps | C35: ='[1]Total - O&M'!C35 -> 0.6 | D35: ='[1]Total - O&M'!D35 -> 0.6 | E35: ='[1]Total - O&M'!E35 -> 0.6 | F35: ='[1]Total - O&M'!F35 -> 0.6 | G35: ='[1]Total - O&M'!G35 -> 0.6 | H35: ='[1]Total - O&M'!H35 -> 0.6
A36: % of repairs - PE cells | C36: ='[1]Total - O&M'!C36 -> 0.5 | D36: ='[1]Total - O&M'!D36 -> 0.5 | E36: ='[1]Total - O&M'!E36 -> 0.5 | F36: ='[1]Total - O&M'!F36 -> 0.5 | G36: ='[1]Total - O&M'!G36 -> 0.5 | H36: ='[1]Total - O&M'!H36 -> 0.5
A37: % of repairs - luminaires | C37: ='[1]Total - O&M'!C37 -> 0.15 | D37: ='[1]Total - O&M'!D37 -> 0.15 | E37: ='[1]Total - O&M'!E37 -> 0.15 | F37: ='[1]Total - O&M'!F37 -> 0.15 | G37: ='[1]Total - O&M'!G37 -> 0.15 | H37: ='[1]Total - O&M'!H37 -> 0.15
A38: % of repairs - other | C38: ='[1]Total - O&M'!C38 -> 0.1 | D38: ='[1]Total - O&M'!D38 -> 0.1 | E38: ='[1]Total - O&M'!E38 -> 0.1 | F38: ='[1]Total - O&M'!F38 -> 0.1 | G38: ='[1]Total - O&M'!G38 -> 0.1 | H38: ='[1]Total - O&M'!H38 -> 0.1
A40: Other Maintenance and Repair costs
A41: Traffic control costs | C41: ='[1]Total - O&M'!C41 -> 7602.340268 | D41: ='[1]Total - O&M'!D41 -> 6464.944997 | E41: ='[1]Total - O&M'!E41 -> 3725.630153 | F41: ='[1]Total - O&M'!F41 -> 3277.525181 | G41: ='[1]Total - O&M'!G41 -> 3000.079126 | H41: ='[1]Total - O&M'!H41 -> 2708.025257
A42: Other costs : Cascading Network | C42: ='[1]Total - O&M'!C42 -> 0 | D42: ='[1]Total - O&M'!D42 -> 1774.253088 | E42: ='[1]Total - O&M'!E42 -> 1444.671754 | F42: ='[1]Total - O&M'!F42 -> 1334.49474 | G42: ='[1]Total - O&M'!G42 -> 1212.292107 | H42: ='[1]Total - O&M'!H42 -> 1093.126313
C43: =SUM(C41:C42) -> 7602.340268 | D43: 8239.198086 | E43: 5170.301907 | F43: 4612.019921 | G43: 4212.371233 | H43: 3801.15157
A44: Number of Lights | C44: ='DNSP Inputs General'!J41 -> 3907.4 | D44: ='DNSP Inputs General'!K41 -> 2657.3252 | E44: ='DNSP Inputs General'!L41 -> 2118.03888 | F44: ='DNSP Inputs General'!M41 -> 1897.671242 | G44: ='DNSP Inputs General'!N41 -> 1700.231368 | H44: ='DNSP Inputs General'!O41 -> 1523.333779
A45: Unit Cost | C45: =IF(C44=0,0,C43/C44) -> 1.945626316 | D45: 3.100560701 | E45: 2.441079791 | F45: 2.430357703 | G45: 2.477528243 | H45: 2.495284765
A49: Inputs - S-HP150
A51: Depreciation period | B51: years | C51: ='[1]Total - O&M'!C51 -> 20 | D51: ='[1]Total - O&M'!D51 -> 20 | E51: ='[1]Total - O&M'!E51 -> 20 | F51: ='[1]Total - O&M'!F51 -> 20 | G51: ='[1]Total - O&M'!G51 -> 20 | H51: ='[1]Total - O&M'!H51 -> 20
A52: Number of patrols per year | C52: ='[1]Total - O&M'!C52 -> 3 | D52: ='[1]Total - O&M'!D52 -> 3 | E52: ='[1]Total - O&M'!E52 -> 3 | F52: ='[1]Total - O&M'!F52 -> 3 | G52: ='[1]Total - O&M'!G52 -> 3 | H52: ='[1]Total - O&M'!H52 -> 3
A53: Lamps - frequency of replacement | B53: years | C53: ='[1]Total - O&M'!C53 -> 5 | D53: ='[1]Total - O&M'!D53 -> 5 | E53: ='[1]Total - O&M'!E53 -> 5 | F53: ='[1]Total - O&M'!F53 -> 5 | G53: ='[1]Total - O&M'!G53 -> 5 | H53: ='[1]Total - O&M'!H53 -> 5
A54: PE cells - frequency of replacement | B54: years | C54: ='[1]Total - O&M'!C54 -> 10 | D54: ='[1]Total - O&M'!D54 -> 10 | E54: ='[1]Total - O&M'!E54 -> 10 | F54: ='[1]Total - O&M'!F54 -> 10 | G54: ='[1]Total - O&M'!G54 -> 10 | H54: ='[1]Total - O&M'!H54 -> 10
A55: Unit cost - lamp | C55: ='[1]Total - O&M'!C55 -> 41.18180183 | D55: ='[1]Total - O&M'!D55 -> 41.18180183 | E55: ='[1]Total - O&M'!E55 -> 41.18180183 | F55: ='[1]Total - O&M'!F55 -> 41.18180183 | G55: ='[1]Total - O&M'!G55 -> 41.18180183 | H55: ='[1]Total - O&M'!H55 -> 41.18180183
A56: Unit cost - PE cell | C56: ='[1]Total - O&M'!C56 -> 22.36651567 | D56: ='[1]Total - O&M'!D56 -> 22.36651567 | E56: ='[1]Total - O&M'!E56 -> 22.36651567 | F56: ='[1]Total - O&M'!F56 -> 22.36651567 | G56: ='[1]Total - O&M'!G56 -> 22.36651567 | H56: ='[1]Total - O&M'!H56 -> 22.36651567
A57: Unit cost - miscellaneous materials | C57: ='[1]Total - O&M'!C57 -> 2.492090882 | D57: ='[1]Total - O&M'!D57 -> 2.492090882 | E57: ='[1]Total - O&M'!E57 -> 2.492090882 | F57: ='[1]Total - O&M'!F57 -> 2.492090882 | G57: ='[1]Total - O&M'!G57 -> 2.492090882 | H57: ='[1]Total - O&M'!H57 -> 2.492090882
A58: Number of men in crew - road patrols | C58: ='[1]Total - O&M'!C58 -> 2 | D58: ='[1]Total - O&M'!D58 -> 2 | E58: ='[1]Total - O&M'!E58 -> 2 | F58: ='[1]Total - O&M'!F58 -> 2 | G58: ='[1]Total - O&M'!G58 -> 2 | H58: ='[1]Total - O&M'!H58 -> 2
A59: Number of men in crew - repairs | C59: ='[1]Total - O&M'!C59 -> 2 | D59: ='[1]Total - O&M'!D59 -> 2 | E59: ='[1]Total - O&M'!E59 -> 2 | F59: ='[1]Total - O&M'!F59 -> 2 | G59: ='[1]Total - O&M'!G59 -> 2 | H59: ='[1]Total - O&M'!H59 -> 2
A60: Number of lamps patrolled in 1 day - urban | C60: ='[1]Total - O&M'!C60 -> 3000 | D60: ='[1]Total - O&M'!D60 -> 3000 | E60: ='[1]Total - O&M'!E60 -> 3000 | F60: ='[1]Total - O&M'!F60 -> 3000 | G60: ='[1]Total - O&M'!G60 -> 3000 | H60: ='[1]Total - O&M'!H60 -> 3000
A61: Number of repairs in 1 day - urban | C61: ='[1]Total - O&M'!C61 -> 19.2 | D61: ='[1]Total - O&M'!D61 -> 19.2 | E61: ='[1]Total - O&M'!E61 -> 19.2 | F61: ='[1]Total - O&M'!F61 -> 19.2 | G61: ='[1]Total - O&M'!G61 -> 19.2 | H61: ='[1]Total - O&M'!H61 -> 19.2
A63: Other Maintenance and Repair costs
A64: Traffic control costs | C64: ='[1]Total - O&M'!C64 -> 34059.75817 | D64: ='[1]Total - O&M'!D64 -> 34322.6167 | E64: ='[1]Total - O&M'!E64 -> 34977.23539 | F64: ='[1]Total - O&M'!F64 -> 35866.3369 | G64: ='[1]Total - O&M'!G64 -> 36506.71991 | H64: ='[1]Total - O&M'!H64 -> 37200.94826
A65: Other costs : Cascading Network | C65: ='[1]Total - O&M'!C65 -> 0 | D65: ='[1]Total - O&M'!D65 -> 19163.08112 | E65: ='[1]Total - O&M'!E65 -> 19437.58437 | F65: ='[1]Total - O&M'!F65 -> 19433.02094 | G65: ='[1]Total - O&M'!G65 -> 19137.66751 | H65: ='[1]Total - O&M'!H65 -> 18737.75501
C66: =SUM(C64:C65) -> 34059.75817 | D66: 53485.69782 | E66: 54414.81976 | F66: 55299.35783 | G66: 55644.38742 | H66: 55938.70326
A67: Number of Lights | C67: ='DNSP Inputs General'!J42 -> 12600 | D67: ='DNSP Inputs General'!K42 -> 12662.72081 | E67: ='DNSP Inputs General'!L42 -> 12725.75384 | F67: ='DNSP Inputs General'!M42 -> 12789.10064 | G67: ='DNSP Inputs General'!N42 -> 12852.76277 | H67: ='DNSP Inputs General'!O42 -> 12916.7418
A68: Unit Cost | C68: =IF(C67=0,0,C66/C67) -> 2.70315541 | D68: 4.223870889 | E68: 4.275960421 | F68: 4.323944223 | G68: 4.329371702 | H68: 4.330713128
A72: Inputs - S-HP250
A74: Depreciation period | B74: years | C74: ='[1]Total - O&M'!C74 -> 20 | D74: ='[1]Total - O&M'!D74 -> 20 | E74: ='[1]Total - O&M'!E74 -> 20 | F74: ='[1]Total - O&M'!F74 -> 20 | G74: ='[1]Total - O&M'!G74 -> 20 | H74: ='[1]Total - O&M'!H74 -> 20
A75: Number of patrols per year | C75: ='[1]Total - O&M'!C75 -> 3 | D75: ='[1]Total - O&M'!D75 -> 3 | E75: ='[1]Total - O&M'!E75 -> 3 | F75: ='[1]Total - O&M'!F75 -> 3 | G75: ='[1]Total - O&M'!G75 -> 3 | H75: ='[1]Total - O&M'!H75 -> 3
A76: Lamps - frequency of replacement | B76: years | C76: ='[1]Total - O&M'!C76 -> 5 | D76: ='[1]Total - O&M'!D76 -> 5 | E76: ='[1]Total - O&M'!E76 -> 5 | F76: ='[1]Total - O&M'!F76 -> 5 | G76: ='[1]Total - O&M'!G76 -> 5 | H76: ='[1]Total - O&M'!H76 -> 5
A77: PE cells - frequency of replacement | B77: years | C77: ='[1]Total - O&M'!C77 -> 10 | D77: ='[1]Total - O&M'!D77 -> 10 | E77: ='[1]Total - O&M'!E77 -> 10 | F77: ='[1]Total - O&M'!F77 -> 10 | G77: ='[1]Total - O&M'!G77 -> 10 | H77: ='[1]Total - O&M'!H77 -> 10
A78: Unit cost - lamp | C78: ='[1]Total - O&M'!C78 -> 41.18180183 | D78: ='[1]Total - O&M'!D78 -> 41.18180183 | E78: ='[1]Total - O&M'!E78 -> 41.18180183 | F78: ='[1]Total - O&M'!F78 -> 41.18180183 | G78: ='[1]Total - O&M'!G78 -> 41.18180183 | H78: ='[1]Total - O&M'!H78 -> 41.18180183
A79: Unit cost - PE cell | C79: ='[1]Total - O&M'!C79 -> 22.36651567 | D79: ='[1]Total - O&M'!D79 -> 22.36651567 | E79: ='[1]Total - O&M'!E79 -> 22.36651567 | F79: ='[1]Total - O&M'!F79 -> 22.36651567 | G79: ='[1]Total - O&M'!G79 -> 22.36651567 | H79: ='[1]Total - O&M'!H79 -> 22.36651567
A80: Unit cost - miscellaneous materials | C80: ='[1]Total - O&M'!C80 -> 2.492090882 | D80: ='[1]Total - O&M'!D80 -> 2.492090882 | E80: ='[1]Total - O&M'!E80 -> 2.492090882 | F80: ='[1]Total - O&M'!F80 -> 2.492090882 | G80: ='[1]Total - O&M'!G80 -> 2.492090882 | H80: ='[1]Total - O&M'!H80 -> 2.492090882
A81: Number of men in crew - road patrols | C81: ='[1]Total - O&M'!C81 -> 2 | D81: ='[1]Total - O&M'!D81 -> 2 | E81: ='[1]Total - O&M'!E81 -> 2 | F81: ='[1]Total - O&M'!F81 -> 2 | G81: ='[1]Total - O&M'!G81 -> 2 | H81: ='[1]Total - O&M'!H81 -> 2
A82: Number of men in crew - repairs | C82: ='[1]Total - O&M'!C82 -> 2 | D82: ='[1]Total - O&M'!D82 -> 2 | E82: ='[1]Total - O&M'!E82 -> 2 | F82: ='[1]Total - O&M'!F82 -> 2 | G82: ='[1]Total - O&M'!G82 -> 2 | H82: ='[1]Total - O&M'!H82 -> 2
A83: Number of lamps patrolled in 1 day - urban | C83: ='[1]Total - O&M'!C83 -> 3000 | D83: ='[1]Total - O&M'!D83 -> 3000 | E83: ='[1]Total - O&M'!E83 -> 3000 | F83: ='[1]Total - O&M'!F83 -> 3000 | G83: ='[1]Total - O&M'!G83 -> 3000 | H83: ='[1]Total - O&M'!H83 -> 3000
A84: Number of repairs in 1 day - urban | C84: ='[1]Total - O&M'!C84 -> 19.2 | D84: ='[1]Total - O&M'!D84 -> 19.2 | E84: ='[1]Total - O&M'!E84 -> 19.2 | F84: ='[1]Total - O&M'!F84 -> 19.2 | G84: ='[1]Total - O&M'!G84 -> 19.2 | H84: ='[1]Total - O&M'!H84 -> 19.2
A86: Other Maintenance and Repair costs
A87: Traffic control costs | C87: ='[1]Total - O&M'!C87 -> 14354.45085 | D87: ='[1]Total - O&M'!D87 -> 14660.26089 | E87: ='[1]Total - O&M'!E87 -> 15141.29687 | F87: ='[1]Total - O&M'!F87 -> 15735.51295 | G87: ='[1]Total - O&M'!G87 -> 16232.40916 | H87: ='[1]Total - O&M'!H87 -> 16764.10853
A88: Other costs : Cascading Network | C88: ='[1]Total - O&M'!C88 -> 0 | D88: ='[1]Total - O&M'!D88 -> 9810.683546 | E88: ='[1]Total - O&M'!E88 -> 10013.20293 | F88: ='[1]Total - O&M'!F88 -> 10256.89878 | G88: ='[1]Total - O&M'!G88 -> 10361.3869 | H88: ='[1]Total - O&M'!H88 -> 10419.60896
C89: =SUM(C87:C88) -> 14354.45085 | D89: 24470.94444 | E89: 25154.49981 | F89: 25992.41173 | G89: 26593.79606 | H89: 27183.71749
A90: Number of Lights | C90: ='DNSP Inputs General'!J43 -> 5302.4 | D90: ='DNSP Inputs General'!K43 -> 5400.640384 | E90: ='DNSP Inputs General'!L43 -> 5500.70092 | F90: ='DNSP Inputs General'!M43 -> 5602.61533 | G90: ='DNSP Inputs General'!N43 -> 5706.417964 | H90: ='DNSP Inputs General'!O43 -> 5812.143803
A91: Unit Cost | C91: =IF(C90=0,0,C89/C90) -> 2.707161068 | D91: 4.531119034 | E91: 4.572962641 | F91: 4.639335418 | G91: 4.660330918 | H91: 4.677055216
A95: Dedicated street lighting poles
A97: Period of inspection | B97: years | C97: ='[1]Total - O&M'!C97 -> 5 | D97: ='[1]Total - O&M'!D97 -> 5 | E97: ='[1]Total - O&M'!E97 -> 5 | F97: ='[1]Total - O&M'!F97 -> 5 | G97: ='[1]Total - O&M'!G97 -> 5 | H97: ='[1]Total - O&M'!H97 -> 5
A98: Pole inspection rate | B98: per day | C98: ='[1]Total - O&M'!C98 -> 72 | D98: ='[1]Total - O&M'!D98 -> 72 | E98: ='[1]Total - O&M'!E98 -> 72 | F98: ='[1]Total - O&M'!F98 -> 72 | G98: ='[1]Total - O&M'!G98 -> 72 | H98: ='[1]Total - O&M'!H98 -> 72
A99: Depreciation of dedicated street lighting pole & bracket | B99: years | C99: ='[1]Total - O&M'!C99 -> 35 | D99: ='[1]Total - O&M'!D99 -> 35 | E99: ='[1]Total - O&M'!E99 -> 35 | F99: ='[1]Total - O&M'!F99 -> 35 | G99: ='[1]Total - O&M'!G99 -> 35 | H99: ='[1]Total - O&M'!H99 -> 35
A100: Proportion of lights on dedicated poles | C100: ='[1]Total - O&M'!C100 -> 0.1963308044 | D100: ='[1]Total - O&M'!D100 -> 0.1963308044 | E100: ='[1]Total - O&M'!E100 -> 0.1963308044 | F100: ='[1]Total - O&M'!F100 -> 0.1963308044 | G100: ='[1]Total - O&M'!G100 -> 0.1963308044 | H100: ='[1]Total - O&M'!H100 -> 0.1963308044
A104: Other direct costs
A105: Call centre
A106: Number of calls | C106: ='[1]Total - O&M'!C106 -> 2400 | D106: ='[1]Total - O&M'!D106 -> 3969.548005 | E106: ='[1]Total - O&M'!E106 -> 4036.410016 | F106: ='[1]Total - O&M'!F106 -> 4104.398233 | G106: ='[1]Total - O&M'!G106 -> 4173.531625 | H106: ='[1]Total - O&M'!H106 -> 4243.829482
A107: Average cost per call $ | C107: ='[1]Total - O&M'!C107 -> 10 | D107: ='[1]Total - O&M'!D107 -> 16.12173534 | E107: ='[1]Total - O&M'!E107 -> 16.39328557 | F107: ='[1]Total - O&M'!F107 -> 16.66940971 | G107: ='[1]Total - O&M'!G107 -> 16.95018481 | H107: ='[1]Total - O&M'!H107 -> 17.23568922
C108: =C106*C107 -> 24000 | D108: 63996.00238 | E108: 66170.02206 | F108: 68417.89576 | G108: 70742.13238 | H108: 73145.32605
A110: GIS and other | C110: ='[1]Total - O&M'!C110 -> 114907.8332 | D110: ='[1]Total - O&M'!D110 -> 117060.4756 | E110: ='[1]Total - O&M'!E110 -> 119032.2111 | F110: ='[1]Total - O&M'!F110 -> 121037.158 | G110: ='[1]Total - O&M'!G110 -> 123075.8757 | H110: ='[1]Total - O&M'!H110 -> 125148.9331
A111: Complaints handling | C111: ='[1]Total - O&M'!C111 -> 34472.34997 | D111: ='[1]Total - O&M'!D111 -> 35118.14268 | E111: ='[1]Total - O&M'!E111 -> 35709.66334 | F111: ='[1]Total - O&M'!F111 -> 36311.14741 | G111: ='[1]Total - O&M'!G111 -> 36922.76272 | H111: ='[1]Total - O&M'!H111 -> 37544.67992
A112: Accounts Manager | C112: ='[1]Total - O&M'!C112 -> 15976.97314 | D112: ='[1]Total - O&M'!D112 -> 16276.28005 | E112: ='[1]Total - O&M'!E112 -> 16550.43338 | F112: ='[1]Total - O&M'!F112 -> 16829.20448 | G112: ='[1]Total - O&M'!G112 -> 17112.67113 | H112: ='[1]Total - O&M'!H112 -> 17400.91241
A115: ENERGY EFFICIENT LIGHTS
A117: Inputs - T5 (2 X 14W)
A119: Depreciation period | B119: years | C119: ='[1]Total - O&M'!C119 -> 20 | D119: ='[1]Total - O&M'!D119 -> 20 | E119: ='[1]Total - O&M'!E119 -> 20 | F119: ='[1]Total - O&M'!F119 -> 20 | G119: ='[1]Total - O&M'!G119 -> 20 | H119: ='[1]Total - O&M'!H119 -> 20
A120: Lamps - bulk change | B120: years | C120: ='[1]Total - O&M'!C120 -> 4 | D120: ='[1]Total - O&M'!D120 -> 4 | E120: ='[1]Total - O&M'!E120 -> 4 | F120: ='[1]Total - O&M'!F120 -> 4 | G120: ='[1]Total - O&M'!G120 -> 4 | H120: ='[1]Total - O&M'!H120 -> 4
A121: PE cells - bulk change | B121: years | C121: ='[1]Total - O&M'!C121 -> 8 | D121: ='[1]Total - O&M'!D121 -> 8 | E121: ='[1]Total - O&M'!E121 -> 8 | F121: ='[1]Total - O&M'!F121 -> 8 | G121: ='[1]Total - O&M'!G121 -> 8 | H121: ='[1]Total - O&M'!H121 -> 8
A122: Ballast unit life | B122: years | C122: ='[1]Total - O&M'!C122 -> 20 | D122: ='[1]Total - O&M'!D122 -> 20 | E122: ='[1]Total - O&M'!E122 -> 20 | F122: ='[1]Total - O&M'!F122 -> 20 | G122: ='[1]Total - O&M'!G122 -> 20 | H122: ='[1]Total - O&M'!H122 -> 20
A123: Proportion of luminaires that fail between bulk change | C123: ='[1]Total - O&M'!C123 -> 0.114 | D123: ='[1]Total - O&M'!D123 -> 0.114 | E123: ='[1]Total - O&M'!E123 -> 0.114 | F123: ='[1]Total - O&M'!F123 -> 0.114 | G123: ='[1]Total - O&M'!G123 -> 0.114 | H123: ='[1]Total - O&M'!H123 -> 0.114
A124: Unit cost - lamp | C124: ='[1]Total - O&M'!C124 -> 9.968363529 | D124: ='[1]Total - O&M'!D124 -> 9.968363529 | E124: ='[1]Total - O&M'!E124 -> 9.968363529 | F124: ='[1]Total - O&M'!F124 -> 9.968363529 | G124: ='[1]Total - O&M'!G124 -> 9.968363529 | H124: ='[1]Total - O&M'!H124 -> 9.968363529
A125: Unit cost - PE cell | C125: ='[1]Total - O&M'!C125 -> 16.82161346 | D125: ='[1]Total - O&M'!D125 -> 16.82161346 | E125: ='[1]Total - O&M'!E125 -> 16.82161346 | F125: ='[1]Total - O&M'!F125 -> 16.82161346 | G125: ='[1]Total - O&M'!G125 -> 16.82161346 | H125: ='[1]Total - O&M'!H125 -> 16.82161346
A126: Unit cost - luminaire | C126: ='[1]Total - O&M'!C126 -> 300.5212395 | D126: ='[1]Total - O&M'!D126 -> 300.5212395 | E126: ='[1]Total - O&M'!E126 -> 300.5212395 | F126: ='[1]Total - O&M'!F126 -> 300.5212395 | G126: ='[1]Total - O&M'!G126 -> 300.5212395 | H126: ='[1]Total - O&M'!H126 -> 300.5212395
A127: Unit cost - miscellaneous materials (bulk lamp) | C127: ='[1]Total - O&M'!C127 -> 1.246045441 | D127: ='[1]Total - O&M'!D127 -> 1.246045441 | E127: ='[1]Total - O&M'!E127 -> 1.246045441 | F127: ='[1]Total - O&M'!F127 -> 1.246045441 | G127: ='[1]Total - O&M'!G127 -> 1.246045441 | H127: ='[1]Total - O&M'!H127 -> 1.246045441
A128: Unit cost - miscellaneous materials (repair) | C128: ='[1]Total - O&M'!C128 -> 12.46045441 | D128: ='[1]Total - O&M'!D128 -> 12.46045441 | E128: ='[1]Total - O&M'!E128 -> 12.46045441 | F128: ='[1]Total - O&M'!F128 -> 12.46045441 | G128: ='[1]Total - O&M'!G128 -> 12.46045441 | H128: ='[1]Total - O&M'!H128 -> 12.46045441
A129: Number of men in crew | C129: ='[1]Total - O&M'!C129 -> 2 | D129: ='[1]Total - O&M'!D129 -> 2 | E129: ='[1]Total - O&M'!E129 -> 2 | F129: ='[1]Total - O&M'!F129 -> 2 | G129: ='[1]Total - O&M'!G129 -> 2 | H129: ='[1]Total - O&M'!H129 -> 2
A130: Number of bulk lamp changes in 1 day - urban | C130: ='[1]Total - O&M'!C130 -> 73.92 | D130: ='[1]Total - O&M'!D130 -> 73.92 | E130: ='[1]Total - O&M'!E130 -> 73.92 | F130: ='[1]Total - O&M'!F130 -> 73.92 | G130: ='[1]Total - O&M'!G130 -> 73.92 | H130: ='[1]Total - O&M'!H130 -> 73.92
A131: Number of repairs in 1 day - urban | C131: ='[1]Total - O&M'!C131 -> 24.96 | D131: ='[1]Total - O&M'!D131 -> 24.96 | E131: ='[1]Total - O&M'!E131 -> 24.96 | F131: ='[1]Total - O&M'!F131 -> 24.96 | G131: ='[1]Total - O&M'!G131 -> 24.96 | H131: ='[1]Total - O&M'!H131 -> 24.96
A132: % of repairs - lamps | C132: ='[1]Total - O&M'!C132 -> 0.6 | D132: ='[1]Total - O&M'!D132 -> 0.6 | E132: ='[1]Total - O&M'!E132 -> 0.6 | F132: ='[1]Total - O&M'!F132 -> 0.6 | G132: ='[1]Total - O&M'!G132 -> 0.6 | H132: ='[1]Total - O&M'!H132 -> 0.6
A133: % of repairs - PE cells | C133: ='[1]Total - O&M'!C133 -> 0.5 | D133: ='[1]Total - O&M'!D133 -> 0.5 | E133: ='[1]Total - O&M'!E133 -> 0.5 | F133: ='[1]Total - O&M'!F133 -> 0.5 | G133: ='[1]Total - O&M'!G133 -> 0.5 | H133: ='[1]Total - O&M'!H133 -> 0.5
A134: % of repairs - luminaires | C134: ='[1]Total - O&M'!C134 -> 0.15 | D134: ='[1]Total - O&M'!D134 -> 0.15 | E134: ='[1]Total - O&M'!E134 -> 0.15 | F134: ='[1]Total - O&M'!F134 -> 0.15 | G134: ='[1]Total - O&M'!G134 -> 0.15 | H134: ='[1]Total - O&M'!H134 -> 0.15
A135: % of repairs - other | C135: ='[1]Total - O&M'!C135 -> 0.1 | D135: ='[1]Total - O&M'!D135 -> 0.1 | E135: ='[1]Total - O&M'!E135 -> 0.1 | F135: ='[1]Total - O&M'!F135 -> 0.1 | G135: ='[1]Total - O&M'!G135 -> 0.1 | H135: ='[1]Total - O&M'!H135 -> 0.1
A137: ='[1]ACS - O&M'!A137 -> Other Maintenance and Repair costs
A138: ='[1]ACS - O&M'!A138 -> Traffic control costs | C138: ='[1]Total - O&M'!C138 -> 17981.35753 | D138: ='[1]Total - O&M'!D138 -> 18078.92763 | E138: ='[1]Total - O&M'!E138 -> 18380.92576 | F138: ='[1]Total - O&M'!F138 -> 16784.54522 | G138: ='[1]Total - O&M'!G138 -> 15947.48312 | H138: ='[1]Total - O&M'!H138 -> 14941.97664
A139: ='[1]ACS - O&M'!A139 -> Other costs : Cascading Network | C139: ='[1]Total - O&M'!C139 -> 0 | D139: ='[1]Total - O&M'!D139 -> 9127.90575 | E139: ='[1]Total - O&M'!E139 -> 9138.220069 | F139: ='[1]Total - O&M'!F139 -> 8762.03932 | G139: ='[1]Total - O&M'!G139 -> 8262.120209 | H139: ='[1]Total - O&M'!H139 -> 7733.043992
C140: =SUM(C138:C139) -> 17981.35753 | D140: 27206.83338 | E140: 27519.14583 | F140: 25546.58454 | G140: 24209.60333 | H140: 22675.02063
A141: ='[1]ACS - O&M'!A141 -> Number of Lights | C141: ='DNSP Inputs General'!J68 -> 13950 | D141: ='DNSP Inputs General'!K68 -> 13671 | E141: ='DNSP Inputs General'!L68 -> 13397.58 | F141: ='DNSP Inputs General'!M68 -> 12459.7494 | G141: ='DNSP Inputs General'!N68 -> 11587.56694 | H141: ='DNSP Inputs General'!O68 -> 10776.43726
A142: ='[1]ACS - O&M'!A142 -> Unit Cost | C142: =IF(C141=0,0,C140/C141) -> 1.288986203 | D142: 1.990112895 | E142: 2.054038552 | F142: 2.050328921 | G142: 2.089274086 | H142: 2.104129601
A144: ='[1]ACS - O&M'!A144 -> Option for "0.8" factor
A145: ='[1]ACS - O&M'!A145 -> Switch ( 1 = On; 0 = Off ) | B145: ='[1]ACS - O&M'!B145 -> 1
A146: ='[1]ACS - O&M'!A146 -> Factor | B146: ='[1]ACS - O&M'!B146 -> 0.8
A148: Inputs - Category P LED
A150: Depreciation period | B150: years | C150: ='[1]Total - O&M'!C150 -> 20 | D150: ='[1]Total - O&M'!D150 -> 20 | E150: ='[1]Total - O&M'!E150 -> 20 | F150: ='[1]Total - O&M'!F150 -> 20 | G150: ='[1]Total - O&M'!G150 -> 20 | H150: ='[1]Total - O&M'!H150 -> 20
A151: Lamps - bulk change | B151: years | C151: ='[1]Total - O&M'!C151 -> 20 | D151: ='[1]Total - O&M'!D151 -> 20 | E151: ='[1]Total - O&M'!E151 -> 20 | F151: ='[1]Total - O&M'!F151 -> 20 | G151: ='[1]Total - O&M'!G151 -> 20 | H151: ='[1]Total - O&M'!H151 -> 20
A152: PE cells - bulk change | B152: years | C152: ='[1]Total - O&M'!C152 -> 8 | D152: ='[1]Total - O&M'!D152 -> 8 | E152: ='[1]Total - O&M'!E152 -> 8 | F152: ='[1]Total - O&M'!F152 -> 8 | G152: ='[1]Total - O&M'!G152 -> 8 | H152: ='[1]Total - O&M'!H152 -> 8
A153: Ballast unit life | B153: years | C153: ='[1]Total - O&M'!C153 -> 20 | D153: ='[1]Total - O&M'!D153 -> 20 | E153: ='[1]Total - O&M'!E153 -> 20 | F153: ='[1]Total - O&M'!F153 -> 20 | G153: ='[1]Total - O&M'!G153 -> 20 | H153: ='[1]Total - O&M'!H153 -> 20
A154: Proportion of luminaires that fail between bulk change | C154: ='[1]Total - O&M'!C154 -> 0.114 | D154: ='[1]Total - O&M'!D154 -> 0.114 | E154: ='[1]Total - O&M'!E154 -> 0.114 | F154: ='[1]Total - O&M'!F154 -> 0.114 | G154: ='[1]Total - O&M'!G154 -> 0.114 | H154: ='[1]Total - O&M'!H154 -> 0.114
A155: Unit cost - lamp | C155: ='[1]Total - O&M'!C155 -> 0 | D155: ='[1]Total - O&M'!D155 -> 0 | E155: ='[1]Total - O&M'!E155 -> 0 | F155: ='[1]Total - O&M'!F155 -> 0 | G155: ='[1]Total - O&M'!G155 -> 0 | H155: ='[1]Total - O&M'!H155 -> 0
A156: Unit cost - PE cell | C156: ='[1]Total - O&M'!C156 -> 16.82161346 | D156: ='[1]Total - O&M'!D156 -> 16.82161346 | E156: ='[1]Total - O&M'!E156 -> 16.82161346 | F156: ='[1]Total - O&M'!F156 -> 16.82161346 | G156: ='[1]Total - O&M'!G156 -> 16.82161346 | H156: ='[1]Total - O&M'!H156 -> 16.82161346
A157: Unit cost - luminaire | C157: ='[1]Total - O&M'!C157 -> 352.7287516 | D157: ='[1]Total - O&M'!D157 -> 352.7287516 | E157: ='[1]Total - O&M'!E157 -> 352.7287516 | F157: ='[1]Total - O&M'!F157 -> 352.7287516 | G157: ='[1]Total - O&M'!G157 -> 352.7287516 | H157: ='[1]Total - O&M'!H157 -> 352.7287516
A158: Unit cost - miscellaneous materials (bulk lamp) | C158: ='[1]Total - O&M'!C158 -> 1.246045441 | D158: ='[1]Total - O&M'!D158 -> 1.246045441 | E158: ='[1]Total - O&M'!E158 -> 1.246045441 | F158: ='[1]Total - O&M'!F158 -> 1.246045441 | G158: ='[1]Total - O&M'!G158 -> 1.246045441 | H158: ='[1]Total - O&M'!H158 -> 1.246045441
A159: Unit cost - miscellaneous materials (repair) | C159: ='[1]Total - O&M'!C159 -> 12.46045441 | D159: ='[1]Total - O&M'!D159 -> 12.46045441 | E159: ='[1]Total - O&M'!E159 -> 12.46045441 | F159: ='[1]Total - O&M'!F159 -> 12.46045441 | G159: ='[1]Total - O&M'!G159 -> 12.46045441 | H159: ='[1]Total - O&M'!H159 -> 12.46045441
A160: Number of men in crew | C160: ='[1]Total - O&M'!C160 -> 2 | D160: ='[1]Total - O&M'!D160 -> 2 | E160: ='[1]Total - O&M'!E160 -> 2 | F160: ='[1]Total - O&M'!F160 -> 2 | G160: ='[1]Total - O&M'!G160 -> 2 | H160: ='[1]Total - O&M'!H160 -> 2
A161: Number of bulk lamp changes in 1 day - urban | C161: ='[1]Total - O&M'!C161 -> 73.92 | D161: ='[1]Total - O&M'!D161 -> 73.92 | E161: ='[1]Total - O&M'!E161 -> 73.92 | F161: ='[1]Total - O&M'!F161 -> 73.92 | G161: ='[1]Total - O&M'!G161 -> 73.92 | H161: ='[1]Total - O&M'!H161 -> 73.92
A162: Number of repairs in 1 day - urban | C162: ='[1]Total - O&M'!C162 -> 24.96 | D162: ='[1]Total - O&M'!D162 -> 24.96 | E162: ='[1]Total - O&M'!E162 -> 24.96 | F162: ='[1]Total - O&M'!F162 -> 24.96 | G162: ='[1]Total - O&M'!G162 -> 24.96 | H162: ='[1]Total - O&M'!H162 -> 24.96
A163: % of repairs - lamps | C163: ='[1]Total - O&M'!C163 -> 0.6 | D163: ='[1]Total - O&M'!D163 -> 0.6 | E163: ='[1]Total - O&M'!E163 -> 0.6 | F163: ='[1]Total - O&M'!F163 -> 0.6 | G163: ='[1]Total - O&M'!G163 -> 0.6 | H163: ='[1]Total - O&M'!H163 -> 0.6
A164: % of repairs - PE cells | C164: ='[1]Total - O&M'!C164 -> 0.5 | D164: ='[1]Total - O&M'!D164 -> 0.5 | E164: ='[1]Total - O&M'!E164 -> 0.5 | F164: ='[1]Total - O&M'!F164 -> 0.5 | G164: ='[1]Total - O&M'!G164 -> 0.5 | H164: ='[1]Total - O&M'!H164 -> 0.5
A165: % of repairs - luminaires | C165: ='[1]Total - O&M'!C165 -> 0.15 | D165: ='[1]Total - O&M'!D165 -> 0.15 | E165: ='[1]Total - O&M'!E165 -> 0.15 | F165: ='[1]Total - O&M'!F165 -> 0.15 | G165: ='[1]Total - O&M'!G165 -> 0.15 | H165: ='[1]Total - O&M'!H165 -> 0.15
A166: % of repairs - other | C166: ='[1]Total - O&M'!C166 -> 0.1 | D166: ='[1]Total - O&M'!D166 -> 0.1 | E166: ='[1]Total - O&M'!E166 -> 0.1 | F166: ='[1]Total - O&M'!F166 -> 0.1 | G166: ='[1]Total - O&M'!G166 -> 0.1 | H166: ='[1]Total - O&M'!H166 -> 0.1
A168: Other Maintenance and Repair costs
A169: Traffic control costs | C169: ='[1]Total - O&M'!C169 -> 400.7399272 | D169: ='[1]Total - O&M'!D169 -> 1745.775774 | E169: ='[1]Total - O&M'!E169 -> 4792.610824 | F169: ='[1]Total - O&M'!F169 -> 7633.209169 | G169: ='[1]Total - O&M'!G169 -> 9358.107578 | H169: ='[1]Total - O&M'!H169 -> 11313.6368
A170: Other costs : Cascading Network | C170: ='[1]Total - O&M'!C170 -> 0 | D170: ='[1]Total - O&M'!D170 -> 1388.113321 | E170: ='[1]Total - O&M'!E170 -> 1564.009521 | F170: ='[1]Total - O&M'!F170 -> 1762.9936 | G170: ='[1]Total - O&M'!G170 -> 2145.039751 | H170: ='[1]Total - O&M'!H170 -> 2590.553786
C171: =SUM(C169:C170) -> 400.7399272 | D171: 3133.889095 | E171: 6356.620345 | F171: 9396.202769 | G171: 11503.14733 | H171: 13904.19059
A172: Number of Lights | C172: ='DNSP Inputs General'!J72 -> 3989 | D172: ='DNSP Inputs General'!K72 -> 5239.0748 | E172: ='DNSP Inputs General'!L72 -> 5778.36112 | F172: ='DNSP Inputs General'!M72 -> 6317.64744 | G172: ='DNSP Inputs General'!N72 -> 7581.176928 | H172: ='DNSP Inputs General'!O72 -> 9097.412314
A173: Unit Cost | C173: =IF(C172=0,0,C171/C172) -> 0.1004612502 | D173: 0.5981760549 | E173: 1.100073224 | F173: 1.487294576 | G173: 1.517330019 | H173: 1.52836764

Sheet DNSP Inputs Capex
A1: Public Lighting Cost Build-up Model
A3: ='DNSP Inputs O & M'!$A$3 -> CitiPower | C3: Capex Data Inputs
C5: Real 2015 $
A7: Input parameters | C7: 2015 | D7: 2016 | E7: 2017 | F7: 2018 | G7: 2019 | H7: 2020
A9: Inputs - all lamps
A11: Labour rate (per hour) | C11: ='[1]Total - Capex'!C11 -> 121.4914353 | D11: ='[1]Total - Capex'!D11 -> 123.7674125 | E11: ='[1]Total - Capex'!E11 -> 125.8521179 | F11: ='[1]Total - Capex'!F11 -> 127.9719375 | G11: ='[1]Total - Capex'!G11 -> 130.1274628 | H11: ='[1]Total - Capex'!H11 -> 132.3192952
A12: Elevated platform vehicle (per hour) - urban MV,urban T5 | C12: ='[1]Total - Capex'!C12 -> 76.9531112 | D12: ='[1]Total - Capex'!D12 -> 77.69564122 | E12: ='[1]Total - Capex'!E12 -> 79.36920231 | F12: ='[1]Total - Capex'!F12 -> 80.74617287 | G12: ='[1]Total - Capex'!G12 -> 82.13129241 | H12: ='[1]Total - Capex'!H12 -> 83.56418727
A13: Elevated platform vehicle (per hour) - rural MV, rural T5, S-HP | C13: ='[1]Total - Capex'!C13 -> 57.00342251 | D13: ='[1]Total - Capex'!D13 -> 57.55345553 | E13: ='[1]Total - Capex'!E13 -> 58.79315472 | F13: ='[1]Total - Capex'!F13 -> 59.81315292 | G13: ='[1]Total - Capex'!G13 -> 60.83918751 | H13: ='[1]Total - Capex'!H13 -> 61.90061193
A14: Number of hours in a day | C14: ='[1]Total - Capex'!C14 -> 8 | D14: ='[1]Total - Capex'!D14 -> 8 | E14: ='[1]Total - Capex'!E14 -> 8 | F14: ='[1]Total - Capex'!F14 -> 8 | G14: ='[1]Total - Capex'!G14 -> 8 | H14: ='[1]Total - Capex'!H14 -> 8
A18: Inputs - MV80
A20: Unit cost - luminaire | C20: ='[1]Total - Capex'!C20 -> 197.5605047 | D20: ='[1]Total - Capex'!D20 -> 197.5605047 | E20: ='[1]Total - Capex'!E20 -> 197.5605047 | F20: ='[1]Total - Capex'!F20 -> 197.5605047 | G20: ='[1]Total - Capex'!G20 -> 197.5605047 | H20: ='[1]Total - Capex'!H20 -> 197.5605047
A21: Unit cost - miscellaneous materials (bulk lamp) | C21: ='[1]Total - Capex'!C21 -> 1.246045441 | D21: ='[1]Total - Capex'!D21 -> 1.246045441 | E21: ='[1]Total - Capex'!E21 -> 1.246045441 | F21: ='[1]Total - Capex'!F21 -> 1.246045441 | G21: ='[1]Total - Capex'!G21 -> 1.246045441 | H21: ='[1]Total - Capex'!H21 -> 1.246045441
A22: Number of men in crew | C22: ='[1]Total - Capex'!C22 -> 2 | D22: ='[1]Total - Capex'!D22 -> 2 | E22: ='[1]Total - Capex'!E22 -> 2 | F22: ='[1]Total - Capex'!F22 -> 2 | G22: ='[1]Total - Capex'!G22 -> 2 | H22: ='[1]Total - Capex'!H22 -> 2
A23: Number of luminaires replaced per day - urban | C23: ='[1]Total - Capex'!C23 -> 15.36 | D23: ='[1]Total - Capex'!D23 -> 15.36 | E23: ='[1]Total - Capex'!E23 -> 15.36 | F23: ='[1]Total - Capex'!F23 -> 15.36 | G23: ='[1]Total - Capex'!G23 -> 15.36 | H23: ='[1]Total - Capex'!H23 -> 15.36
A25: Other Capex unit costs Describe :……………………… | C25: ='[1]Total - Capex'!C25 -> 0 | D25: ='[1]Total - Capex'!D25 -> 0 | E25: ='[1]Total - Capex'!E25 -> 0 | F25: ='[1]Total - Capex'!F25 -> 0 | G25: ='[1]Total - Capex'!G25 -> 0 | H25: ='[1]Total - Capex'!H25 -> 0
A27: Forecast Quantities to be replaced
A28: Number of luminaires replaced per year - urban | D28: ='[1]Total - Capex'!D28 -> 25.81437169 | E28: ='[1]Total - Capex'!E28 -> 20.83971293 | F28: ='[1]Total - Capex'!F28 -> 19.23041576 | G28: ='[1]Total - Capex'!G28 -> 17.06952934 | H28: ='[1]Total - Capex'!H28 -> 14.91602526
A30: MV80 Lights replaced with T5 Energy Efficient Lights
A31: Number of Lights MV80 replaced with Energy Efficient Lights per year | D31: ='[1]Total - Capex'!D31 -> 1250.0748 | E31: ='[1]Total - Capex'!E31 -> 539.28632 | F31: ='[1]Total - Capex'!F31 -> 220.3676383 | G31: ='[1]Total - Capex'!G31 -> 197.4398741 | H31: ='[1]Total - Capex'!H31 -> 176.8975889
A35: Inputs - S-HP150
A37: Unit cost - luminaire | C37: ='[1]Total - Capex'!C37 -> 203.4743498 | D37: ='[1]Total - Capex'!D37 -> 203.4743498 | E37: ='[1]Total - Capex'!E37 -> 203.4743498 | F37: ='[1]Total - Capex'!F37 -> 203.4743498 | G37: ='[1]Total - Capex'!G37 -> 203.4743498 | H37: ='[1]Total - Capex'!H37 -> 203.4743498
A38: Unit cost - miscellaneous materials | C38: ='[1]Total - Capex'!C38 -> 2.168773714 | D38: ='[1]Total - Capex'!D38 -> 2.492090882 | E38: ='[1]Total - Capex'!E38 -> 2.492090882 | F38: ='[1]Total - Capex'!F38 -> 2.492090882 | G38: ='[1]Total - Capex'!G38 -> 2.492090882 | H38: ='[1]Total - Capex'!H38 -> 2.492090882
A39: Number of men in crew - repairs | C39: ='[1]Total - Capex'!C39 -> 2 | D39: ='[1]Total - Capex'!D39 -> 2 | E39: ='[1]Total - Capex'!E39 -> 2 | F39: ='[1]Total - Capex'!F39 -> 2 | G39: ='[1]Total - Capex'!G39 -> 2 | H39: ='[1]Total - Capex'!H39 -> 2
A40: Number of luminaires replaced per day - urban | C40: ='[1]Total - Capex'!C40 -> 15.36 | D40: ='[1]Total - Capex'!D40 -> 15.36 | E40: ='[1]Total - Capex'!E40 -> 15.36 | F40: ='[1]Total - Capex'!F40 -> 15.36 | G40: ='[1]Total - Capex'!G40 -> 15.36 | H40: ='[1]Total - Capex'!H40 -> 15.36
C41: ='[1]Total - Capex'!C41 -> 0 | D41: ='[1]Total - Capex'!D41 -> 0 | E41: ='[1]Total - Capex'!E41 -> 0 | F41: ='[1]Total - Capex'!F41 -> 0 | G41: ='[1]Total - Capex'!G41 -> 0 | H41: ='[1]Total - Capex'!H41 -> 0
A42: Other Capex unit costs Describe :……………………… | C42: ='[1]Total - Capex'!C42 -> 0 | D42: ='[1]Total - Capex'!D42 -> 0 | E42: ='[1]Total - Capex'!E42 -> 0 | F42: ='[1]Total - Capex'!F42 -> 0 | G42: ='[1]Total - Capex'!G42 -> 0 | H42: ='[1]Total - Capex'!H42 -> 0
A44: Forecast Quantities to be replaced
A45: Number of luminaires replaced per year - urban | D45: ='[1]Total - Capex'!D45 -> 273.6545217 | E45: ='[1]Total - Capex'!E45 -> 272.5558321 | F45: ='[1]Total - Capex'!F45 -> 271.4512943 | G45: ='[1]Total - Capex'!G45 -> 270.3409613 | H45: ='[1]Total - Capex'!H45 -> 269.2248877
A49: Inputs - S-HP250
A51: Unit cost - luminaire | C51: ='[1]Total - Capex'!C51 -> 206.510633 | D51: ='[1]Total - Capex'!D51 -> 206.510633 | E51: ='[1]Total - Capex'!E51 -> 206.510633 | F51: ='[1]Total - Capex'!F51 -> 206.510633 | G51: ='[1]Total - Capex'!G51 -> 206.510633 | H51: ='[1]Total - Capex'!H51 -> 206.510633
A52: Unit cost - miscellaneous materials | C52: ='[1]Total - Capex'!C52 -> 2.168773714 | D52: ='[1]Total - Capex'!D52 -> 2.492090882 | E52: ='[1]Total - Capex'!E52 -> 2.492090882 | F52: ='[1]Total - Capex'!F52 -> 2.492090882 | G52: ='[1]Total - Capex'!G52 -> 2.492090882 | H52: ='[1]Total - Capex'!H52 -> 2.492090882
A53: Number of men in crew - repairs | C53: ='[1]Total - Capex'!C53 -> 2 | D53: ='[1]Total - Capex'!D53 -> 2 | E53: ='[1]Total - Capex'!E53 -> 2 | F53: ='[1]Total - Capex'!F53 -> 2 | G53: ='[1]Total - Capex'!G53 -> 2 | H53: ='[1]Total - Capex'!H53 -> 2
A54: Number of luminaires replaced per day - urban | C54: ='[1]Total - Capex'!C54 -> 15.36 | D54: ='[1]Total - Capex'!D54 -> 15.36 | E54: ='[1]Total - Capex'!E54 -> 15.36 | F54: ='[1]Total - Capex'!F54 -> 15.36 | G54: ='[1]Total - Capex'!G54 -> 15.36 | H54: ='[1]Total - Capex'!H54 -> 15.36
A56: Other Capex unit costs Describe :……………………… | C56: ='[1]Total - Capex'!C56 -> 0 | D56: ='[1]Total - Capex'!D56 -> 0 | E56: ='[1]Total - Capex'!E56 -> 0 | F56: ='[1]Total - Capex'!F56 -> 0 | G56: ='[1]Total - Capex'!G56 -> 0 | H56: ='[1]Total - Capex'!H56 -> 0
A58: Forecast Quantities to be replaced
A59: Number of luminaires replaced per year - urban | D59: ='[1]Total - Capex'!D59 -> 116.7134365 | E59: ='[1]Total - Capex'!E59 -> 117.8121261 | F59: ='[1]Total - Capex'!F59 -> 118.9166639 | G59: ='[1]Total - Capex'!G59 -> 120.026997 | H59: ='[1]Total - Capex'!H59 -> 121.1430705
A63: Dedicated street lighting poles
A65: Cost of pole & bracket | C65: ='[1]Total - Capex'!C65 -> 1390.898761 | D65: ='[1]Total - Capex'!D65 -> 1390.898761 | E65: ='[1]Total - Capex'!E65 -> 1390.898761 | F65: ='[1]Total - Capex'!F65 -> 1390.898761 | G65: ='[1]Total - Capex'!G65 -> 1390.898761 | H65: ='[1]Total - Capex'!H65 -> 1390.898761
A66: Number of poles & brackets replaced per day | C66: ='[1]Total - Capex'!C66 -> 3.84 | D66: ='[1]Total - Capex'!D66 -> 3.84 | E66: ='[1]Total - Capex'!E66 -> 3.84 | F66: ='[1]Total - Capex'!F66 -> 3.84 | G66: ='[1]Total - Capex'!G66 -> 3.84 | H66: ='[1]Total - Capex'!H66 -> 3.84
A67: Cost of bracket on non-dedicated poles | C67: ='[1]Total - Capex'!C67 -> 42.18424 | D67: ='[1]Total - Capex'!D67 -> 42.18424 | E67: ='[1]Total - Capex'!E67 -> 42.18424 | F67: ='[1]Total - Capex'!F67 -> 42.18424 | G67: ='[1]Total - Capex'!G67 -> 42.18424 | H67: ='[1]Total - Capex'!H67 -> 42.18424
A68: Number of brackets replaced per day | C68: ='[1]Total - Capex'!C68 -> 19.2 | D68: ='[1]Total - Capex'!D68 -> 19.2 | E68: ='[1]Total - Capex'!E68 -> 19.2 | F68: ='[1]Total - Capex'!F68 -> 19.2 | G68: ='[1]Total - Capex'!G68 -> 19.2 | H68: ='[1]Total - Capex'!H68 -> 19.2
A70: Other poles & brackets Capex unit costs Describe :………………… | C70: ='[1]Total - Capex'!C70 -> 0 | D70: ='[1]Total - Capex'!D70 -> 0 | E70: ='[1]Total - Capex'!E70 -> 0 | F70: ='[1]Total - Capex'!F70 -> 0 | G70: ='[1]Total - Capex'!G70 -> 0 | H70: ='[1]Total - Capex'!H70 -> 0
A73: Forecast Quantities to be replaced
A74: Number of poles & brackets replaced per year - urban | D74: ='[1]Total - Capex'!D74 -> 61.25 | E74: ='[1]Total - Capex'!E74 -> 61.25 | F74: ='[1]Total - Capex'!F74 -> 61.25 | G74: ='[1]Total - Capex'!G74 -> 61.25 | H74: ='[1]Total - Capex'!H74 -> 61.25
A76: Brackets on non-dedicated poles :
A77: Number of brackets replaced per year - urban | D77: ='[1]Total - Capex'!D77 -> 20 | E77: ='[1]Total - Capex'!E77 -> 20 | F77: ='[1]Total - Capex'!F77 -> 20 | G77: ='[1]Total - Capex'!G77 -> 20 | H77: ='[1]Total - Capex'!H77 -> 20
A81: Luminaire Replacents - Other Light types (excluding Energy Efficient Lights)
A82: Number of luminaires replaced per year | D82: ='[1]Total - Capex'!D82 -> 599.8827289 | E82: ='[1]Total - Capex'!E82 -> 599.8827289 | F82: ='[1]Total - Capex'!F82 -> 599.8827289 | G82: ='[1]Total - Capex'!G82 -> 599.8827289 | H82: ='[1]Total - Capex'!H82 -> 599.8827289
A83: Forecast Capex | D83: ='[1]Total - Capex'!D83 -> 453165.7755 | E83: ='[1]Total - Capex'!E83 -> 453165.7755 | F83: ='[1]Total - Capex'!F83 -> 453165.7755 | G83: ='[1]Total - Capex'!G83 -> 453165.7755 | H83: ='[1]Total - Capex'!H83 -> 453165.7755
A87: Inputs - T5 (2 X 14W)
A89: Unit cost - luminaire | C89: ='[1]Total - Capex'!C89 -> 300.5212395 | D89: ='[1]Total - Capex'!D89 -> 300.5212395 | E89: ='[1]Total - Capex'!E89 -> 300.5212395 | F89: ='[1]Total - Capex'!F89 -> 300.5212395 | G89: ='[1]Total - Capex'!G89 -> 300.5212395 | H89: ='[1]Total - Capex'!H89 -> 300.5212395
A90: Unit cost - miscellaneous materials | C90: ='[1]Total - Capex'!C90 -> 1.246045441 | D90: ='[1]Total - Capex'!D90 -> 1.246045441 | E90: ='[1]Total - Capex'!E90 -> 1.246045441 | F90: ='[1]Total - Capex'!F90 -> 1.246045441 | G90: ='[1]Total - Capex'!G90 -> 1.246045441 | H90: ='[1]Total - Capex'!H90 -> 1.246045441
A91: Number of men in crew - repairs | C91: ='[1]Total - Capex'!C91 -> 2 | D91: ='[1]Total - Capex'!D91 -> 2 | E91: ='[1]Total - Capex'!E91 -> 2 | F91: ='[1]Total - Capex'!F91 -> 2 | G91: ='[1]Total - Capex'!G91 -> 2 | H91: ='[1]Total - Capex'!H91 -> 2
A92: Number of luminaires replaced per day - urban | C92: ='[1]Total - Capex'!C92 -> 15.36 | D92: ='[1]Total - Capex'!D92 -> 15.36 | E92: ='[1]Total - Capex'!E92 -> 15.36 | F92: ='[1]Total - Capex'!F92 -> 15.36 | G92: ='[1]Total - Capex'!G92 -> 15.36 | H92: ='[1]Total - Capex'!H92 -> 15.36
A94: Other Capex unit costs Describe :……………………… | C94: ='[1]Total - Capex'!C94 -> 0 | D94: ='[1]Total - Capex'!D94 -> 0 | E94: ='[1]Total - Capex'!E94 -> 0 | F94: ='[1]Total - Capex'!F94 -> 0 | G94: ='[1]Total - Capex'!G94 -> 0 | H94: ='[1]Total - Capex'!H94 -> 0
A96: Forecast Quantities to be replaced
A97: Number of luminaires replaced per year - urban | D97: ='[1]Total - Capex'!D97 -> 132.8058287 | E97: ='[1]Total - Capex'!E97 -> 131.8208668 | F97: ='[1]Total - Capex'!F97 -> 126.263262 | G97: ='[1]Total - Capex'!G97 -> 116.3337636 | H97: ='[1]Total - Capex'!H97 -> 105.5196258
A101: Inputs - Category P LED
A103: Unit cost - luminaire | C103: ='[1]Total - Capex'!C103 -> 352.7287516 | D103: ='[1]Total - Capex'!D103 -> 352.7287516 | E103: ='[1]Total - Capex'!E103 -> 352.7287516 | F103: ='[1]Total - Capex'!F103 -> 352.7287516 | G103: ='[1]Total - Capex'!G103 -> 352.7287516 | H103: ='[1]Total - Capex'!H103 -> 352.7287516
A104: Unit cost - miscellaneous materials | C104: ='[1]Total - Capex'!C104 -> 1.246045441 | D104: ='[1]Total - Capex'!D104 -> 1.246045441 | E104: ='[1]Total - Capex'!E104 -> 1.246045441 | F104: ='[1]Total - Capex'!F104 -> 1.246045441 | G104: ='[1]Total - Capex'!G104 -> 1.246045441 | H104: ='[1]Total - Capex'!H104 -> 1.246045441
A105: Number of men in crew - repairs | C105: ='[1]Total - Capex'!C105 -> 2 | D105: ='[1]Total - Capex'!D105 -> 2 | E105: ='[1]Total - Capex'!E105 -> 2 | F105: ='[1]Total - Capex'!F105 -> 2 | G105: ='[1]Total - Capex'!G105 -> 2 | H105: ='[1]Total - Capex'!H105 -> 2
A106: Number of luminaires replaced per day - urban | C106: ='[1]Total - Capex'!C106 -> 15.36 | D106: ='[1]Total - Capex'!D106 -> 15.36 | E106: ='[1]Total - Capex'!E106 -> 15.36 | F106: ='[1]Total - Capex'!F106 -> 15.36 | G106: ='[1]Total - Capex'!G106 -> 15.36 | H106: ='[1]Total - Capex'!H106 -> 15.36
A108: Other Capex unit costs Describe :……………………… | C108: ='[1]Total - Capex'!C108 -> 0 | D108: ='[1]Total - Capex'!D108 -> 0 | E108: ='[1]Total - Capex'!E108 -> 0 | F108: ='[1]Total - Capex'!F108 -> 0 | G108: ='[1]Total - Capex'!G108 -> 0 | H108: ='[1]Total - Capex'!H108 -> 0
A110: Forecast Quantities to be replaced
A111: Number of luminaires replaced per year - urban | D111: ='[1]Total - Capex'!D111 -> 50.8945703 | E111: ='[1]Total - Capex'!E111 -> 56.85419096 | F111: ='[1]Total - Capex'!F111 -> 64.02109292 | G111: ='[1]Total - Capex'!G111 -> 76.11147782 | H111: ='[1]Total - Capex'!H111 -> 89.07911962

Sheet Total RAB
A1: ='DNSP Inputs O & M'!$A$3 -> CitiPower | E1: Check | F1: =SUM(B144) -> 2.421438694e-08
A3: Total Public Lighting RAB
A4: Historical cost ($)
B6: Life (years) | C6: 2005 | D6: 2006 | E6: 2007 | F6: 2008 | G6: 2009 | H6: 2010 | I6: 2011 | J6: 2012 | K6: 2013 | L6: 2014 | M6: 2015 | N6: 2016 | O6: 2017 | P6: 2018 | Q6: 2019 | R6: 2020
A8: Capital Expenditue (Nominal $)
A9: (Net of customer contributions)
A11: Poles and Brackets | B11: 35 | C11: ='[1]DNSP Inputs General'!B6 -> 372200 | D11: ='[1]DNSP Inputs General'!C6 -> 306200 | E11: ='[1]DNSP Inputs General'!D6 -> 215400 | F11: ='[1]DNSP Inputs General'!E6 -> 231200 | G11: ='DNSP Inputs General'!D6 -> 531468.6752 | H11: ='DNSP Inputs General'!E6 -> 393132.521 | I11: ='DNSP Inputs General'!F6 -> 731739.197 | J11: ='DNSP Inputs General'!G6 -> 446549.6698 | K11: ='DNSP Inputs General'!H6 -> 829214.4062 | L11: ='DNSP Inputs General'!I6 -> 582455.9671 | M11: ='DNSP Inputs General'!J6*M$20 -> 379678.3537 | N11: ='DNSP Inputs General'!K6*N$20 -> 133633.679 | O11: ='DNSP Inputs General'!L6*O$20 -> 137944.273 | P11: ='DNSP Inputs General'!M6*P$20 -> 142355.4474 | Q11: ='DNSP Inputs General'!N6*Q$20 -> 146914.7373 | R11: ='DNSP Inputs General'!O6*R$20 -> 151633.4844
A13: Existing Lights
A14: Luminaires | B14: ='DNSP Inputs O & M'!$C$23 -> 20 | C14: ='[1]DNSP Inputs General'!B9 -> 1488800 | D14: ='[1]DNSP Inputs General'!C9 -> 1224800 | E14: ='[1]DNSP Inputs General'!D9 -> 861600 | F14: ='[1]DNSP Inputs General'!E9 -> 924800 | G14: ='DNSP Inputs General'!D9 -> 1528078.735 | H14: ='DNSP Inputs General'!E9 -> 180798.5269 | I14: ='DNSP Inputs General'!F9 -> 155610.0815 | J14: ='DNSP Inputs General'!G9 -> 264471.52 | K14: ='DNSP Inputs General'!H9 -> -663200.7381 | L14: ='DNSP Inputs General'!I9 -> 973875.3023 | M14: ='DNSP Inputs General'!J9*M$20 -> 634828.0255 | N14: ='DNSP Inputs General'!K9*N$20 -> -26264.48076 | O14: ='DNSP Inputs General'!L9*O$20 -> 88828.25138 | P14: ='DNSP Inputs General'!M9*P$20 -> 140438.0755 | Q14: ='DNSP Inputs General'!N9*Q$20 -> 150270.4866 | R14: ='DNSP Inputs General'!O9*R$20 -> 159553.3493
A16: Energy Efficient Lights
A17: Luminaires and Ballasts | B17: ='DNSP Inputs O & M'!$C$119 -> 20 | G17: ='DNSP Inputs General'!D12 -> 597795.9658 | H17: ='DNSP Inputs General'!E12 -> 70729.75205 | I17: ='DNSP Inputs General'!F12 -> 60875.84155 | J17: ='DNSP Inputs General'!G12 -> 103463.2602 | K17: ='DNSP Inputs General'!H12 -> -259449.148 | L17: ='DNSP Inputs General'!I12 -> 380987.3887 | M17: ='DNSP Inputs General'!J12*M$20 -> 248349.528 | N17: ='DNSP Inputs General'!K12*N$20 -> 91528.45408 | O17: ='DNSP Inputs General'!L12*O$20 -> 97307.46014 | P17: ='DNSP Inputs General'!M12*P$20 -> 101666.9857 | Q17: ='DNSP Inputs General'!N12*Q$20 -> 106784.9554 | R17: ='DNSP Inputs General'!O12*R$20 -> 112176.7996
A20: CPI Index | M20: 1 | N20: =M20*(1+WACC!E$6) -> 1.026 | O20: =N20*(1+WACC!F$6) -> 1.052676 | P20: =O20*(1+WACC!G$6) -> 1.080045576 | Q20: =P20*(1+WACC!H$6) -> 1.108126761 | R20: =Q20*(1+WACC!I$6) -> 1.136938057
A23: Depreciation | C23: =$C$6 -> 2005 | D23: =$D$6 -> 2006 | E23: =$E$6 -> 2007 | F23: =$F$6 -> 2008 | G23: =G$6 -> 2009 | H23: =H$6 -> 2010 | I23: 2011 | J23: 2012 | K23: 2013 | L23: 2014 | M23: 2015 | N23: 2016 | O23: 2017 | P23: 2018 | Q23: 2019 | R23: 2020
A24: =$A$11 -> Poles and Brackets
A25: RAB 2001-04 | C25: ='RAB 2001 to 2004'!F113 -> 42900.73341 | D25: ='RAB 2001 to 2004'!G113 -> 42900.73341 | E25: ='RAB 2001 to 2004'!H113 -> 42900.73341 | F25: ='RAB 2001 to 2004'!I113 -> 42900.73341 | G25: ='RAB 2001 to 2004'!J113 -> 42900.73341 | H25: ='RAB 2001 to 2004'!K113 -> 42900.73341 | I25: ='RAB 2001 to 2004'!L113 -> 42900.73341 | J25: ='RAB 2001 to 2004'!M113 -> 42900.73341 | K25: ='RAB 2001 to 2004'!N113 -> 42900.73341 | L25: ='RAB 2001 to 2004'!O113 -> 42900.73341 | M25: ='RAB 2001 to 2004'!P113 -> 42900.73341 | N25: ='RAB 2001 to 2004'!Q113 -> 42900.73341 | O25: ='RAB 2001 to 2004'!R113 -> 42900.73341 | P25: ='RAB 2001 to 2004'!S113 -> 42900.73341 | Q25: ='RAB 2001 to 2004'!T113 -> 42900.73341 | R25: ='RAB 2001 to 2004'!U113 -> 42900.73341
A26: Depn Capex 2005 | C26: =C$11/$B$11/2 -> 5317.142857 | D26: =C26*2 -> 10634.28571 | E26: =D26 -> 10634.28571 | F26: =E26 -> 10634.28571 | G26: =F26 -> 10634.28571 | H26: 10634.28571 | I26: 10634.28571 | J26: 10634.28571 | K26: 10634.28571 | L26: 10634.28571 | M26: 10634.28571 | N26: 10634.28571 | O26: 10634.28571 | P26: 10634.28571 | Q26: 10634.28571 | R26: 10634.28571
A27: Depn Capex 2006 | D27: =D$11/$B$11/2 -> 4374.285714 | E27: =D27*2 -> 8748.571429 | F27: =E27 -> 8748.571429 | G27: 8748.571429 | H27: 8748.571429 | I27: 8748.571429 | J27: 8748.571429 | K27: 8748.571429 | L27: 8748.571429 | M27: 8748.571429 | N27: 8748.571429 | O27: 8748.571429 | P27: 8748.571429 | Q27: 8748.571429 | R27: 8748.571429
A28: Depn Capex 2007 | E28: =E$11/$B$11/2 -> 3077.142857 | F28: =E28*2 -> 6154.285714 | G28: =F28 -> 6154.285714 | H28: 6154.285714 | I28: 6154.285714 | J28: 6154.285714 | K28: 6154.285714 | L28: 6154.285714 | M28: 6154.285714 | N28: 6154.285714 | O28: 6154.285714 | P28: 6154.285714 | Q28: 6154.285714 | R28: 6154.285714
A29: Depn Capex 2008 | F29: =F$11/$B$11/2 -> 3302.857143 | G29: =F29*2 -> 6605.714286 | H29: 6605.714286 | I29: 6605.714286 | J29: 6605.714286 | K29: 6605.714286 | L29: 6605.714286 | M29: 6605.714286 | N29: 6605.714286 | O29: 6605.714286 | P29: 6605.714286 | Q29: 6605.714286 | R29: 6605.714286
A30: Depn Capex 2009 | G30: =G$11/$B$11/2 -> 7592.409645 | H30: =G30*2 -> 15184.81929 | I30: =H30 -> 15184.81929 | J30: =I30 -> 15184.81929 | K30: =J30 -> 15184.81929 | L30: =K30 -> 15184.81929 | M30: =L30 -> 15184.81929 | N30: 15184.81929 | O30: 15184.81929 | P30: 15184.81929 | Q30: 15184.81929 | R30: 15184.81929
A31: Depn Capex 2010 | H31: =H$11/$B$11/2 -> 5616.178872 | I31: =H31*2 -> 11232.35774 | J31: =I31 -> 11232.35774 | K31: =J31 -> 11232.35774 | L31: =K31 -> 11232.35774 | M31: =L31 -> 11232.35774 | N31: 11232.35774 | O31: 11232.35774 | P31: 11232.35774 | Q31: 11232.35774 | R31: 11232.35774
A32: Depn Capex 2011 | I32: =I$11/$B$11/2 -> 10453.4171 | J32: =I32*2 -> 20906.8342 | K32: =J32 -> 20906.8342 | L32: =K32 -> 20906.8342 | M32: =L32 -> 20906.8342 | N32: 20906.8342 | O32: 20906.8342 | P32: 20906.8342 | Q32: 20906.8342 | R32: 20906.8342
A33: Depn Capex 2012 | J33: =J$11/$B$11/2 -> 6379.280997 | K33: =J33*2 -> 12758.56199 | L33: =K33 -> 12758.56199 | M33: =L33 -> 12758.56199 | N33: 12758.56199 | O33: 12758.56199 | P33: 12758.56199 | Q33: 12758.56199 | R33: 12758.56199
A34: Depn Capex 2013 | K34: =K$11/$B$11/2 -> 11845.92009 | L34: =K34*2 -> 23691.84018 | M34: =L34 -> 23691.84018 | N34: 23691.84018 | O34: 23691.84018 | P34: 23691.84018 | Q34: 23691.84018 | R34: 23691.84018
A35: Depn Capex 2014 | L35: =L$11/$B$11/2 -> 8320.79953 | M35: =L35*2 -> 16641.59906 | N35: 16641.59906 | O35: 16641.59906 | P35: 16641.59906 | Q35: 16641.59906 | R35: 16641.59906
A36: Depn Capex 2015 | M36: =M$11/$B$11/2 -> 5423.976482 | N36: =M36*2 -> 10847.95296 | O36: 10847.95296 | P36: 10847.95296 | Q36: 10847.95296 | R36: 10847.95296
A37: Depn Capex 2016 | N37: =N$11/$B$11/2 -> 1909.052556 | O37: =N37*2 -> 3818.105113 | P37: 3818.105113 | Q37: 3818.105113 | R37: 3818.105113
A38: Depn Capex 2017 | O38: =O$11/$B$11/2 -> 1970.632472 | P38: =O38*2 -> 3941.264944 | Q38: 3941.264944 | R38: 3941.264944
A39: Depn Capex 2018 | P39: =P$11/$B$11/2 -> 2033.649249 | Q39: =P39*2 -> 4067.298499 | R39: 4067.298499
A40: Depn Capex 2019 | Q40: =Q$11/$B$11/2 -> 2098.781961 | R40: =Q40*2 -> 4197.563922
A41: Depn Capex 2020 | R41: =R$11/$B$11/2 -> 2166.192634
A42: Total Depreciation | C42: =SUM(C25:C41) -> 48217.87627 | D42: =SUM(D25:D41) -> 57909.30484 | E42: 65360.73341 | F42: 71740.73341 | G42: 82636.0002 | H42: 95844.58872 | I42: 111914.1847 | J42: 128746.8828 | K42: 146972.0839 | L42: 167138.8035 | M42: 180883.5795 | N42: 188216.6085 | O42: 192096.2936 | P42: 196100.5753 | Q42: 200233.0065 | R42: 204497.9811
A44: =$A$13 -> Existing Lights
A45: =$A$14 -> Luminaires
A46: =A25 -> RAB 2001-04 | C46: ='RAB 2001 to 2004'!F77 -> 144861.8727 | D46: ='RAB 2001 to 2004'!G77 -> 144861.8727 | E46: ='RAB 2001 to 2004'!H77 -> 144861.8727 | F46: ='RAB 2001 to 2004'!I77 -> 144861.8727 | G46: ='RAB 2001 to 2004'!J77 -> 144861.8727 | H46: ='RAB 2001 to 2004'!K77 -> 144861.8727 | I46: ='RAB 2001 to 2004'!L77 -> 144861.8727 | J46: ='RAB 2001 to 2004'!M77 -> 144861.8727 | K46: ='RAB 2001 to 2004'!N77 -> 144861.8727 | L46: ='RAB 2001 to 2004'!O77 -> 144861.8727 | M46: ='RAB 2001 to 2004'!P77 -> 144861.8727 | N46: ='RAB 2001 to 2004'!Q77 -> 144861.8727 | O46: ='RAB 2001 to 2004'!R77 -> 144861.8727 | P46: ='RAB 2001 to 2004'!S77 -> 144861.8727 | Q46: ='RAB 2001 to 2004'!T77 -> 144861.8727 | R46: ='RAB 2001 to 2004'!U77 -> 144861.8727
A47: =A26 -> Depn Capex 2005 | C47: =C$14/$B$14/2 -> 37220 | D47: =C47*2 -> 74440 | E47: =D47 -> 74440 | F47: 74440 | G47: 74440 | H47: 74440 | I47: 74440 | J47: 74440 | K47: 74440 | L47: 74440 | M47: 74440 | N47: =M47 -> 74440 | O47: =N47 -> 74440 | P47: =O47 -> 74440 | Q47: =P47 -> 74440 | R47: =Q47 -> 74440
A48: =A27 -> Depn Capex 2006 | D48: =D$14/$B$14/2 -> 30620 | E48: =D48*2 -> 61240 | F48: =E48 -> 61240 | G48: 61240 | H48: 61240 | I48: 61240 | J48: 61240 | K48: 61240 | L48: 61240 | M48: 61240 | N48: 61240 | O48: 61240 | P48: 61240 | Q48: 61240 | R48: 61240
A49: Depn Capex 2007 | E49: =E$14/$B$14/2 -> 21540 | F49: =E49*2 -> 43080 | G49: =F49 -> 43080 | H49: 43080 | I49: 43080 | J49: 43080 | K49: 43080 | L49: 43080 | M49: 43080 | N49: 43080 | O49: 43080 | P49: 43080 | Q49: 43080 | R49: 43080
A50: Depn Capex 2008 | F50: =F$14/$B$14/2 -> 23120 | G50: =F50*2 -> 46240 | H50: =G50 -> 46240 | I50: 46240 | J50: 46240 | K50: 46240 | L50: 46240 | M50: 46240 | N50: 46240 | O50: 46240 | P50: 46240 | Q50: 46240 | R50: 46240
A51: Depn Capex 2009 | G51: =G$14/$B$14/2 -> 38201.96837 | H51: =G51*2 -> 76403.93674 | I51: =H51 -> 76403.93674 | J51: =I51 -> 76403.93674 | K51: =J51 -> 76403.93674 | L51: =K51 -> 76403.93674 | M51: =L51 -> 76403.93674 | N51: 76403.93674 | O51: 76403.93674 | P51: 76403.93674 | Q51: 76403.93674 | R51: 76403.93674
A52: Depn Capex 2010 | H52: =H$14/$B$14/2 -> 4519.963173 | I52: =H52*2 -> 9039.926347 | J52: =I52 -> 9039.926347 | K52: =J52 -> 9039.926347 | L52: =K52 -> 9039.926347 | M52: =L52 -> 9039.926347 | N52: 9039.926347 | O52: 9039.926347 | P52: 9039.926347 | Q52: 9039.926347 | R52: 9039.926347
A53: Depn Capex 2011 | I53: =I$14/$B$14/2 -> 3890.252037 | J53: =I53*2 -> 7780.504073 | K53: =J53 -> 7780.504073 | L53: =K53 -> 7780.504073 | M53: =L53 -> 7780.504073 | N53: 7780.504073 | O53: 7780.504073 | P53: 7780.504073 | Q53: 7780.504073 | R53: 7780.504073
A54: Depn Capex 2012 | J54: =J$14/$B$14/2 -> 6611.788001 | K54: =J54*2 -> 13223.576 | L54: =K54 -> 13223.576 | M54: =L54 -> 13223.576 | N54: 13223.576 | O54: 13223.576 | P54: 13223.576 | Q54: 13223.576 | R54: 13223.576
A55: Depn Capex 2013 | K55: =K$14/$B$14/2 -> -16580.01845 | L55: =K55*2 -> -33160.03691 | M55: =L55 -> -33160.03691 | N55: -33160.03691 | O55: -33160.03691 | P55: -33160.03691 | Q55: -33160.03691 | R55: -33160.03691
A56: Depn Capex 2014 | L56: =L$14/$B$14/2 -> 24346.88256 | M56: =L56*2 -> 48693.76512 | N56: 48693.76512 | O56: =N56 -> 48693.76512 | P56: =O56 -> 48693.76512 | Q56: =P56 -> 48693.76512 | R56: =Q56 -> 48693.76512
A57: Depn Capex 2015 | M57: =M$14/$B$14/2 -> 15870.70064 | N57: =M57*2 -> 31741.40127 | O57: 31741.40127 | P57: 31741.40127 | Q57: 31741.40127 | R57: 31741.40127
A58: Depn Capex 2016 | N58: =N$14/$B$14/2 -> -656.612019 | O58: =N58*2 -> -1313.224038 | P58: =O58 -> -1313.224038 | Q58: -1313.224038 | R58: -1313.224038
A59: Depn Capex 2017 | O59: =O$14/$B$14/2 -> 2220.706284 | P59: =O59*2 -> 4441.412569 | Q59: 4441.412569 | R59: 4441.412569
A60: Depn Capex 2018 | P60: =P$14/$B$14/2 -> 3510.951888 | Q60: =P60*2 -> 7021.903776 | R60: 7021.903776
A61: Depn Capex 2019 | Q61: =Q$14/$B$14/2 -> 3756.762166 | R61: =Q61*2 -> 7513.524332
A62: Depn Capex 2020 | R62: =R$14/$B$14/2 -> 3988.833731
A63: Total Depreciation | C63: =SUM(C46:C62) -> 182081.8727 | D63: 249921.8727 | E63: 302081.8727 | F63: 346741.8727 | G63: 408063.8411 | H63: 450785.7727 | I63: 459195.9879 | J63: 469698.0279 | K63: 459729.7975 | L63: 467496.6616 | M63: 507714.2448 | N63: 522928.3334 | O63: 524492.4276 | P63: 530224.0858 | Q63: 537491.7999 | R63: 545237.3958
A65: =$A$16 -> Energy Efficient Lights
A66: =$A$17 -> Luminaires and Ballasts
A67: =A46 -> RAB 2001-04
A68: =A47 -> Depn Capex 2005
A69: =A48 -> Depn Capex 2006
A70: Depn Capex 2007
A71: Depn Capex 2008
A72: Depn Capex 2009 | G72: =G$17/$B$17/2 -> 14944.89915 | H72: =G72*2 -> 29889.79829 | I72: =H72 -> 29889.79829 | J72: =I72 -> 29889.79829 | K72: =J72 -> 29889.79829 | L72: =K72 -> 29889.79829 | M72: =L72 -> 29889.79829 | N72: =M72 -> 29889.79829 | O72: 29889.79829 | P72: 29889.79829 | Q72: 29889.79829 | R72: 29889.79829
A73: Depn Capex 2010 | H73: =H$17/$B$17/2 -> 1768.243801 | I73: =H73*2 -> 3536.487602 | J73: =I73 -> 3536.487602 | K73: =J73 -> 3536.487602 | L73: =K73 -> 3536.487602 | M73: =L73 -> 3536.487602 | N73: =M73 -> 3536.487602 | O73: 3536.487602 | P73: 3536.487602 | Q73: 3536.487602 | R73: 3536.487602
A74: Depn Capex 2011 | I74: =I$17/$B$17/2 -> 1521.896039 | J74: =I74*2 -> 3043.792078 | K74: =J74 -> 3043.792078 | L74: =K74 -> 3043.792078 | M74: =L74 -> 3043.792078 | N74: =M74 -> 3043.792078 | O74: 3043.792078 | P74: 3043.792078 | Q74: 3043.792078 | R74: 3043.792078
A75: Depn Capex 2012 | J75: =J$17/$B$17/2 -> 2586.581505 | K75: =J75*2 -> 5173.16301 | L75: =K75 -> 5173.16301 | M75: =L75 -> 5173.16301 | N75: =M75 -> 5173.16301 | O75: 5173.16301 | P75: 5173.16301 | Q75: 5173.16301 | R75: 5173.16301
A76: Depn Capex 2013 | K76: =K$17/$B$17/2 -> -6486.228699 | L76: =K76*2 -> -12972.4574 | M76: =L76 -> -12972.4574 | N76: =M76 -> -12972.4574 | O76: -12972.4574 | P76: -12972.4574 | Q76: -12972.4574 | R76: -12972.4574
A77: Depn Capex 2014 | L77: =L$17/$B$17/2 -> 9524.684718 | M77: =L77*2 -> 19049.36944 | N77: 19049.36944 | O77: =N77 -> 19049.36944 | P77: 19049.36944 | Q77: 19049.36944 | R77: 19049.36944
A78: Depn Capex 2015 | M78: =M$17/$B$17/2 -> 6208.738201 | N78: =M78*2 -> 12417.4764 | O78: =N78 -> 12417.4764 | P78: 12417.4764 | Q78: 12417.4764 | R78: 12417.4764
A79: Depn Capex 2016 | N79: =N$17/$B$17/2 -> 2288.211352 | O79: =N79*2 -> 4576.422704 | P79: =O79 -> 4576.422704 | Q79: 4576.422704 | R79: 4576.422704
A80: Depn Capex 2017 | O80: =O$17/$B$17/2 -> 2432.686503 | P80: =O80*2 -> 4865.373007 | Q80: 4865.373007 | R80: 4865.373007
A81: Depn Capex 2018 | P81: =P$17/$B$17/2 -> 2541.674641 | Q81: =P81*2 -> 5083.349283 | R81: 5083.349283
A82: Depn Capex 2019 | Q82: =Q$17/$B$17/2 -> 2669.623886 | R82: =Q82*2 -> 5339.247771
A83: Depn Capex 2020 | R83: =R$17/$B$17/2 -> 2804.41999
A84: Total Depreciation | C84: =SUM(C67:C83) -> 0 | D84: =SUM(D67:D83) -> 0 | E84: =SUM(E67:E83) -> 0 | F84: =SUM(F67:F83) -> 0 | G84: =SUM(G67:G83) -> 14944.89915 | H84: =SUM(H67:H83) -> 31658.04209 | I84: =SUM(I67:I83) -> 34948.18193 | J84: =SUM(J67:J83) -> 39056.65948 | K84: =SUM(K67:K83) -> 35157.01228 | L84: =SUM(L67:L83) -> 38195.4683 | M84: =SUM(M67:M83) -> 53928.89122 | N84: =SUM(N67:N83) -> 62425.84077 | O84: =SUM(O67:O83) -> 67146.73863 | P84: =SUM(P67:P83) -> 72121.09977 | Q84: =SUM(Q67:Q83) -> 77332.3983 | R84: =SUM(R67:R83) -> 82806.44218
A87: Nominal pre tax WACC | N87: =WACC!E$8 -> 0.08453812274 | O87: =WACC!F$8 -> 0.08453812274 | P87: =WACC!G$8 -> 0.08453812274 | Q87: =WACC!H$8 -> 0.08453812274 | R87: =WACC!I$8 -> 0.08453812274
A90: =$A$11 -> Poles and Brackets
A91: RAB | C91: =C$6 -> 2005 | D91: =D$6 -> 2006 | E91: 2007 | F91: 2008 | G91: 2009 | H91: 2010 | I91: 2011 | J91: 2012 | K91: 2013 | L91: 2014 | M91: 2015 | N91: 2016 | O91: 2017 | P91: 2018 | Q91: 2019 | R91: 2020
A92: Opening RAB | B92: ='[2]Total RAB'!C92+'[3]Total RAB'!C92 -> 1415724.203 | C92: ='RAB 2001 to 2004'!E113 -> 1415724.203 | D92: =C95 -> 1739706.326 | E92: 1987997.022 | F92: 2138036.288 | G92: 2297495.555 | H92: 2746328.23 | I92: 3043616.162 | J92: 3663441.174 | K92: 3981243.961 | L92: 4663486.284 | M92: 5078803.447 | N92: =M95 -> 5277598.221 | O92: =N95 -> 5223015.292 | P92: =O95 -> 5168863.271 | Q92: =P95 -> 5115118.143 | R92: =Q95 -> 5061799.874
A93: Additional Capex | C93: =C$11 -> 372200 | D93: 306200 | E93: 215400 | F93: 231200 | G93: 531468.6752 | H93: 393132.521 | I93: 731739.197 | J93: 446549.6698 | K93: 829214.4062 | L93: 582455.9671 | M93: 379678.3537 | N93: 133633.679 | O93: 137944.273 | P93: 142355.4474 | Q93: 146914.7373 | R93: 151633.4844
A94: Depreciation | C94: =C$42 -> 48217.87627 | D94: 57909.30484 | E94: 65360.73341 | F94: 71740.73341 | G94: 82636.0002 | H94: 95844.58872 | I94: 111914.1847 | J94: 128746.8828 | K94: 146972.0839 | L94: 167138.8035 | M94: 180883.5795 | N94: 188216.6085 | O94: 192096.2936 | P94: 196100.5753 | Q94: 200233.0065 | R94: 204497.9811
A95: Closing RAB | C95: =C92+C93-C94 -> 1739706.326 | D95: 1987997.022 | E95: 2138036.288 | F95: 2297495.555 | G95: 2746328.23 | H95: 3043616.162 | I95: 3663441.174 | J95: 3981243.961 | K95: 4663486.284 | L95: 5078803.447 | M95: 5277598.221 | N95: =N92+N93-N94 -> 5223015.292 | O95: 5168863.271 | P95: 5115118.143 | Q95: 5061799.874 | R95: 5008935.377
A96: Average RAB | C96: =SUM(C92,C95)/2 -> 1577715.265 | D96: 1863851.674 | E96: 2063016.655 | F96: 2217765.921 | G96: =SUM(G92,G95)/2 -> 2521911.892 | H96: 2894972.196 | I96: 3353528.668 | J96: 3822342.568 | K96: 4322365.122 | L96: 4871144.865 | M96: 5178200.834 | N96: 5250306.757 | O96: 5195939.282 | P96: 5141990.707 | Q96: 5088459.009 | R96: 5035367.626
A98: Total Value to be recovered by change in unit rates | N98: =N$6 -> 2016 | O98: 2017 | P98: 2018 | Q98: 2019 | R98: 2020
A99: Depreciation | N99: =N94 -> 188216.6085 | O99: =O94 -> 192096.2936 | P99: =P94 -> 196100.5753 | Q99: =Q94 -> 200233.0065 | R99: =R94 -> 204497.9811
A100: ROA | N100: =N$87*N96 -> 443851.077 | O100: =O$87*O96 -> 439254.9527 | P100: 434694.2415 | Q100: 430168.7722 | R100: 425680.5264
N101: =SUM(N99:N100) -> 632067.6855 | O101: 631351.2463 | P101: 630794.8168 | Q101: 630401.7787 | R101: 630178.5075
A104: =$A$13 -> Existing Lights
A105: =$A$14 -> Luminaires
A106: RAB | C106: =$C$6 -> 2005 | D106: =$D$6 -> 2006 | E106: =$E$6 -> 2007 | F106: =$F$6 -> 2008 | G106: =G$6 -> 2009 | H106: =H$6 -> 2010 | I106: 2011 | J106: 2012 | K106: 2013 | L106: 2014 | M106: 2015 | N106: 2016 | O106: 2017 | P106: 2018 | Q106: 2019 | R106: 2020
A107: Opening RAB | B107: ='[2]Total RAB'!C107+'[3]Total RAB'!C107 -> 2607513.709 | C107: ='RAB 2001 to 2004'!E77 -> 2607513.709 | D107: =C110 -> 3914231.837 | E107: 4889109.964 | F107: 5448628.091 | G107: 6026686.218 | H107: 7146701.112 | I107: 6876713.866 | J107: 6573127.96 | K107: 6367901.452 | L107: 5244970.917 | M107: 5751349.557 | N107: =M110 -> 5878463.338 | O107: =N110 -> 5329270.524 | P107: =O110 -> 4893606.348 | Q107: =P110 -> 4503820.337 | R107: =Q110 -> 4116599.024
A108: Additional Capex | C108: =C$14 -> 1488800 | D108: 1224800 | E108: 861600 | F108: 924800 | G108: 1528078.735 | H108: 180798.5269 | I108: 155610.0815 | J108: 264471.52 | K108: -663200.7381 | L108: 973875.3023 | M108: 634828.0255 | N108: -26264.48076 | O108: 88828.25138 | P108: 140438.0755 | Q108: 150270.4866 | R108: 159553.3493
A109: Depreciation | C109: =C$63 -> 182081.8727 | D109: 249921.8727 | E109: 302081.8727 | F109: 346741.8727 | G109: 408063.8411 | H109: 450785.7727 | I109: 459195.9879 | J109: 469698.0279 | K109: 459729.7975 | L109: 467496.6616 | M109: 507714.2448 | N109: 522928.3334 | O109: 524492.4276 | P109: 530224.0858 | Q109: 537491.7999 | R109: 545237.3958
A110: Closing RAB | C110: =C107+C108-C109 -> 3914231.837 | D110: 4889109.964 | E110: 5448628.091 | F110: 6026686.218 | G110: 7146701.112 | H110: 6876713.866 | I110: 6573127.96 | J110: 6367901.452 | K110: 5244970.917 | L110: 5751349.557 | M110: 5878463.338 | N110: =N107+N108-N109 -> 5329270.524 | O110: 4893606.348 | P110: 4503820.337 | Q110: 4116599.024 | R110: 3730914.978
A111: Average RAB | C111: =SUM(C107,C110)/2 -> 3260872.773 | D111: =SUM(D107,D110)/2 -> 4401670.9 | E111: =SUM(E107,E110)/2 -> 5168869.028 | F111: =SUM(F107,F110)/2 -> 5737657.155 | G111: =SUM(G107,G110)/2 -> 6586693.665 | H111: 7011707.489 | I111: 6724920.913 | J111: 6470514.706 | K111: 5806436.184 | L111: 5498160.237 | M111: 5814906.448 | N111: 5603866.931 | O111: 5111438.436 | P111: 4698713.343 | Q111: 4310209.681 | R111: 3923757.001
A113: Total Value to be recovered by change in unit rates | N113: =N$6 -> 2016 | O113: 2017 | P113: 2018 | Q113: 2019 | R113: 2020
A114: Depreciation | N114: =N109 -> 522928.3334 | O114: =O109 -> 524492.4276 | P114: =P109 -> 530224.0858 | Q114: =Q109 -> 537491.7999 | R114: =R109 -> 545237.3958
A115: ROA | N115: =N$87*N111 -> 473740.3904 | O115: =O$87*O111 -> 432111.4098 | P115: 397220.4053 | Q115: 364377.035 | R115: 331707.0509
N116: =SUM(N114:N115) -> 996668.7238 | O116: 956603.8375 | P116: 927444.4911 | Q116: 901868.8349 | R116: 876944.4467
A119: =$A$16 -> Energy Efficient Lights
A120: =$A$17 -> Luminaires and Ballasts
A121: RAB | C121: =$C$6 -> 2005 | D121: =$D$6 -> 2006 | E121: =$E$6 -> 2007 | F121: =$F$6 -> 2008 | G121: =G$6 -> 2009 | H121: =H$6 -> 2010 | I121: 2011 | J121: 2012 | K121: 2013 | L121: 2014 | M121: 2015 | N121: 2016 | O121: 2017 | P121: 2018 | Q121: 2019 | R121: 2020
A122: Opening RAB | B122: ='[2]Total RAB'!C122+'[3]Total RAB'!C122 -> 0 | C122: 0 | D122: =C125 -> 0 | E122: 0 | F122: 0 | G122: 0 | H122: 582851.0667 | I122: 621922.7766 | J122: 647850.4363 | K122: 712257.037 | L122: 417650.8767 | M122: 760442.7972 | N122: =M125 -> 954863.434 | O122: =N125 -> 983966.0473 | P122: =O125 -> 1014126.769 | Q122: =P125 -> 1043672.655 | R122: =Q125 -> 1073125.212
A123: Additional Capex | C123: =C$17 -> 0 | D123: 0 | E123: 0 | F123: 0 | G123: 597795.9658 | H123: 70729.75205 | I123: 60875.84155 | J123: 103463.2602 | K123: -259449.148 | L123: 380987.3887 | M123: 248349.528 | N123: 91528.45408 | O123: 97307.46014 | P123: 101666.9857 | Q123: 106784.9554 | R123: 112176.7996
A124: Depreciation | C124: =C$84 -> 0 | D124: 0 | E124: 0 | F124: 0 | G124: 14944.89915 | H124: 31658.04209 | I124: 34948.18193 | J124: 39056.65948 | K124: 35157.01228 | L124: 38195.4683 | M124: 53928.89122 | N124: 62425.84077 | O124: 67146.73863 | P124: 72121.09977 | Q124: 77332.3983 | R124: 82806.44218
A125: Closing RAB | C125: =C122+C123-C124 -> 0 | D125: 0 | E125: 0 | F125: 0 | G125: 582851.0667 | H125: 621922.7766 | I125: 647850.4363 | J125: 712257.037 | K125: 417650.8767 | L125: 760442.7972 | M125: 954863.434 | N125: =N122+N123-N124 -> 983966.0473 | O125: 1014126.769 | P125: 1043672.655 | Q125: 1073125.212 | R125: 1102495.569
A126: Average RAB | C126: =SUM(C122,C125)/2 -> 0 | D126: 0 | E126: 0 | F126: 0 | G126: =SUM(G122,G125)/2 -> 291425.5333 | H126: 602386.9217 | I126: 634886.6064 | J126: 680053.7366 | K126: 564953.9569 | L126: 589046.8369 | M126: 857653.1156 | N126: 969414.7406 | O126: 999046.408 | P126: 1028899.712 | Q126: 1058398.933 | R126: 1087810.391
A128: Total Value to be recovered by change in unit rates | N128: =N$6 -> 2016 | O128: 2017 | P128: 2018 | Q128: 2019 | R128: 2020
A129: Depreciation | N129: =N124 -> 62425.84077 | O129: =O124 -> 67146.73863 | P129: =P124 -> 72121.09977 | Q129: =Q124 -> 77332.3983 | R129: =R124 -> 82806.44218
A130: ROA | N130: =N$87*N126 -> 81952.50233 | O130: =O$87*O126 -> 84457.50786 | P130: 86981.25011 | Q130: 89475.05892 | R130: 91961.44831
N131: =SUM(N129:N130) -> 144378.3431 | O131: 151604.2465 | P131: 159102.3499 | Q131: 166807.4572 | R131: 174767.8905
A135: Total Public Lighting RAB
A136: Historical cost ($)
A138: RAB | C138: =C$6 -> 2005 | D138: =D$6 -> 2006 | E138: =E$6 -> 2007 | F138: 2008 | G138: 2009 | H138: 2010 | I138: 2011 | J138: 2012 | K138: 2013 | L138: 2014 | M138: 2015 | N138: 2016 | O138: 2017 | P138: 2018 | Q138: 2019 | R138: 2020
A139: Opening RAB | C139: =SUM(C92,C107,C122) -> 4023237.912 | D139: =C142 -> 5653938.163 | E139: =D142 -> 6877106.986 | F139: 7586664.379 | G139: 8324181.773 | H139: 10475880.41 | I139: 10542252.81 | J139: 10884419.57 | K139: 11061402.45 | L139: 10326108.08 | M139: 11590595.8 | N139: 12110924.99 | O139: 11536251.86 | P139: 11076596.39 | Q139: 10662611.14 | R139: 10251524.11
A140: Capex | C140: =SUM(C93,C108,C123) -> 1861000 | D140: =SUM(D93,D108,D123) -> 1531000 | E140: 1077000 | F140: 1156000 | G140: 2657343.376 | H140: 644660.8 | I140: 948225.12 | J140: 814484.45 | K140: -93435.47993 | L140: 1937318.658 | M140: 1262855.907 | N140: 198897.6523 | O140: 324079.9845 | P140: 384460.5086 | Q140: 403970.1793 | R140: 423363.6332
A141: Depreciation | C141: =SUM(C94,C109,C124) -> 230299.749 | D141: 307831.1776 | E141: 367442.6062 | F141: 418482.6062 | G141: 505644.7405 | H141: 578288.4035 | I141: 606058.3545 | J141: 637501.5702 | K141: 641858.8936 | L141: 672830.9334 | M141: 742526.7155 | N141: =SUM(N94,N109,N124) -> 773570.7827 | O141: 783735.4598 | P141: 798445.7609 | Q141: 815057.2047 | R141: 832541.819
A142: Closing RAB | C142: =C139+C140-C141 -> 5653938.163 | D142: =D139+D140-D141 -> 6877106.986 | E142: =E139+E140-E141 -> 7586664.379 | F142: 8324181.773 | G142: 10475880.41 | H142: 10542252.81 | I142: 10884419.57 | J142: 11061402.45 | K142: 10326108.08 | L142: 11590595.8 | M142: 12110924.99 | N142: 11536251.86 | O142: 11076596.39 | P142: 10662611.14 | Q142: 10251524.11 | R142: 9842345.924
A143: Average RAB | C143: =SUM(C139,C142)/2 -> 4838588.038 | D143: =SUM(D139,D142)/2 -> 6265522.574 | E143: =SUM(E139,E142)/2 -> 7231885.682 | F143: 7955423.076 | G143: 9400031.091 | H143: 10509066.61 | I143: 10713336.19 | J143: 10972911.01 | K143: 10693755.26 | L143: 10958351.94 | M143: 11850760.4 | N143: 11823588.43 | O143: 11306424.13 | P143: 10869603.76 | Q143: 10457067.62 | R143: 10046935.02
A144: Check | B144: =SUM(C144:R144) -> 2.421438694e-08 | C144: =ABS(C142-SUM(C95,C110,C125)) -> 9.313225746e-10 | D144: 0 | E144: 9.313225746e-10 | F144: 1.862645149e-09 | G144: 1.862645149e-09 | H144: 1.862645149e-09 | I144: 3.725290298e-09 | J144: 1.862645149e-09 | K144: 0 | L144: 1.862645149e-09 | M144: 0 | N144: 1.862645149e-09 | O144: 0 | P144: 0 | Q144: 3.725290298e-09 | R144: 3.725290298e-09
A147: Depreciation Useful Lives for RAB RIN
A149: Table 3.3.4.1 - Asset Lives – estimated service life of new assets
A150: “Other” assets with long lives | M150: =ROUND( M11/SUM(M$11,M$14,M$17)*$B11 + M14/SUM(M$11,M$14,M$17)*$B14 + M17/SUM(M$11,M$14,M$17)*$B17, 1) -> 24.5 | N150: Applied for periods 2016-2020
A152: Table 3.3.4.2 - Asset Lives – estimated residual service life
A153: “Other” assets with long lives | M153: =ROUND(M139/M141,1) -> 15.6 | N153: =ROUND(N139/N141,1) -> 15.7 | O153: 14.7 | P153: 13.9 | Q153: 13.1 | R153: 12.3

Sheet PL Tariffs
A1: ='DNSP Inputs O & M'!$A$3 -> CitiPower | E1: Global Check | F1: =IF(SUM('Total RAB'!F1,'Depn & WACC Post 2004'!F1,'Cashflow Summary'!F1)<1,"Ok","Error") -> Ok
A3: Public Lighting Tariffs | C3: Nominal Prices | J3: Nominal Price Movement | P3: Real Price Movement (Implied X Factor)
C4: Actual
A5: ='DNSP Inputs General'!A$40 -> Existing Lights | C5: ='DNSP Inputs General'!J$2 -> 2015 | D5: ='DNSP Inputs General'!K$2 -> 2016 | E5: ='DNSP Inputs General'!L$2 -> 2017 | F5: ='DNSP Inputs General'!M$2 -> 2018 | G5: ='DNSP Inputs General'!N$2 -> 2019 | H5: ='DNSP Inputs General'!O$2 -> 2020 | J5: =D5 -> 2016 | K5: =E5 -> 2017 | L5: 2018 | M5: 2019 | N5: 2020 | P5: =J5 -> 2016 | Q5: =K5 -> 2017 | R5: 2018 | S5: 2019 | T5: 2020
A6: ='DNSP Inputs General'!A41 -> Mercury vapour 80 watt | C6: ='DNSP Inputs General'!E41 -> 69.0655462 | D6: ='Charges Summary'!D$31 -> 75.76788494 | E6: ='Charges Summary'!E$31 -> 75.58843565 | F6: ='Charges Summary'!F$31 -> 76.49704513 | G6: ='Charges Summary'!G$31 -> 77.33556449 | H6: ='Charges Summary'!H$31 -> 78.0529252 | J6: =IF(C6=0,"",D6/C6-1) -> 0.09704315843 | K6: =IF(D6=0,"",E6/D6-1) -> -0.002368408383 | L6: =IF(E6=0,"",F6/E6-1) -> 0.01202048269 | M6: =IF(F6=0,"",G6/F6-1) -> 0.0109614608 | N6: =IF(G6=0,"",H6/G6-1) -> 0.009275948473 | P6: =IF(C6=0,"",(D6/'Charges Summary'!D$4)/C6-1) -> 0.06924284447 | Q6: =IF(D6=0,"",(E6/'Charges Summary'!E$4)/(D6/'Charges Summary'!D$4)-1) -> -0.02764952084 | R6: =IF(E6=0,"",(F6/'Charges Summary'!F$4)/(E6/'Charges Summary'!E$4)-1) -> -0.01362526053 | S6: =IF(F6=0,"",(G6/'Charges Summary'!G$4)/(F6/'Charges Summary'!F$4)-1) -> -0.01465744562 | T6: =IF(G6=0,"",(H6/'Charges Summary'!H$4)/(G6/'Charges Summary'!G$4)-1) -> -0.01630024515
A7: ='DNSP Inputs General'!A42 -> Sodium high pressure 150 watt | C7: ='DNSP Inputs General'!E42 -> 117.6548763 | D7: ='Charges Summary'!D$55 -> 122.7380879 | E7: ='Charges Summary'!E$55 -> 125.1373988 | F7: ='Charges Summary'!F$55 -> 127.8087311 | G7: ='Charges Summary'!G$55 -> 130.3511333 | H7: ='Charges Summary'!H$55 -> 132.8824436 | J7: 0.04320442761 | K7: 0.01954821871 | L7: 0.02134719302 | M7: 0.0198922425 | N7: 0.01941916569 | P7: =IF(C7=0,"",(D7/'Charges Summary'!D$4)/C7-1) -> 0.01676844797 | Q7: =IF(D7=0,"",(E7/'Charges Summary'!E$4)/(D7/'Charges Summary'!D$4)-1) -> -0.006288285854 | R7: =IF(E7=0,"",(F7/'Charges Summary'!F$4)/(E7/'Charges Summary'!E$4)-1) -> -0.004534899587 | S7: =IF(F7=0,"",(G7/'Charges Summary'!G$4)/(F7/'Charges Summary'!F$4)-1) -> -0.005952980021 | T7: =IF(G7=0,"",(H7/'Charges Summary'!H$4)/(G7/'Charges Summary'!G$4)-1) -> -0.006414068527
A8: ='DNSP Inputs General'!A43 -> Sodium high pressure 250 watt | C8: ='DNSP Inputs General'!E43 -> 119.3723261 | D8: ='Charges Summary'!D$71 -> 124.3873495 | E8: ='Charges Summary'!E$71 -> 126.7454705 | F8: ='Charges Summary'!F$71 -> 129.4171142 | G8: ='Charges Summary'!G$71 -> 131.9596662 | H8: ='Charges Summary'!H$71 -> 134.4911399 | J8: 0.04201160764 | K8: 0.01895788493 | L8: 0.02107880981 | M8: 0.0196461811 | N8: 0.01918369235 | P8: =IF(C8=0,"",(D8/'Charges Summary'!D$4)/C8-1) -> 0.0156058554 | Q8: =IF(D8=0,"",(E8/'Charges Summary'!E$4)/(D8/'Charges Summary'!D$4)-1) -> -0.006863659909 | R8: =IF(E8=0,"",(F8/'Charges Summary'!F$4)/(E8/'Charges Summary'!E$4)-1) -> -0.004796481666 | S8: =IF(F8=0,"",(G8/'Charges Summary'!G$4)/(F8/'Charges Summary'!F$4)-1) -> -0.006192805944 | T8: =IF(G8=0,"",(H8/'Charges Summary'!H$4)/(G8/'Charges Summary'!G$4)-1) -> -0.006643574709
A9: ='DNSP Inputs General'!A44 -> Fluorescent 20 watt | C9: ='DNSP Inputs General'!E44 -> 137.4404369 | D9: =IF('DNSP Inputs General'!$B44='DNSP Inputs General'!$A$41,D$6,IF('DNSP Inputs General'!$B44='DNSP Inputs General'!$A$42,D$7,D$8))*'DNSP Inputs General'!$D44 -> 150.778091 | E9: =IF('DNSP Inputs General'!$B44='DNSP Inputs General'!$A$41,E$6,IF('DNSP Inputs General'!$B44='DNSP Inputs General'!$A$42,E$7,E$8))*'DNSP Inputs General'!$D44 -> 150.4209869 | F9: =IF('DNSP Inputs General'!$B44='DNSP Inputs General'!$A$41,F$6,IF('DNSP Inputs General'!$B44='DNSP Inputs General'!$A$42,F$7,F$8))*'DNSP Inputs General'!$D44 -> 152.2291198 | G9: =IF('DNSP Inputs General'!$B44='DNSP Inputs General'!$A$41,G$6,IF('DNSP Inputs General'!$B44='DNSP Inputs General'!$A$42,G$7,G$8))*'DNSP Inputs General'!$D44 -> 153.8977733 | H9: =IF('DNSP Inputs General'!$B44='DNSP Inputs General'!$A$41,H$6,IF('DNSP Inputs General'!$B44='DNSP Inputs General'!$A$42,H$7,H$8))*'DNSP Inputs General'!$D44 -> 155.3253212 | J9: 0.09704315843 | K9: -0.002368408383 | L9: 0.01202048269 | M9: 0.0109614608 | N9: 0.009275948473 | P9: =IF(C9=0,"",(D9/'Charges Summary'!D$4)/C9-1) -> 0.06924284447 | Q9: =IF(D9=0,"",(E9/'Charges Summary'!E$4)/(D9/'Charges Summary'!D$4)-1) -> -0.02764952084 | R9: =IF(E9=0,"",(F9/'Charges Summary'!F$4)/(E9/'Charges Summary'!E$4)-1) -> -0.01362526053 | S9: =IF(F9=0,"",(G9/'Charges Summary'!G$4)/(F9/'Charges Summary'!F$4)-1) -> -0.01465744562 | T9: =IF(G9=0,"",(H9/'Charges Summary'!H$4)/(G9/'Charges Summary'!G$4)-1) -> -0.01630024515
A10: ='DNSP Inputs General'!A45 -> Fluorescent 40 watt | C10: ='DNSP Inputs General'!E45 -> 136.6390086 | D10: =IF('DNSP Inputs General'!$B45='DNSP Inputs General'!$A$41,D$6,IF('DNSP Inputs General'!$B45='DNSP Inputs General'!$A$42,D$7,D$8))*'DNSP Inputs General'!$D45 -> 151.5357699 | E10: =IF('DNSP Inputs General'!$B45='DNSP Inputs General'!$A$41,E$6,IF('DNSP Inputs General'!$B45='DNSP Inputs General'!$A$42,E$7,E$8))*'DNSP Inputs General'!$D45 -> 151.1768713 | F10: =IF('DNSP Inputs General'!$B45='DNSP Inputs General'!$A$41,F$6,IF('DNSP Inputs General'!$B45='DNSP Inputs General'!$A$42,F$7,F$8))*'DNSP Inputs General'!$D45 -> 152.9940903 | G10: =IF('DNSP Inputs General'!$B45='DNSP Inputs General'!$A$41,G$6,IF('DNSP Inputs General'!$B45='DNSP Inputs General'!$A$42,G$7,G$8))*'DNSP Inputs General'!$D45 -> 154.671129 | H10: =IF('DNSP Inputs General'!$B45='DNSP Inputs General'!$A$41,H$6,IF('DNSP Inputs General'!$B45='DNSP Inputs General'!$A$42,H$7,H$8))*'DNSP Inputs General'!$D45 -> 156.1058504 | J10: 0.1090227563 | K10: -0.002368408383 | L10: 0.01202048269 | M10: 0.0109614608 | N10: 0.009275948473 | P10: =IF(C10=0,"",(D10/'Charges Summary'!D$4)/C10-1) -> 0.08091886578 | Q10: =IF(D10=0,"",(E10/'Charges Summary'!E$4)/(D10/'Charges Summary'!D$4)-1) -> -0.02764952084 | R10: =IF(E10=0,"",(F10/'Charges Summary'!F$4)/(E10/'Charges Summary'!E$4)-1) -> -0.01362526053 | S10: =IF(F10=0,"",(G10/'Charges Summary'!G$4)/(F10/'Charges Summary'!F$4)-1) -> -0.01465744562 | T10: =IF(G10=0,"",(H10/'Charges Summary'!H$4)/(G10/'Charges Summary'!G$4)-1) -> -0.01630024515
A11: ='DNSP Inputs General'!A46 -> Mercury vapour 50 watt | C11: ='DNSP Inputs General'!E46 -> 98.0730756 | D11: =IF('DNSP Inputs General'!$B46='DNSP Inputs General'!$A$41,D$6,IF('DNSP Inputs General'!$B46='DNSP Inputs General'!$A$42,D$7,D$8))*'DNSP Inputs General'!$D46 -> 107.5903966 | E11: =IF('DNSP Inputs General'!$B46='DNSP Inputs General'!$A$41,E$6,IF('DNSP Inputs General'!$B46='DNSP Inputs General'!$A$42,E$7,E$8))*'DNSP Inputs General'!$D46 -> 107.3355786 | F11: =IF('DNSP Inputs General'!$B46='DNSP Inputs General'!$A$41,F$6,IF('DNSP Inputs General'!$B46='DNSP Inputs General'!$A$42,F$7,F$8))*'DNSP Inputs General'!$D46 -> 108.6258041 | G11: =IF('DNSP Inputs General'!$B46='DNSP Inputs General'!$A$41,G$6,IF('DNSP Inputs General'!$B46='DNSP Inputs General'!$A$42,G$7,G$8))*'DNSP Inputs General'!$D46 -> 109.8165016 | H11: =IF('DNSP Inputs General'!$B46='DNSP Inputs General'!$A$41,H$6,IF('DNSP Inputs General'!$B46='DNSP Inputs General'!$A$42,H$7,H$8))*'DNSP Inputs General'!$D46 -> 110.8351538 | J11: 0.09704315843 | K11: -0.002368408383 | L11: 0.01202048269 | M11: 0.0109614608 | N11: 0.009275948473 | P11: =IF(C11=0,"",(D11/'Charges Summary'!D$4)/C11-1) -> 0.06924284447 | Q11: =IF(D11=0,"",(E11/'Charges Summary'!E$4)/(D11/'Charges Summary'!D$4)-1) -> -0.02764952084 | R11: =IF(E11=0,"",(F11/'Charges Summary'!F$4)/(E11/'Charges Summary'!E$4)-1) -> -0.01362526053 | S11: =IF(F11=0,"",(G11/'Charges Summary'!G$4)/(F11/'Charges Summary'!F$4)-1) -> -0.01465744562 | T11: =IF(G11=0,"",(H11/'Charges Summary'!H$4)/(G11/'Charges Summary'!G$4)-1) -> -0.01630024515
A12: ='DNSP Inputs General'!A47 -> Mercury vapour 125 watt | C12: ='DNSP Inputs General'!E47 -> 109.123563 | D12: =IF('DNSP Inputs General'!$B47='DNSP Inputs General'!$A$41,D$6,IF('DNSP Inputs General'!$B47='DNSP Inputs General'!$A$42,D$7,D$8))*'DNSP Inputs General'!$D47 -> 119.7132582 | E12: =IF('DNSP Inputs General'!$B47='DNSP Inputs General'!$A$41,E$6,IF('DNSP Inputs General'!$B47='DNSP Inputs General'!$A$42,E$7,E$8))*'DNSP Inputs General'!$D47 -> 119.4297283 | F12: =IF('DNSP Inputs General'!$B47='DNSP Inputs General'!$A$41,F$6,IF('DNSP Inputs General'!$B47='DNSP Inputs General'!$A$42,F$7,F$8))*'DNSP Inputs General'!$D47 -> 120.8653313 | G12: =IF('DNSP Inputs General'!$B47='DNSP Inputs General'!$A$41,G$6,IF('DNSP Inputs General'!$B47='DNSP Inputs General'!$A$42,G$7,G$8))*'DNSP Inputs General'!$D47 -> 122.1901919 | H12: =IF('DNSP Inputs General'!$B47='DNSP Inputs General'!$A$41,H$6,IF('DNSP Inputs General'!$B47='DNSP Inputs General'!$A$42,H$7,H$8))*'DNSP Inputs General'!$D47 -> 123.3236218 | J12: 0.09704315843 | K12: -0.002368408383 | L12: 0.01202048269 | M12: 0.0109614608 | N12: 0.009275948473 | P12: =IF(C12=0,"",(D12/'Charges Summary'!D$4)/C12-1) -> 0.06924284447 | Q12: =IF(D12=0,"",(E12/'Charges Summary'!E$4)/(D12/'Charges Summary'!D$4)-1) -> -0.02764952084 | R12: =IF(E12=0,"",(F12/'Charges Summary'!F$4)/(E12/'Charges Summary'!E$4)-1) -> -0.01362526053 | S12: =IF(F12=0,"",(G12/'Charges Summary'!G$4)/(F12/'Charges Summary'!F$4)-1) -> -0.01465744562 | T12: =IF(G12=0,"",(H12/'Charges Summary'!H$4)/(G12/'Charges Summary'!G$4)-1) -> -0.01630024515
A13: ='DNSP Inputs General'!A48 -> Mercury vapour 250 watt | C13: ='DNSP Inputs General'!E48 -> 100.272754 | D13: =IF('DNSP Inputs General'!$B48='DNSP Inputs General'!$A$41,D$6,IF('DNSP Inputs General'!$B48='DNSP Inputs General'!$A$42,D$7,D$8))*'DNSP Inputs General'!$D48 -> 104.4853735 | E13: =IF('DNSP Inputs General'!$B48='DNSP Inputs General'!$A$41,E$6,IF('DNSP Inputs General'!$B48='DNSP Inputs General'!$A$42,E$7,E$8))*'DNSP Inputs General'!$D48 -> 106.4661952 | F13: =IF('DNSP Inputs General'!$B48='DNSP Inputs General'!$A$41,F$6,IF('DNSP Inputs General'!$B48='DNSP Inputs General'!$A$42,F$7,F$8))*'DNSP Inputs General'!$D48 -> 108.7103759 | G13: =IF('DNSP Inputs General'!$B48='DNSP Inputs General'!$A$41,G$6,IF('DNSP Inputs General'!$B48='DNSP Inputs General'!$A$42,G$7,G$8))*'DNSP Inputs General'!$D48 -> 110.8461196 | H13: =IF('DNSP Inputs General'!$B48='DNSP Inputs General'!$A$41,H$6,IF('DNSP Inputs General'!$B48='DNSP Inputs General'!$A$42,H$7,H$8))*'DNSP Inputs General'!$D48 -> 112.9725575 | J13: 0.04201160764 | K13: 0.01895788493 | L13: 0.02107880981 | M13: 0.0196461811 | N13: 0.01918369235 | P13: =IF(C13=0,"",(D13/'Charges Summary'!D$4)/C13-1) -> 0.0156058554 | Q13: =IF(D13=0,"",(E13/'Charges Summary'!E$4)/(D13/'Charges Summary'!D$4)-1) -> -0.006863659909 | R13: =IF(E13=0,"",(F13/'Charges Summary'!F$4)/(E13/'Charges Summary'!E$4)-1) -> -0.004796481666 | S13: =IF(F13=0,"",(G13/'Charges Summary'!G$4)/(F13/'Charges Summary'!F$4)-1) -> -0.006192805944 | T13: =IF(G13=0,"",(H13/'Charges Summary'!H$4)/(G13/'Charges Summary'!G$4)-1) -> -0.006643574709
A14: ='DNSP Inputs General'!A49 -> Mercury vapour 400 watt | C14: ='DNSP Inputs General'!E49 -> 101.4664772 | D14: =IF('DNSP Inputs General'!$B49='DNSP Inputs General'!$A$41,D$6,IF('DNSP Inputs General'!$B49='DNSP Inputs General'!$A$42,D$7,D$8))*'DNSP Inputs General'!$D49 -> 105.729247 | E14: =IF('DNSP Inputs General'!$B49='DNSP Inputs General'!$A$41,E$6,IF('DNSP Inputs General'!$B49='DNSP Inputs General'!$A$42,E$7,E$8))*'DNSP Inputs General'!$D49 -> 107.7336499 | F14: =IF('DNSP Inputs General'!$B49='DNSP Inputs General'!$A$41,F$6,IF('DNSP Inputs General'!$B49='DNSP Inputs General'!$A$42,F$7,F$8))*'DNSP Inputs General'!$D49 -> 110.0045471 | G14: =IF('DNSP Inputs General'!$B49='DNSP Inputs General'!$A$41,G$6,IF('DNSP Inputs General'!$B49='DNSP Inputs General'!$A$42,G$7,G$8))*'DNSP Inputs General'!$D49 -> 112.1657163 | H14: =IF('DNSP Inputs General'!$B49='DNSP Inputs General'!$A$41,H$6,IF('DNSP Inputs General'!$B49='DNSP Inputs General'!$A$42,H$7,H$8))*'DNSP Inputs General'!$D49 -> 114.3174689 | J14: 0.04201160764 | K14: 0.01895788493 | L14: 0.02107880981 | M14: 0.0196461811 | N14: 0.01918369235 | P14: =IF(C14=0,"",(D14/'Charges Summary'!D$4)/C14-1) -> 0.0156058554 | Q14: =IF(D14=0,"",(E14/'Charges Summary'!E$4)/(D14/'Charges Summary'!D$4)-1) -> -0.006863659909 | R14: =IF(E14=0,"",(F14/'Charges Summary'!F$4)/(E14/'Charges Summary'!E$4)-1) -> -0.004796481666 | S14: =IF(F14=0,"",(G14/'Charges Summary'!G$4)/(F14/'Charges Summary'!F$4)-1) -> -0.006192805944 | T14: =IF(G14=0,"",(H14/'Charges Summary'!H$4)/(G14/'Charges Summary'!G$4)-1) -> -0.006643574709
A15: ='DNSP Inputs General'!A50 -> Mercury vapour 700 watt | C15: ='DNSP Inputs General'!E50 -> 149.2154077 | D15: =IF('DNSP Inputs General'!$B50='DNSP Inputs General'!$A$41,D$6,IF('DNSP Inputs General'!$B50='DNSP Inputs General'!$A$42,D$7,D$8))*'DNSP Inputs General'!$D50 -> 155.4841868 | E15: =IF('DNSP Inputs General'!$B50='DNSP Inputs General'!$A$41,E$6,IF('DNSP Inputs General'!$B50='DNSP Inputs General'!$A$42,E$7,E$8))*'DNSP Inputs General'!$D50 -> 158.4318381 | F15: =IF('DNSP Inputs General'!$B50='DNSP Inputs General'!$A$41,F$6,IF('DNSP Inputs General'!$B50='DNSP Inputs General'!$A$42,F$7,F$8))*'DNSP Inputs General'!$D50 -> 161.7713927 | G15: =IF('DNSP Inputs General'!$B50='DNSP Inputs General'!$A$41,G$6,IF('DNSP Inputs General'!$B50='DNSP Inputs General'!$A$42,G$7,G$8))*'DNSP Inputs General'!$D50 -> 164.9495828 | H15: =IF('DNSP Inputs General'!$B50='DNSP Inputs General'!$A$41,H$6,IF('DNSP Inputs General'!$B50='DNSP Inputs General'!$A$42,H$7,H$8))*'DNSP Inputs General'!$D50 -> 168.1139249 | J15: 0.04201160764 | K15: 0.01895788493 | L15: 0.02107880981 | M15: 0.0196461811 | N15: 0.01918369235 | P15: =IF(C15=0,"",(D15/'Charges Summary'!D$4)/C15-1) -> 0.0156058554 | Q15: =IF(D15=0,"",(E15/'Charges Summary'!E$4)/(D15/'Charges Summary'!D$4)-1) -> -0.006863659909 | R15: =IF(E15=0,"",(F15/'Charges Summary'!F$4)/(E15/'Charges Summary'!E$4)-1) -> -0.004796481666 | S15: =IF(F15=0,"",(G15/'Charges Summary'!G$4)/(F15/'Charges Summary'!F$4)-1) -> -0.006192805944 | T15: =IF(G15=0,"",(H15/'Charges Summary'!H$4)/(G15/'Charges Summary'!G$4)-1) -> -0.006643574709
A16: ='DNSP Inputs General'!A51 -> Sodium high pressure 70 watt | C16: ='DNSP Inputs General'!E51 -> 146.4189579 | D16: =IF('DNSP Inputs General'!$B51='DNSP Inputs General'!$A$41,D$6,IF('DNSP Inputs General'!$B51='DNSP Inputs General'!$A$42,D$7,D$8))*'DNSP Inputs General'!$D51 -> 160.6279161 | E16: =IF('DNSP Inputs General'!$B51='DNSP Inputs General'!$A$41,E$6,IF('DNSP Inputs General'!$B51='DNSP Inputs General'!$A$42,E$7,E$8))*'DNSP Inputs General'!$D51 -> 160.2474836 | F16: =IF('DNSP Inputs General'!$B51='DNSP Inputs General'!$A$41,F$6,IF('DNSP Inputs General'!$B51='DNSP Inputs General'!$A$42,F$7,F$8))*'DNSP Inputs General'!$D51 -> 162.1737357 | G16: =IF('DNSP Inputs General'!$B51='DNSP Inputs General'!$A$41,G$6,IF('DNSP Inputs General'!$B51='DNSP Inputs General'!$A$42,G$7,G$8))*'DNSP Inputs General'!$D51 -> 163.9513967 | H16: =IF('DNSP Inputs General'!$B51='DNSP Inputs General'!$A$41,H$6,IF('DNSP Inputs General'!$B51='DNSP Inputs General'!$A$42,H$7,H$8))*'DNSP Inputs General'!$D51 -> 165.4722014 | J16: 0.09704315843 | K16: -0.002368408383 | L16: 0.01202048269 | M16: 0.0109614608 | N16: 0.009275948473 | P16: =IF(C16=0,"",(D16/'Charges Summary'!D$4)/C16-1) -> 0.06924284447 | Q16: =IF(D16=0,"",(E16/'Charges Summary'!E$4)/(D16/'Charges Summary'!D$4)-1) -> -0.02764952084 | R16: =IF(E16=0,"",(F16/'Charges Summary'!F$4)/(E16/'Charges Summary'!E$4)-1) -> -0.01362526053 | S16: =IF(F16=0,"",(G16/'Charges Summary'!G$4)/(F16/'Charges Summary'!F$4)-1) -> -0.01465744562 | T16: =IF(G16=0,"",(H16/'Charges Summary'!H$4)/(G16/'Charges Summary'!G$4)-1) -> -0.01630024515
A17: ='DNSP Inputs General'!A52 -> Sodium high pressure 100 watt | C17: ='DNSP Inputs General'!E52 -> 120.0079738 | D17: =IF('DNSP Inputs General'!$B52='DNSP Inputs General'!$A$41,D$6,IF('DNSP Inputs General'!$B52='DNSP Inputs General'!$A$42,D$7,D$8))*'DNSP Inputs General'!$D52 -> 125.1928496 | E17: =IF('DNSP Inputs General'!$B52='DNSP Inputs General'!$A$41,E$6,IF('DNSP Inputs General'!$B52='DNSP Inputs General'!$A$42,E$7,E$8))*'DNSP Inputs General'!$D52 -> 127.6401468 | F17: =IF('DNSP Inputs General'!$B52='DNSP Inputs General'!$A$41,F$6,IF('DNSP Inputs General'!$B52='DNSP Inputs General'!$A$42,F$7,F$8))*'DNSP Inputs General'!$D52 -> 130.3649057 | G17: =IF('DNSP Inputs General'!$B52='DNSP Inputs General'!$A$41,G$6,IF('DNSP Inputs General'!$B52='DNSP Inputs General'!$A$42,G$7,G$8))*'DNSP Inputs General'!$D52 -> 132.958156 | H17: =IF('DNSP Inputs General'!$B52='DNSP Inputs General'!$A$41,H$6,IF('DNSP Inputs General'!$B52='DNSP Inputs General'!$A$42,H$7,H$8))*'DNSP Inputs General'!$D52 -> 135.5400925 | J17: 0.04320442761 | K17: 0.01954821871 | L17: 0.02134719302 | M17: 0.0198922425 | N17: 0.01941916569 | P17: =IF(C17=0,"",(D17/'Charges Summary'!D$4)/C17-1) -> 0.01676844797 | Q17: =IF(D17=0,"",(E17/'Charges Summary'!E$4)/(D17/'Charges Summary'!D$4)-1) -> -0.006288285854 | R17: =IF(E17=0,"",(F17/'Charges Summary'!F$4)/(E17/'Charges Summary'!E$4)-1) -> -0.004534899587 | S17: =IF(F17=0,"",(G17/'Charges Summary'!G$4)/(F17/'Charges Summary'!F$4)-1) -> -0.005952980021 | T17: =IF(G17=0,"",(H17/'Charges Summary'!H$4)/(G17/'Charges Summary'!G$4)-1) -> -0.006414068527
A18: ='DNSP Inputs General'!A53 -> Sodium high pressure 220 watt | C18: ='DNSP Inputs General'!E53 -> 119.6110708 | D18: =IF('DNSP Inputs General'!$B53='DNSP Inputs General'!$A$41,D$6,IF('DNSP Inputs General'!$B53='DNSP Inputs General'!$A$42,D$7,D$8))*'DNSP Inputs General'!$D53 -> 124.6361242 | E18: =IF('DNSP Inputs General'!$B53='DNSP Inputs General'!$A$41,E$6,IF('DNSP Inputs General'!$B53='DNSP Inputs General'!$A$42,E$7,E$8))*'DNSP Inputs General'!$D53 -> 126.9989615 | F18: =IF('DNSP Inputs General'!$B53='DNSP Inputs General'!$A$41,F$6,IF('DNSP Inputs General'!$B53='DNSP Inputs General'!$A$42,F$7,F$8))*'DNSP Inputs General'!$D53 -> 129.6759484 | G18: =IF('DNSP Inputs General'!$B53='DNSP Inputs General'!$A$41,G$6,IF('DNSP Inputs General'!$B53='DNSP Inputs General'!$A$42,G$7,G$8))*'DNSP Inputs General'!$D53 -> 132.2235856 | H18: =IF('DNSP Inputs General'!$B53='DNSP Inputs General'!$A$41,H$6,IF('DNSP Inputs General'!$B53='DNSP Inputs General'!$A$42,H$7,H$8))*'DNSP Inputs General'!$D53 -> 134.7601222 | J18: 0.04201160764 | K18: 0.01895788493 | L18: 0.02107880981 | M18: 0.0196461811 | N18: 0.01918369235 | P18: =IF(C18=0,"",(D18/'Charges Summary'!D$4)/C18-1) -> 0.0156058554 | Q18: =IF(D18=0,"",(E18/'Charges Summary'!E$4)/(D18/'Charges Summary'!D$4)-1) -> -0.006863659909 | R18: =IF(E18=0,"",(F18/'Charges Summary'!F$4)/(E18/'Charges Summary'!E$4)-1) -> -0.004796481666 | S18: =IF(F18=0,"",(G18/'Charges Summary'!G$4)/(F18/'Charges Summary'!F$4)-1) -> -0.006192805944 | T18: =IF(G18=0,"",(H18/'Charges Summary'!H$4)/(G18/'Charges Summary'!G$4)-1) -> -0.006643574709
A19: ='DNSP Inputs General'!A54 -> Sodium high pressure 360 watt | C19: ='DNSP Inputs General'!E54 -> 121.7597727 | D19: =IF('DNSP Inputs General'!$B54='DNSP Inputs General'!$A$41,D$6,IF('DNSP Inputs General'!$B54='DNSP Inputs General'!$A$42,D$7,D$8))*'DNSP Inputs General'!$D54 -> 126.8750964 | E19: =IF('DNSP Inputs General'!$B54='DNSP Inputs General'!$A$41,E$6,IF('DNSP Inputs General'!$B54='DNSP Inputs General'!$A$42,E$7,E$8))*'DNSP Inputs General'!$D54 -> 129.2803799 | F19: =IF('DNSP Inputs General'!$B54='DNSP Inputs General'!$A$41,F$6,IF('DNSP Inputs General'!$B54='DNSP Inputs General'!$A$42,F$7,F$8))*'DNSP Inputs General'!$D54 -> 132.0054565 | G19: =IF('DNSP Inputs General'!$B54='DNSP Inputs General'!$A$41,G$6,IF('DNSP Inputs General'!$B54='DNSP Inputs General'!$A$42,G$7,G$8))*'DNSP Inputs General'!$D54 -> 134.5988596 | H19: =IF('DNSP Inputs General'!$B54='DNSP Inputs General'!$A$41,H$6,IF('DNSP Inputs General'!$B54='DNSP Inputs General'!$A$42,H$7,H$8))*'DNSP Inputs General'!$D54 -> 137.1809627 | J19: 0.04201160764 | K19: 0.01895788493 | L19: 0.02107880981 | M19: 0.0196461811 | N19: 0.01918369235 | P19: =IF(C19=0,"",(D19/'Charges Summary'!D$4)/C19-1) -> 0.0156058554 | Q19: =IF(D19=0,"",(E19/'Charges Summary'!E$4)/(D19/'Charges Summary'!D$4)-1) -> -0.006863659909 | R19: =IF(E19=0,"",(F19/'Charges Summary'!F$4)/(E19/'Charges Summary'!E$4)-1) -> -0.004796481666 | S19: =IF(F19=0,"",(G19/'Charges Summary'!G$4)/(F19/'Charges Summary'!F$4)-1) -> -0.006192805944 | T19: =IF(G19=0,"",(H19/'Charges Summary'!H$4)/(G19/'Charges Summary'!G$4)-1) -> -0.006643574709
A20: ='DNSP Inputs General'!A55 -> Sodium high pressure 400 watt | C20: ='DNSP Inputs General'!E55 -> 131.3095587 | D20: =IF('DNSP Inputs General'!$B55='DNSP Inputs General'!$A$41,D$6,IF('DNSP Inputs General'!$B55='DNSP Inputs General'!$A$42,D$7,D$8))*'DNSP Inputs General'!$D55 -> 136.8260844 | E20: =IF('DNSP Inputs General'!$B55='DNSP Inputs General'!$A$41,E$6,IF('DNSP Inputs General'!$B55='DNSP Inputs General'!$A$42,E$7,E$8))*'DNSP Inputs General'!$D55 -> 139.4200176 | F20: =IF('DNSP Inputs General'!$B55='DNSP Inputs General'!$A$41,F$6,IF('DNSP Inputs General'!$B55='DNSP Inputs General'!$A$42,F$7,F$8))*'DNSP Inputs General'!$D55 -> 142.3588256 | G20: =IF('DNSP Inputs General'!$B55='DNSP Inputs General'!$A$41,G$6,IF('DNSP Inputs General'!$B55='DNSP Inputs General'!$A$42,G$7,G$8))*'DNSP Inputs General'!$D55 -> 145.1556329 | H20: =IF('DNSP Inputs General'!$B55='DNSP Inputs General'!$A$41,H$6,IF('DNSP Inputs General'!$B55='DNSP Inputs General'!$A$42,H$7,H$8))*'DNSP Inputs General'!$D55 -> 147.9402539 | J20: 0.04201160764 | K20: 0.01895788493 | L20: 0.02107880981 | M20: 0.0196461811 | N20: 0.01918369235 | P20: =IF(C20=0,"",(D20/'Charges Summary'!D$4)/C20-1) -> 0.0156058554 | Q20: =IF(D20=0,"",(E20/'Charges Summary'!E$4)/(D20/'Charges Summary'!D$4)-1) -> -0.006863659909 | R20: =IF(E20=0,"",(F20/'Charges Summary'!F$4)/(E20/'Charges Summary'!E$4)-1) -> -0.004796481666 | S20: =IF(F20=0,"",(G20/'Charges Summary'!G$4)/(F20/'Charges Summary'!F$4)-1) -> -0.006192805944 | T20: =IF(G20=0,"",(H20/'Charges Summary'!H$4)/(G20/'Charges Summary'!G$4)-1) -> -0.006643574709
A21: ='DNSP Inputs General'!A56 -> Sodium high pressure 1000 watt | C21: ='DNSP Inputs General'!E56 -> 236.3572057 | D21: =IF('DNSP Inputs General'!$B56='DNSP Inputs General'!$A$41,D$6,IF('DNSP Inputs General'!$B56='DNSP Inputs General'!$A$42,D$7,D$8))*'DNSP Inputs General'!$D56 -> 246.2869519 | E21: =IF('DNSP Inputs General'!$B56='DNSP Inputs General'!$A$41,E$6,IF('DNSP Inputs General'!$B56='DNSP Inputs General'!$A$42,E$7,E$8))*'DNSP Inputs General'!$D56 -> 250.9560316 | F21: =IF('DNSP Inputs General'!$B56='DNSP Inputs General'!$A$41,F$6,IF('DNSP Inputs General'!$B56='DNSP Inputs General'!$A$42,F$7,F$8))*'DNSP Inputs General'!$D56 -> 256.2458861 | G21: =IF('DNSP Inputs General'!$B56='DNSP Inputs General'!$A$41,G$6,IF('DNSP Inputs General'!$B56='DNSP Inputs General'!$A$42,G$7,G$8))*'DNSP Inputs General'!$D56 -> 261.2801392 | H21: =IF('DNSP Inputs General'!$B56='DNSP Inputs General'!$A$41,H$6,IF('DNSP Inputs General'!$B56='DNSP Inputs General'!$A$42,H$7,H$8))*'DNSP Inputs General'!$D56 -> 266.292457 | J21: 0.04201160764 | K21: 0.01895788493 | L21: 0.02107880981 | M21: 0.0196461811 | N21: 0.01918369235 | P21: =IF(C21=0,"",(D21/'Charges Summary'!D$4)/C21-1) -> 0.0156058554 | Q21: =IF(D21=0,"",(E21/'Charges Summary'!E$4)/(D21/'Charges Summary'!D$4)-1) -> -0.006863659909 | R21: =IF(E21=0,"",(F21/'Charges Summary'!F$4)/(E21/'Charges Summary'!E$4)-1) -> -0.004796481666 | S21: =IF(F21=0,"",(G21/'Charges Summary'!G$4)/(F21/'Charges Summary'!F$4)-1) -> -0.006192805944 | T21: =IF(G21=0,"",(H21/'Charges Summary'!H$4)/(G21/'Charges Summary'!G$4)-1) -> -0.006643574709
A22: ='DNSP Inputs General'!A57 -> Metal halide 70 watt | C22: ='DNSP Inputs General'!E57 -> 225.8443361 | D22: =IF('DNSP Inputs General'!$B57='DNSP Inputs General'!$A$41,D$6,IF('DNSP Inputs General'!$B57='DNSP Inputs General'!$A$42,D$7,D$8))*'DNSP Inputs General'!$D57 -> 160.6279161 | E22: =IF('DNSP Inputs General'!$B57='DNSP Inputs General'!$A$41,E$6,IF('DNSP Inputs General'!$B57='DNSP Inputs General'!$A$42,E$7,E$8))*'DNSP Inputs General'!$D57 -> 160.2474836 | F22: =IF('DNSP Inputs General'!$B57='DNSP Inputs General'!$A$41,F$6,IF('DNSP Inputs General'!$B57='DNSP Inputs General'!$A$42,F$7,F$8))*'DNSP Inputs General'!$D57 -> 162.1737357 | G22: =IF('DNSP Inputs General'!$B57='DNSP Inputs General'!$A$41,G$6,IF('DNSP Inputs General'!$B57='DNSP Inputs General'!$A$42,G$7,G$8))*'DNSP Inputs General'!$D57 -> 163.9513967 | H22: =IF('DNSP Inputs General'!$B57='DNSP Inputs General'!$A$41,H$6,IF('DNSP Inputs General'!$B57='DNSP Inputs General'!$A$42,H$7,H$8))*'DNSP Inputs General'!$D57 -> 165.4722014 | J22: -0.2887671266 | K22: -0.002368408383 | L22: 0.01202048269 | M22: 0.0109614608 | N22: 0.009275948473 | P22: =IF(C22=0,"",(D22/'Charges Summary'!D$4)/C22-1) -> -0.3067905718 | Q22: =IF(D22=0,"",(E22/'Charges Summary'!E$4)/(D22/'Charges Summary'!D$4)-1) -> -0.02764952084 | R22: =IF(E22=0,"",(F22/'Charges Summary'!F$4)/(E22/'Charges Summary'!E$4)-1) -> -0.01362526053 | S22: =IF(F22=0,"",(G22/'Charges Summary'!G$4)/(F22/'Charges Summary'!F$4)-1) -> -0.01465744562 | T22: =IF(G22=0,"",(H22/'Charges Summary'!H$4)/(G22/'Charges Summary'!G$4)-1) -> -0.01630024515
A23: ='DNSP Inputs General'!A58 -> Metal halide 100 watt | C23: ='DNSP Inputs General'!E58 -> 184.7181558 | D23: =IF('DNSP Inputs General'!$B58='DNSP Inputs General'!$A$41,D$6,IF('DNSP Inputs General'!$B58='DNSP Inputs General'!$A$42,D$7,D$8))*'DNSP Inputs General'!$D58 -> 192.6987979 | E23: =IF('DNSP Inputs General'!$B58='DNSP Inputs General'!$A$41,E$6,IF('DNSP Inputs General'!$B58='DNSP Inputs General'!$A$42,E$7,E$8))*'DNSP Inputs General'!$D58 -> 196.4657162 | F23: =IF('DNSP Inputs General'!$B58='DNSP Inputs General'!$A$41,F$6,IF('DNSP Inputs General'!$B58='DNSP Inputs General'!$A$42,F$7,F$8))*'DNSP Inputs General'!$D58 -> 200.6597078 | G23: =IF('DNSP Inputs General'!$B58='DNSP Inputs General'!$A$41,G$6,IF('DNSP Inputs General'!$B58='DNSP Inputs General'!$A$42,G$7,G$8))*'DNSP Inputs General'!$D58 -> 204.6512793 | H23: =IF('DNSP Inputs General'!$B58='DNSP Inputs General'!$A$41,H$6,IF('DNSP Inputs General'!$B58='DNSP Inputs General'!$A$42,H$7,H$8))*'DNSP Inputs General'!$D58 -> 208.6254364 | J23: =IF(C23=0,"",D23/C23-1) -> 0.04320442761 | K23: =IF(D23=0,"",E23/D23-1) -> 0.01954821871 | L23: =IF(E23=0,"",F23/E23-1) -> 0.02134719302 | M23: =IF(F23=0,"",G23/F23-1) -> 0.0198922425 | N23: =IF(G23=0,"",H23/G23-1) -> 0.01941916569 | P23: =IF(C23=0,"",(D23/'Charges Summary'!D$4)/C23-1) -> 0.01676844797 | Q23: =IF(D23=0,"",(E23/'Charges Summary'!E$4)/(D23/'Charges Summary'!D$4)-1) -> -0.006288285854 | R23: =IF(E23=0,"",(F23/'Charges Summary'!F$4)/(E23/'Charges Summary'!E$4)-1) -> -0.004534899587 | S23: =IF(F23=0,"",(G23/'Charges Summary'!G$4)/(F23/'Charges Summary'!F$4)-1) -> -0.005952980021 | T23: =IF(G23=0,"",(H23/'Charges Summary'!H$4)/(G23/'Charges Summary'!G$4)-1) -> -0.006414068527
A24: ='DNSP Inputs General'!A59 -> Metal halide 150 watt | C24: ='DNSP Inputs General'!E59 -> 185.8947045 | D24: =IF('DNSP Inputs General'!$B59='DNSP Inputs General'!$A$41,D$6,IF('DNSP Inputs General'!$B59='DNSP Inputs General'!$A$42,D$7,D$8))*'DNSP Inputs General'!$D59 -> 193.9261788 | E24: =IF('DNSP Inputs General'!$B59='DNSP Inputs General'!$A$41,E$6,IF('DNSP Inputs General'!$B59='DNSP Inputs General'!$A$42,E$7,E$8))*'DNSP Inputs General'!$D59 -> 197.7170902 | F24: =IF('DNSP Inputs General'!$B59='DNSP Inputs General'!$A$41,F$6,IF('DNSP Inputs General'!$B59='DNSP Inputs General'!$A$42,F$7,F$8))*'DNSP Inputs General'!$D59 -> 201.9377951 | G24: =IF('DNSP Inputs General'!$B59='DNSP Inputs General'!$A$41,G$6,IF('DNSP Inputs General'!$B59='DNSP Inputs General'!$A$42,G$7,G$8))*'DNSP Inputs General'!$D59 -> 205.9547907 | H24: =IF('DNSP Inputs General'!$B59='DNSP Inputs General'!$A$41,H$6,IF('DNSP Inputs General'!$B59='DNSP Inputs General'!$A$42,H$7,H$8))*'DNSP Inputs General'!$D59 -> 209.9542609 | J24: 0.04320442761 | K24: 0.01954821871 | L24: 0.02134719302 | M24: 0.0198922425 | N24: 0.01941916569 | P24: =IF(C24=0,"",(D24/'Charges Summary'!D$4)/C24-1) -> 0.01676844797 | Q24: =IF(D24=0,"",(E24/'Charges Summary'!E$4)/(D24/'Charges Summary'!D$4)-1) -> -0.006288285854 | R24: =IF(E24=0,"",(F24/'Charges Summary'!F$4)/(E24/'Charges Summary'!E$4)-1) -> -0.004534899587 | S24: =IF(F24=0,"",(G24/'Charges Summary'!G$4)/(F24/'Charges Summary'!F$4)-1) -> -0.005952980021 | T24: =IF(G24=0,"",(H24/'Charges Summary'!H$4)/(G24/'Charges Summary'!G$4)-1) -> -0.006414068527
A25: ='DNSP Inputs General'!A60 -> Metal halide 250 watt | C25: ='DNSP Inputs General'!E60 -> 143.2467914 | D25: =IF('DNSP Inputs General'!$B60='DNSP Inputs General'!$A$41,D$6,IF('DNSP Inputs General'!$B60='DNSP Inputs General'!$A$42,D$7,D$8))*'DNSP Inputs General'!$D60 -> 149.2648194 | E25: =IF('DNSP Inputs General'!$B60='DNSP Inputs General'!$A$41,E$6,IF('DNSP Inputs General'!$B60='DNSP Inputs General'!$A$42,E$7,E$8))*'DNSP Inputs General'!$D60 -> 152.0945646 | F25: =IF('DNSP Inputs General'!$B60='DNSP Inputs General'!$A$41,F$6,IF('DNSP Inputs General'!$B60='DNSP Inputs General'!$A$42,F$7,F$8))*'DNSP Inputs General'!$D60 -> 155.300537 | G25: =IF('DNSP Inputs General'!$B60='DNSP Inputs General'!$A$41,G$6,IF('DNSP Inputs General'!$B60='DNSP Inputs General'!$A$42,G$7,G$8))*'DNSP Inputs General'!$D60 -> 158.3515995 | H25: =IF('DNSP Inputs General'!$B60='DNSP Inputs General'!$A$41,H$6,IF('DNSP Inputs General'!$B60='DNSP Inputs General'!$A$42,H$7,H$8))*'DNSP Inputs General'!$D60 -> 161.3893679 | J25: 0.04201160764 | K25: 0.01895788493 | L25: 0.02107880981 | M25: 0.0196461811 | N25: 0.01918369235 | P25: =IF(C25=0,"",(D25/'Charges Summary'!D$4)/C25-1) -> 0.0156058554 | Q25: =IF(D25=0,"",(E25/'Charges Summary'!E$4)/(D25/'Charges Summary'!D$4)-1) -> -0.006863659909 | R25: =IF(E25=0,"",(F25/'Charges Summary'!F$4)/(E25/'Charges Summary'!E$4)-1) -> -0.004796481666 | S25: =IF(F25=0,"",(G25/'Charges Summary'!G$4)/(F25/'Charges Summary'!F$4)-1) -> -0.006192805944 | T25: =IF(G25=0,"",(H25/'Charges Summary'!H$4)/(G25/'Charges Summary'!G$4)-1) -> -0.006643574709
A26: ='DNSP Inputs General'!A61 -> Metal halide 400 watt | C26: ='DNSP Inputs General'!E61 -> 143.2467914 | D26: =IF('DNSP Inputs General'!$B61='DNSP Inputs General'!$A$41,D$6,IF('DNSP Inputs General'!$B61='DNSP Inputs General'!$A$42,D$7,D$8))*'DNSP Inputs General'!$D61 -> 149.2648194 | E26: =IF('DNSP Inputs General'!$B61='DNSP Inputs General'!$A$41,E$6,IF('DNSP Inputs General'!$B61='DNSP Inputs General'!$A$42,E$7,E$8))*'DNSP Inputs General'!$D61 -> 152.0945646 | F26: =IF('DNSP Inputs General'!$B61='DNSP Inputs General'!$A$41,F$6,IF('DNSP Inputs General'!$B61='DNSP Inputs General'!$A$42,F$7,F$8))*'DNSP Inputs General'!$D61 -> 155.300537 | G26: =IF('DNSP Inputs General'!$B61='DNSP Inputs General'!$A$41,G$6,IF('DNSP Inputs General'!$B61='DNSP Inputs General'!$A$42,G$7,G$8))*'DNSP Inputs General'!$D61 -> 158.3515995 | H26: =IF('DNSP Inputs General'!$B61='DNSP Inputs General'!$A$41,H$6,IF('DNSP Inputs General'!$B61='DNSP Inputs General'!$A$42,H$7,H$8))*'DNSP Inputs General'!$D61 -> 161.3893679 | J26: 0.04201160764 | K26: 0.01895788493 | L26: 0.02107880981 | M26: 0.0196461811 | N26: 0.01918369235 | P26: =IF(C26=0,"",(D26/'Charges Summary'!D$4)/C26-1) -> 0.0156058554 | Q26: =IF(D26=0,"",(E26/'Charges Summary'!E$4)/(D26/'Charges Summary'!D$4)-1) -> -0.006863659909 | R26: =IF(E26=0,"",(F26/'Charges Summary'!F$4)/(E26/'Charges Summary'!E$4)-1) -> -0.004796481666 | S26: =IF(F26=0,"",(G26/'Charges Summary'!G$4)/(F26/'Charges Summary'!F$4)-1) -> -0.006192805944 | T26: =IF(G26=0,"",(H26/'Charges Summary'!H$4)/(G26/'Charges Summary'!G$4)-1) -> -0.006643574709
A27: ='DNSP Inputs General'!A62 -> Metal halide 1000 watt | C27: ='DNSP Inputs General'!E62 -> 213.6764638 | D27: =IF('DNSP Inputs General'!$B62='DNSP Inputs General'!$A$41,D$6,IF('DNSP Inputs General'!$B62='DNSP Inputs General'!$A$42,D$7,D$8))*'DNSP Inputs General'!$D62 -> 222.6533555 | E27: =IF('DNSP Inputs General'!$B62='DNSP Inputs General'!$A$41,E$6,IF('DNSP Inputs General'!$B62='DNSP Inputs General'!$A$42,E$7,E$8))*'DNSP Inputs General'!$D62 -> 226.8743922 | F27: =IF('DNSP Inputs General'!$B62='DNSP Inputs General'!$A$41,F$6,IF('DNSP Inputs General'!$B62='DNSP Inputs General'!$A$42,F$7,F$8))*'DNSP Inputs General'!$D62 -> 231.6566344 | G27: =IF('DNSP Inputs General'!$B62='DNSP Inputs General'!$A$41,G$6,IF('DNSP Inputs General'!$B62='DNSP Inputs General'!$A$42,G$7,G$8))*'DNSP Inputs General'!$D62 -> 236.2078026 | H27: =IF('DNSP Inputs General'!$B62='DNSP Inputs General'!$A$41,H$6,IF('DNSP Inputs General'!$B62='DNSP Inputs General'!$A$42,H$7,H$8))*'DNSP Inputs General'!$D62 -> 240.7391404 | J27: 0.04201160764 | K27: 0.01895788493 | L27: 0.02107880981 | M27: 0.0196461811 | N27: 0.01918369235 | P27: =IF(C27=0,"",(D27/'Charges Summary'!D$4)/C27-1) -> 0.0156058554 | Q27: =IF(D27=0,"",(E27/'Charges Summary'!E$4)/(D27/'Charges Summary'!D$4)-1) -> -0.006863659909 | R27: =IF(E27=0,"",(F27/'Charges Summary'!F$4)/(E27/'Charges Summary'!E$4)-1) -> -0.004796481666 | S27: =IF(F27=0,"",(G27/'Charges Summary'!G$4)/(F27/'Charges Summary'!F$4)-1) -> -0.006192805944 | T27: =IF(G27=0,"",(H27/'Charges Summary'!H$4)/(G27/'Charges Summary'!G$4)-1) -> -0.006643574709
A30: ='DNSP Inputs General'!A$67 -> Energy Efficient Lights
A31: ='DNSP Inputs General'!A68 -> T5 2X14W | C31: ='DNSP Inputs General'!E68 -> 38.14547144 | D31: ='Charges Summary'!D$89 -> 52.32378032 | E31: ='Charges Summary'!E$89 -> 54.05519429 | F31: ='Charges Summary'!F$89 -> 56.12571947 | G31: ='Charges Summary'!G$89 -> 57.78899241 | H31: ='Charges Summary'!H$89 -> 59.25052307 | J31: =IF(C31=0,"",D31/C31-1) -> 0.3716904878 | K31: =IF(D31=0,"",E31/D31-1) -> 0.03309038369 | L31: =IF(E31=0,"",F31/E31-1) -> 0.03830390779 | M31: =IF(F31=0,"",G31/F31-1) -> 0.02963477275 | N31: =IF(G31=0,"",H31/G31-1) -> 0.02529081404 | P31: =IF(C31=0,"",(D31/'Charges Summary'!D$4)/C31-1) -> 0.3369303 | Q31: =IF(D31=0,"",(E31/'Charges Summary'!E$4)/(D31/'Charges Summary'!D$4)-1) -> 0.006910705346 | R31: =IF(E31=0,"",(F31/'Charges Summary'!F$4)/(E31/'Charges Summary'!E$4)-1) -> 0.01199211285 | S31: =IF(F31=0,"",(G31/'Charges Summary'!G$4)/(F31/'Charges Summary'!F$4)-1) -> 0.003542663495 | T31: =IF(G31=0,"",(H31/'Charges Summary'!H$4)/(G31/'Charges Summary'!G$4)-1) -> -0.000691214385
A32: ='DNSP Inputs General'!A69 -> T5 2X24W | C32: ='DNSP Inputs General'!E69 -> 37.61630139 | D32: =IF('DNSP Inputs General'!$B69='DNSP Inputs General'!$A$68,D$31,D$35)*'DNSP Inputs General'!$D69 -> 51.59792281 | E32: =IF('DNSP Inputs General'!$B69='DNSP Inputs General'!$A$68,E$31,E$35)*'DNSP Inputs General'!$D69 -> 53.30531787 | F32: =IF('DNSP Inputs General'!$B69='DNSP Inputs General'!$A$68,F$31,F$35)*'DNSP Inputs General'!$D69 -> 55.34711985 | G32: =IF('DNSP Inputs General'!$B69='DNSP Inputs General'!$A$68,G$31,G$35)*'DNSP Inputs General'!$D69 -> 56.98731917 | H32: =IF('DNSP Inputs General'!$B69='DNSP Inputs General'!$A$68,H$31,H$35)*'DNSP Inputs General'!$D69 -> 58.42857486 | J32: =IF(C32=0,"",D32/C32-1) -> 0.3716904878 | K32: =IF(D32=0,"",E32/D32-1) -> 0.03309038369 | L32: =IF(E32=0,"",F32/E32-1) -> 0.03830390779 | M32: =IF(F32=0,"",G32/F32-1) -> 0.02963477275 | N32: =IF(G32=0,"",H32/G32-1) -> 0.02529081404 | P32: =IF(C32=0,"",(D32/'Charges Summary'!D$4)/C32-1) -> 0.3369303 | Q32: =IF(D32=0,"",(E32/'Charges Summary'!E$4)/(D32/'Charges Summary'!D$4)-1) -> 0.006910705346 | R32: =IF(E32=0,"",(F32/'Charges Summary'!F$4)/(E32/'Charges Summary'!E$4)-1) -> 0.01199211285 | S32: =IF(F32=0,"",(G32/'Charges Summary'!G$4)/(F32/'Charges Summary'!F$4)-1) -> 0.003542663495 | T32: =IF(G32=0,"",(H32/'Charges Summary'!H$4)/(G32/'Charges Summary'!G$4)-1) -> -0.000691214385
A33: ='DNSP Inputs General'!A70 -> CF32 | C33: ='DNSP Inputs General'!E70 -> 36.95350299 | D33: =IF('DNSP Inputs General'!$B70='DNSP Inputs General'!$A$68,D$31,D$35)*'DNSP Inputs General'!$D70 -> 50.68876854 | E33: =IF('DNSP Inputs General'!$B70='DNSP Inputs General'!$A$68,E$31,E$35)*'DNSP Inputs General'!$D70 -> 52.36607934 | F33: =IF('DNSP Inputs General'!$B70='DNSP Inputs General'!$A$68,F$31,F$35)*'DNSP Inputs General'!$D70 -> 54.37190481 | G33: =IF('DNSP Inputs General'!$B70='DNSP Inputs General'!$A$68,G$31,G$35)*'DNSP Inputs General'!$D70 -> 55.98320385 | H33: =IF('DNSP Inputs General'!$B70='DNSP Inputs General'!$A$68,H$31,H$35)*'DNSP Inputs General'!$D70 -> 57.39906465 | J33: 0.3716904878 | K33: 0.03309038369 | L33: 0.03830390779 | M33: 0.02963477275 | N33: 0.02529081404 | P33: =IF(C33=0,"",(D33/'Charges Summary'!D$4)/C33-1) -> 0.3369303 | Q33: =IF(D33=0,"",(E33/'Charges Summary'!E$4)/(D33/'Charges Summary'!D$4)-1) -> 0.006910705346 | R33: =IF(E33=0,"",(F33/'Charges Summary'!F$4)/(E33/'Charges Summary'!E$4)-1) -> 0.01199211285 | S33: =IF(F33=0,"",(G33/'Charges Summary'!G$4)/(F33/'Charges Summary'!F$4)-1) -> 0.003542663495 | T33: =IF(G33=0,"",(H33/'Charges Summary'!H$4)/(G33/'Charges Summary'!G$4)-1) -> -0.000691214385
A34: ='DNSP Inputs General'!A71 -> CF42 | C34: ='DNSP Inputs General'!E71 -> 36.95350299 | D34: =IF('DNSP Inputs General'!$B71='DNSP Inputs General'!$A$68,D$31,D$35)*'DNSP Inputs General'!$D71 -> 50.68876854 | E34: =IF('DNSP Inputs General'!$B71='DNSP Inputs General'!$A$68,E$31,E$35)*'DNSP Inputs General'!$D71 -> 52.36607934 | F34: =IF('DNSP Inputs General'!$B71='DNSP Inputs General'!$A$68,F$31,F$35)*'DNSP Inputs General'!$D71 -> 54.37190481 | G34: =IF('DNSP Inputs General'!$B71='DNSP Inputs General'!$A$68,G$31,G$35)*'DNSP Inputs General'!$D71 -> 55.98320385 | H34: =IF('DNSP Inputs General'!$B71='DNSP Inputs General'!$A$68,H$31,H$35)*'DNSP Inputs General'!$D71 -> 57.39906465 | J34: 0.3716904878 | K34: 0.03309038369 | L34: 0.03830390779 | M34: 0.02963477275 | N34: 0.02529081404 | P34: =IF(C34=0,"",(D34/'Charges Summary'!D$4)/C34-1) -> 0.3369303 | Q34: =IF(D34=0,"",(E34/'Charges Summary'!E$4)/(D34/'Charges Summary'!D$4)-1) -> 0.006910705346 | R34: =IF(E34=0,"",(F34/'Charges Summary'!F$4)/(E34/'Charges Summary'!E$4)-1) -> 0.01199211285 | S34: =IF(F34=0,"",(G34/'Charges Summary'!G$4)/(F34/'Charges Summary'!F$4)-1) -> 0.003542663495 | T34: =IF(G34=0,"",(H34/'Charges Summary'!H$4)/(G34/'Charges Summary'!G$4)-1) -> -0.000691214385
A35: ='DNSP Inputs General'!A72 -> Category P LED 18 Watt | C35: ='DNSP Inputs General'!E72 -> 23.1450571 | D35: ='Charges Summary'!D$107 -> 35.31781777 | E35: ='Charges Summary'!E$107 -> 37.01060843 | F35: ='Charges Summary'!F$107 -> 39.03528327 | G35: ='Charges Summary'!G$107 -> 40.0301091 | H35: ='Charges Summary'!H$107 -> 40.78272098 | J35: 0.5259334906 | K35: 0.0479302166 | L35: 0.05470525696 | M35: 0.02548529819 | N35: 0.01880114477 | P35: =IF(C35=0,"",(D35/'Charges Summary'!D$4)/C35-1) -> 0.4872646107 | Q35: =IF(D35=0,"",(E35/'Charges Summary'!E$4)/(D35/'Charges Summary'!D$4)-1) -> 0.02137448011 | R35: =IF(E35=0,"",(F35/'Charges Summary'!F$4)/(E35/'Charges Summary'!E$4)-1) -> 0.0279778333 | S35: =IF(F35=0,"",(G35/'Charges Summary'!G$4)/(F35/'Charges Summary'!F$4)-1) -> -0.0005016586872 | T35: =IF(G35=0,"",(H35/'Charges Summary'!H$4)/(G35/'Charges Summary'!G$4)-1) -> -0.007016428098
A36: ='DNSP Inputs General'!A73 -> Category P LED 47 Watt | C36: ='DNSP Inputs General'!E73 -> 23.1450571 | D36: =IF('DNSP Inputs General'!$B73='DNSP Inputs General'!$A$68,D$31,D$35)*'DNSP Inputs General'!$D73 -> 35.31781777 | E36: =IF('DNSP Inputs General'!$B73='DNSP Inputs General'!$A$68,E$31,E$35)*'DNSP Inputs General'!$D73 -> 37.01060843 | F36: =IF('DNSP Inputs General'!$B73='DNSP Inputs General'!$A$68,F$31,F$35)*'DNSP Inputs General'!$D73 -> 39.03528327 | G36: =IF('DNSP Inputs General'!$B73='DNSP Inputs General'!$A$68,G$31,G$35)*'DNSP Inputs General'!$D73 -> 40.0301091 | H36: =IF('DNSP Inputs General'!$B73='DNSP Inputs General'!$A$68,H$31,H$35)*'DNSP Inputs General'!$D73 -> 40.78272098 | J36: 0.5259334906 | K36: 0.0479302166 | L36: 0.05470525696 | M36: 0.02548529819 | N36: 0.01880114477 | P36: =IF(C36=0,"",(D36/'Charges Summary'!D$4)/C36-1) -> 0.4872646107 | Q36: =IF(D36=0,"",(E36/'Charges Summary'!E$4)/(D36/'Charges Summary'!D$4)-1) -> 0.02137448011 | R36: =IF(E36=0,"",(F36/'Charges Summary'!F$4)/(E36/'Charges Summary'!E$4)-1) -> 0.0279778333 | S36: =IF(F36=0,"",(G36/'Charges Summary'!G$4)/(F36/'Charges Summary'!F$4)-1) -> -0.0005016586872 | T36: =IF(G36=0,"",(H36/'Charges Summary'!H$4)/(G36/'Charges Summary'!G$4)-1) -> -0.007016428098

Sheet Cashflow Summary
A1: ='DNSP Inputs O & M'!$A$3 -> CitiPower | E1: Check | F1: =SUM(C133,C139,C162) -> 9.982613847e-09
C2: ='DNSP Inputs General'!J$2 -> 2015 | D2: ='DNSP Inputs General'!K$2 -> 2016 | E2: ='DNSP Inputs General'!L$2 -> 2017 | F2: ='DNSP Inputs General'!M$2 -> 2018 | G2: ='DNSP Inputs General'!N$2 -> 2019 | H2: ='DNSP Inputs General'!O$2 -> 2020 | J2: =C2 -> 2015 | K2: =D2 -> 2016 | L2: 2017 | M2: 2018 | N2: 2019 | O2: 2020
A4: Public Lighting - Revenue | C4: Revenue - Nominal | J4: Revenue - Real 2015 $
C5: =C$2 -> 2015 | D5: =D$2 -> 2016 | E5: 2017 | F5: 2018 | G5: 2019 | H5: 2020 | J5: =J$2 -> 2015 | K5: 2016 | L5: 2017 | M5: 2018 | N5: 2019 | O5: 2020
A6: ='DNSP Inputs General'!A$40 -> Existing Lights
A7: ='DNSP Inputs General'!A$41 -> Mercury vapour 80 watt | C7: =IF('PL Tariffs'!C6=0,"",'DNSP Inputs General'!J41*'PL Tariffs'!C6) -> 269866.7152 | D7: =IF('PL Tariffs'!D6=0,"",'DNSP Inputs General'!K41*'PL Tariffs'!D6) -> 201339.91 | E7: =IF('PL Tariffs'!E6=0,"",'DNSP Inputs General'!L41*'PL Tariffs'!E6) -> 160099.2456 | F7: =IF('PL Tariffs'!F6=0,"",'DNSP Inputs General'!M41*'PL Tariffs'!F6) -> 145166.2426 | G7: =IF('PL Tariffs'!G6=0,"",'DNSP Inputs General'!N41*'PL Tariffs'!G6) -> 131488.3526 | H7: =IF('PL Tariffs'!H6=0,"",'DNSP Inputs General'!O41*'PL Tariffs'!H6) -> 118900.6575 | J7: =C7 -> 269866.7152 | K7: =D7/'Charges Summary'!D$4 -> 196237.729 | L7: =E7/'Charges Summary'!E$4 -> 152087.8652 | M7: =F7/'Charges Summary'!F$4 -> 134407.5156 | N7: =G7/'Charges Summary'!G$4 -> 118658.2232 | O7: =H7/'Charges Summary'!H$4 -> 104579.7146
A8: ='DNSP Inputs General'!A$42 -> Sodium high pressure 150 watt | C8: =IF('PL Tariffs'!C7=0,"",'DNSP Inputs General'!J42*'PL Tariffs'!C7) -> 1482451.441 | D8: =IF('PL Tariffs'!D7=0,"",'DNSP Inputs General'!K42*'PL Tariffs'!D7) -> 1554198.14 | E8: =IF('PL Tariffs'!E7=0,"",'DNSP Inputs General'!L42*'PL Tariffs'!E7) -> 1592467.734 | F8: =IF('PL Tariffs'!F7=0,"",'DNSP Inputs General'!M42*'PL Tariffs'!F7) -> 1634558.724 | G8: =IF('PL Tariffs'!G7=0,"",'DNSP Inputs General'!N42*'PL Tariffs'!G7) -> 1675372.193 | H8: =IF('PL Tariffs'!H7=0,"",'DNSP Inputs General'!O42*'PL Tariffs'!H7) -> 1716408.213 | J8: 1482451.441 | K8: =D8/'Charges Summary'!D$4 -> 1514813.002 | L8: =E8/'Charges Summary'!E$4 -> 1512780.508 | M8: =F8/'Charges Summary'!F$4 -> 1513416.434 | N8: =G8/'Charges Summary'!G$4 -> 1511895.798 | O8: =H8/'Charges Summary'!H$4 -> 1509676.101
A9: ='DNSP Inputs General'!A$43 -> Sodium high pressure 250 watt | C9: =IF('PL Tariffs'!C8=0,"",'DNSP Inputs General'!J43*'PL Tariffs'!C8) -> 632959.8221 | D9: =IF('PL Tariffs'!D8=0,"",'DNSP Inputs General'!K43*'PL Tariffs'!D8) -> 671771.3428 | E9: =IF('PL Tariffs'!E8=0,"",'DNSP Inputs General'!L43*'PL Tariffs'!E8) -> 697188.9263 | F9: =IF('PL Tariffs'!F8=0,"",'DNSP Inputs General'!M43*'PL Tariffs'!F8) -> 725074.308 | G9: =IF('PL Tariffs'!G8=0,"",'DNSP Inputs General'!N43*'PL Tariffs'!G8) -> 753017.0099 | H9: =IF('PL Tariffs'!H8=0,"",'DNSP Inputs General'!O43*'PL Tariffs'!H8) -> 781681.8453 | J9: 632959.8221 | K9: =D9/'Charges Summary'!D$4 -> 654747.8974 | L9: =E9/'Charges Summary'!E$4 -> 662301.5308 | M9: =F9/'Charges Summary'!F$4 -> 671336.7696 | N9: =G9/'Charges Summary'!G$4 -> 679540.497 | O9: =H9/'Charges Summary'!H$4 -> 687532.4831
A10: ='DNSP Inputs General'!A$44 -> Fluorescent 20 watt | C10: =IF('PL Tariffs'!C9=0,"",'DNSP Inputs General'!J44*'PL Tariffs'!C9) -> 10720.35408 | D10: =IF('PL Tariffs'!D9=0,"",'DNSP Inputs General'!K44*'PL Tariffs'!D9) -> 11760.6911 | E10: =IF('PL Tariffs'!E9=0,"",'DNSP Inputs General'!L44*'PL Tariffs'!E9) -> 11732.83698 | F10: =IF('PL Tariffs'!F9=0,"",'DNSP Inputs General'!M44*'PL Tariffs'!F9) -> 11873.87134 | G10: =IF('PL Tariffs'!G9=0,"",'DNSP Inputs General'!N44*'PL Tariffs'!G9) -> 12004.02632 | H10: =IF('PL Tariffs'!H9=0,"",'DNSP Inputs General'!O44*'PL Tariffs'!H9) -> 12115.37505 | J10: 10720.35408 | K10: =D10/'Charges Summary'!D$4 -> 11462.66189 | L10: =E10/'Charges Summary'!E$4 -> 11145.72478 | M10: =F10/'Charges Summary'!F$4 -> 10993.86138 | N10: =G10/'Charges Summary'!G$4 -> 10832.71945 | O10: =H10/'Charges Summary'!H$4 -> 10656.14347
A11: ='DNSP Inputs General'!A$45 -> Fluorescent 40 watt | C11: =IF('PL Tariffs'!C10=0,"",'DNSP Inputs General'!J45*'PL Tariffs'!C10) -> 20359.21227 | D11: =IF('PL Tariffs'!D10=0,"",'DNSP Inputs General'!K45*'PL Tariffs'!D10) -> 22578.82971 | E11: =IF('PL Tariffs'!E10=0,"",'DNSP Inputs General'!L45*'PL Tariffs'!E10) -> 22525.35382 | F11: =IF('PL Tariffs'!F10=0,"",'DNSP Inputs General'!M45*'PL Tariffs'!F10) -> 22796.11945 | G11: =IF('PL Tariffs'!G10=0,"",'DNSP Inputs General'!N45*'PL Tariffs'!G10) -> 23045.99822 | H11: =IF('PL Tariffs'!H10=0,"",'DNSP Inputs General'!O45*'PL Tariffs'!H10) -> 23259.77171 | J11: 20359.21227 | K11: =D11/'Charges Summary'!D$4 -> 22006.65664 | L11: =E11/'Charges Summary'!E$4 -> 21398.18313 | M11: =F11/'Charges Summary'!F$4 -> 21106.62731 | N11: =G11/'Charges Summary'!G$4 -> 20797.25807 | O11: =H11/'Charges Summary'!H$4 -> 20458.25766
A12: ='DNSP Inputs General'!A$46 -> Mercury vapour 50 watt | C12: =IF('PL Tariffs'!C11=0,"",'DNSP Inputs General'!J46*'PL Tariffs'!C11) -> 14809.03442 | D12: =IF('PL Tariffs'!D11=0,"",'DNSP Inputs General'!K46*'PL Tariffs'!D11) -> 15187.32175 | E12: =IF('PL Tariffs'!E11=0,"",'DNSP Inputs General'!L46*'PL Tariffs'!E11) -> 14163.8763 | F12: =IF('PL Tariffs'!F11=0,"",'DNSP Inputs General'!M46*'PL Tariffs'!F11) -> 13399.91877 | G12: =IF('PL Tariffs'!G11=0,"",'DNSP Inputs General'!N46*'PL Tariffs'!G11) -> 12663.90091 | H12: =IF('PL Tariffs'!H11=0,"",'DNSP Inputs General'!O46*'PL Tariffs'!H11) -> 11948.35633 | J12: 14809.03442 | K12: =D12/'Charges Summary'!D$4 -> 14802.45785 | L12: =E12/'Charges Summary'!E$4 -> 13455.11468 | M12: =F12/'Charges Summary'!F$4 -> 12406.80863 | N12: =G12/'Charges Summary'!G$4 -> 11428.20601 | O12: =H12/'Charges Summary'!H$4 -> 10509.24125
A13: ='DNSP Inputs General'!A$47 -> Mercury vapour 125 watt | C13: =IF('PL Tariffs'!C12=0,"",'DNSP Inputs General'!J47*'PL Tariffs'!C12) -> 139678.1606 | D13: =IF('PL Tariffs'!D12=0,"",'DNSP Inputs General'!K47*'PL Tariffs'!D12) -> 144726.1555 | E13: =IF('PL Tariffs'!E12=0,"",'DNSP Inputs General'!L47*'PL Tariffs'!E12) -> 136367.8596 | F13: =IF('PL Tariffs'!F12=0,"",'DNSP Inputs General'!M47*'PL Tariffs'!F12) -> 130345.5267 | G13: =IF('PL Tariffs'!G12=0,"",'DNSP Inputs General'!N47*'PL Tariffs'!G12) -> 124458.779 | H13: =IF('PL Tariffs'!H12=0,"",'DNSP Inputs General'!O47*'PL Tariffs'!H12) -> 118639.7615 | J13: 139678.1606 | K13: =D13/'Charges Summary'!D$4 -> 141058.6311 | L13: =E13/'Charges Summary'!E$4 -> 129543.9998 | M13: =F13/'Charges Summary'!F$4 -> 120685.2096 | N13: =G13/'Charges Summary'!G$4 -> 112314.5685 | O13: =H13/'Charges Summary'!H$4 -> 104350.2421
A14: ='DNSP Inputs General'!A$48 -> Mercury vapour 250 watt | C14: =IF('PL Tariffs'!C13=0,"",'DNSP Inputs General'!J48*'PL Tariffs'!C13) -> 56353.28772 | D14: =IF('PL Tariffs'!D13=0,"",'DNSP Inputs General'!K48*'PL Tariffs'!D13) -> 53461.44784 | E14: =IF('PL Tariffs'!E13=0,"",'DNSP Inputs General'!L48*'PL Tariffs'!E13) -> 49595.90864 | F14: =IF('PL Tariffs'!F13=0,"",'DNSP Inputs General'!M48*'PL Tariffs'!F13) -> 46105.63584 | G14: =IF('PL Tariffs'!G13=0,"",'DNSP Inputs General'!N48*'PL Tariffs'!G13) -> 42800.85194 | H14: =IF('PL Tariffs'!H13=0,"",'DNSP Inputs General'!O48*'PL Tariffs'!H13) -> 39714.92808 | J14: 56353.28772 | K14: =D14/'Charges Summary'!D$4 -> 52106.67431 | L14: =E14/'Charges Summary'!E$4 -> 47114.12499 | M14: =F14/'Charges Summary'!F$4 -> 42688.60209 | N14: =G14/'Charges Summary'!G$4 -> 38624.50889 | O14: =H14/'Charges Summary'!H$4 -> 34931.4792
A15: ='DNSP Inputs General'!A$49 -> Mercury vapour 400 watt | C15: =IF('PL Tariffs'!C14=0,"",'DNSP Inputs General'!J49*'PL Tariffs'!C14) -> 28410.61362 | D15: =IF('PL Tariffs'!D14=0,"",'DNSP Inputs General'!K49*'PL Tariffs'!D14) -> 27328.67898 | E15: =IF('PL Tariffs'!E14=0,"",'DNSP Inputs General'!L49*'PL Tariffs'!E14) -> 25706.34561 | F15: =IF('PL Tariffs'!F14=0,"",'DNSP Inputs General'!M49*'PL Tariffs'!F14) -> 24230.65054 | G15: =IF('PL Tariffs'!G14=0,"",'DNSP Inputs General'!N49*'PL Tariffs'!G14) -> 22807.62373 | H15: =IF('PL Tariffs'!H14=0,"",'DNSP Inputs General'!O49*'PL Tariffs'!H14) -> 21458.4315 | J15: 28410.61362 | K15: =D15/'Charges Summary'!D$4 -> 26636.13936 | L15: =E15/'Charges Summary'!E$4 -> 24419.9978 | M15: =F15/'Charges Summary'!F$4 -> 22434.84078 | N15: =G15/'Charges Summary'!G$4 -> 20582.14325 | O15: =H15/'Charges Summary'!H$4 -> 18873.87917
A16: ='DNSP Inputs General'!A$50 -> Mercury vapour 700 watt | C16: =IF('PL Tariffs'!C15=0,"",'DNSP Inputs General'!J50*'PL Tariffs'!C15) -> 0 | D16: =IF('PL Tariffs'!D15=0,"",'DNSP Inputs General'!K50*'PL Tariffs'!D15) -> 0 | E16: =IF('PL Tariffs'!E15=0,"",'DNSP Inputs General'!L50*'PL Tariffs'!E15) -> 0 | F16: =IF('PL Tariffs'!F15=0,"",'DNSP Inputs General'!M50*'PL Tariffs'!F15) -> 0 | G16: =IF('PL Tariffs'!G15=0,"",'DNSP Inputs General'!N50*'PL Tariffs'!G15) -> 0 | H16: =IF('PL Tariffs'!H15=0,"",'DNSP Inputs General'!O50*'PL Tariffs'!H15) -> 0 | J16: 0 | K16: =D16/'Charges Summary'!D$4 -> 0 | L16: =E16/'Charges Summary'!E$4 -> 0 | M16: =F16/'Charges Summary'!F$4 -> 0 | N16: =G16/'Charges Summary'!G$4 -> 0 | O16: =H16/'Charges Summary'!H$4 -> 0
A17: ='DNSP Inputs General'!A$51 -> Sodium high pressure 70 watt | C17: =IF('PL Tariffs'!C16=0,"",'DNSP Inputs General'!J51*'PL Tariffs'!C16) -> 55346.3661 | D17: =IF('PL Tariffs'!D16=0,"",'DNSP Inputs General'!K51*'PL Tariffs'!D16) -> 59872.84524 | E17: =IF('PL Tariffs'!E16=0,"",'DNSP Inputs General'!L51*'PL Tariffs'!E16) -> 58900.25328 | F17: =IF('PL Tariffs'!F16=0,"",'DNSP Inputs General'!M51*'PL Tariffs'!F16) -> 58779.18185 | G17: =IF('PL Tariffs'!G16=0,"",'DNSP Inputs General'!N51*'PL Tariffs'!G16) -> 58596.97665 | H17: =IF('PL Tariffs'!H16=0,"",'DNSP Inputs General'!O51*'PL Tariffs'!H16) -> 58317.94404 | J17: 55346.3661 | K17: =D17/'Charges Summary'!D$4 -> 58355.59965 | L17: =E17/'Charges Summary'!E$4 -> 55952.8794 | M17: =F17/'Charges Summary'!F$4 -> 54422.87173 | N17: =G17/'Charges Summary'!G$4 -> 52879.30832 | O17: =H17/'Charges Summary'!H$4 -> 51293.86223
A18: ='DNSP Inputs General'!A$52 -> Sodium high pressure 100 watt | C18: =IF('PL Tariffs'!C17=0,"",'DNSP Inputs General'!J52*'PL Tariffs'!C17) -> 43562.89449 | D18: =IF('PL Tariffs'!D17=0,"",'DNSP Inputs General'!K52*'PL Tariffs'!D17) -> 43812.62849 | E18: =IF('PL Tariffs'!E17=0,"",'DNSP Inputs General'!L52*'PL Tariffs'!E17) -> 43064.58221 | F18: =IF('PL Tariffs'!F17=0,"",'DNSP Inputs General'!M52*'PL Tariffs'!F17) -> 42403.99719 | G18: =IF('PL Tariffs'!G17=0,"",'DNSP Inputs General'!N52*'PL Tariffs'!G17) -> 41694.06553 | H18: =IF('PL Tariffs'!H17=0,"",'DNSP Inputs General'!O52*'PL Tariffs'!H17) -> 40977.00361 | J18: 43562.89449 | K18: =D18/'Charges Summary'!D$4 -> 42702.36695 | L18: =E18/'Charges Summary'!E$4 -> 40909.62672 | M18: =F18/'Charges Summary'!F$4 -> 39261.30354 | N18: =G18/'Charges Summary'!G$4 -> 37625.71846 | O18: =H18/'Charges Summary'!H$4 -> 36041.54454
A19: ='DNSP Inputs General'!A$53 -> Sodium high pressure 220 watt | C19: =IF('PL Tariffs'!C18=0,"",'DNSP Inputs General'!J53*'PL Tariffs'!C18) -> 224270.7577 | D19: =IF('PL Tariffs'!D18=0,"",'DNSP Inputs General'!K53*'PL Tariffs'!D18) -> 226132.608 | E19: =IF('PL Tariffs'!E18=0,"",'DNSP Inputs General'!L53*'PL Tariffs'!E18) -> 222965.3672 | F19: =IF('PL Tariffs'!F18=0,"",'DNSP Inputs General'!M53*'PL Tariffs'!F18) -> 220300.0816 | G19: =IF('PL Tariffs'!G18=0,"",'DNSP Inputs General'!N53*'PL Tariffs'!G18) -> 217361.2582 | H19: =IF('PL Tariffs'!H18=0,"",'DNSP Inputs General'!O53*'PL Tariffs'!H18) -> 214364.3639 | J19: 224270.7577 | K19: =D19/'Charges Summary'!D$4 -> 220402.1521 | L19: =E19/'Charges Summary'!E$4 -> 211808.1606 | M19: =F19/'Charges Summary'!F$4 -> 203972.9494 | N19: =G19/'Charges Summary'!G$4 -> 196151.9799 | O19: =H19/'Charges Summary'!H$4 -> 188545.3325
A20: ='DNSP Inputs General'!A$54 -> Sodium high pressure 360 watt | C20: =IF('PL Tariffs'!C19=0,"",'DNSP Inputs General'!J54*'PL Tariffs'!C19) -> 28248.26726 | D20: =IF('PL Tariffs'!D19=0,"",'DNSP Inputs General'!K54*'PL Tariffs'!D19) -> 29237.89009 | E20: =IF('PL Tariffs'!E19=0,"",'DNSP Inputs General'!L54*'PL Tariffs'!E19) -> 29592.65441 | F20: =IF('PL Tariffs'!F19=0,"",'DNSP Inputs General'!M54*'PL Tariffs'!F19) -> 30014.0668 | G20: =IF('PL Tariffs'!G19=0,"",'DNSP Inputs General'!N54*'PL Tariffs'!G19) -> 30398.76924 | H20: =IF('PL Tariffs'!H19=0,"",'DNSP Inputs General'!O54*'PL Tariffs'!H19) -> 30774.43764 | J20: 28248.26726 | K20: =D20/'Charges Summary'!D$4 -> 28496.9689 | L20: =E20/'Charges Summary'!E$4 -> 28111.83537 | M20: =F20/'Charges Summary'!F$4 -> 27789.62987 | N20: =G20/'Charges Summary'!G$4 -> 27432.57388 | O20: =H20/'Charges Summary'!H$4 -> 27067.82261
A21: ='DNSP Inputs General'!A$55 -> Sodium high pressure 400 watt | C21: =IF('PL Tariffs'!C20=0,"",'DNSP Inputs General'!J55*'PL Tariffs'!C20) -> 52392.51394 | D21: =IF('PL Tariffs'!D20=0,"",'DNSP Inputs General'!K55*'PL Tariffs'!D20) -> 55589.33846 | E21: =IF('PL Tariffs'!E20=0,"",'DNSP Inputs General'!L55*'PL Tariffs'!E20) -> 57676.30787 | F21: =IF('PL Tariffs'!F20=0,"",'DNSP Inputs General'!M55*'PL Tariffs'!F20) -> 59966.18582 | G21: =IF('PL Tariffs'!G20=0,"",'DNSP Inputs General'!N55*'PL Tariffs'!G20) -> 62259.50084 | H21: =IF('PL Tariffs'!H20=0,"",'DNSP Inputs General'!O55*'PL Tariffs'!H20) -> 64611.20069 | J21: 52392.51394 | K21: =D21/'Charges Summary'!D$4 -> 54180.64178 | L21: =E21/'Charges Summary'!E$4 -> 54790.18033 | M21: =F21/'Charges Summary'!F$4 -> 55521.9031 | N21: =G21/'Charges Summary'!G$4 -> 56184.45744 | O21: =H21/'Charges Summary'!H$4 -> 56829.13006
A22: ='DNSP Inputs General'!A$56 -> Sodium high pressure 1000 watt | C22: =IF('PL Tariffs'!C21=0,"",'DNSP Inputs General'!J56*'PL Tariffs'!C21) -> 0 | D22: =IF('PL Tariffs'!D21=0,"",'DNSP Inputs General'!K56*'PL Tariffs'!D21) -> 0 | E22: =IF('PL Tariffs'!E21=0,"",'DNSP Inputs General'!L56*'PL Tariffs'!E21) -> 0 | F22: =IF('PL Tariffs'!F21=0,"",'DNSP Inputs General'!M56*'PL Tariffs'!F21) -> 0 | G22: =IF('PL Tariffs'!G21=0,"",'DNSP Inputs General'!N56*'PL Tariffs'!G21) -> 0 | H22: =IF('PL Tariffs'!H21=0,"",'DNSP Inputs General'!O56*'PL Tariffs'!H21) -> 0 | J22: 0 | K22: =D22/'Charges Summary'!D$4 -> 0 | L22: =E22/'Charges Summary'!E$4 -> 0 | M22: =F22/'Charges Summary'!F$4 -> 0 | N22: =G22/'Charges Summary'!G$4 -> 0 | O22: =H22/'Charges Summary'!H$4 -> 0
A23: ='DNSP Inputs General'!A57 -> Metal halide 70 watt | C23: =IF('PL Tariffs'!C22=0,"",'DNSP Inputs General'!J57*'PL Tariffs'!C22) -> 257010.8544 | D23: =IF('PL Tariffs'!D22=0,"",'DNSP Inputs General'!K57*'PL Tariffs'!D22) -> 190357.8841 | E23: =IF('PL Tariffs'!E22=0,"",'DNSP Inputs General'!L57*'PL Tariffs'!E22) -> 197764.6404 | F23: =IF('PL Tariffs'!F22=0,"",'DNSP Inputs General'!M57*'PL Tariffs'!F22) -> 208422.945 | G23: =IF('PL Tariffs'!G22=0,"",'DNSP Inputs General'!N57*'PL Tariffs'!G22) -> 219425.8098 | H23: =IF('PL Tariffs'!H22=0,"",'DNSP Inputs General'!O57*'PL Tariffs'!H22) -> 230624.3798 | J23: 257010.8544 | K23: =D23/'Charges Summary'!D$4 -> 185534.0001 | L23: =E23/'Charges Summary'!E$4 -> 187868.4803 | M23: =F23/'Charges Summary'!F$4 -> 192976.0647 | N23: =G23/'Charges Summary'!G$4 -> 198015.0806 | O23: =H23/'Charges Summary'!H$4 -> 202846.9171
A24: ='DNSP Inputs General'!A58 -> Metal halide 100 watt | C24: =IF('PL Tariffs'!C23=0,"",'DNSP Inputs General'!J58*'PL Tariffs'!C23) -> 29000.75045 | D24: =IF('PL Tariffs'!D23=0,"",'DNSP Inputs General'!K58*'PL Tariffs'!D23) -> 27980.99328 | E24: =IF('PL Tariffs'!E23=0,"",'DNSP Inputs General'!L58*'PL Tariffs'!E23) -> 26384.89479 | F24: =IF('PL Tariffs'!F23=0,"",'DNSP Inputs General'!M58*'PL Tariffs'!F23) -> 24923.74135 | G24: =IF('PL Tariffs'!G23=0,"",'DNSP Inputs General'!N58*'PL Tariffs'!G23) -> 23509.96558 | H24: =IF('PL Tariffs'!H23=0,"",'DNSP Inputs General'!O58*'PL Tariffs'!H23) -> 22166.09841 | J24: =C24 -> 29000.75045 | K24: =D24/'Charges Summary'!D$4 -> 27271.92328 | L24: =E24/'Charges Summary'!E$4 -> 25064.59232 | M24: =F24/'Charges Summary'!F$4 -> 23076.56445 | N24: =G24/'Charges Summary'!G$4 -> 21215.95328 | O24: =H24/'Charges Summary'!H$4 -> 19496.31141
A25: ='DNSP Inputs General'!A59 -> Metal halide 150 watt | C25: =IF('PL Tariffs'!C24=0,"",'DNSP Inputs General'!J59*'PL Tariffs'!C24) -> 60973.46308 | D25: =IF('PL Tariffs'!D24=0,"",'DNSP Inputs General'!K59*'PL Tariffs'!D24) -> 60915.12311 | E25: =IF('PL Tariffs'!E24=0,"",'DNSP Inputs General'!L59*'PL Tariffs'!E24) -> 59476.81979 | F25: =IF('PL Tariffs'!F24=0,"",'DNSP Inputs General'!M59*'PL Tariffs'!F24) -> 58174.94495 | G25: =IF('PL Tariffs'!G24=0,"",'DNSP Inputs General'!N59*'PL Tariffs'!G24) -> 56820.50796 | H25: =IF('PL Tariffs'!H24=0,"",'DNSP Inputs General'!O59*'PL Tariffs'!H24) -> 55471.86261 | J25: 60973.46308 | K25: =D25/'Charges Summary'!D$4 -> 59371.46501 | L25: =E25/'Charges Summary'!E$4 -> 56500.59448 | M25: =F25/'Charges Summary'!F$4 -> 53863.41673 | N25: =G25/'Charges Summary'!G$4 -> 51276.18063 | O25: =H25/'Charges Summary'!H$4 -> 48790.57595
A26: ='DNSP Inputs General'!A60 -> Metal halide 250 watt | C26: =IF('PL Tariffs'!C25=0,"",'DNSP Inputs General'!J60*'PL Tariffs'!C25) -> 97121.32454 | D26: =IF('PL Tariffs'!D25=0,"",'DNSP Inputs General'!K60*'PL Tariffs'!D25) -> 115376.369 | E26: =IF('PL Tariffs'!E25=0,"",'DNSP Inputs General'!L60*'PL Tariffs'!E25) -> 134030.2462 | F26: =IF('PL Tariffs'!F25=0,"",'DNSP Inputs General'!M60*'PL Tariffs'!F25) -> 156024.1383 | G26: =IF('PL Tariffs'!G25=0,"",'DNSP Inputs General'!N60*'PL Tariffs'!G25) -> 181372.318 | H26: =IF('PL Tariffs'!H25=0,"",'DNSP Inputs General'!O60*'PL Tariffs'!H25) -> 210743.0122 | J26: 97121.32454 | K26: =D26/'Charges Summary'!D$4 -> 112452.6014 | L26: =E26/'Charges Summary'!E$4 -> 127323.3609 | M26: =F26/'Charges Summary'!F$4 -> 144460.6985 | N26: =G26/'Charges Summary'!G$4 -> 163674.7025 | O26: =H26/'Charges Summary'!H$4 -> 185360.153
A27: ='DNSP Inputs General'!A61 -> Metal halide 400 watt | C27: =IF('PL Tariffs'!C26=0,"",'DNSP Inputs General'!J61*'PL Tariffs'!C26) -> 186220.8288 | D27: =IF('PL Tariffs'!D26=0,"",'DNSP Inputs General'!K61*'PL Tariffs'!D26) -> 196631.1562 | E27: =IF('PL Tariffs'!E26=0,"",'DNSP Inputs General'!L61*'PL Tariffs'!E26) -> 203029.9408 | F27: =IF('PL Tariffs'!F26=0,"",'DNSP Inputs General'!M61*'PL Tariffs'!F26) -> 210073.307 | G27: =IF('PL Tariffs'!G26=0,"",'DNSP Inputs General'!N61*'PL Tariffs'!G26) -> 217056.0473 | H27: =IF('PL Tariffs'!H26=0,"",'DNSP Inputs General'!O61*'PL Tariffs'!H26) -> 224169.1664 | J27: 186220.8288 | K27: =D27/'Charges Summary'!D$4 -> 191648.3004 | L27: =E27/'Charges Summary'!E$4 -> 192870.3046 | M27: =F27/'Charges Summary'!F$4 -> 194504.1132 | N27: =G27/'Charges Summary'!G$4 -> 195876.5504 | O27: =H27/'Charges Summary'!H$4 -> 197169.1994
A28: ='DNSP Inputs General'!A62 -> Metal halide 1000 watt | C28: =IF('PL Tariffs'!C27=0,"",'DNSP Inputs General'!J62*'PL Tariffs'!C27) -> 427.3529275 | D28: =IF('PL Tariffs'!D27=0,"",'DNSP Inputs General'!K62*'PL Tariffs'!D27) -> 445.3067111 | E28: =IF('PL Tariffs'!E27=0,"",'DNSP Inputs General'!L62*'PL Tariffs'!E27) -> 0 | F28: =IF('PL Tariffs'!F27=0,"",'DNSP Inputs General'!M62*'PL Tariffs'!F27) -> 0 | G28: =IF('PL Tariffs'!G27=0,"",'DNSP Inputs General'!N62*'PL Tariffs'!G27) -> 0 | H28: =IF('PL Tariffs'!H27=0,"",'DNSP Inputs General'!O62*'PL Tariffs'!H27) -> 0 | J28: 427.3529275 | K28: =D28/'Charges Summary'!D$4 -> 434.0221355 | L28: =E28/'Charges Summary'!E$4 -> 0 | M28: =F28/'Charges Summary'!F$4 -> 0 | N28: =G28/'Charges Summary'!G$4 -> 0 | O28: =H28/'Charges Summary'!H$4 -> 0
A31: ='DNSP Inputs General'!A$67 -> Energy Efficient Lights
A32: ='DNSP Inputs General'!A68 -> T5 2X14W | C32: =IF('PL Tariffs'!C31=0,"",'DNSP Inputs General'!J68*'PL Tariffs'!C31) -> 532129.3266 | D32: =IF('PL Tariffs'!D31=0,"",'DNSP Inputs General'!K68*'PL Tariffs'!D31) -> 715318.4008 | E32: =IF('PL Tariffs'!E31=0,"",'DNSP Inputs General'!L68*'PL Tariffs'!E31) -> 724208.7899 | F32: =IF('PL Tariffs'!F31=0,"",'DNSP Inputs General'!M68*'PL Tariffs'!F31) -> 699312.3995 | G32: =IF('PL Tariffs'!G31=0,"",'DNSP Inputs General'!N68*'PL Tariffs'!G31) -> 669633.8181 | H32: =IF('PL Tariffs'!H31=0,"",'DNSP Inputs General'!O68*'PL Tariffs'!H31) -> 638509.5442 | J32: =C32 -> 532129.3266 | K32: =D32/'Charges Summary'!D$4 -> 697191.4238 | L32: =E32/'Charges Summary'!E$4 -> 687969.3181 | M32: =F32/'Charges Summary'!F$4 -> 647484.1571 | N32: =G32/'Charges Summary'!G$4 -> 604293.5173 | O32: =H32/'Charges Summary'!H$4 -> 561604.5135
A33: ='DNSP Inputs General'!A69 -> T5 2X24W | C33: =IF('PL Tariffs'!C32=0,"",'DNSP Inputs General'!J69*'PL Tariffs'!C32) -> 88812.08759 | D33: =IF('PL Tariffs'!D32=0,"",'DNSP Inputs General'!K69*'PL Tariffs'!D32) -> 119386.2418 | E33: =IF('PL Tariffs'!E32=0,"",'DNSP Inputs General'!L69*'PL Tariffs'!E32) -> 120870.0428 | F33: =IF('PL Tariffs'!F32=0,"",'DNSP Inputs General'!M69*'PL Tariffs'!F32) -> 116714.8491 | G33: =IF('PL Tariffs'!G32=0,"",'DNSP Inputs General'!N69*'PL Tariffs'!G32) -> 111761.5105 | H33: =IF('PL Tariffs'!H32=0,"",'DNSP Inputs General'!O69*'PL Tariffs'!H32) -> 106566.8865 | J33: =C33 -> 88812.08759 | K33: =D33/'Charges Summary'!D$4 -> 116360.8595 | L33: =E33/'Charges Summary'!E$4 -> 114821.6952 | M33: =F33/'Charges Summary'!F$4 -> 108064.7444 | N33: =G33/'Charges Summary'!G$4 -> 100856.2508 | O33: =H33/'Charges Summary'!H$4 -> 93731.47984
A34: ='DNSP Inputs General'!A70 -> CF32 | C34: =IF('PL Tariffs'!C33=0,"",'DNSP Inputs General'!J70*'PL Tariffs'!C33) -> 22467.72982 | D34: =IF('PL Tariffs'!D33=0,"",'DNSP Inputs General'!K70*'PL Tariffs'!D33) -> 30202.39585 | E34: =IF('PL Tariffs'!E33=0,"",'DNSP Inputs General'!L70*'PL Tariffs'!E33) -> 30577.76862 | F34: =IF('PL Tariffs'!F33=0,"",'DNSP Inputs General'!M70*'PL Tariffs'!F33) -> 29526.58548 | G34: =IF('PL Tariffs'!G33=0,"",'DNSP Inputs General'!N70*'PL Tariffs'!G33) -> 28273.48719 | H34: =IF('PL Tariffs'!H33=0,"",'DNSP Inputs General'!O70*'PL Tariffs'!H33) -> 26959.34843 | J34: 22467.72982 | K34: =D34/'Charges Summary'!D$4 -> 29437.03299 | L34: =E34/'Charges Summary'!E$4 -> 29047.65438 | M34: =F34/'Charges Summary'!F$4 -> 27338.27733 | N34: =G34/'Charges Summary'!G$4 -> 25514.66871 | O34: =H34/'Charges Summary'!H$4 -> 23712.24032
A35: ='DNSP Inputs General'!A71 -> CF42 | C35: =IF('PL Tariffs'!C34=0,"",'DNSP Inputs General'!J71*'PL Tariffs'!C34) -> 17479.00691 | D35: =IF('PL Tariffs'!D34=0,"",'DNSP Inputs General'!K71*'PL Tariffs'!D34) -> 23496.27177 | E35: =IF('PL Tariffs'!E34=0,"",'DNSP Inputs General'!L71*'PL Tariffs'!E34) -> 23788.29697 | F35: =IF('PL Tariffs'!F34=0,"",'DNSP Inputs General'!M71*'PL Tariffs'!F34) -> 22970.51798 | G35: =IF('PL Tariffs'!G34=0,"",'DNSP Inputs General'!N71*'PL Tariffs'!G34) -> 21995.65698 | H35: =IF('PL Tariffs'!H34=0,"",'DNSP Inputs General'!O71*'PL Tariffs'!H34) -> 20973.3089 | J35: 17479.00691 | K35: =D35/'Charges Summary'!D$4 -> 22900.84968 | L35: =E35/'Charges Summary'!E$4 -> 22597.92849 | M35: =F35/'Charges Summary'!F$4 -> 21268.10062 | N35: =G35/'Charges Summary'!G$4 -> 19849.4051 | O35: =H35/'Charges Summary'!H$4 -> 18447.18696
A36: ='DNSP Inputs General'!A72 -> Category P LED 18 Watt | C36: =IF('PL Tariffs'!C35=0,"",'DNSP Inputs General'!J72*'PL Tariffs'!C35) -> 92325.63277 | D36: =IF('PL Tariffs'!D35=0,"",'DNSP Inputs General'!K72*'PL Tariffs'!D35) -> 185032.6891 | E36: =IF('PL Tariffs'!E35=0,"",'DNSP Inputs General'!L72*'PL Tariffs'!E35) -> 213860.6608 | F36: =IF('PL Tariffs'!F35=0,"",'DNSP Inputs General'!M72*'PL Tariffs'!F35) -> 246611.1574 | G36: =IF('PL Tariffs'!G35=0,"",'DNSP Inputs General'!N72*'PL Tariffs'!G35) -> 303475.3396 | H36: =IF('PL Tariffs'!H35=0,"",'DNSP Inputs General'!O72*'PL Tariffs'!H35) -> 371017.228 | J36: 92325.63277 | K36: =D36/'Charges Summary'!D$4 -> 180343.7515 | L36: =E36/'Charges Summary'!E$4 -> 203159.0544 | M36: =F36/'Charges Summary'!F$4 -> 228334.0286 | N36: =G36/'Charges Summary'!G$4 -> 273863.3794 | O36: =H36/'Charges Summary'!H$4 -> 326330.204
A37: ='DNSP Inputs General'!A73 -> Category P LED 47 Watt | C37: =IF('PL Tariffs'!C36=0,"",'DNSP Inputs General'!J73*'PL Tariffs'!C36) -> 1944.184796 | D37: =IF('PL Tariffs'!D36=0,"",'DNSP Inputs General'!K73*'PL Tariffs'!D36) -> 2966.696693 | E37: =IF('PL Tariffs'!E36=0,"",'DNSP Inputs General'!L73*'PL Tariffs'!E36) -> 3108.891108 | F37: =IF('PL Tariffs'!F36=0,"",'DNSP Inputs General'!M73*'PL Tariffs'!F36) -> 3278.963795 | G37: =IF('PL Tariffs'!G36=0,"",'DNSP Inputs General'!N73*'PL Tariffs'!G36) -> 3362.529165 | H37: =IF('PL Tariffs'!H36=0,"",'DNSP Inputs General'!O73*'PL Tariffs'!H36) -> 3425.748562 | J37: 1944.184796 | K37: =D37/'Charges Summary'!D$4 -> 2891.517244 | L37: =E37/'Charges Summary'!E$4 -> 2953.321922 | M37: =F37/'Charges Summary'!F$4 -> 3035.949471 | N37: =G37/'Charges Summary'!G$4 -> 3034.42646 | O37: =H37/'Charges Summary'!H$4 -> 3013.135625
A39: Total Revenue | C39: =IF(SUM(C7:C38)=0,"",SUM(C7:C38)) -> 4445341.983 | D39: =IF(SUM(D7:D38)=0,"",SUM(D7:D38)) -> 4785107.356 | E39: 4859148.244 | F39: 4941048.06 | G39: 5044656.296 | H39: 5163798.874 | J39: =IF(SUM(J7:J38)=0,"",SUM(J7:J38)) -> 4445341.983 | K39: =SUM(K7:K38) -> 4663847.326 | L39: =SUM(L7:L38) -> 4615996.037 | M39: =SUM(M7:M38) -> 4574851.442 | N39: =SUM(N7:N38) -> 4552418.075 | O39: =SUM(O7:O38) -> 4541847.151
A42: Public Lighting - O & M | D42: Forecast O & M - Nominal | K42: Forecast O & M - Real 2015 $
D43: =D$2 -> 2016 | E43: 2017 | F43: 2018 | G43: 2019 | H43: 2020 | K43: =K$2 -> 2016 | L43: 2017 | M43: 2018 | N43: 2019 | O43: 2020
A45: Unit cost
A46: ='DNSP Inputs General'!A$41 -> Mercury vapour 80 watt | D46: =SUM('Charges Summary'!D25,'Charges Summary'!D8) -> 38.33166442 | E46: =SUM('Charges Summary'!E25,'Charges Summary'!E8) -> 38.91811222 | F46: =SUM('Charges Summary'!F25,'Charges Summary'!F8) -> 40.46110594 | G46: =SUM('Charges Summary'!G25,'Charges Summary'!G8) -> 42.06428977 | H46: =SUM('Charges Summary'!H25,'Charges Summary'!H8) -> 43.64903001
A47: ='DNSP Inputs General'!A$42 -> Sodium high pressure 150 watt | D47: =SUM('Charges Summary'!D49,'Charges Summary'!D8) -> 80.70916216 | E47: =SUM('Charges Summary'!E49,'Charges Summary'!E8) -> 84.01471649 | F47: =SUM('Charges Summary'!F49,'Charges Summary'!F8) -> 87.45513107 | G47: =SUM('Charges Summary'!G49,'Charges Summary'!G8) -> 90.88836213 | H47: =SUM('Charges Summary'!H49,'Charges Summary'!H8) -> 94.41761586
A48: ='DNSP Inputs General'!A$43 -> Sodium high pressure 250 watt | D48: =SUM('Charges Summary'!D65,'Charges Summary'!D8) -> 81.12130952 | E48: =SUM('Charges Summary'!E65,'Charges Summary'!E8) -> 84.4234783 | F48: =SUM('Charges Summary'!F65,'Charges Summary'!F8) -> 87.9004873 | G48: =SUM('Charges Summary'!G65,'Charges Summary'!G8) -> 91.36785241 | H48: =SUM('Charges Summary'!H65,'Charges Summary'!H8) -> 94.93243888
A50: ='DNSP Inputs General'!A$40 -> Existing Lights
A51: ='DNSP Inputs General'!A$41 -> Mercury vapour 80 watt | D51: =D46*'DNSP Inputs General'!K41 -> 101859.6978 | E51: =E46*'DNSP Inputs General'!L41 -> 82430.07483 | F51: =F46*'DNSP Inputs General'!M41 -> 76781.87715 | G51: =G46*'DNSP Inputs General'!N41 -> 71519.02492 | H51: =H46*'DNSP Inputs General'!O41 -> 66492.04182 | K51: =D51/'Charges Summary'!D$4 -> 99278.45792 | L51: =E51/'Charges Summary'!E$4 -> 78305.2666 | M51: =F51/'Charges Summary'!F$4 -> 71091.33064 | N51: =G51/'Charges Summary'!G$4 -> 64540.47266 | O51: =H51/'Charges Summary'!H$4 -> 58483.43402
A52: ='DNSP Inputs General'!A$42 -> Sodium high pressure 150 watt | D52: =D47*'DNSP Inputs General'!K42 -> 1021997.588 | E52: =E47*'DNSP Inputs General'!L42 -> 1069150.601 | F52: =F47*'DNSP Inputs General'!M42 -> 1118472.473 | G52: =G47*'DNSP Inputs General'!N42 -> 1168166.557 | H52: =H47*'DNSP Inputs General'!O42 -> 1219567.965 | K52: =D52/'Charges Summary'!D$4 -> 996099.0132 | L52: =E52/'Charges Summary'!E$4 -> 1015650.211 | M52: =F52/'Charges Summary'!F$4 -> 1035578.959 | N52: =G52/'Charges Summary'!G$4 -> 1054181.343 | O52: =H52/'Charges Summary'!H$4 -> 1072677.581
A53: ='DNSP Inputs General'!A$43 -> Sodium high pressure 250 watt | D53: =D48*'DNSP Inputs General'!K43 -> 438107.0202 | E53: =E48*'DNSP Inputs General'!L43 -> 464388.3047 | F53: =F48*'DNSP Inputs General'!M43 -> 492472.6177 | G53: =G48*'DNSP Inputs General'!N43 -> 521383.1543 | H53: =H48*'DNSP Inputs General'!O43 -> 551760.9864 | K53: =D53/'Charges Summary'!D$4 -> 427004.893 | L53: =E53/'Charges Summary'!E$4 -> 441150.2729 | M53: =F53/'Charges Summary'!F$4 -> 455973.9225 | N53: =G53/'Charges Summary'!G$4 -> 470508.585 | O53: =H53/'Charges Summary'!H$4 -> 485304.3515
A54: ='DNSP Inputs General'!A$44 -> Fluorescent 20 watt | D54: =IF('DNSP Inputs General'!$B44='DNSP Inputs General'!$A$41,D$46,IF('DNSP Inputs General'!$B44='DNSP Inputs General'!$A$42,D$47,D$48))*'DNSP Inputs General'!$D44*'DNSP Inputs General'!K44 -> 5949.840951 | E54: =IF('DNSP Inputs General'!$B44='DNSP Inputs General'!$A$41,E$46,IF('DNSP Inputs General'!$B44='DNSP Inputs General'!$A$42,E$47,E$48))*'DNSP Inputs General'!$D44*'DNSP Inputs General'!L44 -> 6040.869379 | F54: =IF('DNSP Inputs General'!$B44='DNSP Inputs General'!$A$41,F$46,IF('DNSP Inputs General'!$B44='DNSP Inputs General'!$A$42,F$47,F$48))*'DNSP Inputs General'!$D44*'DNSP Inputs General'!M44 -> 6280.372864 | G54: =IF('DNSP Inputs General'!$B44='DNSP Inputs General'!$A$41,G$46,IF('DNSP Inputs General'!$B44='DNSP Inputs General'!$A$42,G$47,G$48))*'DNSP Inputs General'!$D44*'DNSP Inputs General'!N44 -> 6529.219058 | H54: =IF('DNSP Inputs General'!$B44='DNSP Inputs General'!$A$41,H$46,IF('DNSP Inputs General'!$B44='DNSP Inputs General'!$A$42,H$47,H$48))*'DNSP Inputs General'!$D44*'DNSP Inputs General'!O44 -> 6775.202438 | K54: =D54/'Charges Summary'!D$4 -> 5799.065255 | L54: =E54/'Charges Summary'!E$4 -> 5738.583742 | M54: =F54/'Charges Summary'!F$4 -> 5814.91467 | N54: =G54/'Charges Summary'!G$4 -> 5892.122894 | O54: =H54/'Charges Summary'!H$4 -> 5959.165847
A55: ='DNSP Inputs General'!A$45 -> Fluorescent 40 watt | D55: =IF('DNSP Inputs General'!$B45='DNSP Inputs General'!$A$41,D$46,IF('DNSP Inputs General'!$B45='DNSP Inputs General'!$A$42,D$47,D$48))*'DNSP Inputs General'!$D45*'DNSP Inputs General'!K45 -> 11422.836 | E55: =IF('DNSP Inputs General'!$B45='DNSP Inputs General'!$A$41,E$46,IF('DNSP Inputs General'!$B45='DNSP Inputs General'!$A$42,E$47,E$48))*'DNSP Inputs General'!$D45*'DNSP Inputs General'!L45 -> 11597.59744 | F55: =IF('DNSP Inputs General'!$B45='DNSP Inputs General'!$A$41,F$46,IF('DNSP Inputs General'!$B45='DNSP Inputs General'!$A$42,F$47,F$48))*'DNSP Inputs General'!$D45*'DNSP Inputs General'!M45 -> 12057.40957 | G55: =IF('DNSP Inputs General'!$B45='DNSP Inputs General'!$A$41,G$46,IF('DNSP Inputs General'!$B45='DNSP Inputs General'!$A$42,G$47,G$48))*'DNSP Inputs General'!$D45*'DNSP Inputs General'!N45 -> 12535.15835 | H55: =IF('DNSP Inputs General'!$B45='DNSP Inputs General'!$A$41,H$46,IF('DNSP Inputs General'!$B45='DNSP Inputs General'!$A$42,H$47,H$48))*'DNSP Inputs General'!$D45*'DNSP Inputs General'!O45 -> 13007.41094 | K55: =D55/'Charges Summary'!D$4 -> 11133.36842 | L55: =E55/'Charges Summary'!E$4 -> 11017.25264 | M55: =F55/'Charges Summary'!F$4 -> 11163.79701 | N55: =G55/'Charges Summary'!G$4 -> 11312.02566 | O55: =H55/'Charges Summary'!H$4 -> 11440.73845
A56: ='DNSP Inputs General'!A$46 -> Mercury vapour 50 watt | D56: =IF('DNSP Inputs General'!$B46='DNSP Inputs General'!$A$41,D$46,IF('DNSP Inputs General'!$B46='DNSP Inputs General'!$A$42,D$47,D$48))*'DNSP Inputs General'!$D46*'DNSP Inputs General'!K46 -> 7683.404668 | E56: =IF('DNSP Inputs General'!$B46='DNSP Inputs General'!$A$41,E$46,IF('DNSP Inputs General'!$B46='DNSP Inputs General'!$A$42,E$47,E$48))*'DNSP Inputs General'!$D46*'DNSP Inputs General'!L46 -> 7292.535196 | F56: =IF('DNSP Inputs General'!$B46='DNSP Inputs General'!$A$41,F$46,IF('DNSP Inputs General'!$B46='DNSP Inputs General'!$A$42,F$47,F$48))*'DNSP Inputs General'!$D46*'DNSP Inputs General'!M46 -> 7087.53563 | G56: =IF('DNSP Inputs General'!$B46='DNSP Inputs General'!$A$41,G$46,IF('DNSP Inputs General'!$B46='DNSP Inputs General'!$A$42,G$47,G$48))*'DNSP Inputs General'!$D46*'DNSP Inputs General'!N46 -> 6888.137445 | H56: =IF('DNSP Inputs General'!$B46='DNSP Inputs General'!$A$41,H$46,IF('DNSP Inputs General'!$B46='DNSP Inputs General'!$A$42,H$47,H$48))*'DNSP Inputs General'!$D46*'DNSP Inputs General'!O46 -> 6681.801643 | K56: =D56/'Charges Summary'!D$4 -> 7488.698507 | L56: =E56/'Charges Summary'!E$4 -> 6927.616091 | M56: =F56/'Charges Summary'!F$4 -> 6562.256063 | N56: =G56/'Charges Summary'!G$4 -> 6216.019401 | O56: =H56/'Charges Summary'!H$4 -> 5877.014674
A57: ='DNSP Inputs General'!A$47 -> Mercury vapour 125 watt | D57: =IF('DNSP Inputs General'!$B47='DNSP Inputs General'!$A$41,D$46,IF('DNSP Inputs General'!$B47='DNSP Inputs General'!$A$42,D$47,D$48))*'DNSP Inputs General'!$D47*'DNSP Inputs General'!K47 -> 73218.28277 | E57: =IF('DNSP Inputs General'!$B47='DNSP Inputs General'!$A$41,E$46,IF('DNSP Inputs General'!$B47='DNSP Inputs General'!$A$42,E$47,E$48))*'DNSP Inputs General'!$D47*'DNSP Inputs General'!L47 -> 70211.52928 | F57: =IF('DNSP Inputs General'!$B47='DNSP Inputs General'!$A$41,F$46,IF('DNSP Inputs General'!$B47='DNSP Inputs General'!$A$42,F$47,F$48))*'DNSP Inputs General'!$D47*'DNSP Inputs General'!M47 -> 68942.84812 | G57: =IF('DNSP Inputs General'!$B47='DNSP Inputs General'!$A$41,G$46,IF('DNSP Inputs General'!$B47='DNSP Inputs General'!$A$42,G$47,G$48))*'DNSP Inputs General'!$D47*'DNSP Inputs General'!N47 -> 67695.50569 | H57: =IF('DNSP Inputs General'!$B47='DNSP Inputs General'!$A$41,H$46,IF('DNSP Inputs General'!$B47='DNSP Inputs General'!$A$42,H$47,H$48))*'DNSP Inputs General'!$D47*'DNSP Inputs General'!O47 -> 66346.14267 | K57: =D57/'Charges Summary'!D$4 -> 71362.84871 | L57: =E57/'Charges Summary'!E$4 -> 66698.13815 | M57: =F57/'Charges Summary'!F$4 -> 63833.27672 | N57: =G57/'Charges Summary'!G$4 -> 61090.03778 | O57: =H57/'Charges Summary'!H$4 -> 58355.10763
A58: ='DNSP Inputs General'!A$48 -> Mercury vapour 250 watt | D58: =IF('DNSP Inputs General'!$B48='DNSP Inputs General'!$A$41,D$46,IF('DNSP Inputs General'!$B48='DNSP Inputs General'!$A$42,D$47,D$48))*'DNSP Inputs General'!$D48*'DNSP Inputs General'!K48 -> 34865.7856 | E58: =IF('DNSP Inputs General'!$B48='DNSP Inputs General'!$A$41,E$46,IF('DNSP Inputs General'!$B48='DNSP Inputs General'!$A$42,E$47,E$48))*'DNSP Inputs General'!$D48*'DNSP Inputs General'!L48 -> 33035.17751 | F58: =IF('DNSP Inputs General'!$B48='DNSP Inputs General'!$A$41,F$46,IF('DNSP Inputs General'!$B48='DNSP Inputs General'!$A$42,F$47,F$48))*'DNSP Inputs General'!$D48*'DNSP Inputs General'!M48 -> 31315.08443 | G58: =IF('DNSP Inputs General'!$B48='DNSP Inputs General'!$A$41,G$46,IF('DNSP Inputs General'!$B48='DNSP Inputs General'!$A$42,G$47,G$48))*'DNSP Inputs General'!$D48*'DNSP Inputs General'!N48 -> 29634.97888 | H58: =IF('DNSP Inputs General'!$B48='DNSP Inputs General'!$A$41,H$46,IF('DNSP Inputs General'!$B48='DNSP Inputs General'!$A$42,H$47,H$48))*'DNSP Inputs General'!$D48*'DNSP Inputs General'!O48 -> 28033.33354 | K58: =D58/'Charges Summary'!D$4 -> 33982.24717 | L58: =E58/'Charges Summary'!E$4 -> 31382.09431 | M58: =F58/'Charges Summary'!F$4 -> 28994.22499 | N58: =G58/'Charges Summary'!G$4 -> 26743.31126 | O58: =H58/'Charges Summary'!H$4 -> 24656.86972
A59: ='DNSP Inputs General'!A$49 -> Mercury vapour 400 watt | D59: =IF('DNSP Inputs General'!$B49='DNSP Inputs General'!$A$41,D$46,IF('DNSP Inputs General'!$B49='DNSP Inputs General'!$A$42,D$47,D$48))*'DNSP Inputs General'!$D49*'DNSP Inputs General'!K49 -> 17822.85929 | E59: =IF('DNSP Inputs General'!$B49='DNSP Inputs General'!$A$41,E$46,IF('DNSP Inputs General'!$B49='DNSP Inputs General'!$A$42,E$47,E$48))*'DNSP Inputs General'!$D49*'DNSP Inputs General'!L49 -> 17122.65615 | F59: =IF('DNSP Inputs General'!$B49='DNSP Inputs General'!$A$41,F$46,IF('DNSP Inputs General'!$B49='DNSP Inputs General'!$A$42,F$47,F$48))*'DNSP Inputs General'!$D49*'DNSP Inputs General'!M49 -> 16457.52962 | G59: =IF('DNSP Inputs General'!$B49='DNSP Inputs General'!$A$41,G$46,IF('DNSP Inputs General'!$B49='DNSP Inputs General'!$A$42,G$47,G$48))*'DNSP Inputs General'!$D49*'DNSP Inputs General'!N49 -> 15791.82229 | H59: =IF('DNSP Inputs General'!$B49='DNSP Inputs General'!$A$41,H$46,IF('DNSP Inputs General'!$B49='DNSP Inputs General'!$A$42,H$47,H$48))*'DNSP Inputs General'!$D49*'DNSP Inputs General'!O49 -> 15146.73189 | K59: =D59/'Charges Summary'!D$4 -> 17371.20788 | L59: =E59/'Charges Summary'!E$4 -> 16265.83693 | M59: =F59/'Charges Summary'!F$4 -> 15237.81032 | N59: =G59/'Charges Summary'!G$4 -> 14250.91682 | O59: =H59/'Charges Summary'!H$4 -> 13322.38973
A60: ='DNSP Inputs General'!A$50 -> Mercury vapour 700 watt | D60: =IF('DNSP Inputs General'!$B50='DNSP Inputs General'!$A$41,D$46,IF('DNSP Inputs General'!$B50='DNSP Inputs General'!$A$42,D$47,D$48))*'DNSP Inputs General'!$D50*'DNSP Inputs General'!K50 -> 0 | E60: =IF('DNSP Inputs General'!$B50='DNSP Inputs General'!$A$41,E$46,IF('DNSP Inputs General'!$B50='DNSP Inputs General'!$A$42,E$47,E$48))*'DNSP Inputs General'!$D50*'DNSP Inputs General'!L50 -> 0 | F60: =IF('DNSP Inputs General'!$B50='DNSP Inputs General'!$A$41,F$46,IF('DNSP Inputs General'!$B50='DNSP Inputs General'!$A$42,F$47,F$48))*'DNSP Inputs General'!$D50*'DNSP Inputs General'!M50 -> 0 | G60: =IF('DNSP Inputs General'!$B50='DNSP Inputs General'!$A$41,G$46,IF('DNSP Inputs General'!$B50='DNSP Inputs General'!$A$42,G$47,G$48))*'DNSP Inputs General'!$D50*'DNSP Inputs General'!N50 -> 0 | H60: =IF('DNSP Inputs General'!$B50='DNSP Inputs General'!$A$41,H$46,IF('DNSP Inputs General'!$B50='DNSP Inputs General'!$A$42,H$47,H$48))*'DNSP Inputs General'!$D50*'DNSP Inputs General'!O50 -> 0 | K60: =D60/'Charges Summary'!D$4 -> 0 | L60: =E60/'Charges Summary'!E$4 -> 0 | M60: =F60/'Charges Summary'!F$4 -> 0 | N60: =G60/'Charges Summary'!G$4 -> 0 | O60: =H60/'Charges Summary'!H$4 -> 0
A61: ='DNSP Inputs General'!A$51 -> Sodium high pressure 70 watt | D61: =IF('DNSP Inputs General'!$B51='DNSP Inputs General'!$A$41,D$46,IF('DNSP Inputs General'!$B51='DNSP Inputs General'!$A$42,D$47,D$48))*'DNSP Inputs General'!$D51*'DNSP Inputs General'!K51 -> 30290.21878 | E61: =IF('DNSP Inputs General'!$B51='DNSP Inputs General'!$A$41,E$46,IF('DNSP Inputs General'!$B51='DNSP Inputs General'!$A$42,E$47,E$48))*'DNSP Inputs General'!$D51*'DNSP Inputs General'!L51 -> 30325.89109 | F61: =IF('DNSP Inputs General'!$B51='DNSP Inputs General'!$A$41,F$46,IF('DNSP Inputs General'!$B51='DNSP Inputs General'!$A$42,F$47,F$48))*'DNSP Inputs General'!$D51*'DNSP Inputs General'!M51 -> 31089.7068 | G61: =IF('DNSP Inputs General'!$B51='DNSP Inputs General'!$A$41,G$46,IF('DNSP Inputs General'!$B51='DNSP Inputs General'!$A$42,G$47,G$48))*'DNSP Inputs General'!$D51*'DNSP Inputs General'!N51 -> 31872.01414 | H61: =IF('DNSP Inputs General'!$B51='DNSP Inputs General'!$A$41,H$46,IF('DNSP Inputs General'!$B51='DNSP Inputs General'!$A$42,H$47,H$48))*'DNSP Inputs General'!$D51*'DNSP Inputs General'!O51 -> 32612.76478 | K61: =D61/'Charges Summary'!D$4 -> 29522.63039 | L61: =E61/'Charges Summary'!E$4 -> 28808.38082 | M61: =F61/'Charges Summary'!F$4 -> 28785.5508 | N61: =G61/'Charges Summary'!G$4 -> 28762.0652 | O61: =H61/'Charges Summary'!H$4 -> 28684.73316
A62: ='DNSP Inputs General'!A$52 -> Sodium high pressure 100 watt | D62: =IF('DNSP Inputs General'!$B52='DNSP Inputs General'!$A$41,D$46,IF('DNSP Inputs General'!$B52='DNSP Inputs General'!$A$42,D$47,D$48))*'DNSP Inputs General'!$D52*'DNSP Inputs General'!K52 -> 28809.96926 | E62: =IF('DNSP Inputs General'!$B52='DNSP Inputs General'!$A$41,E$46,IF('DNSP Inputs General'!$B52='DNSP Inputs General'!$A$42,E$47,E$48))*'DNSP Inputs General'!$D52*'DNSP Inputs General'!L52 -> 28912.68876 | F62: =IF('DNSP Inputs General'!$B52='DNSP Inputs General'!$A$41,F$46,IF('DNSP Inputs General'!$B52='DNSP Inputs General'!$A$42,F$47,F$48))*'DNSP Inputs General'!$D52*'DNSP Inputs General'!M52 -> 29015.6009 | G62: =IF('DNSP Inputs General'!$B52='DNSP Inputs General'!$A$41,G$46,IF('DNSP Inputs General'!$B52='DNSP Inputs General'!$A$42,G$47,G$48))*'DNSP Inputs General'!$D52*'DNSP Inputs General'!N52 -> 29071.51806 | H62: =IF('DNSP Inputs General'!$B52='DNSP Inputs General'!$A$41,H$46,IF('DNSP Inputs General'!$B52='DNSP Inputs General'!$A$42,H$47,H$48))*'DNSP Inputs General'!$D52*'DNSP Inputs General'!O52 -> 29115.59181 | K62: =D62/'Charges Summary'!D$4 -> 28079.89206 | L62: =E62/'Charges Summary'!E$4 -> 27465.89526 | M62: =F62/'Charges Summary'!F$4 -> 26865.16342 | N62: =G62/'Charges Summary'!G$4 -> 26234.83078 | O62: =H62/'Charges Summary'!H$4 -> 25608.77581
A63: ='DNSP Inputs General'!A$53 -> Sodium high pressure 220 watt | D63: =IF('DNSP Inputs General'!$B53='DNSP Inputs General'!$A$41,D$46,IF('DNSP Inputs General'!$B53='DNSP Inputs General'!$A$42,D$47,D$48))*'DNSP Inputs General'!$D53*'DNSP Inputs General'!K53 -> 147476.1973 | E63: =IF('DNSP Inputs General'!$B53='DNSP Inputs General'!$A$41,E$46,IF('DNSP Inputs General'!$B53='DNSP Inputs General'!$A$42,E$47,E$48))*'DNSP Inputs General'!$D53*'DNSP Inputs General'!L53 -> 148514.2764 | F63: =IF('DNSP Inputs General'!$B53='DNSP Inputs General'!$A$41,F$46,IF('DNSP Inputs General'!$B53='DNSP Inputs General'!$A$42,F$47,F$48))*'DNSP Inputs General'!$D53*'DNSP Inputs General'!M53 -> 149628.468 | G63: =IF('DNSP Inputs General'!$B53='DNSP Inputs General'!$A$41,G$46,IF('DNSP Inputs General'!$B53='DNSP Inputs General'!$A$42,G$47,G$48))*'DNSP Inputs General'!$D53*'DNSP Inputs General'!N53 -> 150499.2542 | H63: =IF('DNSP Inputs General'!$B53='DNSP Inputs General'!$A$41,H$46,IF('DNSP Inputs General'!$B53='DNSP Inputs General'!$A$42,H$47,H$48))*'DNSP Inputs General'!$D53*'DNSP Inputs General'!O53 -> 151312.0633 | K63: =D63/'Charges Summary'!D$4 -> 143738.9837 | L63: =E63/'Charges Summary'!E$4 -> 141082.6089 | M63: =F63/'Charges Summary'!F$4 -> 138539.0314 | N63: =G63/'Charges Summary'!G$4 -> 135814.114 | O63: =H63/'Charges Summary'!H$4 -> 133087.3414
A64: ='DNSP Inputs General'!A$54 -> Sodium high pressure 360 watt | D64: =IF('DNSP Inputs General'!$B54='DNSP Inputs General'!$A$41,D$46,IF('DNSP Inputs General'!$B54='DNSP Inputs General'!$A$42,D$47,D$48))*'DNSP Inputs General'!$D54*'DNSP Inputs General'!K54 -> 19067.98354 | E64: =IF('DNSP Inputs General'!$B54='DNSP Inputs General'!$A$41,E$46,IF('DNSP Inputs General'!$B54='DNSP Inputs General'!$A$42,E$47,E$48))*'DNSP Inputs General'!$D54*'DNSP Inputs General'!L54 -> 19711.27494 | F64: =IF('DNSP Inputs General'!$B54='DNSP Inputs General'!$A$41,F$46,IF('DNSP Inputs General'!$B54='DNSP Inputs General'!$A$42,F$47,F$48))*'DNSP Inputs General'!$D54*'DNSP Inputs General'!M54 -> 20385.64307 | G64: =IF('DNSP Inputs General'!$B54='DNSP Inputs General'!$A$41,G$46,IF('DNSP Inputs General'!$B54='DNSP Inputs General'!$A$42,G$47,G$48))*'DNSP Inputs General'!$D54*'DNSP Inputs General'!N54 -> 21047.87274 | H64: =IF('DNSP Inputs General'!$B54='DNSP Inputs General'!$A$41,H$46,IF('DNSP Inputs General'!$B54='DNSP Inputs General'!$A$42,H$47,H$48))*'DNSP Inputs General'!$D54*'DNSP Inputs General'!O54 -> 21722.5642 | K64: =D64/'Charges Summary'!D$4 -> 18584.77927 | L64: =E64/'Charges Summary'!E$4 -> 18724.92101 | M64: =F64/'Charges Summary'!F$4 -> 18874.79892 | N64: =G64/'Charges Summary'!G$4 -> 18994.10201 | O64: =H64/'Charges Summary'!H$4 -> 19106.1985
A65: ='DNSP Inputs General'!A$55 -> Sodium high pressure 400 watt | D65: =IF('DNSP Inputs General'!$B55='DNSP Inputs General'!$A$41,D$46,IF('DNSP Inputs General'!$B55='DNSP Inputs General'!$A$42,D$47,D$48))*'DNSP Inputs General'!$D55*'DNSP Inputs General'!K55 -> 36253.52538 | E65: =IF('DNSP Inputs General'!$B55='DNSP Inputs General'!$A$41,E$46,IF('DNSP Inputs General'!$B55='DNSP Inputs General'!$A$42,E$47,E$48))*'DNSP Inputs General'!$D55*'DNSP Inputs General'!L55 -> 38417.42435 | F65: =IF('DNSP Inputs General'!$B55='DNSP Inputs General'!$A$41,F$46,IF('DNSP Inputs General'!$B55='DNSP Inputs General'!$A$42,F$47,F$48))*'DNSP Inputs General'!$D55*'DNSP Inputs General'!M55 -> 40729.21103 | G65: =IF('DNSP Inputs General'!$B55='DNSP Inputs General'!$A$41,G$46,IF('DNSP Inputs General'!$B55='DNSP Inputs General'!$A$42,G$47,G$48))*'DNSP Inputs General'!$D55*'DNSP Inputs General'!N55 -> 43107.99691 | H65: =IF('DNSP Inputs General'!$B55='DNSP Inputs General'!$A$41,H$46,IF('DNSP Inputs General'!$B55='DNSP Inputs General'!$A$42,H$47,H$48))*'DNSP Inputs General'!$D55*'DNSP Inputs General'!O55 -> 45606.71332 | K65: =D65/'Charges Summary'!D$4 -> 35334.82006 | L65: =E65/'Charges Summary'!E$4 -> 36495.01305 | M65: =F65/'Charges Summary'!F$4 -> 37710.64105 | N65: =G65/'Charges Summary'!G$4 -> 38901.68384 | O65: =H65/'Charges Summary'!H$4 -> 40113.63069
A66: ='DNSP Inputs General'!A$56 -> Sodium high pressure 1000 watt | D66: =IF('DNSP Inputs General'!$B56='DNSP Inputs General'!$A$41,D$46,IF('DNSP Inputs General'!$B56='DNSP Inputs General'!$A$42,D$47,D$48))*'DNSP Inputs General'!$D56*'DNSP Inputs General'!K56 -> 0 | E66: =IF('DNSP Inputs General'!$B56='DNSP Inputs General'!$A$41,E$46,IF('DNSP Inputs General'!$B56='DNSP Inputs General'!$A$42,E$47,E$48))*'DNSP Inputs General'!$D56*'DNSP Inputs General'!L56 -> 0 | F66: =IF('DNSP Inputs General'!$B56='DNSP Inputs General'!$A$41,F$46,IF('DNSP Inputs General'!$B56='DNSP Inputs General'!$A$42,F$47,F$48))*'DNSP Inputs General'!$D56*'DNSP Inputs General'!M56 -> 0 | G66: =IF('DNSP Inputs General'!$B56='DNSP Inputs General'!$A$41,G$46,IF('DNSP Inputs General'!$B56='DNSP Inputs General'!$A$42,G$47,G$48))*'DNSP Inputs General'!$D56*'DNSP Inputs General'!N56 -> 0 | H66: =IF('DNSP Inputs General'!$B56='DNSP Inputs General'!$A$41,H$46,IF('DNSP Inputs General'!$B56='DNSP Inputs General'!$A$42,H$47,H$48))*'DNSP Inputs General'!$D56*'DNSP Inputs General'!O56 -> 0 | K66: =D66/'Charges Summary'!D$4 -> 0 | L66: =E66/'Charges Summary'!E$4 -> 0 | M66: =F66/'Charges Summary'!F$4 -> 0 | N66: =G66/'Charges Summary'!G$4 -> 0 | O66: =H66/'Charges Summary'!H$4 -> 0
A67: ='DNSP Inputs General'!$A57 -> Metal halide 70 watt | D67: =IF('DNSP Inputs General'!$B57='DNSP Inputs General'!$A$41,D$46,IF('DNSP Inputs General'!$B57='DNSP Inputs General'!$A$42,D$47,D$48))*'DNSP Inputs General'!$D57*'DNSP Inputs General'!K57 -> 96303.79071 | E67: =IF('DNSP Inputs General'!$B57='DNSP Inputs General'!$A$41,E$46,IF('DNSP Inputs General'!$B57='DNSP Inputs General'!$A$42,E$47,E$48))*'DNSP Inputs General'!$D57*'DNSP Inputs General'!L57 -> 101822.804 | F67: =IF('DNSP Inputs General'!$B57='DNSP Inputs General'!$A$41,F$46,IF('DNSP Inputs General'!$B57='DNSP Inputs General'!$A$42,F$47,F$48))*'DNSP Inputs General'!$D57*'DNSP Inputs General'!M57 -> 110239.851 | G67: =IF('DNSP Inputs General'!$B57='DNSP Inputs General'!$A$41,G$46,IF('DNSP Inputs General'!$B57='DNSP Inputs General'!$A$42,G$47,G$48))*'DNSP Inputs General'!$D57*'DNSP Inputs General'!N57 -> 119349.8865 | H67: =IF('DNSP Inputs General'!$B57='DNSP Inputs General'!$A$41,H$46,IF('DNSP Inputs General'!$B57='DNSP Inputs General'!$A$42,H$47,H$48))*'DNSP Inputs General'!$D57*'DNSP Inputs General'!O57 -> 128970.5728 | K67: =D67/'Charges Summary'!D$4 -> 93863.34377 | L67: =E67/'Charges Summary'!E$4 -> 96727.58191 | M67: =F67/'Charges Summary'!F$4 -> 102069.6288 | N67: =G67/'Charges Summary'!G$4 -> 107704.1822 | O67: =H67/'Charges Summary'!H$4 -> 113436.763
A68: ='DNSP Inputs General'!$A58 -> Metal halide 100 watt | D68: =IF('DNSP Inputs General'!$B58='DNSP Inputs General'!$A$41,D$46,IF('DNSP Inputs General'!$B58='DNSP Inputs General'!$A$42,D$47,D$48))*'DNSP Inputs General'!$D58*'DNSP Inputs General'!K58 -> 18399.52507 | E68: =IF('DNSP Inputs General'!$B58='DNSP Inputs General'!$A$41,E$46,IF('DNSP Inputs General'!$B58='DNSP Inputs General'!$A$42,E$47,E$48))*'DNSP Inputs General'!$D58*'DNSP Inputs General'!L58 -> 17714.28426 | F68: =IF('DNSP Inputs General'!$B58='DNSP Inputs General'!$A$41,F$46,IF('DNSP Inputs General'!$B58='DNSP Inputs General'!$A$42,F$47,F$48))*'DNSP Inputs General'!$D58*'DNSP Inputs General'!M58 -> 17054.46137 | G68: =IF('DNSP Inputs General'!$B58='DNSP Inputs General'!$A$41,G$46,IF('DNSP Inputs General'!$B58='DNSP Inputs General'!$A$42,G$47,G$48))*'DNSP Inputs General'!$D58*'DNSP Inputs General'!N58 -> 16392.51007 | H68: =IF('DNSP Inputs General'!$B58='DNSP Inputs General'!$A$41,H$46,IF('DNSP Inputs General'!$B58='DNSP Inputs General'!$A$42,H$47,H$48))*'DNSP Inputs General'!$D58*'DNSP Inputs General'!O58 -> 15749.78686 | K68: =D68/'Charges Summary'!D$4 -> 17933.2603 | L68: =E68/'Charges Summary'!E$4 -> 16827.85991 | M68: =F68/'Charges Summary'!F$4 -> 15790.50158 | N68: =G68/'Charges Summary'!G$4 -> 14792.99178 | O68: =H68/'Charges Summary'!H$4 -> 13852.80998
A69: ='DNSP Inputs General'!$A59 -> Metal halide 150 watt | D69: =IF('DNSP Inputs General'!$B59='DNSP Inputs General'!$A$41,D$46,IF('DNSP Inputs General'!$B59='DNSP Inputs General'!$A$42,D$47,D$48))*'DNSP Inputs General'!$D59*'DNSP Inputs General'!K59 -> 40056.09534 | E69: =IF('DNSP Inputs General'!$B59='DNSP Inputs General'!$A$41,E$46,IF('DNSP Inputs General'!$B59='DNSP Inputs General'!$A$42,E$47,E$48))*'DNSP Inputs General'!$D59*'DNSP Inputs General'!L59 -> 39931.53285 | F69: =IF('DNSP Inputs General'!$B59='DNSP Inputs General'!$A$41,F$46,IF('DNSP Inputs General'!$B59='DNSP Inputs General'!$A$42,F$47,F$48))*'DNSP Inputs General'!$D59*'DNSP Inputs General'!M59 -> 39807.11954 | G69: =IF('DNSP Inputs General'!$B59='DNSP Inputs General'!$A$41,G$46,IF('DNSP Inputs General'!$B59='DNSP Inputs General'!$A$42,G$47,G$48))*'DNSP Inputs General'!$D59*'DNSP Inputs General'!N59 -> 39618.55008 | H69: =IF('DNSP Inputs General'!$B59='DNSP Inputs General'!$A$41,H$46,IF('DNSP Inputs General'!$B59='DNSP Inputs General'!$A$42,H$47,H$48))*'DNSP Inputs General'!$D59*'DNSP Inputs General'!O59 -> 39414.69522 | K69: =D69/'Charges Summary'!D$4 -> 39041.02859 | L69: =E69/'Charges Summary'!E$4 -> 37933.35542 | M69: =F69/'Charges Summary'!F$4 -> 36856.88866 | N69: =G69/'Charges Summary'!G$4 -> 35752.72386 | O69: =H69/'Charges Summary'!H$4 -> 34667.40777
A70: ='DNSP Inputs General'!$A60 -> Metal halide 250 watt | D70: =IF('DNSP Inputs General'!$B60='DNSP Inputs General'!$A$41,D$46,IF('DNSP Inputs General'!$B60='DNSP Inputs General'!$A$42,D$47,D$48))*'DNSP Inputs General'!$D60*'DNSP Inputs General'!K60 -> 75244.64653 | E70: =IF('DNSP Inputs General'!$B60='DNSP Inputs General'!$A$41,E$46,IF('DNSP Inputs General'!$B60='DNSP Inputs General'!$A$42,E$47,E$48))*'DNSP Inputs General'!$D60*'DNSP Inputs General'!L60 -> 89275.77085 | F70: =IF('DNSP Inputs General'!$B60='DNSP Inputs General'!$A$41,F$46,IF('DNSP Inputs General'!$B60='DNSP Inputs General'!$A$42,F$47,F$48))*'DNSP Inputs General'!$D60*'DNSP Inputs General'!M60 -> 105972.0569 | G70: =IF('DNSP Inputs General'!$B60='DNSP Inputs General'!$A$41,G$46,IF('DNSP Inputs General'!$B60='DNSP Inputs General'!$A$42,G$47,G$48))*'DNSP Inputs General'!$D60*'DNSP Inputs General'!N60 -> 125580.7903 | H70: =IF('DNSP Inputs General'!$B60='DNSP Inputs General'!$A$41,H$46,IF('DNSP Inputs General'!$B60='DNSP Inputs General'!$A$42,H$47,H$48))*'DNSP Inputs General'!$D60*'DNSP Inputs General'!O60 -> 148755.8819 | K70: =D70/'Charges Summary'!D$4 -> 73337.86212 | L70: =E70/'Charges Summary'!E$4 -> 84808.40339 | M70: =F70/'Charges Summary'!F$4 -> 98118.1343 | N70: =G70/'Charges Summary'!G$4 -> 113327.0983 | O70: =H70/'Charges Summary'!H$4 -> 130839.0383
A71: ='DNSP Inputs General'!$A61 -> Metal halide 400 watt | D71: =IF('DNSP Inputs General'!$B61='DNSP Inputs General'!$A$41,D$46,IF('DNSP Inputs General'!$B61='DNSP Inputs General'!$A$42,D$47,D$48))*'DNSP Inputs General'!$D61*'DNSP Inputs General'!K61 -> 128236.3275 | E71: =IF('DNSP Inputs General'!$B61='DNSP Inputs General'!$A$41,E$46,IF('DNSP Inputs General'!$B61='DNSP Inputs General'!$A$42,E$47,E$48))*'DNSP Inputs General'!$D61*'DNSP Inputs General'!L61 -> 135235.553 | F71: =IF('DNSP Inputs General'!$B61='DNSP Inputs General'!$A$41,F$46,IF('DNSP Inputs General'!$B61='DNSP Inputs General'!$A$42,F$47,F$48))*'DNSP Inputs General'!$D61*'DNSP Inputs General'!M61 -> 142682.4124 | G71: =IF('DNSP Inputs General'!$B61='DNSP Inputs General'!$A$41,G$46,IF('DNSP Inputs General'!$B61='DNSP Inputs General'!$A$42,G$47,G$48))*'DNSP Inputs General'!$D61*'DNSP Inputs General'!N61 -> 150287.9286 | H71: =IF('DNSP Inputs General'!$B61='DNSP Inputs General'!$A$41,H$46,IF('DNSP Inputs General'!$B61='DNSP Inputs General'!$A$42,H$47,H$48))*'DNSP Inputs General'!$D61*'DNSP Inputs General'!O61 -> 158232.9193 | K71: =D71/'Charges Summary'!D$4 -> 124986.674 | L71: =E71/'Charges Summary'!E$4 -> 128468.354 | M71: =F71/'Charges Summary'!F$4 -> 132107.7699 | N71: =G71/'Charges Summary'!G$4 -> 135623.4087 | O71: =H71/'Charges Summary'!H$4 -> 139174.6177
A72: ='DNSP Inputs General'!$A62 -> Metal halide 1000 watt | D72: =IF('DNSP Inputs General'!$B62='DNSP Inputs General'!$A$41,D$46,IF('DNSP Inputs General'!$B62='DNSP Inputs General'!$A$42,D$47,D$48))*'DNSP Inputs General'!$D62*'DNSP Inputs General'!K62 -> 290.4142881 | E72: =IF('DNSP Inputs General'!$B62='DNSP Inputs General'!$A$41,E$46,IF('DNSP Inputs General'!$B62='DNSP Inputs General'!$A$42,E$47,E$48))*'DNSP Inputs General'!$D62*'DNSP Inputs General'!L62 -> 0 | F72: =IF('DNSP Inputs General'!$B62='DNSP Inputs General'!$A$41,F$46,IF('DNSP Inputs General'!$B62='DNSP Inputs General'!$A$42,F$47,F$48))*'DNSP Inputs General'!$D62*'DNSP Inputs General'!M62 -> 0 | G72: =IF('DNSP Inputs General'!$B62='DNSP Inputs General'!$A$41,G$46,IF('DNSP Inputs General'!$B62='DNSP Inputs General'!$A$42,G$47,G$48))*'DNSP Inputs General'!$D62*'DNSP Inputs General'!N62 -> 0 | H72: =IF('DNSP Inputs General'!$B62='DNSP Inputs General'!$A$41,H$46,IF('DNSP Inputs General'!$B62='DNSP Inputs General'!$A$42,H$47,H$48))*'DNSP Inputs General'!$D62*'DNSP Inputs General'!O62 -> 0 | K72: =D72/'Charges Summary'!D$4 -> 283.0548617 | L72: =E72/'Charges Summary'!E$4 -> 0 | M72: =F72/'Charges Summary'!F$4 -> 0 | N72: =G72/'Charges Summary'!G$4 -> 0 | O72: =H72/'Charges Summary'!H$4 -> 0
A75: ='DNSP Inputs General'!A$67 -> Energy Efficient Lights
A76: ='DNSP Inputs General'!$A68 -> T5 2X14W | D76: =SUM('Charges Summary'!D83,'Charges Summary'!D8)*'DNSP Inputs General'!$D68*'DNSP Inputs General'!K68 -> 475014.018 | E76: =SUM('Charges Summary'!E83,'Charges Summary'!E8)*'DNSP Inputs General'!$D68*'DNSP Inputs General'!L68 -> 485219.283 | F76: =SUM('Charges Summary'!F83,'Charges Summary'!F8)*'DNSP Inputs General'!$D68*'DNSP Inputs General'!M68 -> 469506.2148 | G76: =SUM('Charges Summary'!G83,'Charges Summary'!G8)*'DNSP Inputs General'!$D68*'DNSP Inputs General'!N68 -> 454028.1578 | H76: =SUM('Charges Summary'!H83,'Charges Summary'!H8)*'DNSP Inputs General'!$D68*'DNSP Inputs General'!O68 -> 438261.3785 | K76: =D76/'Charges Summary'!D$4 -> 462976.6257 | L76: =E76/'Charges Summary'!E$4 -> 460938.8672 | M76: =F76/'Charges Summary'!F$4 -> 434709.6319 | N76: =G76/'Charges Summary'!G$4 -> 409725.8308 | O76: =H76/'Charges Summary'!H$4 -> 385475.1592
A77: ='DNSP Inputs General'!$A69 -> T5 2X24W | D77: =SUM('Charges Summary'!D83,'Charges Summary'!D8)*'DNSP Inputs General'!$D69*'DNSP Inputs General'!K69 -> 79279.57446 | E77: =SUM('Charges Summary'!E83,'Charges Summary'!E8)*'DNSP Inputs General'!$D69*'DNSP Inputs General'!L69 -> 80982.8275 | F77: =SUM('Charges Summary'!F83,'Charges Summary'!F8)*'DNSP Inputs General'!$D69*'DNSP Inputs General'!M69 -> 78360.32519 | G77: =SUM('Charges Summary'!G83,'Charges Summary'!G8)*'DNSP Inputs General'!$D69*'DNSP Inputs General'!N69 -> 75777.04612 | H77: =SUM('Charges Summary'!H83,'Charges Summary'!H8)*'DNSP Inputs General'!$D69*'DNSP Inputs General'!O69 -> 73145.57944 | K77: =D77/'Charges Summary'!D$4 -> 77270.54041 | L77: =E77/'Charges Summary'!E$4 -> 76930.43966 | M77: =F77/'Charges Summary'!F$4 -> 72552.79493 | N77: =G77/'Charges Summary'!G$4 -> 68383.01247 | O77: =H77/'Charges Summary'!H$4 -> 64335.58892
A78: ='DNSP Inputs General'!$A70 -> CF32 | D78: =SUM('Charges Summary'!D83,'Charges Summary'!D8)*'DNSP Inputs General'!$D70*'DNSP Inputs General'!K70 -> 20056.18951 | E78: =SUM('Charges Summary'!E83,'Charges Summary'!E8)*'DNSP Inputs General'!$D70*'DNSP Inputs General'!L70 -> 20487.07938 | F78: =SUM('Charges Summary'!F83,'Charges Summary'!F8)*'DNSP Inputs General'!$D70*'DNSP Inputs General'!M70 -> 19823.63733 | G78: =SUM('Charges Summary'!G83,'Charges Summary'!G8)*'DNSP Inputs General'!$D70*'DNSP Inputs General'!N70 -> 19170.11799 | H78: =SUM('Charges Summary'!H83,'Charges Summary'!H8)*'DNSP Inputs General'!$D70*'DNSP Inputs General'!O70 -> 18504.40814 | K78: =D78/'Charges Summary'!D$4 -> 19547.94299 | L78: =E78/'Charges Summary'!E$4 -> 19461.90412 | M78: =F78/'Charges Summary'!F$4 -> 18354.44519 | N78: =G78/'Charges Summary'!G$4 -> 17299.57138 | O78: =H78/'Charges Summary'!H$4 -> 16275.65198
A79: ='DNSP Inputs General'!$A71 -> CF42 | D79: =SUM('Charges Summary'!D83,'Charges Summary'!D8)*'DNSP Inputs General'!$D71*'DNSP Inputs General'!K71 -> 15602.92374 | E79: =SUM('Charges Summary'!E83,'Charges Summary'!E8)*'DNSP Inputs General'!$D71*'DNSP Inputs General'!L71 -> 15938.13906 | F79: =SUM('Charges Summary'!F83,'Charges Summary'!F8)*'DNSP Inputs General'!$D71*'DNSP Inputs General'!M71 -> 15422.00733 | G79: =SUM('Charges Summary'!G83,'Charges Summary'!G8)*'DNSP Inputs General'!$D71*'DNSP Inputs General'!N71 -> 14913.59508 | H79: =SUM('Charges Summary'!H83,'Charges Summary'!H8)*'DNSP Inputs General'!$D71*'DNSP Inputs General'!O71 -> 14395.69909 | K79: =D79/'Charges Summary'!D$4 -> 15207.52801 | L79: =E79/'Charges Summary'!E$4 -> 15140.59317 | M79: =F79/'Charges Summary'!F$4 -> 14279.03384 | N79: =G79/'Charges Summary'!G$4 -> 13458.38365 | O79: =H79/'Charges Summary'!H$4 -> 12661.81478
A80: ='DNSP Inputs General'!$A72 -> Category P LED 18 Watt | D80: =SUM('Charges Summary'!D101,'Charges Summary'!D8)*'DNSP Inputs General'!$D72*'DNSP Inputs General'!K72 -> 87284.42655 | E80: =SUM('Charges Summary'!E101,'Charges Summary'!E8)*'DNSP Inputs General'!$D72*'DNSP Inputs General'!L72 -> 104314.322 | F80: =SUM('Charges Summary'!F101,'Charges Summary'!F8)*'DNSP Inputs General'!$D72*'DNSP Inputs General'!M72 -> 122493.258 | G80: =SUM('Charges Summary'!G101,'Charges Summary'!G8)*'DNSP Inputs General'!$D72*'DNSP Inputs General'!N72 -> 153021.9348 | H80: =SUM('Charges Summary'!H101,'Charges Summary'!H8)*'DNSP Inputs General'!$D72*'DNSP Inputs General'!O72 -> 190536.4955 | K80: =D80/'Charges Summary'!D$4 -> 85072.5405 | L80: =E80/'Charges Summary'!E$4 -> 99094.42414 | M80: =F80/'Charges Summary'!F$4 -> 113414.8972 | N80: =G80/'Charges Summary'!G$4 -> 138090.641 | O80: =H80/'Charges Summary'!H$4 -> 167587.4023
A81: ='DNSP Inputs General'!$A73 -> Category P LED 47 Watt | D81: =SUM('Charges Summary'!D101,'Charges Summary'!D8)*'DNSP Inputs General'!$D73*'DNSP Inputs General'!K73 -> 1399.463094 | E81: =SUM('Charges Summary'!E101,'Charges Summary'!E8)*'DNSP Inputs General'!$D73*'DNSP Inputs General'!L73 -> 1516.416657 | F81: =SUM('Charges Summary'!F101,'Charges Summary'!F8)*'DNSP Inputs General'!$D73*'DNSP Inputs General'!M73 -> 1628.681209 | G81: =SUM('Charges Summary'!G101,'Charges Summary'!G8)*'DNSP Inputs General'!$D73*'DNSP Inputs General'!N73 -> 1695.494333 | H81: =SUM('Charges Summary'!H101,'Charges Summary'!H8)*'DNSP Inputs General'!$D73*'DNSP Inputs General'!O73 -> 1759.298697 | K81: =D81/'Charges Summary'!D$4 -> 1363.999117 | L81: =E81/'Charges Summary'!E$4 -> 1440.535033 | M81: =F81/'Charges Summary'!F$4 -> 1507.97452 | N81: =G81/'Charges Summary'!G$4 -> 1530.054496 | O81: =H81/'Charges Summary'!H$4 -> 1547.400658
A85: Total O & M | D85: =SUM(D51:D84) -> 3011992.604 | E85: =SUM(E51:E84) -> 3119588.914 | F85: =SUM(F51:F84) -> 3223706.403 | G85: =SUM(G51:G84) -> 3345578.226 | H85: =SUM(H51:H84) -> 3481908.029 | K85: =SUM(K51:K84) -> 2935665.306 | L85: =SUM(L51:L84) -> 2963484.409 | M85: =SUM(M51:M84) -> 2984787.378 | N85: =SUM(N51:N84) -> 3019129.529 | O85: =SUM(O51:O84) -> 3062530.987
A88: Public Lighting - Capital Charge | D88: Capital Charge - Nominal | K88: Capital Charge - Real 2015 $
D89: =D$2 -> 2016 | E89: 2017 | F89: 2018 | G89: 2019 | H89: 2020 | K89: =K$2 -> 2016 | L89: 2017 | M89: 2018 | N89: 2019 | O89: 2020
A91: Unit cost
A92: ='DNSP Inputs General'!A$41 -> Mercury vapour 80 watt | D92: =SUM('Charges Summary'!D27,'Charges Summary'!D11) -> 37.43622052 | E92: =SUM('Charges Summary'!E27,'Charges Summary'!E11) -> 36.67032342 | F92: =SUM('Charges Summary'!F27,'Charges Summary'!F11) -> 36.03593919 | G92: =SUM('Charges Summary'!G27,'Charges Summary'!G11) -> 35.27127472 | H92: =SUM('Charges Summary'!H27,'Charges Summary'!H11) -> 34.40389519
A93: ='DNSP Inputs General'!A$42 -> Sodium high pressure 150 watt | D93: =SUM('Charges Summary'!D51,'Charges Summary'!D11) -> 42.0289257 | E93: =SUM('Charges Summary'!E51,'Charges Summary'!E11) -> 41.12268236 | F93: =SUM('Charges Summary'!F51,'Charges Summary'!F11) -> 40.35359998 | G93: =SUM('Charges Summary'!G51,'Charges Summary'!G11) -> 39.4627712 | H93: =SUM('Charges Summary'!H51,'Charges Summary'!H11) -> 38.46482773
A94: ='DNSP Inputs General'!A$43 -> Sodium high pressure 250 watt | D94: =SUM('Charges Summary'!D67,'Charges Summary'!D11) -> 43.26603994 | E94: =SUM('Charges Summary'!E67,'Charges Summary'!E11) -> 42.32199222 | F94: =SUM('Charges Summary'!F67,'Charges Summary'!F11) -> 41.51662688 | G94: =SUM('Charges Summary'!G67,'Charges Summary'!G11) -> 40.59181383 | H94: =SUM('Charges Summary'!H67,'Charges Summary'!H11) -> 39.55870101
A96: ='DNSP Inputs General'!A$40 -> Existing Lights
A97: ='DNSP Inputs General'!A$41 -> Mercury vapour 80 watt | D97: =D92*'DNSP Inputs General'!K41 -> 99480.21218 | E97: =E92*'DNSP Inputs General'!L41 -> 77669.17075 | F97: =F92*'DNSP Inputs General'!M41 -> 68384.36547 | G97: =G92*'DNSP Inputs General'!N41 -> 59969.32766 | H97: =H92*'DNSP Inputs General'!O41 -> 52408.61566 | K97: =D97/'Charges Summary'!D$4 -> 96959.27113 | L97: =E97/'Charges Summary'!E$4 -> 73782.59859 | M97: =F97/'Charges Summary'!F$4 -> 63316.18497 | N97: =G97/'Charges Summary'!G$4 -> 54117.75057 | O97: =H97/'Charges Summary'!H$4 -> 46096.28058
A98: ='DNSP Inputs General'!A$42 -> Sodium high pressure 150 watt | D98: =D93*'DNSP Inputs General'!K42 -> 532200.5523 | E98: =E93*'DNSP Inputs General'!L42 -> 523317.133 | F98: =F93*'DNSP Inputs General'!M42 -> 516086.2514 | G98: =G93*'DNSP Inputs General'!N42 -> 507205.6363 | H98: =H93*'DNSP Inputs General'!O42 -> 496840.248 | K98: =D98/'Charges Summary'!D$4 -> 518713.9886 | L98: =E98/'Charges Summary'!E$4 -> 497130.2975 | M98: =F98/'Charges Summary'!F$4 -> 477837.4754 | N98: =G98/'Charges Summary'!G$4 -> 457714.4549 | O98: =H98/'Charges Summary'!H$4 -> 436998.5198
A99: ='DNSP Inputs General'!A$43 -> Sodium high pressure 250 watt | D99: =D94*'DNSP Inputs General'!K43 -> 233664.3226 | E99: =E94*'DNSP Inputs General'!L43 -> 232800.6215 | F99: =F94*'DNSP Inputs General'!M43 -> 232601.6902 | G99: =G94*'DNSP Inputs General'!N43 -> 231633.8556 | H99: =H94*'DNSP Inputs General'!O43 -> 229920.8589 | K99: =D99/'Charges Summary'!D$4 -> 227743.0045 | L99: =E99/'Charges Summary'!E$4 -> 221151.2579 | M99: =F99/'Charges Summary'!F$4 -> 215362.8471 | N99: =G99/'Charges Summary'!G$4 -> 209031.912 | O99: =H99/'Charges Summary'!H$4 -> 202228.1316
A100: ='DNSP Inputs General'!A$44 -> Fluorescent 20 watt | D100: =IF('DNSP Inputs General'!$B44='DNSP Inputs General'!$A$41,D$92,IF('DNSP Inputs General'!$B44='DNSP Inputs General'!$A$42,D$93,D$94))*'DNSP Inputs General'!$D44*'DNSP Inputs General'!K44 -> 5810.850149 | E100: =IF('DNSP Inputs General'!$B44='DNSP Inputs General'!$A$41,E$92,IF('DNSP Inputs General'!$B44='DNSP Inputs General'!$A$42,E$93,E$94))*'DNSP Inputs General'!$D44*'DNSP Inputs General'!L44 -> 5691.967602 | F100: =IF('DNSP Inputs General'!$B44='DNSP Inputs General'!$A$41,F$92,IF('DNSP Inputs General'!$B44='DNSP Inputs General'!$A$42,F$93,F$94))*'DNSP Inputs General'!$D44*'DNSP Inputs General'!M44 -> 5593.498481 | G100: =IF('DNSP Inputs General'!$B44='DNSP Inputs General'!$A$41,G$92,IF('DNSP Inputs General'!$B44='DNSP Inputs General'!$A$42,G$93,G$94))*'DNSP Inputs General'!$D44*'DNSP Inputs General'!N44 -> 5474.807262 | H100: =IF('DNSP Inputs General'!$B44='DNSP Inputs General'!$A$41,H$92,IF('DNSP Inputs General'!$B44='DNSP Inputs General'!$A$42,H$93,H$94))*'DNSP Inputs General'!$D44*'DNSP Inputs General'!O44 -> 5340.172611 | K100: =D100/'Charges Summary'!D$4 -> 5663.596637 | L100: =E100/'Charges Summary'!E$4 -> 5407.14104 | M100: =F100/'Charges Summary'!F$4 -> 5178.946709 | N100: =G100/'Charges Summary'!G$4 -> 4940.596559 | O100: =H100/'Charges Summary'!H$4 -> 4696.977623
A101: ='DNSP Inputs General'!A$45 -> Fluorescent 40 watt | D101: =IF('DNSP Inputs General'!$B45='DNSP Inputs General'!$A$41,D$92,IF('DNSP Inputs General'!$B45='DNSP Inputs General'!$A$42,D$93,D$94))*'DNSP Inputs General'!$D45*'DNSP Inputs General'!K45 -> 11155.99371 | E101: =IF('DNSP Inputs General'!$B45='DNSP Inputs General'!$A$41,E$92,IF('DNSP Inputs General'!$B45='DNSP Inputs General'!$A$42,E$93,E$94))*'DNSP Inputs General'!$D45*'DNSP Inputs General'!L45 -> 10927.75638 | F101: =IF('DNSP Inputs General'!$B45='DNSP Inputs General'!$A$41,F$92,IF('DNSP Inputs General'!$B45='DNSP Inputs General'!$A$42,F$93,F$94))*'DNSP Inputs General'!$D45*'DNSP Inputs General'!M45 -> 10738.70988 | G101: =IF('DNSP Inputs General'!$B45='DNSP Inputs General'!$A$41,G$92,IF('DNSP Inputs General'!$B45='DNSP Inputs General'!$A$42,G$93,G$94))*'DNSP Inputs General'!$D45*'DNSP Inputs General'!N45 -> 10510.83987 | H101: =IF('DNSP Inputs General'!$B45='DNSP Inputs General'!$A$41,H$92,IF('DNSP Inputs General'!$B45='DNSP Inputs General'!$A$42,H$93,H$94))*'DNSP Inputs General'!$D45*'DNSP Inputs General'!O45 -> 10252.36077 | K101: =D101/'Charges Summary'!D$4 -> 10873.28822 | L101: =E101/'Charges Summary'!E$4 -> 10380.93049 | M101: =F101/'Charges Summary'!F$4 -> 9942.8303 | N101: =G101/'Charges Summary'!G$4 -> 9485.232409 | O101: =H101/'Charges Summary'!H$4 -> 9017.519209
A102: ='DNSP Inputs General'!A$46 -> Mercury vapour 50 watt | D102: =IF('DNSP Inputs General'!$B46='DNSP Inputs General'!$A$41,D$92,IF('DNSP Inputs General'!$B46='DNSP Inputs General'!$A$42,D$93,D$94))*'DNSP Inputs General'!$D46*'DNSP Inputs General'!K46 -> 7503.917084 | E102: =IF('DNSP Inputs General'!$B46='DNSP Inputs General'!$A$41,E$92,IF('DNSP Inputs General'!$B46='DNSP Inputs General'!$A$42,E$93,E$94))*'DNSP Inputs General'!$D46*'DNSP Inputs General'!L46 -> 6871.341104 | F102: =IF('DNSP Inputs General'!$B46='DNSP Inputs General'!$A$41,F$92,IF('DNSP Inputs General'!$B46='DNSP Inputs General'!$A$42,F$93,F$94))*'DNSP Inputs General'!$D46*'DNSP Inputs General'!M46 -> 6312.38314 | G102: =IF('DNSP Inputs General'!$B46='DNSP Inputs General'!$A$41,G$92,IF('DNSP Inputs General'!$B46='DNSP Inputs General'!$A$42,G$93,G$94))*'DNSP Inputs General'!$D46*'DNSP Inputs General'!N46 -> 5775.763467 | H102: =IF('DNSP Inputs General'!$B46='DNSP Inputs General'!$A$41,H$92,IF('DNSP Inputs General'!$B46='DNSP Inputs General'!$A$42,H$93,H$94))*'DNSP Inputs General'!$D46*'DNSP Inputs General'!O46 -> 5266.554683 | K102: =D102/'Charges Summary'!D$4 -> 7313.759341 | L102: =E102/'Charges Summary'!E$4 -> 6527.498588 | M102: =F102/'Charges Summary'!F$4 -> 5844.552564 | N102: =G102/'Charges Summary'!G$4 -> 5212.186611 | O102: =H102/'Charges Summary'!H$4 -> 4632.226577
A103: ='DNSP Inputs General'!A$47 -> Mercury vapour 125 watt | D103: =IF('DNSP Inputs General'!$B47='DNSP Inputs General'!$A$41,D$92,IF('DNSP Inputs General'!$B47='DNSP Inputs General'!$A$42,D$93,D$94))*'DNSP Inputs General'!$D47*'DNSP Inputs General'!K47 -> 71507.87271 | E103: =IF('DNSP Inputs General'!$B47='DNSP Inputs General'!$A$41,E$92,IF('DNSP Inputs General'!$B47='DNSP Inputs General'!$A$42,E$93,E$94))*'DNSP Inputs General'!$D47*'DNSP Inputs General'!L47 -> 66156.33029 | F103: =IF('DNSP Inputs General'!$B47='DNSP Inputs General'!$A$41,F$92,IF('DNSP Inputs General'!$B47='DNSP Inputs General'!$A$42,F$93,F$94))*'DNSP Inputs General'!$D47*'DNSP Inputs General'!M47 -> 61402.67856 | G103: =IF('DNSP Inputs General'!$B47='DNSP Inputs General'!$A$41,G$92,IF('DNSP Inputs General'!$B47='DNSP Inputs General'!$A$42,G$93,G$94))*'DNSP Inputs General'!$D47*'DNSP Inputs General'!N47 -> 56763.27335 | H103: =IF('DNSP Inputs General'!$B47='DNSP Inputs General'!$A$41,H$92,IF('DNSP Inputs General'!$B47='DNSP Inputs General'!$A$42,H$93,H$94))*'DNSP Inputs General'!$D47*'DNSP Inputs General'!O47 -> 52293.61885 | K103: =D103/'Charges Summary'!D$4 -> 69695.78236 | L103: =E103/'Charges Summary'!E$4 -> 62845.86168 | M103: =F103/'Charges Summary'!F$4 -> 56851.93285 | N103: =G103/'Charges Summary'!G$4 -> 51224.53076 | O103: =H103/'Charges Summary'!H$4 -> 45995.13451
A104: ='DNSP Inputs General'!A$48 -> Mercury vapour 250 watt | D104: =IF('DNSP Inputs General'!$B48='DNSP Inputs General'!$A$41,D$92,IF('DNSP Inputs General'!$B48='DNSP Inputs General'!$A$42,D$93,D$94))*'DNSP Inputs General'!$D48*'DNSP Inputs General'!K48 -> 18595.66224 | E104: =IF('DNSP Inputs General'!$B48='DNSP Inputs General'!$A$41,E$92,IF('DNSP Inputs General'!$B48='DNSP Inputs General'!$A$42,E$93,E$94))*'DNSP Inputs General'!$D48*'DNSP Inputs General'!L48 -> 16560.73113 | F104: =IF('DNSP Inputs General'!$B48='DNSP Inputs General'!$A$41,F$92,IF('DNSP Inputs General'!$B48='DNSP Inputs General'!$A$42,F$93,F$94))*'DNSP Inputs General'!$D48*'DNSP Inputs General'!M48 -> 14790.55141 | G104: =IF('DNSP Inputs General'!$B48='DNSP Inputs General'!$A$41,G$92,IF('DNSP Inputs General'!$B48='DNSP Inputs General'!$A$42,G$93,G$94))*'DNSP Inputs General'!$D48*'DNSP Inputs General'!N48 -> 13165.87305 | H104: =IF('DNSP Inputs General'!$B48='DNSP Inputs General'!$A$41,H$92,IF('DNSP Inputs General'!$B48='DNSP Inputs General'!$A$42,H$93,H$94))*'DNSP Inputs General'!$D48*'DNSP Inputs General'!O48 -> 11681.59454 | K104: =D104/'Charges Summary'!D$4 -> 18124.42714 | L104: =E104/'Charges Summary'!E$4 -> 15732.03069 | M104: =F104/'Charges Summary'!F$4 -> 13694.3771 | N104: =G104/'Charges Summary'!G$4 -> 11881.19763 | O104: =H104/'Charges Summary'!H$4 -> 10274.60948
A105: ='DNSP Inputs General'!A$49 -> Mercury vapour 400 watt | D105: =IF('DNSP Inputs General'!$B49='DNSP Inputs General'!$A$41,D$92,IF('DNSP Inputs General'!$B49='DNSP Inputs General'!$A$42,D$93,D$94))*'DNSP Inputs General'!$D49*'DNSP Inputs General'!K49 -> 9505.819697 | E105: =IF('DNSP Inputs General'!$B49='DNSP Inputs General'!$A$41,E$92,IF('DNSP Inputs General'!$B49='DNSP Inputs General'!$A$42,E$93,E$94))*'DNSP Inputs General'!$D49*'DNSP Inputs General'!L49 -> 8583.689456 | F105: =IF('DNSP Inputs General'!$B49='DNSP Inputs General'!$A$41,F$92,IF('DNSP Inputs General'!$B49='DNSP Inputs General'!$A$42,F$93,F$94))*'DNSP Inputs General'!$D49*'DNSP Inputs General'!M49 -> 7773.120918 | G105: =IF('DNSP Inputs General'!$B49='DNSP Inputs General'!$A$41,G$92,IF('DNSP Inputs General'!$B49='DNSP Inputs General'!$A$42,G$93,G$94))*'DNSP Inputs General'!$D49*'DNSP Inputs General'!N49 -> 7015.801441 | H105: =IF('DNSP Inputs General'!$B49='DNSP Inputs General'!$A$41,H$92,IF('DNSP Inputs General'!$B49='DNSP Inputs General'!$A$42,H$93,H$94))*'DNSP Inputs General'!$D49*'DNSP Inputs General'!O49 -> 6311.699615 | K105: =D105/'Charges Summary'!D$4 -> 9264.931478 | L105: =E105/'Charges Summary'!E$4 -> 8154.160877 | M105: =F105/'Charges Summary'!F$4 -> 7197.030469 | N105: =G105/'Charges Summary'!G$4 -> 6331.226434 | O105: =H105/'Charges Summary'!H$4 -> 5551.489439
A106: ='DNSP Inputs General'!A$50 -> Mercury vapour 700 watt | D106: =IF('DNSP Inputs General'!$B50='DNSP Inputs General'!$A$41,D$92,IF('DNSP Inputs General'!$B50='DNSP Inputs General'!$A$42,D$93,D$94))*'DNSP Inputs General'!$D50*'DNSP Inputs General'!K50 -> 0 | E106: =IF('DNSP Inputs General'!$B50='DNSP Inputs General'!$A$41,E$92,IF('DNSP Inputs General'!$B50='DNSP Inputs General'!$A$42,E$93,E$94))*'DNSP Inputs General'!$D50*'DNSP Inputs General'!L50 -> 0 | F106: =IF('DNSP Inputs General'!$B50='DNSP Inputs General'!$A$41,F$92,IF('DNSP Inputs General'!$B50='DNSP Inputs General'!$A$42,F$93,F$94))*'DNSP Inputs General'!$D50*'DNSP Inputs General'!M50 -> 0 | G106: =IF('DNSP Inputs General'!$B50='DNSP Inputs General'!$A$41,G$92,IF('DNSP Inputs General'!$B50='DNSP Inputs General'!$A$42,G$93,G$94))*'DNSP Inputs General'!$D50*'DNSP Inputs General'!N50 -> 0 | H106: =IF('DNSP Inputs General'!$B50='DNSP Inputs General'!$A$41,H$92,IF('DNSP Inputs General'!$B50='DNSP Inputs General'!$A$42,H$93,H$94))*'DNSP Inputs General'!$D50*'DNSP Inputs General'!O50 -> 0 | K106: =D106/'Charges Summary'!D$4 -> 0 | L106: =E106/'Charges Summary'!E$4 -> 0 | M106: =F106/'Charges Summary'!F$4 -> 0 | N106: =G106/'Charges Summary'!G$4 -> 0 | O106: =H106/'Charges Summary'!H$4 -> 0
A107: ='DNSP Inputs General'!A$51 -> Sodium high pressure 70 watt | D107: =IF('DNSP Inputs General'!$B51='DNSP Inputs General'!$A$41,D$92,IF('DNSP Inputs General'!$B51='DNSP Inputs General'!$A$42,D$93,D$94))*'DNSP Inputs General'!$D51*'DNSP Inputs General'!K51 -> 29582.62646 | E107: =IF('DNSP Inputs General'!$B51='DNSP Inputs General'!$A$41,E$92,IF('DNSP Inputs General'!$B51='DNSP Inputs General'!$A$42,E$93,E$94))*'DNSP Inputs General'!$D51*'DNSP Inputs General'!L51 -> 28574.36219 | F107: =IF('DNSP Inputs General'!$B51='DNSP Inputs General'!$A$41,F$92,IF('DNSP Inputs General'!$B51='DNSP Inputs General'!$A$42,F$93,F$94))*'DNSP Inputs General'!$D51*'DNSP Inputs General'!M51 -> 27689.47505 | G107: =IF('DNSP Inputs General'!$B51='DNSP Inputs General'!$A$41,G$92,IF('DNSP Inputs General'!$B51='DNSP Inputs General'!$A$42,G$93,G$94))*'DNSP Inputs General'!$D51*'DNSP Inputs General'!N51 -> 26724.9625 | H107: =IF('DNSP Inputs General'!$B51='DNSP Inputs General'!$A$41,H$92,IF('DNSP Inputs General'!$B51='DNSP Inputs General'!$A$42,H$93,H$94))*'DNSP Inputs General'!$D51*'DNSP Inputs General'!O51 -> 25705.17927 | K107: =D107/'Charges Summary'!D$4 -> 28832.96926 | L107: =E107/'Charges Summary'!E$4 -> 27144.49858 | M107: =F107/'Charges Summary'!F$4 -> 25637.32093 | N107: =G107/'Charges Summary'!G$4 -> 24117.24312 | O107: =H107/'Charges Summary'!H$4 -> 22609.12907
A108: ='DNSP Inputs General'!A$52 -> Sodium high pressure 100 watt | D108: =IF('DNSP Inputs General'!$B52='DNSP Inputs General'!$A$41,D$92,IF('DNSP Inputs General'!$B52='DNSP Inputs General'!$A$42,D$93,D$94))*'DNSP Inputs General'!$D52*'DNSP Inputs General'!K52 -> 15002.65924 | E108: =IF('DNSP Inputs General'!$B52='DNSP Inputs General'!$A$41,E$92,IF('DNSP Inputs General'!$B52='DNSP Inputs General'!$A$42,E$93,E$94))*'DNSP Inputs General'!$D52*'DNSP Inputs General'!L52 -> 14151.89345 | F108: =IF('DNSP Inputs General'!$B52='DNSP Inputs General'!$A$41,F$92,IF('DNSP Inputs General'!$B52='DNSP Inputs General'!$A$42,F$93,F$94))*'DNSP Inputs General'!$D52*'DNSP Inputs General'!M52 -> 13388.39629 | G108: =IF('DNSP Inputs General'!$B52='DNSP Inputs General'!$A$41,G$92,IF('DNSP Inputs General'!$B52='DNSP Inputs General'!$A$42,G$93,G$94))*'DNSP Inputs General'!$D52*'DNSP Inputs General'!N52 -> 12622.54747 | H108: =IF('DNSP Inputs General'!$B52='DNSP Inputs General'!$A$41,H$92,IF('DNSP Inputs General'!$B52='DNSP Inputs General'!$A$42,H$93,H$94))*'DNSP Inputs General'!$D52*'DNSP Inputs General'!O52 -> 11861.4118 | K108: =D108/'Charges Summary'!D$4 -> 14622.47489 | L108: =E108/'Charges Summary'!E$4 -> 13443.73145 | M108: =F108/'Charges Summary'!F$4 -> 12396.14011 | N108: =G108/'Charges Summary'!G$4 -> 11390.88768 | O108: =H108/'Charges Summary'!H$4 -> 10432.76873
A109: ='DNSP Inputs General'!A$53 -> Sodium high pressure 220 watt | D109: =IF('DNSP Inputs General'!$B53='DNSP Inputs General'!$A$41,D$92,IF('DNSP Inputs General'!$B53='DNSP Inputs General'!$A$42,D$93,D$94))*'DNSP Inputs General'!$D53*'DNSP Inputs General'!K53 -> 78656.41075 | E109: =IF('DNSP Inputs General'!$B53='DNSP Inputs General'!$A$41,E$92,IF('DNSP Inputs General'!$B53='DNSP Inputs General'!$A$42,E$93,E$94))*'DNSP Inputs General'!$D53*'DNSP Inputs General'!L53 -> 74451.09083 | F109: =IF('DNSP Inputs General'!$B53='DNSP Inputs General'!$A$41,F$92,IF('DNSP Inputs General'!$B53='DNSP Inputs General'!$A$42,F$93,F$94))*'DNSP Inputs General'!$D53*'DNSP Inputs General'!M53 -> 70671.61362 | G109: =IF('DNSP Inputs General'!$B53='DNSP Inputs General'!$A$41,G$92,IF('DNSP Inputs General'!$B53='DNSP Inputs General'!$A$42,G$93,G$94))*'DNSP Inputs General'!$D53*'DNSP Inputs General'!N53 -> 66862.00396 | H109: =IF('DNSP Inputs General'!$B53='DNSP Inputs General'!$A$41,H$92,IF('DNSP Inputs General'!$B53='DNSP Inputs General'!$A$42,H$93,H$94))*'DNSP Inputs General'!$D53*'DNSP Inputs General'!O53 -> 63052.30059 | K109: =D109/'Charges Summary'!D$4 -> 76663.16837 | L109: =E109/'Charges Summary'!E$4 -> 70725.55167 | M109: =F109/'Charges Summary'!F$4 -> 65433.91796 | N109: =G109/'Charges Summary'!G$4 -> 60337.86595 | O109: =H109/'Charges Summary'!H$4 -> 55457.99106
A110: ='DNSP Inputs General'!A$54 -> Sodium high pressure 360 watt | D110: =IF('DNSP Inputs General'!$B54='DNSP Inputs General'!$A$41,D$92,IF('DNSP Inputs General'!$B54='DNSP Inputs General'!$A$42,D$93,D$94))*'DNSP Inputs General'!$D54*'DNSP Inputs General'!K54 -> 10169.90655 | E110: =IF('DNSP Inputs General'!$B54='DNSP Inputs General'!$A$41,E$92,IF('DNSP Inputs General'!$B54='DNSP Inputs General'!$A$42,E$93,E$94))*'DNSP Inputs General'!$D54*'DNSP Inputs General'!L54 -> 9881.379466 | F110: =IF('DNSP Inputs General'!$B54='DNSP Inputs General'!$A$41,F$92,IF('DNSP Inputs General'!$B54='DNSP Inputs General'!$A$42,F$93,F$94))*'DNSP Inputs General'!$D54*'DNSP Inputs General'!M54 -> 9628.423723 | G110: =IF('DNSP Inputs General'!$B54='DNSP Inputs General'!$A$41,G$92,IF('DNSP Inputs General'!$B54='DNSP Inputs General'!$A$42,G$93,G$94))*'DNSP Inputs General'!$D54*'DNSP Inputs General'!N54 -> 9350.896504 | H110: =IF('DNSP Inputs General'!$B54='DNSP Inputs General'!$A$41,H$92,IF('DNSP Inputs General'!$B54='DNSP Inputs General'!$A$42,H$93,H$94))*'DNSP Inputs General'!$D54*'DNSP Inputs General'!O54 -> 9051.87344 | K110: =D110/'Charges Summary'!D$4 -> 9912.189623 | L110: =E110/'Charges Summary'!E$4 -> 9386.914365 | M110: =F110/'Charges Summary'!F$4 -> 8914.830945 | N110: =G110/'Charges Summary'!G$4 -> 8438.471873 | O110: =H110/'Charges Summary'!H$4 -> 7961.624106
A111: ='DNSP Inputs General'!A$55 -> Sodium high pressure 400 watt | D111: =IF('DNSP Inputs General'!$B55='DNSP Inputs General'!$A$41,D$92,IF('DNSP Inputs General'!$B55='DNSP Inputs General'!$A$42,D$93,D$94))*'DNSP Inputs General'!$D55*'DNSP Inputs General'!K55 -> 19335.81308 | E111: =IF('DNSP Inputs General'!$B55='DNSP Inputs General'!$A$41,E$92,IF('DNSP Inputs General'!$B55='DNSP Inputs General'!$A$42,E$93,E$94))*'DNSP Inputs General'!$D55*'DNSP Inputs General'!L55 -> 19258.88352 | F111: =IF('DNSP Inputs General'!$B55='DNSP Inputs General'!$A$41,F$92,IF('DNSP Inputs General'!$B55='DNSP Inputs General'!$A$42,F$93,F$94))*'DNSP Inputs General'!$D55*'DNSP Inputs General'!M55 -> 19236.97478 | G111: =IF('DNSP Inputs General'!$B55='DNSP Inputs General'!$A$41,G$92,IF('DNSP Inputs General'!$B55='DNSP Inputs General'!$A$42,G$93,G$94))*'DNSP Inputs General'!$D55*'DNSP Inputs General'!N55 -> 19151.50394 | H111: =IF('DNSP Inputs General'!$B55='DNSP Inputs General'!$A$41,H$92,IF('DNSP Inputs General'!$B55='DNSP Inputs General'!$A$42,H$93,H$94))*'DNSP Inputs General'!$D55*'DNSP Inputs General'!O55 -> 19004.48737 | K111: =D111/'Charges Summary'!D$4 -> 18845.82171 | L111: =E111/'Charges Summary'!E$4 -> 18295.16729 | M111: =F111/'Charges Summary'!F$4 -> 17811.26205 | N111: =G111/'Charges Summary'!G$4 -> 17282.77361 | O111: =H111/'Charges Summary'!H$4 -> 16715.49937
A112: ='DNSP Inputs General'!A$56 -> Sodium high pressure 1000 watt | D112: =IF('DNSP Inputs General'!$B56='DNSP Inputs General'!$A$41,D$92,IF('DNSP Inputs General'!$B56='DNSP Inputs General'!$A$42,D$93,D$94))*'DNSP Inputs General'!$D56*'DNSP Inputs General'!K56 -> 0 | E112: =IF('DNSP Inputs General'!$B56='DNSP Inputs General'!$A$41,E$92,IF('DNSP Inputs General'!$B56='DNSP Inputs General'!$A$42,E$93,E$94))*'DNSP Inputs General'!$D56*'DNSP Inputs General'!L56 -> 0 | F112: =IF('DNSP Inputs General'!$B56='DNSP Inputs General'!$A$41,F$92,IF('DNSP Inputs General'!$B56='DNSP Inputs General'!$A$42,F$93,F$94))*'DNSP Inputs General'!$D56*'DNSP Inputs General'!M56 -> 0 | G112: =IF('DNSP Inputs General'!$B56='DNSP Inputs General'!$A$41,G$92,IF('DNSP Inputs General'!$B56='DNSP Inputs General'!$A$42,G$93,G$94))*'DNSP Inputs General'!$D56*'DNSP Inputs General'!N56 -> 0 | H112: =IF('DNSP Inputs General'!$B56='DNSP Inputs General'!$A$41,H$92,IF('DNSP Inputs General'!$B56='DNSP Inputs General'!$A$42,H$93,H$94))*'DNSP Inputs General'!$D56*'DNSP Inputs General'!O56 -> 0 | K112: =D112/'Charges Summary'!D$4 -> 0 | L112: =E112/'Charges Summary'!E$4 -> 0 | M112: =F112/'Charges Summary'!F$4 -> 0 | N112: =G112/'Charges Summary'!G$4 -> 0 | O112: =H112/'Charges Summary'!H$4 -> 0
A113: ='DNSP Inputs General'!A57 -> Metal halide 70 watt | D113: =IF('DNSP Inputs General'!$B57='DNSP Inputs General'!$A$41,D$92,IF('DNSP Inputs General'!$B57='DNSP Inputs General'!$A$42,D$93,D$94))*'DNSP Inputs General'!$D57*'DNSP Inputs General'!K57 -> 94054.09341 | E113: =IF('DNSP Inputs General'!$B57='DNSP Inputs General'!$A$41,E$92,IF('DNSP Inputs General'!$B57='DNSP Inputs General'!$A$42,E$93,E$94))*'DNSP Inputs General'!$D57*'DNSP Inputs General'!L57 -> 95941.83638 | F113: =IF('DNSP Inputs General'!$B57='DNSP Inputs General'!$A$41,F$92,IF('DNSP Inputs General'!$B57='DNSP Inputs General'!$A$42,F$93,F$94))*'DNSP Inputs General'!$D57*'DNSP Inputs General'!M57 -> 98183.09398 | G113: =IF('DNSP Inputs General'!$B57='DNSP Inputs General'!$A$41,G$92,IF('DNSP Inputs General'!$B57='DNSP Inputs General'!$A$42,G$93,G$94))*'DNSP Inputs General'!$D57*'DNSP Inputs General'!N57 -> 100075.9233 | H113: =IF('DNSP Inputs General'!$B57='DNSP Inputs General'!$A$41,H$92,IF('DNSP Inputs General'!$B57='DNSP Inputs General'!$A$42,H$93,H$94))*'DNSP Inputs General'!$D57*'DNSP Inputs General'!O57 -> 101653.807 | K113: =D113/'Charges Summary'!D$4 -> 91670.65634 | L113: =E113/'Charges Summary'!E$4 -> 91140.89841 | M113: =F113/'Charges Summary'!F$4 -> 90906.43595 | N113: =G113/'Charges Summary'!G$4 -> 90310.89837 | O113: =H113/'Charges Summary'!H$4 -> 89410.15419
A114: ='DNSP Inputs General'!A58 -> Metal halide 100 watt | D114: =IF('DNSP Inputs General'!$B58='DNSP Inputs General'!$A$41,D$92,IF('DNSP Inputs General'!$B58='DNSP Inputs General'!$A$42,D$93,D$94))*'DNSP Inputs General'!$D58*'DNSP Inputs General'!K58 -> 9581.468216 | E114: =IF('DNSP Inputs General'!$B58='DNSP Inputs General'!$A$41,E$92,IF('DNSP Inputs General'!$B58='DNSP Inputs General'!$A$42,E$93,E$94))*'DNSP Inputs General'!$D58*'DNSP Inputs General'!L58 -> 8670.610523 | F114: =IF('DNSP Inputs General'!$B58='DNSP Inputs General'!$A$41,F$92,IF('DNSP Inputs General'!$B58='DNSP Inputs General'!$A$42,F$93,F$94))*'DNSP Inputs General'!$D58*'DNSP Inputs General'!M58 -> 7869.279979 | G114: =IF('DNSP Inputs General'!$B58='DNSP Inputs General'!$A$41,G$92,IF('DNSP Inputs General'!$B58='DNSP Inputs General'!$A$42,G$93,G$94))*'DNSP Inputs General'!$D58*'DNSP Inputs General'!N58 -> 7117.455514 | H114: =IF('DNSP Inputs General'!$B58='DNSP Inputs General'!$A$41,H$92,IF('DNSP Inputs General'!$B58='DNSP Inputs General'!$A$42,H$93,H$94))*'DNSP Inputs General'!$D58*'DNSP Inputs General'!O58 -> 6416.311543 | K114: =D114/'Charges Summary'!D$4 -> 9338.662979 | L114: =E114/'Charges Summary'!E$4 -> 8236.732407 | M114: =F114/'Charges Summary'!F$4 -> 7286.06288 | N114: =G114/'Charges Summary'!G$4 -> 6422.961492 | O114: =H114/'Charges Summary'!H$4 -> 5643.501424
A115: ='DNSP Inputs General'!A59 -> Metal halide 150 watt | D115: =IF('DNSP Inputs General'!$B59='DNSP Inputs General'!$A$41,D$92,IF('DNSP Inputs General'!$B59='DNSP Inputs General'!$A$42,D$93,D$94))*'DNSP Inputs General'!$D59*'DNSP Inputs General'!K59 -> 20859.02777 | E115: =IF('DNSP Inputs General'!$B59='DNSP Inputs General'!$A$41,E$92,IF('DNSP Inputs General'!$B59='DNSP Inputs General'!$A$42,E$93,E$94))*'DNSP Inputs General'!$D59*'DNSP Inputs General'!L59 -> 19545.28694 | F115: =IF('DNSP Inputs General'!$B59='DNSP Inputs General'!$A$41,F$92,IF('DNSP Inputs General'!$B59='DNSP Inputs General'!$A$42,F$93,F$94))*'DNSP Inputs General'!$D59*'DNSP Inputs General'!M59 -> 18367.82541 | G115: =IF('DNSP Inputs General'!$B59='DNSP Inputs General'!$A$41,G$92,IF('DNSP Inputs General'!$B59='DNSP Inputs General'!$A$42,G$93,G$94))*'DNSP Inputs General'!$D59*'DNSP Inputs General'!N59 -> 17201.95788 | H115: =IF('DNSP Inputs General'!$B59='DNSP Inputs General'!$A$41,H$92,IF('DNSP Inputs General'!$B59='DNSP Inputs General'!$A$42,H$93,H$94))*'DNSP Inputs General'!$D59*'DNSP Inputs General'!O59 -> 16057.16738 | K115: =D115/'Charges Summary'!D$4 -> 20330.43642 | L115: =E115/'Charges Summary'!E$4 -> 18567.23906 | M115: =F115/'Charges Summary'!F$4 -> 17006.52807 | N115: =G115/'Charges Summary'!G$4 -> 15523.45678 | O115: =H115/'Charges Summary'!H$4 -> 14123.16818
A116: ='DNSP Inputs General'!A60 -> Metal halide 250 watt | D116: =IF('DNSP Inputs General'!$B60='DNSP Inputs General'!$A$41,D$92,IF('DNSP Inputs General'!$B60='DNSP Inputs General'!$A$42,D$93,D$94))*'DNSP Inputs General'!$D60*'DNSP Inputs General'!K60 -> 40131.7225 | E116: =IF('DNSP Inputs General'!$B60='DNSP Inputs General'!$A$41,E$92,IF('DNSP Inputs General'!$B60='DNSP Inputs General'!$A$42,E$93,E$94))*'DNSP Inputs General'!$D60*'DNSP Inputs General'!L60 -> 44754.47536 | F116: =IF('DNSP Inputs General'!$B60='DNSP Inputs General'!$A$41,F$92,IF('DNSP Inputs General'!$B60='DNSP Inputs General'!$A$42,F$93,F$94))*'DNSP Inputs General'!$D60*'DNSP Inputs General'!M60 -> 50052.08139 | G116: =IF('DNSP Inputs General'!$B60='DNSP Inputs General'!$A$41,G$92,IF('DNSP Inputs General'!$B60='DNSP Inputs General'!$A$42,G$93,G$94))*'DNSP Inputs General'!$D60*'DNSP Inputs General'!N60 -> 55791.52763 | H116: =IF('DNSP Inputs General'!$B60='DNSP Inputs General'!$A$41,H$92,IF('DNSP Inputs General'!$B60='DNSP Inputs General'!$A$42,H$93,H$94))*'DNSP Inputs General'!$D60*'DNSP Inputs General'!O60 -> 61987.13026 | K116: =D116/'Charges Summary'!D$4 -> 39114.73928 | L116: =E116/'Charges Summary'!E$4 -> 42514.95746 | M116: =F116/'Charges Summary'!F$4 -> 46342.56415 | N116: =G116/'Charges Summary'!G$4 -> 50347.60426 | O116: =H116/'Charges Summary'!H$4 -> 54521.11475
A117: ='DNSP Inputs General'!A61 -> Metal halide 400 watt | D117: =IF('DNSP Inputs General'!$B61='DNSP Inputs General'!$A$41,D$92,IF('DNSP Inputs General'!$B61='DNSP Inputs General'!$A$42,D$93,D$94))*'DNSP Inputs General'!$D61*'DNSP Inputs General'!K61 -> 68394.82868 | E117: =IF('DNSP Inputs General'!$B61='DNSP Inputs General'!$A$41,E$92,IF('DNSP Inputs General'!$B61='DNSP Inputs General'!$A$42,E$93,E$94))*'DNSP Inputs General'!$D61*'DNSP Inputs General'!L61 -> 67794.38776 | F117: =IF('DNSP Inputs General'!$B61='DNSP Inputs General'!$A$41,F$92,IF('DNSP Inputs General'!$B61='DNSP Inputs General'!$A$42,F$93,F$94))*'DNSP Inputs General'!$D61*'DNSP Inputs General'!M61 -> 67390.89463 | G117: =IF('DNSP Inputs General'!$B61='DNSP Inputs General'!$A$41,G$92,IF('DNSP Inputs General'!$B61='DNSP Inputs General'!$A$42,G$93,G$94))*'DNSP Inputs General'!$D61*'DNSP Inputs General'!N61 -> 66768.11873 | H117: =IF('DNSP Inputs General'!$B61='DNSP Inputs General'!$A$41,H$92,IF('DNSP Inputs General'!$B61='DNSP Inputs General'!$A$42,H$93,H$94))*'DNSP Inputs General'!$D61*'DNSP Inputs General'!O61 -> 65936.24708 | K117: =D117/'Charges Summary'!D$4 -> 66661.6264 | L117: =E117/'Charges Summary'!E$4 -> 64401.95061 | M117: =F117/'Charges Summary'!F$4 -> 62396.34338 | N117: =G117/'Charges Summary'!G$4 -> 60253.14169 | O117: =H117/'Charges Summary'!H$4 -> 57994.58175
A118: ='DNSP Inputs General'!A62 -> Metal halide 1000 watt | D118: =IF('DNSP Inputs General'!$B62='DNSP Inputs General'!$A$41,D$92,IF('DNSP Inputs General'!$B62='DNSP Inputs General'!$A$42,D$93,D$94))*'DNSP Inputs General'!$D62*'DNSP Inputs General'!K62 -> 154.892423 | E118: =IF('DNSP Inputs General'!$B62='DNSP Inputs General'!$A$41,E$92,IF('DNSP Inputs General'!$B62='DNSP Inputs General'!$A$42,E$93,E$94))*'DNSP Inputs General'!$D62*'DNSP Inputs General'!L62 -> 0 | F118: =IF('DNSP Inputs General'!$B62='DNSP Inputs General'!$A$41,F$92,IF('DNSP Inputs General'!$B62='DNSP Inputs General'!$A$42,F$93,F$94))*'DNSP Inputs General'!$D62*'DNSP Inputs General'!M62 -> 0 | G118: =IF('DNSP Inputs General'!$B62='DNSP Inputs General'!$A$41,G$92,IF('DNSP Inputs General'!$B62='DNSP Inputs General'!$A$42,G$93,G$94))*'DNSP Inputs General'!$D62*'DNSP Inputs General'!N62 -> 0 | H118: =IF('DNSP Inputs General'!$B62='DNSP Inputs General'!$A$41,H$92,IF('DNSP Inputs General'!$B62='DNSP Inputs General'!$A$42,H$93,H$94))*'DNSP Inputs General'!$D62*'DNSP Inputs General'!O62 -> 0 | K118: =D118/'Charges Summary'!D$4 -> 150.9672739 | L118: =E118/'Charges Summary'!E$4 -> 0 | M118: =F118/'Charges Summary'!F$4 -> 0 | N118: =G118/'Charges Summary'!G$4 -> 0 | O118: =H118/'Charges Summary'!H$4 -> 0
A121: ='DNSP Inputs General'!A$67 -> Energy Efficient Lights
A122: ='DNSP Inputs General'!A68 -> T5 2X14W | D122: =SUM('Charges Summary'!D$85,'Charges Summary'!D$11)*'DNSP Inputs General'!$D68*'DNSP Inputs General'!K68 -> 240304.3828 | E122: =SUM('Charges Summary'!E$85,'Charges Summary'!E$11)*'DNSP Inputs General'!$D68*'DNSP Inputs General'!L68 -> 238989.5069 | F122: =SUM('Charges Summary'!F$85,'Charges Summary'!F$11)*'DNSP Inputs General'!$D68*'DNSP Inputs General'!M68 -> 229806.1847 | G122: =SUM('Charges Summary'!G$85,'Charges Summary'!G$11)*'DNSP Inputs General'!$D68*'DNSP Inputs General'!N68 -> 215605.6602 | H122: =SUM('Charges Summary'!H$85,'Charges Summary'!H$11)*'DNSP Inputs General'!$D68*'DNSP Inputs General'!O68 -> 200248.1658 | K122: =D122/'Charges Summary'!D$4 -> 234214.7981 | L122: =E122/'Charges Summary'!E$4 -> 227030.4509 | M122: =F122/'Charges Summary'!F$4 -> 212774.5252 | N122: =G122/'Charges Summary'!G$4 -> 194567.6865 | O122: =H122/'Charges Summary'!H$4 -> 176129.3543
A123: ='DNSP Inputs General'!A69 -> T5 2X24W | D123: =SUM('Charges Summary'!D$85,'Charges Summary'!D$11)*'DNSP Inputs General'!$D69*'DNSP Inputs General'!K69 -> 40106.66737 | E123: =SUM('Charges Summary'!E$85,'Charges Summary'!E$11)*'DNSP Inputs General'!$D69*'DNSP Inputs General'!L69 -> 39887.21531 | F123: =SUM('Charges Summary'!F$85,'Charges Summary'!F$11)*'DNSP Inputs General'!$D69*'DNSP Inputs General'!M69 -> 38354.52395 | G123: =SUM('Charges Summary'!G$85,'Charges Summary'!G$11)*'DNSP Inputs General'!$D69*'DNSP Inputs General'!N69 -> 35984.46435 | H123: =SUM('Charges Summary'!H$85,'Charges Summary'!H$11)*'DNSP Inputs General'!$D69*'DNSP Inputs General'!O69 -> 33421.3071 | K123: =D123/'Charges Summary'!D$4 -> 39090.31907 | L123: =E123/'Charges Summary'!E$4 -> 37891.25553 | M123: =F123/'Charges Summary'!F$4 -> 35511.9495 | N123: =G123/'Charges Summary'!G$4 -> 32473.23828 | O123: =H123/'Charges Summary'!H$4 -> 29395.89092
A124: ='DNSP Inputs General'!A70 -> CF32 | D124: =SUM('Charges Summary'!D$85,'Charges Summary'!D$11)*'DNSP Inputs General'!$D70*'DNSP Inputs General'!K70 -> 10146.20634 | E124: =SUM('Charges Summary'!E$85,'Charges Summary'!E$11)*'DNSP Inputs General'!$D70*'DNSP Inputs General'!L70 -> 10090.68924 | F124: =SUM('Charges Summary'!F$85,'Charges Summary'!F$11)*'DNSP Inputs General'!$D70*'DNSP Inputs General'!M70 -> 9702.948155 | G124: =SUM('Charges Summary'!G$85,'Charges Summary'!G$11)*'DNSP Inputs General'!$D70*'DNSP Inputs General'!N70 -> 9103.369199 | H124: =SUM('Charges Summary'!H$85,'Charges Summary'!H$11)*'DNSP Inputs General'!$D70*'DNSP Inputs General'!O70 -> 8454.940295 | K124: =D124/'Charges Summary'!D$4 -> 9889.090001 | L124: =E124/'Charges Summary'!E$4 -> 9585.75026 | M124: =F124/'Charges Summary'!F$4 -> 8983.832137 | N124: =G124/'Charges Summary'!G$4 -> 8215.097333 | O124: =H124/'Charges Summary'!H$4 -> 7436.588339
A125: ='DNSP Inputs General'!A71 -> CF42 | D125: =SUM('Charges Summary'!D$85,'Charges Summary'!D$11)*'DNSP Inputs General'!$D71*'DNSP Inputs General'!K71 -> 7893.348025 | E125: =SUM('Charges Summary'!E$85,'Charges Summary'!E$11)*'DNSP Inputs General'!$D71*'DNSP Inputs General'!L71 -> 7850.157913 | F125: =SUM('Charges Summary'!F$85,'Charges Summary'!F$11)*'DNSP Inputs General'!$D71*'DNSP Inputs General'!M71 -> 7548.510653 | G125: =SUM('Charges Summary'!G$85,'Charges Summary'!G$11)*'DNSP Inputs General'!$D71*'DNSP Inputs General'!N71 -> 7082.061893 | H125: =SUM('Charges Summary'!H$85,'Charges Summary'!H$11)*'DNSP Inputs General'!$D71*'DNSP Inputs General'!O71 -> 6577.609802 | K125: =D125/'Charges Summary'!D$4 -> 7693.321662 | L125: =E125/'Charges Summary'!E$4 -> 7457.335317 | M125: =F125/'Charges Summary'!F$4 -> 6989.066777 | N125: =G125/'Charges Summary'!G$4 -> 6391.021445 | O125: =H125/'Charges Summary'!H$4 -> 5785.372178
A126: ='DNSP Inputs General'!A72 -> Category P LED 18 Watt | D126: =SUM('Charges Summary'!D$103,'Charges Summary'!D$11)*'DNSP Inputs General'!$D72*'DNSP Inputs General'!K72 -> 97748.26252 | E126: =SUM('Charges Summary'!E$103,'Charges Summary'!E$11)*'DNSP Inputs General'!$D72*'DNSP Inputs General'!L72 -> 109546.3387 | F126: =SUM('Charges Summary'!F$103,'Charges Summary'!F$11)*'DNSP Inputs General'!$D72*'DNSP Inputs General'!M72 -> 124117.8994 | G126: =SUM('Charges Summary'!G$103,'Charges Summary'!G$11)*'DNSP Inputs General'!$D72*'DNSP Inputs General'!N72 -> 150453.4048 | H126: =SUM('Charges Summary'!H$103,'Charges Summary'!H$11)*'DNSP Inputs General'!$D72*'DNSP Inputs General'!O72 -> 180480.7325 | K126: =D126/'Charges Summary'!D$4 -> 95271.21104 | L126: =E126/'Charges Summary'!E$4 -> 104064.6303 | M126: =F126/'Charges Summary'!F$4 -> 114919.1314 | N126: =G126/'Charges Summary'!G$4 -> 135772.7384 | O126: =H126/'Charges Summary'!H$4 -> 158742.8017
A127: ='DNSP Inputs General'!A73 -> Category P LED 47 Watt | D127: =SUM('Charges Summary'!D$103,'Charges Summary'!D$11)*'DNSP Inputs General'!$D73*'DNSP Inputs General'!K73 -> 1567.233599 | E127: =SUM('Charges Summary'!E$103,'Charges Summary'!E$11)*'DNSP Inputs General'!$D73*'DNSP Inputs General'!L73 -> 1592.474451 | F127: =SUM('Charges Summary'!F$103,'Charges Summary'!F$11)*'DNSP Inputs General'!$D73*'DNSP Inputs General'!M73 -> 1650.282586 | G127: =SUM('Charges Summary'!G$103,'Charges Summary'!G$11)*'DNSP Inputs General'!$D73*'DNSP Inputs General'!N73 -> 1667.034832 | H127: =SUM('Charges Summary'!H$103,'Charges Summary'!H$11)*'DNSP Inputs General'!$D73*'DNSP Inputs General'!O73 -> 1666.449866 | K127: =D127/'Charges Summary'!D$4 -> 1527.518127 | L127: =E127/'Charges Summary'!E$4 -> 1512.786889 | M127: =F127/'Charges Summary'!F$4 -> 1527.974951 | N127: =G127/'Charges Summary'!G$4 -> 1504.371964 | O127: =H127/'Charges Summary'!H$4 -> 1465.734968
A131: Total Capital Charge | D131: =SUM(D97:D130) -> 1773114.752 | E131: =SUM(E97:E130) -> 1739559.33 | F131: =SUM(F97:F130) -> 1717341.658 | G131: =SUM(G97:G130) -> 1699078.071 | H131: =SUM(H97:H130) -> 1681890.845 | K131: =SUM(K97:K130) -> 1728182.02 | L131: =SUM(L97:L130) -> 1652511.628 | M131: =SUM(M97:M130) -> 1590064.064 | N131: =SUM(N97:N130) -> 1533288.547 | O131: =SUM(O97:O130) -> 1479316.164
A133: Check | C133: =SUM(D133:O133) -> 8.381903172e-09 | D133: =ABS(D39-SUM(D85,D131)) -> 9.313225746e-10 | E133: =ABS(E39-SUM(E85,E131)) -> 0 | F133: =ABS(F39-SUM(F85,F131)) -> 2.793967724e-09 | G133: =ABS(G39-SUM(G85,G131)) -> 9.313225746e-10 | H133: =ABS(H39-SUM(H85,H131)) -> 0 | K133: =ABS(K39-SUM(K85,K131)) -> 0 | L133: =ABS(L39-SUM(L85,L131)) -> 0 | M133: =ABS(M39-SUM(M85,M131)) -> 1.862645149e-09 | N133: =ABS(N39-SUM(N85,N131)) -> 9.313225746e-10 | O133: =ABS(O39-SUM(O85,O131)) -> 9.313225746e-10
A135: Public Lighting - Capital Expenditure | D135: Forecast Capital Expenditure - Nominal | K135: Forecast Capital Expenditure - Real 2015 $
D136: =D$2 -> 2016 | E136: 2017 | F136: 2018 | G136: 2019 | H136: 2020 | K136: =K$2 -> 2016 | L136: 2017 | M136: 2018 | N136: 2019 | O136: 2020
A138: Total Capital Expenditure | D138: =K138*'Charges Summary'!D$4 -> 198897.6523 | E138: =L138*'Charges Summary'!E$4 -> 324079.9845 | F138: =M138*'Charges Summary'!F$4 -> 384460.5086 | G138: =N138*'Charges Summary'!G$4 -> 403970.1793 | H138: =O138*'Charges Summary'!H$4 -> 423363.6332 | K138: ='DNSP Inputs General'!K14 -> 193857.3609 | L138: ='DNSP Inputs General'!L14 -> 307862.9935 | M138: ='DNSP Inputs General'!M14 -> 355966.9306 | N138: ='DNSP Inputs General'!N14 -> 364552.318 | O138: ='DNSP Inputs General'!O14 -> 372371.767
A139: Check | C139: =SUM(D139:H139) -> 2.037268132e-10 | D139: =ABS(D138-D146) -> 2.910383046e-11 | E139: =ABS(E138-E146) -> 5.820766091e-11 | F139: =ABS(F138-F146) -> 5.820766091e-11 | G139: =ABS(G138-G146) -> 5.820766091e-11 | H139: =ABS(H138-H146) -> 0
A142: Public Lighting - RAB | D142: RAB - Historical Cost ($)
D143: =D$2 -> 2016 | E143: 2017 | F143: 2018 | G143: 2019 | H143: 2020
A145: Opening RAB | D145: ='Total RAB'!N139 -> 12110924.99 | E145: =D148 -> 11536251.86 | F145: =E148 -> 11076596.39 | G145: 10662611.14 | H145: 10251524.11
A146: Capex | D146: ='Total RAB'!N140 -> 198897.6523 | E146: ='Total RAB'!O140 -> 324079.9845 | F146: ='Total RAB'!P140 -> 384460.5086 | G146: ='Total RAB'!Q140 -> 403970.1793 | H146: ='Total RAB'!R140 -> 423363.6332
A147: Depreciation | D147: ='Total RAB'!N141 -> 773570.7827 | E147: ='Total RAB'!O141 -> 783735.4598 | F147: ='Total RAB'!P141 -> 798445.7609 | G147: ='Total RAB'!Q141 -> 815057.2047 | H147: ='Total RAB'!R141 -> 832541.819
A148: Closing RAB | D148: =D145+D146-D147 -> 11536251.86 | E148: =E145+E146-E147 -> 11076596.39 | F148: =F145+F146-F147 -> 10662611.14 | G148: =G145+G146-G147 -> 10251524.11 | H148: =H145+H146-H147 -> 9842345.924
A150: Average RAB | D150: =SUM(D145,D148)/2 -> 11823588.43 | E150: =SUM(E145,E148)/2 -> 11306424.13 | F150: =SUM(F145,F148)/2 -> 10869603.76 | G150: =SUM(G145,G148)/2 -> 10457067.62 | H150: =SUM(H145,H148)/2 -> 10046935.02
A152: =WACC!A$8 -> Nominal Pre Tax WACC | D152: =WACC!E$8 -> 0.08453812274 | E152: =WACC!F$8 -> 0.08453812274 | F152: =WACC!G$8 -> 0.08453812274 | G152: =WACC!H$8 -> 0.08453812274 | H152: =WACC!I$8 -> 0.08453812274
A154: Capital Charge | D154: Capital Charge - Nominal
D155: =D$2 -> 2016 | E155: 2017 | F155: 2018 | G155: 2019 | H155: 2020
A157: Depreciation | D157: =D147 -> 773570.7827 | E157: =E147 -> 783735.4598 | F157: =F147 -> 798445.7609 | G157: =G147 -> 815057.2047 | H157: =H147 -> 832541.819
A158: Return | D158: =D152*D150 -> 999543.9697 | E158: =E152*E150 -> 955823.8704 | F158: =F152*F150 -> 918895.8969 | G158: =G152*G150 -> 884020.8662 | H158: =H152*H150 -> 849349.0256
D160: =SUM(D157:D159) -> 1773114.752 | E160: =SUM(E157:E159) -> 1739559.33 | F160: =SUM(F157:F159) -> 1717341.658 | G160: =SUM(G157:G159) -> 1699078.071 | H160: =SUM(H157:H159) -> 1681890.845
A162: Check | C162: =SUM(D162:H162) -> 1.396983862e-09 | D162: =ABS(D131-D160)*IF('DNSP Inputs General'!K76=0,0,1) -> 4.656612873e-10 | E162: =ABS(E131-E160)*IF('DNSP Inputs General'!L76=0,0,1) -> 2.328306437e-10 | F162: =ABS(F131-F160)*IF('DNSP Inputs General'!M76=0,0,1) -> 2.328306437e-10 | G162: =ABS(G131-G160)*IF('DNSP Inputs General'!N76=0,0,1) -> 2.328306437e-10 | H162: =ABS(H131-H160)*IF('DNSP Inputs General'!O76=0,0,1) -> 2.328306437e-10

Sheet Charges Summary
A1: ='DNSP Inputs O & M'!$A$3 -> CitiPower | D1: ='DNSP Inputs General'!K$2 -> 2016 | E1: ='DNSP Inputs General'!L$2 -> 2017 | F1: ='DNSP Inputs General'!M$2 -> 2018 | G1: ='DNSP Inputs General'!N$2 -> 2019 | H1: ='DNSP Inputs General'!O$2 -> 2020
A2: Nominal $
A4: ='Total RAB'!A20 -> CPI Index | D4: =(1+WACC!E6) -> 1.026 | E4: =D4*(1+WACC!F6) -> 1.052676 | F4: =E4*(1+WACC!G6) -> 1.080045576 | G4: =F4*(1+WACC!H6) -> 1.108126761 | H4: =G4*(1+WACC!I6) -> 1.136938057
A6: ='DNSP Inputs General'!$A$6 -> Poles and Brackets | D6: ='DNSP Inputs General'!K$2 -> 2016 | E6: ='DNSP Inputs General'!L$2 -> 2017 | F6: ='DNSP Inputs General'!M$2 -> 2018 | G6: ='DNSP Inputs General'!N$2 -> 2019 | H6: ='DNSP Inputs General'!O$2 -> 2020
A7: O & M
A8: ='O & M 2016-2020'!A$10 -> Dedicated poles - inspection | D8: ='O & M 2016-2020'!$B$10*D$4 -> 1.220227555 | E8: ='O & M 2016-2020'!$J$10*E$4 -> 1.273918794 | F8: ='O & M 2016-2020'!$R$10*F$4 -> 1.329155094 | G8: ='O & M 2016-2020'!$Z$10*G$4 -> 1.386746589 | H8: ='O & M 2016-2020'!$AH$10*H$4 -> 1.446895901
A10: Capital Charge
A11: Depreciation and Return | D11: ='Depn & WACC Post 2004'!H$81 -> 11.36164361 | E11: ='Depn & WACC Post 2004'!H$131 -> 11.39254687 | F11: ='Depn & WACC Post 2004'!H$181 -> 11.52289645 | G11: ='Depn & WACC Post 2004'!H$231 -> 11.47451599 | H11: ='Depn & WACC Post 2004'!H$281 -> 11.3483988
A13: Total Charge | D13: =SUM(D8,D11) -> 12.58187117 | E13: =SUM(E8,E11) -> 12.66646566 | F13: =SUM(F8,F11) -> 12.85205154 | G13: =SUM(G8,G11) -> 12.86126258 | H13: =SUM(H8,H11) -> 12.79529471
A18: ='DNSP Inputs General'!$A$8 -> Existing Lights
A20: ='O & M 2016-2020'!$A$8 -> MV80 | D20: =D$1 -> 2016 | E20: =E$1 -> 2017 | F20: 2018 | G20: 2019 | H20: 2020
A22: O & M Charge
A23: ='O & M 2016-2020'!A$9 -> Bulk change & repairs | D23: ='O & M 2016-2020'!$B$9*D$4 -> 32.55528564 | E23: ='O & M 2016-2020'!$J$9*E$4 -> 32.84664734 | F23: ='O & M 2016-2020'!$R$9*F$4 -> 34.0332353 | G23: ='O & M 2016-2020'!$Z$9*G$4 -> 35.34824926 | H23: ='O & M 2016-2020'!$AH$9*H$4 -> 36.67276049
A24: ='O & M 2016-2020'!A$11 -> Other costs | D24: ='O & M 2016-2020'!$B$11*D$4 -> 4.556151229 | E24: ='O & M 2016-2020'!$J$11*E$4 -> 4.797546094 | F24: ='O & M 2016-2020'!$R$11*F$4 -> 5.098715548 | G24: ='O & M 2016-2020'!$Z$11*G$4 -> 5.329293924 | H24: ='O & M 2016-2020'!$AH$11*H$4 -> 5.529373616
D25: =SUM(D23:D24) -> 37.11143687 | E25: =SUM(E23:E24) -> 37.64419343 | F25: =SUM(F23:F24) -> 39.13195085 | G25: =SUM(G23:G24) -> 40.67754318 | H25: =SUM(H23:H24) -> 42.20213411
A26: Capital Charge
A27: Depreciation and Return | D27: ='Depn & WACC Post 2004'!H$40 -> 26.07457691 | E27: ='Depn & WACC Post 2004'!H$90 -> 25.27777655 | F27: ='Depn & WACC Post 2004'!H$140 -> 24.51304274 | G27: ='Depn & WACC Post 2004'!H$190 -> 23.79675873 | H27: ='Depn & WACC Post 2004'!H$240 -> 23.05549639
A29: Poles & Brackets Charge | D29: =D$13 -> 12.58187117 | E29: =E$13 -> 12.66646566 | F29: =F$13 -> 12.85205154 | G29: =G$13 -> 12.86126258 | H29: =H$13 -> 12.79529471
A31: Total Charge | D31: =SUM(D25,D27,D29) -> 75.76788494 | E31: =SUM(E25,E27,E29) -> 75.58843565 | F31: =SUM(F25,F27,F29) -> 76.49704513 | G31: =SUM(G25,G27,G29) -> 77.33556449 | H31: =SUM(H25,H27,H29) -> 78.0529252
A33: WDV RAB - MV 80 Luminair
A34: RAB WDV | D34: =MAX(0,'Depn & WACC Post 2004'!$I$8) -> 149.3647894 | E34: =MAX(0,'Depn & WACC Post 2004'!I$40) -> 139.4229304 | F34: =MAX(0,'Depn & WACC Post 2004'!I$90) -> 129.311093 | G34: =MAX(0,'Depn & WACC Post 2004'!I$140) -> 119.0392972 | H34: =MAX(0,'Depn & WACC Post 2004'!I$190) -> 108.6207994
A36: Avoided Costs - MV 80 O & M
A37: Materials & labour - bulk lamp change | D37: ='O & M 2016-2020'!$G$9*D$4 -> -27.28332334 | E37: ='O & M 2016-2020'!$O$9*E$4 -> -28.33439843 | F37: ='O & M 2016-2020'!$W$9*F$4 -> -29.40810359 | G37: ='O & M 2016-2020'!$AE$9*G$4 -> -30.52338531 | H37: ='O & M 2016-2020'!$AM$9*H$4 -> -31.684386
A38: Materials & Labour - repair of faults | D38: ='O & M 2016-2020'!$G$10*D$4 -> -5.629349048 | E38: ='O & M 2016-2020'!$O$10*E$4 -> -5.478006286 | F38: ='O & M 2016-2020'!$W$10*F$4 -> -5.663369089 | G38: ='O & M 2016-2020'!$AE$10*G$4 -> -5.88745195 | H38: ='O & M 2016-2020'!$AM$10*H$4 -> -6.103737135
D39: =SUM(D37:D38) -> -32.91267239 | E39: =SUM(E37:E38) -> -33.81240471 | F39: =SUM(F37:F38) -> -35.07147268 | G39: =SUM(G37:G38) -> -36.41083726 | H39: =SUM(H37:H38) -> -37.78812313
A44: ='O & M 2016-2020'!$A$14 -> S-HP 150 | D44: =D$1 -> 2016 | E44: =E$1 -> 2017 | F44: 2018 | G44: 2019 | H44: 2020
A46: O & M Charge
A47: ='O & M 2016-2020'!A$15 -> Patrols and repairs | D47: ='O & M 2016-2020'!$B$15*D$4 -> 74.93278337 | E47: ='O & M 2016-2020'!$J$15*E$4 -> 77.94325161 | F47: ='O & M 2016-2020'!$R$15*F$4 -> 81.02726043 | G47: ='O & M 2016-2020'!$Z$15*G$4 -> 84.17232162 | H47: ='O & M 2016-2020'!$AH$15*H$4 -> 87.44134634
A48: ='O & M 2016-2020'!A$17 -> Other costs | D48: ='O & M 2016-2020'!$B$17*D$4 -> 4.556151229 | E48: ='O & M 2016-2020'!$J$17*E$4 -> 4.797546094 | F48: ='O & M 2016-2020'!$R$17*F$4 -> 5.098715548 | G48: ='O & M 2016-2020'!$Z$17*G$4 -> 5.329293924 | H48: ='O & M 2016-2020'!$AH$17*H$4 -> 5.529373616
D49: =SUM(D47:D48) -> 79.4889346 | E49: =SUM(E47:E48) -> 82.7407977 | F49: =SUM(F47:F48) -> 86.12597598 | G49: =SUM(G47:G48) -> 89.50161554 | H49: =SUM(H47:H48) -> 92.97071996
A50: Capital Charge
A51: Depreciation and Return | D51: ='Depn & WACC Post 2004'!H$41 -> 30.66728209 | E51: ='Depn & WACC Post 2004'!H$91 -> 29.73013548 | F51: ='Depn & WACC Post 2004'!H$141 -> 28.83070353 | G51: ='Depn & WACC Post 2004'!H$191 -> 27.98825521 | H51: ='Depn & WACC Post 2004'!H$241 -> 27.11642892
A53: Poles & Brackets Charge | D53: =D$13 -> 12.58187117 | E53: =E$13 -> 12.66646566 | F53: =F$13 -> 12.85205154 | G53: =G$13 -> 12.86126258 | H53: =H$13 -> 12.79529471
A55: Total Charge | D55: =SUM(D49,D51,D53) -> 122.7380879 | E55: =SUM(E49,E51,E53) -> 125.1373988 | F55: =SUM(F49,F51,F53) -> 127.8087311 | G55: =SUM(G49,G51,G53) -> 130.3511333 | H55: =SUM(H49,H51,H53) -> 132.8824436
A60: ='O & M 2016-2020'!$A$20 -> S-HP 250 | D60: =D$1 -> 2016 | E60: =E$1 -> 2017 | F60: 2018 | G60: 2019 | H60: 2020
A62: O & M Charge
A63: ='O & M 2016-2020'!A$21 -> Patrols and repairs | D63: ='O & M 2016-2020'!$B$21*D$4 -> 75.34493073 | E63: ='O & M 2016-2020'!$J$21*E$4 -> 78.35201341 | F63: ='O & M 2016-2020'!$R$21*F$4 -> 81.47261666 | G63: ='O & M 2016-2020'!$Z$21*G$4 -> 84.6518119 | H63: ='O & M 2016-2020'!$AH$21*H$4 -> 87.95616937
A64: ='O & M 2016-2020'!A$23 -> Other costs | D64: ='O & M 2016-2020'!$B$23*D$4 -> 4.556151229 | E64: ='O & M 2016-2020'!$J$23*E$4 -> 4.797546094 | F64: ='O & M 2016-2020'!$R$23*F$4 -> 5.098715548 | G64: ='O & M 2016-2020'!$Z$23*G$4 -> 5.329293924 | H64: ='O & M 2016-2020'!$AH$23*H$4 -> 5.529373616
D65: =SUM(D63:D64) -> 79.90108196 | E65: =SUM(E63:E64) -> 83.1495595 | F65: =SUM(F63:F64) -> 86.57133221 | G65: =SUM(G63:G64) -> 89.98110582 | H65: =SUM(H63:H64) -> 93.48554298
A66: Capital Charge
A67: Depreciation and Return | D67: ='Depn & WACC Post 2004'!H$42 -> 31.90439633 | E67: ='Depn & WACC Post 2004'!H$92 -> 30.92944535 | F67: ='Depn & WACC Post 2004'!H$142 -> 29.99373043 | G67: ='Depn & WACC Post 2004'!H$192 -> 29.11729785 | H67: ='Depn & WACC Post 2004'!H$242 -> 28.2103022
A69: Poles & Brackets Charge | D69: =D$13 -> 12.58187117 | E69: =E$13 -> 12.66646566 | F69: =F$13 -> 12.85205154 | G69: =G$13 -> 12.86126258 | H69: =H$13 -> 12.79529471
A71: Total Charge | D71: =SUM(D65,D67,D69) -> 124.3873495 | E71: =SUM(E65,E67,E69) -> 126.7454705 | F71: =SUM(F65,F67,F69) -> 129.4171142 | G71: =SUM(G65,G67,G69) -> 131.9596662 | H71: =SUM(H65,H67,H69) -> 134.4911399
A76: ='DNSP Inputs General'!$A$11 -> Energy Efficient Lights
A78: ='O & M 2016-2020'!$A$26 -> T5 2X14W | D78: =D$1 -> 2016 | E78: =E$1 -> 2017 | F78: 2018 | G78: 2019 | H78: 2020
A80: O & M Charge
A81: ='O & M 2016-2020'!A$27 -> Bulk change & repairs | D81: ='O & M 2016-2020'!$B$27*D$4 -> 28.96972742 | E81: ='O & M 2016-2020'!$J$27*E$4 -> 30.14547004 | F81: ='O & M 2016-2020'!$R$27*F$4 -> 31.25396386 | G81: ='O & M 2016-2020'!$Z$27*G$4 -> 32.46631417 | H81: ='O & M 2016-2020'!$AH$27*H$4 -> 33.69221563
A82: ='O & M 2016-2020'!A$29 -> Other costs | D82: ='O & M 2016-2020'!$B$29*D$4 -> 4.556151229 | E82: ='O & M 2016-2020'!$J$29*E$4 -> 4.797546094 | F82: ='O & M 2016-2020'!$R$29*F$4 -> 5.098715548 | G82: ='O & M 2016-2020'!$Z$29*G$4 -> 5.329293924 | H82: ='O & M 2016-2020'!$AH$29*H$4 -> 5.529373616
D83: =SUM(D81:D82) -> 33.52587865 | E83: =SUM(E81:E82) -> 34.94301613 | F83: =SUM(F81:F82) -> 36.35267941 | G83: =SUM(G81:G82) -> 37.79560809 | H83: =SUM(H81:H82) -> 39.22158924
A84: Capital Charge
A85: Depreciation and Return | D85: ='Depn & WACC Post 2004'!$H$69 -> 6.216030502 | E85: ='Depn & WACC Post 2004'!$H$119 -> 6.445712495 | F85: ='Depn & WACC Post 2004'!$H$169 -> 6.920988518 | G85: ='Depn & WACC Post 2004'!$H$219 -> 7.132121741 | H85: ='Depn & WACC Post 2004'!$H$269 -> 7.233639121
A87: Poles & Brackets Charge | D87: =D$13 -> 12.58187117 | E87: =E$13 -> 12.66646566 | F87: =F$13 -> 12.85205154 | G87: =G$13 -> 12.86126258 | H87: =H$13 -> 12.79529471
A89: Total Charge | D89: =SUM(D83,D85,D87) -> 52.32378032 | E89: =SUM(E83,E85,E87) -> 54.05519429 | F89: =SUM(F83,F85,F87) -> 56.12571947 | G89: =SUM(G83,G85,G87) -> 57.78899241 | H89: =SUM(H83,H85,H87) -> 59.25052307
A94: ='DNSP Inputs General'!$A$11 -> Energy Efficient Lights
A96: ='O & M 2016-2020'!$A$32 -> Category P LED 18 Watt | D96: =D$1 -> 2016 | E96: =E$1 -> 2017 | F96: 2018 | G96: 2019 | H96: 2020
A98: O & M Charge
A99: ='O & M 2016-2020'!A$27 -> Bulk change & repairs | D99: ='O & M 2016-2020'!B$33*D$4 -> 10.88389615 | E99: ='O & M 2016-2020'!$J$33*E$4 -> 11.98111436 | F99: ='O & M 2016-2020'!$R$33*F$4 -> 12.96119137 | G99: ='O & M 2016-2020'!$Z$33*G$4 -> 13.46841583 | H99: ='O & M 2016-2020'!$AH$33*H$4 -> 13.96776259
A100: ='O & M 2016-2020'!A$29 -> Other costs | D100: ='O & M 2016-2020'!$B$35*D$4 -> 4.556151229 | E100: ='O & M 2016-2020'!$J$35*E$4 -> 4.797546094 | F100: ='O & M 2016-2020'!$R$35*F$4 -> 5.098715548 | G100: ='O & M 2016-2020'!$Z$35*G$4 -> 5.329293924 | H100: ='O & M 2016-2020'!$AH$35*H$4 -> 5.529373616
D101: =SUM(D99:D100) -> 15.44004738 | E101: =SUM(E99:E100) -> 16.77866045 | F101: =SUM(F99:F100) -> 18.05990692 | G101: =SUM(G99:G100) -> 18.79770976 | H101: =SUM(H99:H100) -> 19.4971362
A102: Capital Charge
A103: Depreciation and Return | D103: ='Depn & WACC Post 2004'!$H$73 -> 7.295899227 | E103: ='Depn & WACC Post 2004'!$H$123 -> 7.565482311 | F103: ='Depn & WACC Post 2004'!$H$173 -> 8.123324807 | G103: ='Depn & WACC Post 2004'!$H$223 -> 8.37113677 | H103: ='Depn & WACC Post 2004'!$H$273 -> 8.490290073
A105: Poles & Brackets Charge | D105: =D$13 -> 12.58187117 | E105: =E$13 -> 12.66646566 | F105: =F$13 -> 12.85205154 | G105: =G$13 -> 12.86126258 | H105: =H$13 -> 12.79529471
A107: Total Charge | D107: =SUM(D101,D103,D105) -> 35.31781777 | E107: =SUM(E101,E103,E105) -> 37.01060843 | F107: =SUM(F101,F103,F105) -> 39.03528327 | G107: =SUM(G101,G103,G105) -> 40.0301091 | H107: =SUM(H101,H103,H105) -> 40.78272098

Sheet O & M 2016-2020
A1: ='DNSP Inputs O & M'!$A$3 -> CitiPower
A3: Public Lighting O & M Costs | B3: Year | C3: 2016 | J3: Year | K3: =C3+1 -> 2017 | R3: Year | S3: =K3+1 -> 2018 | Z3: Year | AA3: =S3+1 -> 2019 | AH3: Year | AI3: =AA3+1 -> 2020
A4: ='DNSP Inputs O & M'!C5 -> Real 2015 $
A6: Summary
A8: =$A$64 -> MV80 | D8: Avoided Costs - MV 80 O & M | L8: Avoided Costs - MV 80 O & M | T8: Avoided Costs - MV 80 O & M | AB8: Avoided Costs - MV 80 O & M | AJ8: Avoided Costs - MV 80 O & M
A9: =$A$65 -> Bulk change & repairs | B9: =G85 -> 31.73029789 | D9: Materials & labour - bulk lamp change | G9: =-(G67+G76)*2 -> -26.59193308 | J9: =O85 -> 31.2029982 | L9: Materials & labour - bulk lamp change | O9: =-(O67+O76)*2 -> -26.91654263 | R9: =W85 -> 31.51092514 | T9: Materials & labour - bulk lamp change | W9: =-(W67+W76)*2 -> -27.2285765 | Z9: =AE85 -> 31.89910261 | AB9: Materials & labour - bulk lamp change | AE9: =-(AE67+AE76)*2 -> -27.5450304 | AH9: =AM85 -> 32.25572429 | AJ9: Materials & labour - bulk lamp change | AM9: =-(AM67+AM76)*2 -> -27.8681726
A10: =A87 -> Dedicated poles - inspection | B10: =G88 -> 1.189305609 | D10: Materials & Labour - repair of faults | G10: =-(G71+G79+G81)/2 -> -5.486694979 | J10: =O88 -> 1.210171785 | L10: Materials & Labour - repair of faults | O10: =-(O71+O79+O81)/2 -> -5.203886368 | R10: =W88 -> 1.230647228 | T10: Materials & Labour - repair of faults | W10: =-(W71+W79+W81)/2 -> -5.243638986 | Z10: =AE88 -> 1.251433173 | AB10: Materials & Labour - repair of faults | AE10: =-(AE71+AE79+AE81)/2 -> -5.312976961 | AH10: =AM88 -> 1.272625093 | AJ10: Materials & Labour - repair of faults | AM10: =-(AM71+AM79+AM81)/2 -> -5.368574918
A11: Other costs | B11: =IF(C48=0,0,C46/C48) -> 4.440693206 | G11: =SUM(G9:G10) -> -32.07862806 | J11: =IF(K48=0,0,K46/K48) -> 4.557476463 | O11: =SUM(O9:O10) -> -32.12042899 | R11: =IF(S48=0,0,S46/S48) -> 4.720833695 | W11: =SUM(W9:W10) -> -32.47221549 | Z11: =IF(AA48=0,0,AA46/AA48) -> 4.809281855 | AE11: =SUM(AE9:AE10) -> -32.85800736 | AH11: =IF(AI48=0,0,AI46/AI48) -> 4.863390387 | AM11: =SUM(AM9:AM10) -> -33.23674752
A14: =$A$105 -> S-HP 150
A15: =$A$106 -> Patrols and repairs | B15: =G122 -> 73.03390192 | J15: =O122 -> 74.04296441 | R15: =W122 -> 75.02207521 | Z15: =AE122 -> 75.95910918 | AH15: =AM122 -> 76.9095078
A16: =$A$10 -> Dedicated poles - inspection | B16: =B10 -> 1.189305609 | J16: =J10 -> 1.210171785 | R16: =R10 -> 1.230647228 | Z16: =Z10 -> 1.251433173 | AH16: =AH10 -> 1.272625093
A17: =$A$11 -> Other costs | B17: =B11 -> 4.440693206 | J17: =J11 -> 4.557476463 | R17: =R11 -> 4.720833695 | Z17: =Z11 -> 4.809281855 | AH17: =AH11 -> 4.863390387
A20: =$A$137 -> S-HP 250
A21: =$A$138 -> Patrols and repairs | B21: =G154 -> 73.435605 | J21: =O154 -> 74.43127174 | R21: =W154 -> 75.43442469 | Z21: =AE154 -> 76.39181264 | AH21: =AM154 -> 77.36232316
A22: =$A$10 -> Dedicated poles - inspection | B22: =B10 -> 1.189305609 | J22: =J10 -> 1.210171785 | R22: =R10 -> 1.230647228 | Z22: =Z10 -> 1.251433173 | AH22: =AH10 -> 1.272625093
A23: =$A$11 -> Other costs | B23: =B11 -> 4.440693206 | J23: =J11 -> 4.557476463 | R23: =R11 -> 4.720833695 | Z23: =Z11 -> 4.809281855 | AH23: =AH11 -> 4.863390387
A26: =$A$171 -> T5 2X14W
A27: =$A$172 -> Bulk change & repairs | B27: =G192 -> 28.23560178 | J27: =O192 -> 28.63698805 | R27: =W192 -> 28.93763426 | Z27: =AE192 -> 29.2983757 | AH27: =AM192 -> 29.63416998
A28: =$A$10 -> Dedicated poles - inspection | B28: =B10 -> 1.189305609 | J28: =J10 -> 1.210171785 | R28: =R10 -> 1.230647228 | Z28: =Z10 -> 1.251433173 | AH28: =AH10 -> 1.272625093
A29: =$A$11 -> Other costs | B29: =B11 -> 4.440693206 | J29: =J11 -> 4.557476463 | R29: =R11 -> 4.720833695 | Z29: =Z11 -> 4.809281855 | AH29: =AH11 -> 4.863390387
A32: =$A$208 -> Category P LED 18 Watt
A33: =$A$172 -> Bulk change & repairs | B33: =G229 -> 10.60808591 | J33: =O229 -> 11.38157834 | R33: =W229 -> 12.0005967 | Z33: =AE229 -> 12.15421945 | AH33: =AM229 -> 12.28542092
A34: =$A$10 -> Dedicated poles - inspection | B34: =B10 -> 1.189305609 | J34: =J10 -> 1.210171785 | R34: =R10 -> 1.230647228 | Z34: =Z10 -> 1.251433173 | AH34: =AH10 -> 1.272625093
A35: =$A$11 -> Other costs | B35: =B11 -> 4.440693206 | J35: =J11 -> 4.557476463 | R35: =R11 -> 4.720833695 | Z35: =Z11 -> 4.809281855 | AH35: =AH11 -> 4.863390387
A39: ='DNSP Inputs O & M'!A100 -> Proportion of lights on dedicated poles | C39: ='DNSP Inputs O & M'!$D$100 -> 0.1963308044 | K39: ='DNSP Inputs O & M'!$E$100 -> 0.1963308044 | S39: ='DNSP Inputs O & M'!$F$100 -> 0.1963308044 | AA39: ='DNSP Inputs O & M'!$G$100 -> 0.1963308044 | AI39: ='DNSP Inputs O & M'!$H$100 -> 0.1963308044
A41: ='DNSP Inputs O & M'!A104 -> Other direct costs
A42: ='DNSP Inputs O & M'!$A$105 -> Call centre | C42: ='DNSP Inputs O & M'!$D$108 -> 63996.00238 | K42: ='DNSP Inputs O & M'!$E$108 -> 66170.02206 | S42: ='DNSP Inputs O & M'!$F$108 -> 68417.89576 | AA42: ='DNSP Inputs O & M'!$G$108 -> 70742.13238 | AI42: ='DNSP Inputs O & M'!$H$108 -> 73145.32605
A43: ='DNSP Inputs O & M'!$A$110 -> GIS and other | C43: ='DNSP Inputs O & M'!$D$110 -> 117060.4756 | K43: ='DNSP Inputs O & M'!$E$110 -> 119032.2111 | S43: ='DNSP Inputs O & M'!$F$110 -> 121037.158 | AA43: ='DNSP Inputs O & M'!$G$110 -> 123075.8757 | AI43: ='DNSP Inputs O & M'!$H$110 -> 125148.9331
A44: ='DNSP Inputs O & M'!A111 -> Complaints handling | C44: ='DNSP Inputs O & M'!$D$111 -> 35118.14268 | K44: ='DNSP Inputs O & M'!$E$111 -> 35709.66334 | S44: ='DNSP Inputs O & M'!$F$111 -> 36311.14741 | AA44: ='DNSP Inputs O & M'!$G$111 -> 36922.76272 | AI44: ='DNSP Inputs O & M'!$H$111 -> 37544.67992
A45: Accounts Manager | C45: ='DNSP Inputs O & M'!$D$112 -> 16276.28005 | K45: ='DNSP Inputs O & M'!$E$112 -> 16550.43338 | S45: ='DNSP Inputs O & M'!$F$112 -> 16829.20448 | AA45: ='DNSP Inputs O & M'!$G$112 -> 17112.67113 | AI45: ='DNSP Inputs O & M'!$H$112 -> 17400.91241
C46: =SUM(C42:C45) -> 232450.9007 | K46: =SUM(K42:K45) -> 237462.3299 | S46: =SUM(S42:S45) -> 242595.4057 | AA46: =SUM(AA42:AA45) -> 247853.442 | AI46: =SUM(AI42:AI45) -> 253239.8514
A48: ='DNSP Inputs General'!A76 -> Total Number of Lights | C48: ='DNSP Inputs General'!$K$76 -> 52345.63388 | K48: ='DNSP Inputs General'!$L$76 -> 52103.90702 | S48: ='DNSP Inputs General'!$M$76 -> 51388.25499 | AA48: ='DNSP Inputs General'!$N$76 -> 51536.47664 | AI48: ='DNSP Inputs General'!$O$76 -> 52070.64029
A52: Mercury Vapour 80 Watt Standard Light Type - Cost build-up
A54: Addiitonal assumptions
A55: Proportion of lamps that will fail before bulk change | D55: ='DNSP Inputs O & M'!$D$26 -> 0.2313269938 | L55: ='DNSP Inputs O & M'!$E$26 -> 0.2313269938 | T55: ='DNSP Inputs O & M'!$F$26 -> 0.2313269938 | AB55: ='DNSP Inputs O & M'!$G$26 -> 0.2313269938 | AJ55: ='DNSP Inputs O & M'!$H$26 -> 0.2313269938
A56: Proportion of lamps that will fail before bulk change (per year) | D56: =D55/'DNSP Inputs O & M'!$D$24 -> 0.05783174846 | L56: =L55/'DNSP Inputs O & M'!$E$24 -> 0.05783174846 | T56: =T55/'DNSP Inputs O & M'!$F$24 -> 0.05783174846 | AB56: =AB55/'DNSP Inputs O & M'!$G$24 -> 0.05783174846 | AJ56: =AJ55/'DNSP Inputs O & M'!$H$24 -> 0.05783174846
A57: Overheads are applied to material and labour components
A58: All costs and charges are exclusive of GST
B60: Urban | J60: Urban | R60: Urban | Z60: Urban | AH60: Urban
B62: Unit rate | C62: Number | D62: Hours | E62: Cost | F62: Annualised | G62: Annualised | J62: Unit rate | K62: Number | L62: Hours | M62: Cost | N62: Annualised | O62: Annualised | R62: Unit rate | S62: Number | T62: Hours | U62: Cost | V62: Annualised | W62: Annualised | Z62: Unit rate | AA62: Number | AB62: Hours | AC62: Cost | AD62: Annualised | AE62: Annualised | AH62: Unit rate | AI62: Number | AJ62: Hours | AK62: Cost | AL62: Annualised | AM62: Annualised
F63: cost | G63: unit cost | N63: cost | O63: unit cost | V63: cost | W63: unit cost | AD63: cost | AE63: unit cost | AL63: cost | AM63: unit cost
A64: MV80
A65: Bulk change & repairs
A66: Materials - bulk lamp change
A67: Lamp | B67: ='DNSP Inputs O & M'!$D$27 -> 5.694427666 | C67: ='DNSP Inputs O & M'!$D$33 -> 86.4 | E67: =B67*C67 -> 491.9985503 | F67: =E67/'DNSP Inputs O & M'!$D$24*0.8 -> 98.39971007 | G67: =(F67+F68+F69)/C67 -> 4.26178692 | J67: ='DNSP Inputs O & M'!$E$27 -> 5.694427666 | K67: ='DNSP Inputs O & M'!$E$33 -> 86.4 | M67: =J67*K67 -> 491.9985503 | N67: =M67/'DNSP Inputs O & M'!$E$24*0.8 -> 98.39971007 | O67: =(N67+N68+N69)/K67 -> 4.26178692 | R67: ='DNSP Inputs O & M'!$F$27 -> 5.694427666 | S67: ='DNSP Inputs O & M'!$F$33 -> 86.4 | U67: =R67*S67 -> 491.9985503 | V67: =U67/'DNSP Inputs O & M'!$F$24*0.8 -> 98.39971007 | W67: =(V67+V68+V69)/S67 -> 4.26178692 | Z67: ='DNSP Inputs O & M'!$G$27 -> 5.694427666 | AA67: ='DNSP Inputs O & M'!$G$33 -> 86.4 | AC67: =Z67*AA67 -> 491.9985503 | AD67: =AC67/'DNSP Inputs O & M'!$G$24*0.8 -> 98.39971007 | AE67: =(AD67+AD68+AD69)/AA67 -> 4.26178692 | AH67: ='DNSP Inputs O & M'!$H$27 -> 5.694427666 | AI67: ='DNSP Inputs O & M'!$H$33 -> 86.4 | AK67: =AH67*AI67 -> 491.9985503 | AL67: =AK67/'DNSP Inputs O & M'!$H$24*0.8 -> 98.39971007 | AM67: =(AL67+AL68+AL69)/AI67 -> 4.26178692
A68: PE cell | B68: ='DNSP Inputs O & M'!$D$28 -> 22.98953839 | C68: =C67*'DNSP Inputs O & M'!$D$24/'DNSP Inputs O & M'!$D$25 -> 43.2 | E68: =B68*C68 -> 993.1480584 | F68: =E68/'DNSP Inputs O & M'!$D$24 -> 248.2870146 | J68: ='DNSP Inputs O & M'!$E$28 -> 22.98953839 | K68: =K67*'DNSP Inputs O & M'!$E$24/'DNSP Inputs O & M'!$E$25 -> 43.2 | M68: =J68*K68 -> 993.1480584 | N68: =M68/'DNSP Inputs O & M'!$E$24 -> 248.2870146 | R68: ='DNSP Inputs O & M'!$F$28 -> 22.98953839 | S68: =S67*'DNSP Inputs O & M'!$F$24/'DNSP Inputs O & M'!$F$25 -> 43.2 | U68: =R68*S68 -> 993.1480584 | V68: =U68/'DNSP Inputs O & M'!$F$24 -> 248.2870146 | Z68: ='DNSP Inputs O & M'!$G$28 -> 22.98953839 | AA68: =AA67*'DNSP Inputs O & M'!$G$24/'DNSP Inputs O & M'!$G$25 -> 43.2 | AC68: =Z68*AA68 -> 993.1480584 | AD68: =AC68/'DNSP Inputs O & M'!$G$24 -> 248.2870146 | AH68: ='DNSP Inputs O & M'!$H$28 -> 22.98953839 | AI68: =AI67*'DNSP Inputs O & M'!$H$24/'DNSP Inputs O & M'!$H$25 -> 43.2 | AK68: =AH68*AI68 -> 993.1480584 | AL68: =AK68/'DNSP Inputs O & M'!$H$24 -> 248.2870146
A69: Miscellaneous | B69: ='DNSP Inputs O & M'!$D$30 -> 1.246045441 | C69: ='DNSP Inputs O & M'!$D$33 -> 86.4 | E69: =B69*C69 -> 107.6583261 | F69: =E69/'DNSP Inputs O & M'!$D$24*0.8 -> 21.53166522 | J69: ='DNSP Inputs O & M'!$E$30 -> 1.246045441 | K69: ='DNSP Inputs O & M'!$E$33 -> 86.4 | M69: =J69*K69 -> 107.6583261 | N69: =M69/'DNSP Inputs O & M'!$E$24*0.8 -> 21.53166522 | R69: ='DNSP Inputs O & M'!$F$30 -> 1.246045441 | S69: ='DNSP Inputs O & M'!$F$33 -> 86.4 | U69: =R69*S69 -> 107.6583261 | V69: =U69/'DNSP Inputs O & M'!$F$24*0.8 -> 21.53166522 | Z69: ='DNSP Inputs O & M'!$G$30 -> 1.246045441 | AA69: ='DNSP Inputs O & M'!$G$33 -> 86.4 | AC69: =Z69*AA69 -> 107.6583261 | AD69: =AC69/'DNSP Inputs O & M'!$G$24*0.8 -> 21.53166522 | AH69: ='DNSP Inputs O & M'!$H$30 -> 1.246045441 | AI69: ='DNSP Inputs O & M'!$H$33 -> 86.4 | AK69: =AH69*AI69 -> 107.6583261 | AL69: =AK69/'DNSP Inputs O & M'!$H$24*0.8 -> 21.53166522
A70: Materials - repair of faults
A71: Lamp | B71: ='DNSP Inputs O & M'!$D$27 -> 5.694427666 | C71: ='DNSP Inputs O & M'!$D$34*'DNSP Inputs O & M'!$D$35 -> 17.28 | E71: =B71*C71 -> 98.39971007 | F71: =(E71+E72+E73+E74)/'DNSP Inputs O & M'!$D$34 -> 45.79154694 | G71: =F71*D56 -> 2.648205224 | J71: ='DNSP Inputs O & M'!$E$27 -> 5.694427666 | K71: ='DNSP Inputs O & M'!$E$34*'DNSP Inputs O & M'!$E$35 -> 17.28 | M71: =J71*K71 -> 98.39971007 | N71: =(M71+M72+M73+M74)/'DNSP Inputs O & M'!$E$34 -> 45.79154694 | O71: =N71*L56 -> 2.648205224 | R71: ='DNSP Inputs O & M'!$F$27 -> 5.694427666 | S71: ='DNSP Inputs O & M'!$F$34*'DNSP Inputs O & M'!$F$35 -> 17.28 | U71: =R71*S71 -> 98.39971007 | V71: =(U71+U72+U73+U74)/'DNSP Inputs O & M'!$F$34 -> 45.79154694 | W71: =V71*T56 -> 2.648205224 | Z71: ='DNSP Inputs O & M'!$G$27 -> 5.694427666 | AA71: ='DNSP Inputs O & M'!$G$34*'DNSP Inputs O & M'!$G$35 -> 17.28 | AC71: =Z71*AA71 -> 98.39971007 | AD71: =(AC71+AC72+AC73+AC74)/'DNSP Inputs O & M'!$G$34 -> 45.79154694 | AE71: =AD71*AB56 -> 2.648205224 | AH71: ='DNSP Inputs O & M'!$H$27 -> 5.694427666 | AI71: ='DNSP Inputs O & M'!$H$34*'DNSP Inputs O & M'!$H$35 -> 17.28 | AK71: =AH71*AI71 -> 98.39971007 | AL71: =(AK71+AK72+AK73+AK74)/'DNSP Inputs O & M'!$H$34 -> 45.79154694 | AM71: =AL71*AJ56 -> 2.648205224
A72: PE cell | B72: ='DNSP Inputs O & M'!$D$28 -> 22.98953839 | C72: ='DNSP Inputs O & M'!$D$34*'DNSP Inputs O & M'!$D$36 -> 14.4 | E72: =B72*C72 -> 331.0493528 | J72: ='DNSP Inputs O & M'!$E$28 -> 22.98953839 | K72: ='DNSP Inputs O & M'!$E$34*'DNSP Inputs O & M'!$E$36 -> 14.4 | M72: =J72*K72 -> 331.0493528 | R72: ='DNSP Inputs O & M'!$F$28 -> 22.98953839 | S72: ='DNSP Inputs O & M'!$F$34*'DNSP Inputs O & M'!$F$36 -> 14.4 | U72: =R72*S72 -> 331.0493528 | Z72: ='DNSP Inputs O & M'!$G$28 -> 22.98953839 | AA72: ='DNSP Inputs O & M'!$G$34*'DNSP Inputs O & M'!$G$36 -> 14.4 | AC72: =Z72*AA72 -> 331.0493528 | AH72: ='DNSP Inputs O & M'!$H$28 -> 22.98953839 | AI72: ='DNSP Inputs O & M'!$H$34*'DNSP Inputs O & M'!$H$36 -> 14.4 | AK72: =AH72*AI72 -> 331.0493528
A73: Luminaire | B73: ='DNSP Inputs O & M'!$D$29 -> 197.5605047 | C73: ='DNSP Inputs O & M'!$D$34*'DNSP Inputs O & M'!$D$37 -> 4.32 | E73: =B73*C73 -> 853.4613803 | J73: ='DNSP Inputs O & M'!$E$29 -> 197.5605047 | K73: ='DNSP Inputs O & M'!$E$34*'DNSP Inputs O & M'!$E$37 -> 4.32 | M73: =J73*K73 -> 853.4613803 | R73: ='DNSP Inputs O & M'!$F$29 -> 197.5605047 | S73: ='DNSP Inputs O & M'!$F$34*'DNSP Inputs O & M'!$F$37 -> 4.32 | U73: =R73*S73 -> 853.4613803 | Z73: ='DNSP Inputs O & M'!$G$29 -> 197.5605047 | AA73: ='DNSP Inputs O & M'!$G$34*'DNSP Inputs O & M'!$G$37 -> 4.32 | AC73: =Z73*AA73 -> 853.4613803 | AH73: ='DNSP Inputs O & M'!$H$29 -> 197.5605047 | AI73: ='DNSP Inputs O & M'!$H$34*'DNSP Inputs O & M'!$H$37 -> 4.32 | AK73: =AH73*AI73 -> 853.4613803
A74: Miscellaneous | B74: ='DNSP Inputs O & M'!$D$31 -> 12.46045441 | C74: ='DNSP Inputs O & M'!$D$34*'DNSP Inputs O & M'!$D$38 -> 2.88 | E74: =B74*C74 -> 35.8861087 | J74: ='DNSP Inputs O & M'!$E$31 -> 12.46045441 | K74: ='DNSP Inputs O & M'!$E$34*'DNSP Inputs O & M'!$E$38 -> 2.88 | M74: =J74*K74 -> 35.8861087 | R74: ='DNSP Inputs O & M'!$F$31 -> 12.46045441 | S74: ='DNSP Inputs O & M'!$F$34*'DNSP Inputs O & M'!$F$38 -> 2.88 | U74: =R74*S74 -> 35.8861087 | Z74: ='DNSP Inputs O & M'!$G$31 -> 12.46045441 | AA74: ='DNSP Inputs O & M'!$G$34*'DNSP Inputs O & M'!$G$38 -> 2.88 | AC74: =Z74*AA74 -> 35.8861087 | AH74: ='DNSP Inputs O & M'!$H$31 -> 12.46045441 | AI74: ='DNSP Inputs O & M'!$H$34*'DNSP Inputs O & M'!$H$38 -> 2.88 | AK74: =AH74*AI74 -> 35.8861087
A75: Labour - bulk lamp change
A76: Crew costs | B76: ='DNSP Inputs O & M'!$D$11 -> 123.7674125 | C76: ='DNSP Inputs O & M'!$D$32 -> 2 | D76: ='DNSP Inputs O & M'!$D$16 -> 8 | E76: =B76*C76*D76 -> 1980.278601 | F76: =E76/'DNSP Inputs O & M'!$D$24*(C67+C68)/C67*0.8 -> 594.0835802 | G76: =(F76+F77)/C67 -> 9.034179619 | J76: ='DNSP Inputs O & M'!$E$11 -> 125.8521179 | K76: ='DNSP Inputs O & M'!$E$32 -> 2 | L76: ='DNSP Inputs O & M'!$E$16 -> 8 | M76: =J76*K76*L76 -> 2013.633887 | N76: =M76/'DNSP Inputs O & M'!$E$24*(K67+K68)/K67*0.8 -> 604.090166 | O76: =(N76+N77)/K67 -> 9.196484393 | R76: ='DNSP Inputs O & M'!$F$11 -> 127.9719375 | S76: ='DNSP Inputs O & M'!$F$32 -> 2 | T76: ='DNSP Inputs O & M'!$F$16 -> 8 | U76: =R76*S76*T76 -> 2047.551 | V76: =U76/'DNSP Inputs O & M'!$F$24*(S67+S68)/S67*0.8 -> 614.2653001 | W76: =(V76+V77)/S67 -> 9.352501331 | Z76: ='DNSP Inputs O & M'!$G$11 -> 130.1274628 | AA76: ='DNSP Inputs O & M'!$G$32 -> 2 | AB76: ='DNSP Inputs O & M'!$G$16 -> 8 | AC76: =Z76*AA76*AB76 -> 2082.039405 | AD76: =AC76/'DNSP Inputs O & M'!$G$24*(AA67+AA68)/AA67*0.8 -> 624.6118215 | AE76: =(AD76+AD77)/AA67 -> 9.510728278 | AH76: ='DNSP Inputs O & M'!$H$11 -> 132.3192952 | AI76: ='DNSP Inputs O & M'!$H$32 -> 2 | AJ76: ='DNSP Inputs O & M'!$H$16 -> 8 | AK76: =AH76*AI76*AJ76 -> 2117.108723 | AL76: =AK76/'DNSP Inputs O & M'!$H$24*(AI67+AI68)/AI67*0.8 -> 635.1326169 | AM76: =(AL76+AL77)/AI67 -> 9.672299379
A77: Elevated platform costs | B77: ='DNSP Inputs O & M'!$D$13 -> 77.69564122 | C77: 1 | D77: ='DNSP Inputs O & M'!$D$16 -> 8 | E77: =B77*C77*D77 -> 621.5651298 | F77: =E77/'DNSP Inputs O & M'!$D$24*(C67+C68)/C67*0.8 -> 186.4695389 | J77: ='DNSP Inputs O & M'!$E$13 -> 79.36920231 | K77: 1 | L77: ='DNSP Inputs O & M'!$E$16 -> 8 | M77: =J77*K77*L77 -> 634.9536185 | N77: =M77/'DNSP Inputs O & M'!$E$24*(K67+K68)/K67*0.8 -> 190.4860855 | R77: ='DNSP Inputs O & M'!$F$13 -> 80.74617287 | S77: 1 | T77: ='DNSP Inputs O & M'!$F$16 -> 8 | U77: =R77*S77*T77 -> 645.969383 | V77: =U77/'DNSP Inputs O & M'!$F$24*(S67+S68)/S67*0.8 -> 193.7908149 | Z77: ='DNSP Inputs O & M'!$G$13 -> 82.13129241 | AA77: 1 | AB77: ='DNSP Inputs O & M'!$G$16 -> 8 | AC77: =Z77*AA77*AB77 -> 657.0503393 | AD77: =AC77/'DNSP Inputs O & M'!$G$24*(AA67+AA68)/AA67*0.8 -> 197.1151018 | AH77: ='DNSP Inputs O & M'!$H$13 -> 83.56418727 | AI77: 1 | AJ77: ='DNSP Inputs O & M'!$H$16 -> 8 | AK77: =AH77*AI77*AJ77 -> 668.5134982 | AL77: =AK77/'DNSP Inputs O & M'!$H$24*(AI67+AI68)/AI67*0.8 -> 200.5540495
A78: Labour - repair of faults
A79: Crew costs | B79: ='DNSP Inputs O & M'!$D$11 -> 123.7674125 | C79: ='DNSP Inputs O & M'!$D$32 -> 2 | D79: ='DNSP Inputs O & M'!$D$16 -> 8 | E79: =B79*C79*D79 -> 1980.278601 | F79: =(E79+E80)/'DNSP Inputs O & M'!$D$34 -> 90.34179619 | G79: =F79*D56 -> 5.224624033 | J79: ='DNSP Inputs O & M'!$E$11 -> 125.8521179 | K79: ='DNSP Inputs O & M'!$E$32 -> 2 | L79: ='DNSP Inputs O & M'!$E$16 -> 8 | M79: =J79*K79*L79 -> 2013.633887 | N79: =(M79+M80)/'DNSP Inputs O & M'!$E$34 -> 91.96484393 | O79: =N79*L56 -> 5.318487721 | R79: ='DNSP Inputs O & M'!$F$11 -> 127.9719375 | S79: ='DNSP Inputs O & M'!$F$32 -> 2 | T79: ='DNSP Inputs O & M'!$F$16 -> 8 | U79: =R79*S79*T79 -> 2047.551 | V79: =(U79+U80)/'DNSP Inputs O & M'!$F$34 -> 93.52501331 | W79: =V79*T56 -> 5.408715044 | Z79: ='DNSP Inputs O & M'!$G$11 -> 130.1274628 | AA79: ='DNSP Inputs O & M'!$G$32 -> 2 | AB79: ='DNSP Inputs O & M'!$G$16 -> 8 | AC79: =Z79*AA79*AB79 -> 2082.039405 | AD79: =(AC79+AC80)/'DNSP Inputs O & M'!$G$34 -> 95.10728278 | AE79: =AD79*AB56 -> 5.500220454 | AH79: ='DNSP Inputs O & M'!$H$11 -> 132.3192952 | AI79: ='DNSP Inputs O & M'!$H$32 -> 2 | AJ79: ='DNSP Inputs O & M'!$H$16 -> 8 | AK79: =AH79*AI79*AJ79 -> 2117.108723 | AL79: =(AK79+AK80)/'DNSP Inputs O & M'!$H$34 -> 96.72299379 | AM79: =AL79*AJ56 -> 5.593659847
A80: Elevated platform costs | B80: ='DNSP Inputs O & M'!$D$13 -> 77.69564122 | C80: 1 | D80: ='DNSP Inputs O & M'!$D$16 -> 8 | E80: =B80*C80*D80 -> 621.5651298 | J80: ='DNSP Inputs O & M'!$E$13 -> 79.36920231 | K80: 1 | L80: ='DNSP Inputs O & M'!$E$16 -> 8 | M80: =J80*K80*L80 -> 634.9536185 | R80: ='DNSP Inputs O & M'!$F$13 -> 80.74617287 | S80: 1 | T80: ='DNSP Inputs O & M'!$F$16 -> 8 | U80: =R80*S80*T80 -> 645.969383 | Z80: ='DNSP Inputs O & M'!$G$13 -> 82.13129241 | AA80: 1 | AB80: ='DNSP Inputs O & M'!$G$16 -> 8 | AC80: =Z80*AA80*AB80 -> 657.0503393 | AH80: ='DNSP Inputs O & M'!$H$13 -> 83.56418727 | AI80: 1 | AJ80: ='DNSP Inputs O & M'!$H$16 -> 8 | AK80: =AH80*AI80*AJ80 -> 668.5134982
A81: Other Maintenance and Repair costs | G81: ='DNSP Inputs O & M'!$D$45 -> 3.100560701 | O81: ='DNSP Inputs O & M'!$E$45 -> 2.441079791 | W81: ='DNSP Inputs O & M'!$F$45 -> 2.430357703 | AE81: ='DNSP Inputs O & M'!$G$45 -> 2.477528243 | AM81: ='DNSP Inputs O & M'!$H$45 -> 2.495284765
A83: Overheads | B83: ='DNSP Inputs O & M'!$D$17 -> 0.3074223 | G83: =B83*SUM(G67:G81) -> 7.460941394 | J83: ='DNSP Inputs O & M'!$E$17 -> 0.3074223 | O83: =J83*SUM(O67:O81) -> 7.336954153 | R83: ='DNSP Inputs O & M'!$F$17 -> 0.3074223 | W83: =R83*SUM(W67:W81) -> 7.409358922 | Z83: ='DNSP Inputs O & M'!$G$17 -> 0.3074223 | AE83: =Z83*SUM(AE67:AE81) -> 7.500633493 | AH83: ='DNSP Inputs O & M'!$H$17 -> 0.3074223 | AM83: =AH83*SUM(AM67:AM81) -> 7.584488156
G85: =SUM(G67,G71,G76,G79,G81,G83) -> 31.73029789 | O85: =SUM(O67,O71,O76,O79,O81,O83) -> 31.2029982 | W85: =SUM(W67,W71,W76,W79,W81,W83) -> 31.51092514 | AE85: =SUM(AE67,AE71,AE76,AE79,AE81,AE83) -> 31.89910261 | AM85: =SUM(AM67,AM71,AM76,AM79,AM81,AM83) -> 32.25572429
A87: Dedicated poles - inspection
A88: Crew costs | B88: ='DNSP Inputs O & M'!$D$12 -> 145.3495434 | C88: 1 | D88: ='DNSP Inputs O & M'!$D$16 -> 8 | E88: =B88*C88*D88 -> 1162.796347 | F88: =(E88+E89+E90)/'DNSP Inputs O & M'!$D$97 -> 357.4115957 | G88: =F88/'DNSP Inputs O & M'!$D$126 -> 1.189305609 | J88: ='DNSP Inputs O & M'!$E$12 -> 147.7977724 | K88: 1 | L88: ='DNSP Inputs O & M'!$E$16 -> 8 | M88: =J88*K88*L88 -> 1182.38218 | N88: =(M88+M89+M90)/'DNSP Inputs O & M'!$E$97 -> 363.6823249 | O88: =N88/'DNSP Inputs O & M'!$E$126 -> 1.210171785 | R88: ='DNSP Inputs O & M'!$F$12 -> 150.2872388 | S88: 1 | T88: ='DNSP Inputs O & M'!$F$16 -> 8 | U88: =R88*S88*T88 -> 1202.297911 | V88: =(U88+U89+U90)/'DNSP Inputs O & M'!$F$97 -> 369.8356302 | W88: =V88/'DNSP Inputs O & M'!$F$126 -> 1.230647228 | Z88: ='DNSP Inputs O & M'!$G$12 -> 152.8186371 | AA88: 1 | AB88: ='DNSP Inputs O & M'!$G$16 -> 8 | AC88: =Z88*AA88*AB88 -> 1222.549097 | AD88: =(AC88+AC89+AC90)/'DNSP Inputs O & M'!$G$97 -> 376.0822483 | AE88: =AD88/'DNSP Inputs O & M'!$G$126 -> 1.251433173 | AH88: ='DNSP Inputs O & M'!$H$12 -> 155.3926736 | AI88: 1 | AJ88: ='DNSP Inputs O & M'!$H$16 -> 8 | AK88: =AH88*AI88*AJ88 -> 1243.141389 | AL88: =(AK88+AK89+AK90)/'DNSP Inputs O & M'!$H$97 -> 382.4508705 | AM88: =AL88/'DNSP Inputs O & M'!$H$126 -> 1.272625093
A89: Vehicle costs | B89: ='DNSP Inputs O & M'!$D$15 -> 25.50745311 | C89: 1 | D89: ='DNSP Inputs O & M'!$D$16 -> 8 | E89: =B89*C89*D89 -> 204.0596249 | J89: ='DNSP Inputs O & M'!$E$15 -> 26.05688266 | K89: 1 | L89: ='DNSP Inputs O & M'!$E$16 -> 8 | M89: =J89*K89*L89 -> 208.4550612 | R89: ='DNSP Inputs O & M'!$F$15 -> 26.50894163 | S89: 1 | T89: ='DNSP Inputs O & M'!$F$16 -> 8 | U89: =R89*S89*T89 -> 212.0715331 | Z89: ='DNSP Inputs O & M'!$G$15 -> 26.96367591 | AA89: 1 | AB89: ='DNSP Inputs O & M'!$G$16 -> 8 | AC89: =Z89*AA89*AB89 -> 215.7094073 | AH89: ='DNSP Inputs O & M'!$H$15 -> 27.43409482 | AI89: 1 | AJ89: ='DNSP Inputs O & M'!$H$16 -> 8 | AK89: =AH89*AI89*AJ89 -> 219.4727586
A90: Overheads | B90: ='DNSP Inputs O & M'!$D$17 -> 0.3074223 | E90: =B90*(E88+E89) -> 420.2020067 | J90: ='DNSP Inputs O & M'!$E$17 -> 0.3074223 | M90: =J90*(M88+M89) -> 427.5743835 | R90: ='DNSP Inputs O & M'!$F$17 -> 0.3074223 | U90: =R90*(U88+U89) -> 434.8087074 | Z90: ='DNSP Inputs O & M'!$G$17 -> 0.3074223 | AC90: =Z90*(AC88+AC89) -> 442.1527373 | AH90: ='DNSP Inputs O & M'!$H$17 -> 0.3074223 | AK90: =AH90*(AK88+AK89) -> 449.6402052
A95: Sodium High Pressure 150 Watt Standard Light Type - Cost build-up
A97: Addiitonal assumptions
A98: Overheads are applied to material and labour components
A99: All costs and charges are exclusive of GST
B101: Urban | J101: Urban | R101: Urban | Z101: Urban | AH101: Urban
B103: Unit rate | C103: Number | D103: Hours | E103: Cost | F103: Annualised | G103: Annualised | J103: Unit rate | K103: Number | L103: Hours | M103: Cost | N103: Annualised | O103: Annualised | R103: Unit rate | S103: Number | T103: Hours | U103: Cost | V103: Annualised | W103: Annualised | Z103: Unit rate | AA103: Number | AB103: Hours | AC103: Cost | AD103: Annualised | AE103: Annualised | AH103: Unit rate | AI103: Number | AJ103: Hours | AK103: Cost | AL103: Annualised | AM103: Annualised
F104: cost | G104: unit cost | N104: cost | O104: unit cost | V104: cost | W104: unit cost | AD104: cost | AE104: unit cost | AL104: cost | AM104: unit cost
A105: S-HP 150
A106: Patrols and repairs
A107: Materials
A108: Lamp | B108: ='DNSP Inputs O & M'!$D$55 -> 41.18180183 | C108: ='DNSP Inputs O & M'!$D$61 -> 19.2 | E108: =B108*C108 -> 790.6905951 | F108: =(E108+E109+E110)/'DNSP Inputs O & M'!$D$61 -> 54.85715055 | G108: =F108/'DNSP Inputs O & M'!$D$53 -> 10.97143011 | J108: ='DNSP Inputs O & M'!$E$55 -> 41.18180183 | K108: ='DNSP Inputs O & M'!$E$61 -> 19.2 | M108: =J108*K108 -> 790.6905951 | N108: =(M108+M109+M110)/'DNSP Inputs O & M'!$E$61 -> 54.85715055 | O108: =N108/'DNSP Inputs O & M'!$E$53 -> 10.97143011 | R108: ='DNSP Inputs O & M'!$F$55 -> 41.18180183 | S108: ='DNSP Inputs O & M'!$F$61 -> 19.2 | U108: =R108*S108 -> 790.6905951 | V108: =(U108+U109+U110)/'DNSP Inputs O & M'!$F$61 -> 54.85715055 | W108: =V108/'DNSP Inputs O & M'!$F$53 -> 10.97143011 | Z108: ='DNSP Inputs O & M'!$G$55 -> 41.18180183 | AA108: ='DNSP Inputs O & M'!$G$61 -> 19.2 | AC108: =Z108*AA108 -> 790.6905951 | AD108: =(AC108+AC109+AC110)/'DNSP Inputs O & M'!$G$61 -> 54.85715055 | AE108: =AD108/'DNSP Inputs O & M'!$G$53 -> 10.97143011 | AH108: ='DNSP Inputs O & M'!$H$55 -> 41.18180183 | AI108: ='DNSP Inputs O & M'!$H$61 -> 19.2 | AK108: =AH108*AI108 -> 790.6905951 | AL108: =(AK108+AK109+AK110)/'DNSP Inputs O & M'!$H$61 -> 54.85715055 | AM108: =AL108/'DNSP Inputs O & M'!$H$53 -> 10.97143011
A109: PE cell | B109: ='DNSP Inputs O & M'!$D$56 -> 22.36651567 | C109: =C108*'DNSP Inputs O & M'!$D$53/'DNSP Inputs O & M'!$D$54 -> 9.6 | E109: =B109*C109 -> 214.7185504 | J109: ='DNSP Inputs O & M'!$E$56 -> 22.36651567 | K109: =K108*'DNSP Inputs O & M'!$E$53/'DNSP Inputs O & M'!$E$54 -> 9.6 | M109: =J109*K109 -> 214.7185504 | R109: ='DNSP Inputs O & M'!$F$56 -> 22.36651567 | S109: =S108*'DNSP Inputs O & M'!$F$53/'DNSP Inputs O & M'!$F$54 -> 9.6 | U109: =R109*S109 -> 214.7185504 | Z109: ='DNSP Inputs O & M'!$G$56 -> 22.36651567 | AA109: =AA108*'DNSP Inputs O & M'!$G$53/'DNSP Inputs O & M'!$G$54 -> 9.6 | AC109: =Z109*AA109 -> 214.7185504 | AH109: ='DNSP Inputs O & M'!$H$56 -> 22.36651567 | AI109: =AI108*'DNSP Inputs O & M'!$H$53/'DNSP Inputs O & M'!$H$54 -> 9.6 | AK109: =AH109*AI109 -> 214.7185504
A110: Miscellaneous | B110: ='DNSP Inputs O & M'!$D$57 -> 2.492090882 | C110: ='DNSP Inputs O & M'!$D$61 -> 19.2 | E110: =B110*C110 -> 47.84814494 | J110: ='DNSP Inputs O & M'!$E$57 -> 2.492090882 | K110: ='DNSP Inputs O & M'!$E$61 -> 19.2 | M110: =J110*K110 -> 47.84814494 | R110: ='DNSP Inputs O & M'!$F$57 -> 2.492090882 | S110: ='DNSP Inputs O & M'!$F$61 -> 19.2 | U110: =R110*S110 -> 47.84814494 | Z110: ='DNSP Inputs O & M'!$G$57 -> 2.492090882 | AA110: ='DNSP Inputs O & M'!$G$61 -> 19.2 | AC110: =Z110*AA110 -> 47.84814494 | AH110: ='DNSP Inputs O & M'!$H$57 -> 2.492090882 | AI110: ='DNSP Inputs O & M'!$H$61 -> 19.2 | AK110: =AH110*AI110 -> 47.84814494
A111: Labour - Patrol
A112: Crew costs | B112: ='DNSP Inputs O & M'!$D$12 -> 145.3495434 | C112: ='DNSP Inputs O & M'!$D$58 -> 2 | D112: ='DNSP Inputs O & M'!$D$16 -> 8 | E112: =B112*C112*D112 -> 2325.592694 | F112: =(E112+E113)/'DNSP Inputs O & M'!$D$60 -> 0.8432174397 | G112: =F112*'DNSP Inputs O & M'!$D$52 -> 2.529652319 | J112: ='DNSP Inputs O & M'!$E$12 -> 147.7977724 | K112: ='DNSP Inputs O & M'!$E$58 -> 2 | L112: ='DNSP Inputs O & M'!$E$16 -> 8 | M112: =J112*K112*L112 -> 2364.764359 | N112: =(M112+M113)/'DNSP Inputs O & M'!$E$60 -> 0.8577398068 | O112: =N112*'DNSP Inputs O & M'!$E$52 -> 2.57321942 | R112: ='DNSP Inputs O & M'!$F$12 -> 150.2872388 | S112: ='DNSP Inputs O & M'!$F$58 -> 2 | T112: ='DNSP Inputs O & M'!$F$16 -> 8 | U112: =R112*S112*T112 -> 2404.595821 | V112: =(U112+U113)/'DNSP Inputs O & M'!$F$60 -> 0.8722224514 | W112: =V112*'DNSP Inputs O & M'!$F$52 -> 2.616667354 | Z112: ='DNSP Inputs O & M'!$G$12 -> 152.8186371 | AA112: ='DNSP Inputs O & M'!$G$58 -> 2 | AB112: ='DNSP Inputs O & M'!$G$16 -> 8 | AC112: =Z112*AA112*AB112 -> 2445.098194 | AD112: =(AC112+AC113)/'DNSP Inputs O & M'!$G$60 -> 0.886935867 | AE112: =AD112*'DNSP Inputs O & M'!$G$52 -> 2.660807601 | AH112: ='DNSP Inputs O & M'!$H$12 -> 155.3926736 | AI112: ='DNSP Inputs O & M'!$H$58 -> 2 | AJ112: ='DNSP Inputs O & M'!$H$16 -> 8 | AK112: =AH112*AI112*AJ112 -> 2486.282777 | AL112: =(AK112+AK113)/'DNSP Inputs O & M'!$H$60 -> 0.901918512 | AM112: =AL112*'DNSP Inputs O & M'!$H$52 -> 2.705755536
A113: Vehicle costs | B113: ='DNSP Inputs O & M'!$D$15 -> 25.50745311 | C113: 1 | D113: ='DNSP Inputs O & M'!$D$16 -> 8 | E113: =B113*C113*D113 -> 204.0596249 | J113: ='DNSP Inputs O & M'!$E$15 -> 26.05688266 | K113: 1 | L113: ='DNSP Inputs O & M'!$E$16 -> 8 | M113: =J113*K113*L113 -> 208.4550612 | R113: ='DNSP Inputs O & M'!$F$15 -> 26.50894163 | S113: 1 | T113: ='DNSP Inputs O & M'!$F$16 -> 8 | U113: =R113*S113*T113 -> 212.0715331 | Z113: ='DNSP Inputs O & M'!$G$15 -> 26.96367591 | AA113: 1 | AB113: ='DNSP Inputs O & M'!$G$16 -> 8 | AC113: =Z113*AA113*AB113 -> 215.7094073 | AH113: ='DNSP Inputs O & M'!$H$15 -> 27.43409482 | AI113: 1 | AJ113: ='DNSP Inputs O & M'!$H$16 -> 8 | AK113: =AH113*AI113*AJ113 -> 219.4727586
A114: Labour - Repair of faults
A115: Crew costs | B115: ='DNSP Inputs O & M'!$D$11 -> 123.7674125 | C115: ='DNSP Inputs O & M'!$D$59 -> 2 | D115: ='DNSP Inputs O & M'!$D$16 -> 8 | E115: =B115*C115*D115 -> 1980.278601 | F115: =(E115+E116)/'DNSP Inputs O & M'!$D$61*(C108+C109)/C108 -> 190.6801754 | G115: =F115/'DNSP Inputs O & M'!$D$53 -> 38.13603508 | J115: ='DNSP Inputs O & M'!$E$11 -> 125.8521179 | K115: ='DNSP Inputs O & M'!$E$59 -> 2 | L115: ='DNSP Inputs O & M'!$E$16 -> 8 | M115: =J115*K115*L115 -> 2013.633887 | N115: =(M115+M116)/'DNSP Inputs O & M'!$E$61*(K108+K109)/K108 -> 194.0608691 | O115: =N115/'DNSP Inputs O & M'!$E$53 -> 38.81217382 | R115: ='DNSP Inputs O & M'!$F$11 -> 127.9719375 | S115: ='DNSP Inputs O & M'!$F$59 -> 2 | T115: ='DNSP Inputs O & M'!$F$16 -> 8 | U115: =R115*S115*T115 -> 2047.551 | V115: =(U115+U116)/'DNSP Inputs O & M'!$F$61*(S108+S109)/S108 -> 197.3481425 | W115: =V115/'DNSP Inputs O & M'!$F$53 -> 39.4696285 | Z115: ='DNSP Inputs O & M'!$G$11 -> 130.1274628 | AA115: ='DNSP Inputs O & M'!$G$59 -> 2 | AB115: ='DNSP Inputs O & M'!$G$16 -> 8 | AC115: =Z115*AA115*AB115 -> 2082.039405 | AD115: =(AC115+AC116)/'DNSP Inputs O & M'!$G$61*(AA108+AA109)/AA108 -> 200.6838207 | AE115: =AD115/'DNSP Inputs O & M'!$G$53 -> 40.13676414 | AH115: ='DNSP Inputs O & M'!$H$11 -> 132.3192952 | AI115: ='DNSP Inputs O & M'!$H$59 -> 2 | AJ115: ='DNSP Inputs O & M'!$H$16 -> 8 | AK115: =AH115*AI115*AJ115 -> 2117.108723 | AL115: =(AK115+AK116)/'DNSP Inputs O & M'!$H$61*(AI108+AI109)/AI108 -> 204.0870014 | AM115: =AL115/'DNSP Inputs O & M'!$H$53 -> 40.81740029
A116: Elevated platform vehicle costs | B116: ='DNSP Inputs O & M'!$D$14 -> 57.55345553 | C116: 1 | D116: ='DNSP Inputs O & M'!$D$16 -> 8 | E116: =B116*C116*D116 -> 460.4276442 | J116: ='DNSP Inputs O & M'!$E$14 -> 58.79315472 | K116: 1 | L116: ='DNSP Inputs O & M'!$E$16 -> 8 | M116: =J116*K116*L116 -> 470.3452378 | R116: ='DNSP Inputs O & M'!$F$14 -> 59.81315292 | S116: 1 | T116: ='DNSP Inputs O & M'!$F$16 -> 8 | U116: =R116*S116*T116 -> 478.5052234 | Z116: ='DNSP Inputs O & M'!$G$14 -> 60.83918751 | AA116: 1 | AB116: ='DNSP Inputs O & M'!$G$16 -> 8 | AC116: =Z116*AA116*AB116 -> 486.7135001 | AH116: ='DNSP Inputs O & M'!$H$14 -> 61.90061193 | AI116: 1 | AJ116: ='DNSP Inputs O & M'!$H$16 -> 8 | AK116: =AH116*AI116*AJ116 -> 495.2048955
A118: Other Maintenance and Repair costs | G118: ='DNSP Inputs O & M'!$D$68 -> 4.223870889 | O118: ='DNSP Inputs O & M'!$E$68 -> 4.275960421 | W118: ='DNSP Inputs O & M'!$F$68 -> 4.323944223 | AE118: ='DNSP Inputs O & M'!$G$68 -> 4.329371702 | AM118: ='DNSP Inputs O & M'!$H$68 -> 4.330713128
A120: Overheads | B120: ='DNSP Inputs O & M'!$D$17 -> 0.3074223 | G120: =B120*(G108+G112+G115+G118) -> 17.17291353 | J120: ='DNSP Inputs O & M'!$E$17 -> 0.3074223 | O120: =J120*(O108+O112+O115+O118) -> 17.41018064 | R120: ='DNSP Inputs O & M'!$F$17 -> 0.3074223 | W120: =R120*(W108+W112+W115+W118) -> 17.64040503 | Z120: ='DNSP Inputs O & M'!$G$17 -> 0.3074223 | AE120: =Z120*(AE108+AE112+AE115+AE118) -> 17.86073562 | AH120: ='DNSP Inputs O & M'!$H$17 -> 0.3074223 | AM120: =AH120*(AM108+AM112+AM115+AM118) -> 18.08420874
G122: =SUM(G108,G112,G115,G118,G120) -> 73.03390192 | O122: =SUM(O108,O112,O115,O118,O120) -> 74.04296441 | W122: =SUM(W108,W112,W115,W118,W120) -> 75.02207521 | AE122: =SUM(AE108,AE112,AE115,AE118,AE120) -> 75.95910918 | AM122: =SUM(AM108,AM112,AM115,AM118,AM120) -> 76.9095078
A127: Sodium High Pressure 250 Watt Standard Light Type - Cost build-up
A129: Addiitonal assumptions
A130: Overheads are applied to material and labour components
A131: All costs and charges are exclusive of GST
B133: Urban | J133: Urban | R133: Urban | Z133: Urban | AH133: Urban
B135: Unit rate | C135: Number | D135: Hours | E135: Cost | F135: Annualised | G135: Annualised | J135: Unit rate | K135: Number | L135: Hours | M135: Cost | N135: Annualised | O135: Annualised | R135: Unit rate | S135: Number | T135: Hours | U135: Cost | V135: Annualised | W135: Annualised | Z135: Unit rate | AA135: Number | AB135: Hours | AC135: Cost | AD135: Annualised | AE135: Annualised | AH135: Unit rate | AI135: Number | AJ135: Hours | AK135: Cost | AL135: Annualised | AM135: Annualised
F136: cost | G136: unit cost | N136: cost | O136: unit cost | V136: cost | W136: unit cost | AD136: cost | AE136: unit cost | AL136: cost | AM136: unit cost
A137: S-HP 250
A138: Patrols and repairs
A139: Materials
A140: Lamp | B140: ='DNSP Inputs O & M'!$D$78 -> 41.18180183 | C140: ='DNSP Inputs O & M'!$D$61 -> 19.2 | E140: =B140*C140 -> 790.6905951 | F140: =(E140+E141+E142)/'DNSP Inputs O & M'!$D$61 -> 54.85715055 | G140: =F140/'DNSP Inputs O & M'!$D$53 -> 10.97143011 | J140: ='DNSP Inputs O & M'!$E$78 -> 41.18180183 | K140: ='DNSP Inputs O & M'!$E$61 -> 19.2 | M140: =J140*K140 -> 790.6905951 | N140: =(M140+M141+M142)/'DNSP Inputs O & M'!$E$61 -> 54.85715055 | O140: =N140/'DNSP Inputs O & M'!$E$53 -> 10.97143011 | R140: ='DNSP Inputs O & M'!$F$78 -> 41.18180183 | S140: ='DNSP Inputs O & M'!$F$61 -> 19.2 | U140: =R140*S140 -> 790.6905951 | V140: =(U140+U141+U142)/'DNSP Inputs O & M'!$F$61 -> 54.85715055 | W140: =V140/'DNSP Inputs O & M'!$F$53 -> 10.97143011 | Z140: ='DNSP Inputs O & M'!$G$78 -> 41.18180183 | AA140: ='DNSP Inputs O & M'!$G$61 -> 19.2 | AC140: =Z140*AA140 -> 790.6905951 | AD140: =(AC140+AC141+AC142)/'DNSP Inputs O & M'!$G$61 -> 54.85715055 | AE140: =AD140/'DNSP Inputs O & M'!$G$53 -> 10.97143011 | AH140: ='DNSP Inputs O & M'!$H$78 -> 41.18180183 | AI140: ='DNSP Inputs O & M'!$H$61 -> 19.2 | AK140: =AH140*AI140 -> 790.6905951 | AL140: =(AK140+AK141+AK142)/'DNSP Inputs O & M'!$H$61 -> 54.85715055 | AM140: =AL140/'DNSP Inputs O & M'!$H$53 -> 10.97143011
A141: PE cell | B141: ='DNSP Inputs O & M'!$D$79 -> 22.36651567 | C141: =C140*'DNSP Inputs O & M'!$D$53/'DNSP Inputs O & M'!$D$54 -> 9.6 | E141: =B141*C141 -> 214.7185504 | J141: ='DNSP Inputs O & M'!$E$79 -> 22.36651567 | K141: =K140*'DNSP Inputs O & M'!$E$53/'DNSP Inputs O & M'!$E$54 -> 9.6 | M141: =J141*K141 -> 214.7185504 | R141: ='DNSP Inputs O & M'!$F$79 -> 22.36651567 | S141: =S140*'DNSP Inputs O & M'!$F$53/'DNSP Inputs O & M'!$F$54 -> 9.6 | U141: =R141*S141 -> 214.7185504 | Z141: ='DNSP Inputs O & M'!$G$79 -> 22.36651567 | AA141: =AA140*'DNSP Inputs O & M'!$G$53/'DNSP Inputs O & M'!$G$54 -> 9.6 | AC141: =Z141*AA141 -> 214.7185504 | AH141: ='DNSP Inputs O & M'!$H$79 -> 22.36651567 | AI141: =AI140*'DNSP Inputs O & M'!$H$53/'DNSP Inputs O & M'!$H$54 -> 9.6 | AK141: =AH141*AI141 -> 214.7185504
A142: Miscellaneous | B142: ='DNSP Inputs O & M'!$D$80 -> 2.492090882 | C142: ='DNSP Inputs O & M'!$D$61 -> 19.2 | E142: =B142*C142 -> 47.84814494 | J142: ='DNSP Inputs O & M'!$E$80 -> 2.492090882 | K142: ='DNSP Inputs O & M'!$E$61 -> 19.2 | M142: =J142*K142 -> 47.84814494 | R142: ='DNSP Inputs O & M'!$F$80 -> 2.492090882 | S142: ='DNSP Inputs O & M'!$F$61 -> 19.2 | U142: =R142*S142 -> 47.84814494 | Z142: ='DNSP Inputs O & M'!$G$80 -> 2.492090882 | AA142: ='DNSP Inputs O & M'!$G$61 -> 19.2 | AC142: =Z142*AA142 -> 47.84814494 | AH142: ='DNSP Inputs O & M'!$H$80 -> 2.492090882 | AI142: ='DNSP Inputs O & M'!$H$61 -> 19.2 | AK142: =AH142*AI142 -> 47.84814494
A143: Labour - Patrol
A144: Crew costs | B144: ='DNSP Inputs O & M'!$D$12 -> 145.3495434 | C144: ='DNSP Inputs O & M'!$D$58 -> 2 | D144: ='DNSP Inputs O & M'!$D$16 -> 8 | E144: =B144*C144*D144 -> 2325.592694 | F144: =(E144+E145)/'DNSP Inputs O & M'!$D$60 -> 0.8432174397 | G144: =F144*'DNSP Inputs O & M'!$D$52 -> 2.529652319 | J144: ='DNSP Inputs O & M'!$E$12 -> 147.7977724 | K144: ='DNSP Inputs O & M'!$E$58 -> 2 | L144: ='DNSP Inputs O & M'!$E$16 -> 8 | M144: =J144*K144*L144 -> 2364.764359 | N144: =(M144+M145)/'DNSP Inputs O & M'!$E$60 -> 0.8577398068 | O144: =N144*'DNSP Inputs O & M'!$E$52 -> 2.57321942 | R144: ='DNSP Inputs O & M'!$F$12 -> 150.2872388 | S144: ='DNSP Inputs O & M'!$F$58 -> 2 | T144: ='DNSP Inputs O & M'!$F$16 -> 8 | U144: =R144*S144*T144 -> 2404.595821 | V144: =(U144+U145)/'DNSP Inputs O & M'!$F$60 -> 0.8722224514 | W144: =V144*'DNSP Inputs O & M'!$F$52 -> 2.616667354 | Z144: ='DNSP Inputs O & M'!$G$12 -> 152.8186371 | AA144: ='DNSP Inputs O & M'!$G$58 -> 2 | AB144: ='DNSP Inputs O & M'!$G$16 -> 8 | AC144: =Z144*AA144*AB144 -> 2445.098194 | AD144: =(AC144+AC145)/'DNSP Inputs O & M'!$G$60 -> 0.886935867 | AE144: =AD144*'DNSP Inputs O & M'!$G$52 -> 2.660807601 | AH144: ='DNSP Inputs O & M'!$H$12 -> 155.3926736 | AI144: ='DNSP Inputs O & M'!$H$58 -> 2 | AJ144: ='DNSP Inputs O & M'!$H$16 -> 8 | AK144: =AH144*AI144*AJ144 -> 2486.282777 | AL144: =(AK144+AK145)/'DNSP Inputs O & M'!$H$60 -> 0.901918512 | AM144: =AL144*'DNSP Inputs O & M'!$H$52 -> 2.705755536
A145: Vehicle costs | B145: ='DNSP Inputs O & M'!$D$15 -> 25.50745311 | C145: 1 | D145: ='DNSP Inputs O & M'!$D$16 -> 8 | E145: =B145*C145*D145 -> 204.0596249 | J145: ='DNSP Inputs O & M'!$E$15 -> 26.05688266 | K145: 1 | L145: ='DNSP Inputs O & M'!$E$16 -> 8 | M145: =J145*K145*L145 -> 208.4550612 | R145: ='DNSP Inputs O & M'!$F$15 -> 26.50894163 | S145: 1 | T145: ='DNSP Inputs O & M'!$F$16 -> 8 | U145: =R145*S145*T145 -> 212.0715331 | Z145: ='DNSP Inputs O & M'!$G$15 -> 26.96367591 | AA145: 1 | AB145: ='DNSP Inputs O & M'!$G$16 -> 8 | AC145: =Z145*AA145*AB145 -> 215.7094073 | AH145: ='DNSP Inputs O & M'!$H$15 -> 27.43409482 | AI145: 1 | AJ145: ='DNSP Inputs O & M'!$H$16 -> 8 | AK145: =AH145*AI145*AJ145 -> 219.4727586
A146: Labour - Repair of faults
A147: Crew costs | B147: ='DNSP Inputs O & M'!$D$11 -> 123.7674125 | C147: ='DNSP Inputs O & M'!$D$59 -> 2 | D147: ='DNSP Inputs O & M'!$D$16 -> 8 | E147: =B147*C147*D147 -> 1980.278601 | F147: =(E147+E148)/'DNSP Inputs O & M'!$D$61*(C140+C141)/C140 -> 190.6801754 | G147: =F147/'DNSP Inputs O & M'!$D$53 -> 38.13603508 | J147: ='DNSP Inputs O & M'!$E$11 -> 125.8521179 | K147: ='DNSP Inputs O & M'!$E$59 -> 2 | L147: ='DNSP Inputs O & M'!$E$16 -> 8 | M147: =J147*K147*L147 -> 2013.633887 | N147: =(M147+M148)/'DNSP Inputs O & M'!$E$61*(K140+K141)/K140 -> 194.0608691 | O147: =N147/'DNSP Inputs O & M'!$E$53 -> 38.81217382 | R147: ='DNSP Inputs O & M'!$F$11 -> 127.9719375 | S147: ='DNSP Inputs O & M'!$F$59 -> 2 | T147: ='DNSP Inputs O & M'!$F$16 -> 8 | U147: =R147*S147*T147 -> 2047.551 | V147: =(U147+U148)/'DNSP Inputs O & M'!$F$61*(S140+S141)/S140 -> 197.3481425 | W147: =V147/'DNSP Inputs O & M'!$F$53 -> 39.4696285 | Z147: ='DNSP Inputs O & M'!$G$11 -> 130.1274628 | AA147: ='DNSP Inputs O & M'!$G$59 -> 2 | AB147: ='DNSP Inputs O & M'!$G$16 -> 8 | AC147: =Z147*AA147*AB147 -> 2082.039405 | AD147: =(AC147+AC148)/'DNSP Inputs O & M'!$G$61*(AA140+AA141)/AA140 -> 200.6838207 | AE147: =AD147/'DNSP Inputs O & M'!$G$53 -> 40.13676414 | AH147: ='DNSP Inputs O & M'!$H$11 -> 132.3192952 | AI147: ='DNSP Inputs O & M'!$H$59 -> 2 | AJ147: ='DNSP Inputs O & M'!$H$16 -> 8 | AK147: =AH147*AI147*AJ147 -> 2117.108723 | AL147: =(AK147+AK148)/'DNSP Inputs O & M'!$H$61*(AI140+AI141)/AI140 -> 204.0870014 | AM147: =AL147/'DNSP Inputs O & M'!$H$53 -> 40.81740029
A148: Elevated platform vehicle costs | B148: ='DNSP Inputs O & M'!$D$14 -> 57.55345553 | C148: 1 | D148: ='DNSP Inputs O & M'!$D$16 -> 8 | E148: =B148*C148*D148 -> 460.4276442 | J148: ='DNSP Inputs O & M'!$E$14 -> 58.79315472 | K148: 1 | L148: ='DNSP Inputs O & M'!$E$16 -> 8 | M148: =J148*K148*L148 -> 470.3452378 | R148: ='DNSP Inputs O & M'!$F$14 -> 59.81315292 | S148: 1 | T148: ='DNSP Inputs O & M'!$F$16 -> 8 | U148: =R148*S148*T148 -> 478.5052234 | Z148: ='DNSP Inputs O & M'!$G$14 -> 60.83918751 | AA148: 1 | AB148: ='DNSP Inputs O & M'!$G$16 -> 8 | AC148: =Z148*AA148*AB148 -> 486.7135001 | AH148: ='DNSP Inputs O & M'!$H$14 -> 61.90061193 | AI148: 1 | AJ148: ='DNSP Inputs O & M'!$H$16 -> 8 | AK148: =AH148*AI148*AJ148 -> 495.2048955
A150: Other Maintenance and Repair costs | G150: ='DNSP Inputs O & M'!$D$91 -> 4.531119034 | O150: ='DNSP Inputs O & M'!$E$91 -> 4.572962641 | W150: ='DNSP Inputs O & M'!$F$91 -> 4.639335418 | AE150: ='DNSP Inputs O & M'!$G$91 -> 4.660330918 | AM150: ='DNSP Inputs O & M'!$H$91 -> 4.677055216
A152: Overheads | B152: ='DNSP Inputs O & M'!$D$17 -> 0.3074223 | G152: =B152*(G140+G144+G147+G150) -> 17.26736846 | J152: ='DNSP Inputs O & M'!$E$17 -> 0.3074223 | O152: =J152*(O140+O144+O147+O150) -> 17.50148575 | R152: ='DNSP Inputs O & M'!$F$17 -> 0.3074223 | W152: =R152*(W140+W144+W147+W150) -> 17.73736331 | Z152: ='DNSP Inputs O & M'!$G$17 -> 0.3074223 | AE152: =Z152*(AE140+AE144+AE147+AE150) -> 17.96247987 | AH152: ='DNSP Inputs O & M'!$H$17 -> 0.3074223 | AM152: =AH152*(AM140+AM144+AM147+AM150) -> 18.19068202
G154: =SUM(G140,G144,G147,G150,G152) -> 73.435605 | O154: =SUM(O140,O144,O147,O150,O152) -> 74.43127174 | W154: =SUM(W140,W144,W147,W150,W152) -> 75.43442469 | AE154: =SUM(AE140,AE144,AE147,AE150,AE152) -> 76.39181264 | AM154: =SUM(AM140,AM144,AM147,AM150,AM152) -> 77.36232316
A159: Energy Efficient Lights - Cost build-up
A161: Addiitonal assumptions
A162: Proportion of luminaire that will fail before bulk change | D162: ='DNSP Inputs O & M'!$D$123 -> 0.114 | L162: ='DNSP Inputs O & M'!$E$123 -> 0.114 | T162: ='DNSP Inputs O & M'!$F$123 -> 0.114 | AB162: ='DNSP Inputs O & M'!$G$123 -> 0.114 | AJ162: ='DNSP Inputs O & M'!$H$123 -> 0.114
A163: Proportion of lamps that will fail before bulk change (per year) | D163: =D162/'DNSP Inputs O & M'!$D$120 -> 0.0285 | L163: =L162/'DNSP Inputs O & M'!$E$120 -> 0.0285 | T163: =T162/'DNSP Inputs O & M'!$F$120 -> 0.0285 | AB163: =AB162/'DNSP Inputs O & M'!$G$120 -> 0.0285 | AJ163: =AJ162/'DNSP Inputs O & M'!$H$120 -> 0.0285
A164: Overheads are applied to material and labour components
A165: All costs and charges are exclusive of GST
B167: Urban | J167: Urban | R167: Urban | Z167: Urban | AH167: Urban
B169: Unit rate | C169: Number | D169: Hours | E169: Cost | F169: Annualised | G169: Annualised | J169: Unit rate | K169: Number | L169: Hours | M169: Cost | N169: Annualised | O169: Annualised | R169: Unit rate | S169: Number | T169: Hours | U169: Cost | V169: Annualised | W169: Annualised | Z169: Unit rate | AA169: Number | AB169: Hours | AC169: Cost | AD169: Annualised | AE169: Annualised | AH169: Unit rate | AI169: Number | AJ169: Hours | AK169: Cost | AL169: Annualised | AM169: Annualised
F170: cost | G170: unit cost | N170: cost | O170: unit cost | V170: cost | W170: unit cost | AD170: cost | AE170: unit cost | AL170: cost | AM170: unit cost
A171: ='DNSP Inputs General'!A68 -> T5 2X14W
A172: Bulk change & repairs
A173: Materials - bulk lamp change
A174: Lamp | B174: ='DNSP Inputs O & M'!D124 -> 9.968363529 | C174: ='DNSP Inputs O & M'!D130 -> 73.92 | E174: =B174*C174 -> 736.8614321 | F174: =E174/'DNSP Inputs O & M'!D120 * 'DNSP Inputs O & M'!$B$146 -> 147.3722864 | G174: =(F174+F175+F176)/C174 -> 4.345583476 | J174: ='DNSP Inputs O & M'!E124 -> 9.968363529 | K174: ='DNSP Inputs O & M'!E130 -> 73.92 | M174: =J174*K174 -> 736.8614321 | N174: =M174/'DNSP Inputs O & M'!E120 * 'DNSP Inputs O & M'!$B$146 -> 147.3722864 | O174: =(N174+N175+N176)/K174 -> 4.345583476 | R174: ='DNSP Inputs O & M'!F124 -> 9.968363529 | S174: ='DNSP Inputs O & M'!F130 -> 73.92 | U174: =R174*S174 -> 736.8614321 | V174: =U174/'DNSP Inputs O & M'!F120 * 'DNSP Inputs O & M'!$B$146 -> 147.3722864 | W174: =(V174+V175+V176)/S174 -> 4.345583476 | Z174: ='DNSP Inputs O & M'!G124 -> 9.968363529 | AA174: ='DNSP Inputs O & M'!G130 -> 73.92 | AC174: =Z174*AA174 -> 736.8614321 | AD174: =AC174/'DNSP Inputs O & M'!G120 * 'DNSP Inputs O & M'!$B$146 -> 147.3722864 | AE174: =(AD174+AD175+AD176)/AA174 -> 4.345583476 | AH174: ='DNSP Inputs O & M'!H124 -> 9.968363529 | AI174: ='DNSP Inputs O & M'!H130 -> 73.92 | AK174: =AH174*AI174 -> 736.8614321 | AL174: =AK174/'DNSP Inputs O & M'!H120 * 'DNSP Inputs O & M'!$B$146 -> 147.3722864 | AM174: =(AL174+AL175+AL176)/AI174 -> 4.345583476
A175: PE cell | B175: ='DNSP Inputs O & M'!D125 -> 16.82161346 | C175: =C174*'DNSP Inputs O & M'!D120/'DNSP Inputs O & M'!D121 -> 36.96 | E175: =B175*C175 -> 621.7268333 | F175: =E175/'DNSP Inputs O & M'!D120 -> 155.4317083 | J175: ='DNSP Inputs O & M'!E125 -> 16.82161346 | K175: =K174*'DNSP Inputs O & M'!E120/'DNSP Inputs O & M'!E121 -> 36.96 | M175: =J175*K175 -> 621.7268333 | N175: =M175/'DNSP Inputs O & M'!E120 -> 155.4317083 | R175: ='DNSP Inputs O & M'!F125 -> 16.82161346 | S175: =S174*'DNSP Inputs O & M'!F120/'DNSP Inputs O & M'!F121 -> 36.96 | U175: =R175*S175 -> 621.7268333 | V175: =U175/'DNSP Inputs O & M'!F120 -> 155.4317083 | Z175: ='DNSP Inputs O & M'!G125 -> 16.82161346 | AA175: =AA174*'DNSP Inputs O & M'!G120/'DNSP Inputs O & M'!G121 -> 36.96 | AC175: =Z175*AA175 -> 621.7268333 | AD175: =AC175/'DNSP Inputs O & M'!G120 -> 155.4317083 | AH175: ='DNSP Inputs O & M'!H125 -> 16.82161346 | AI175: =AI174*'DNSP Inputs O & M'!H120/'DNSP Inputs O & M'!H121 -> 36.96 | AK175: =AH175*AI175 -> 621.7268333 | AL175: =AK175/'DNSP Inputs O & M'!H120 -> 155.4317083
A176: Miscellaneous | B176: ='DNSP Inputs O & M'!D127 -> 1.246045441 | C176: ='DNSP Inputs O & M'!D130 -> 73.92 | E176: =B176*C176 -> 92.10767901 | F176: =E176/'DNSP Inputs O & M'!D120 * 'DNSP Inputs O & M'!$B$146 -> 18.4215358 | J176: ='DNSP Inputs O & M'!E127 -> 1.246045441 | K176: ='DNSP Inputs O & M'!E130 -> 73.92 | M176: =J176*K176 -> 92.10767901 | N176: =M176/'DNSP Inputs O & M'!E120 * 'DNSP Inputs O & M'!$B$146 -> 18.4215358 | R176: ='DNSP Inputs O & M'!F127 -> 1.246045441 | S176: ='DNSP Inputs O & M'!F130 -> 73.92 | U176: =R176*S176 -> 92.10767901 | V176: =U176/'DNSP Inputs O & M'!F120 * 'DNSP Inputs O & M'!$B$146 -> 18.4215358 | Z176: ='DNSP Inputs O & M'!G127 -> 1.246045441 | AA176: ='DNSP Inputs O & M'!G130 -> 73.92 | AC176: =Z176*AA176 -> 92.10767901 | AD176: =AC176/'DNSP Inputs O & M'!G120 * 'DNSP Inputs O & M'!$B$146 -> 18.4215358 | AH176: ='DNSP Inputs O & M'!H127 -> 1.246045441 | AI176: ='DNSP Inputs O & M'!H130 -> 73.92 | AK176: =AH176*AI176 -> 92.10767901 | AL176: =AK176/'DNSP Inputs O & M'!H120 * 'DNSP Inputs O & M'!$B$146 -> 18.4215358
A177: Materials - repair of faults
A178: Lamp | B178: ='DNSP Inputs O & M'!D124 -> 9.968363529 | C178: ='DNSP Inputs O & M'!D131*'DNSP Inputs O & M'!D132 -> 14.976 | E178: =B178*C178 -> 149.2862122 | F178: =(E178+E179+E180+E181)/'DNSP Inputs O & M'!D131 -> 60.71605621 | G178: =F178*D163 -> 1.730407602 | J178: ='DNSP Inputs O & M'!E124 -> 9.968363529 | K178: ='DNSP Inputs O & M'!E131*'DNSP Inputs O & M'!E132 -> 14.976 | M178: =J178*K178 -> 149.2862122 | N178: =(M178+M179+M180+M181)/'DNSP Inputs O & M'!E131 -> 60.71605621 | O178: =N178*L163 -> 1.730407602 | R178: ='DNSP Inputs O & M'!F124 -> 9.968363529 | S178: ='DNSP Inputs O & M'!F131*'DNSP Inputs O & M'!F132 -> 14.976 | U178: =R178*S178 -> 149.2862122 | V178: =(U178+U179+U180+U181)/'DNSP Inputs O & M'!F131 -> 60.71605621 | W178: =V178*T163 -> 1.730407602 | Z178: ='DNSP Inputs O & M'!G124 -> 9.968363529 | AA178: ='DNSP Inputs O & M'!G131*'DNSP Inputs O & M'!G132 -> 14.976 | AC178: =Z178*AA178 -> 149.2862122 | AD178: =(AC178+AC179+AC180+AC181)/'DNSP Inputs O & M'!G131 -> 60.71605621 | AE178: =AD178*AB163 -> 1.730407602 | AH178: ='DNSP Inputs O & M'!H124 -> 9.968363529 | AI178: ='DNSP Inputs O & M'!H131*'DNSP Inputs O & M'!H132 -> 14.976 | AK178: =AH178*AI178 -> 149.2862122 | AL178: =(AK178+AK179+AK180+AK181)/'DNSP Inputs O & M'!H131 -> 60.71605621 | AM178: =AL178*AJ163 -> 1.730407602
A179: PE cell | B179: ='DNSP Inputs O & M'!D125 -> 16.82161346 | C179: ='DNSP Inputs O & M'!D131*'DNSP Inputs O & M'!D133 -> 12.48 | E179: =B179*C179 -> 209.9337359 | J179: ='DNSP Inputs O & M'!E125 -> 16.82161346 | K179: ='DNSP Inputs O & M'!E131*'DNSP Inputs O & M'!E133 -> 12.48 | M179: =J179*K179 -> 209.9337359 | R179: ='DNSP Inputs O & M'!F125 -> 16.82161346 | S179: ='DNSP Inputs O & M'!F131*'DNSP Inputs O & M'!F133 -> 12.48 | U179: =R179*S179 -> 209.9337359 | Z179: ='DNSP Inputs O & M'!G125 -> 16.82161346 | AA179: ='DNSP Inputs O & M'!G131*'DNSP Inputs O & M'!G133 -> 12.48 | AC179: =Z179*AA179 -> 209.9337359 | AH179: ='DNSP Inputs O & M'!H125 -> 16.82161346 | AI179: ='DNSP Inputs O & M'!H131*'DNSP Inputs O & M'!H133 -> 12.48 | AK179: =AH179*AI179 -> 209.9337359
A180: Luminaire | B180: ='DNSP Inputs O & M'!D126 -> 300.5212395 | C180: ='DNSP Inputs O & M'!D131*'DNSP Inputs O & M'!D134 -> 3.744 | E180: =B180*C180 -> 1125.151521 | J180: ='DNSP Inputs O & M'!E126 -> 300.5212395 | K180: ='DNSP Inputs O & M'!E131*'DNSP Inputs O & M'!E134 -> 3.744 | M180: =J180*K180 -> 1125.151521 | R180: ='DNSP Inputs O & M'!F126 -> 300.5212395 | S180: ='DNSP Inputs O & M'!F131*'DNSP Inputs O & M'!F134 -> 3.744 | U180: =R180*S180 -> 1125.151521 | Z180: ='DNSP Inputs O & M'!G126 -> 300.5212395 | AA180: ='DNSP Inputs O & M'!G131*'DNSP Inputs O & M'!G134 -> 3.744 | AC180: =Z180*AA180 -> 1125.151521 | AH180: ='DNSP Inputs O & M'!H126 -> 300.5212395 | AI180: ='DNSP Inputs O & M'!H131*'DNSP Inputs O & M'!H134 -> 3.744 | AK180: =AH180*AI180 -> 1125.151521
A181: Miscellaneous | B181: ='DNSP Inputs O & M'!D128 -> 12.46045441 | C181: ='DNSP Inputs O & M'!D131*'DNSP Inputs O & M'!D135 -> 2.496 | E181: =B181*C181 -> 31.10129421 | J181: ='DNSP Inputs O & M'!E128 -> 12.46045441 | K181: ='DNSP Inputs O & M'!E131*'DNSP Inputs O & M'!E135 -> 2.496 | M181: =J181*K181 -> 31.10129421 | R181: ='DNSP Inputs O & M'!F128 -> 12.46045441 | S181: ='DNSP Inputs O & M'!F131*'DNSP Inputs O & M'!F135 -> 2.496 | U181: =R181*S181 -> 31.10129421 | Z181: ='DNSP Inputs O & M'!G128 -> 12.46045441 | AA181: ='DNSP Inputs O & M'!G131*'DNSP Inputs O & M'!G135 -> 2.496 | AC181: =Z181*AA181 -> 31.10129421 | AH181: ='DNSP Inputs O & M'!H128 -> 12.46045441 | AI181: ='DNSP Inputs O & M'!H131*'DNSP Inputs O & M'!H135 -> 2.496 | AK181: =AH181*AI181 -> 31.10129421
A182: Labour - bulk lamp change
A183: Crew costs | B183: ='DNSP Inputs O & M'!D11 -> 123.7674125 | C183: ='DNSP Inputs O & M'!D129 -> 2 | D183: ='DNSP Inputs O & M'!$D$16 -> 8 | E183: =B183*C183*D183 -> 1980.278601 | F183: =E183/'DNSP Inputs O & M'!D120*(C174+C175)/C174 * 'DNSP Inputs O & M'!$B$146 -> 594.0835802 | G183: =(F183+F184)/C174 -> 10.55943072 | J183: ='DNSP Inputs O & M'!E11 -> 125.8521179 | K183: ='DNSP Inputs O & M'!E129 -> 2 | L183: ='DNSP Inputs O & M'!$E$16 -> 8 | M183: =J183*K183*L183 -> 2013.633887 | N183: =M183/'DNSP Inputs O & M'!E120*(K174+K175)/K174 * 'DNSP Inputs O & M'!$B$146 -> 604.090166 | O183: =(N183+N184)/K174 -> 10.7491376 | R183: ='DNSP Inputs O & M'!F11 -> 127.9719375 | S183: ='DNSP Inputs O & M'!F129 -> 2 | T183: ='DNSP Inputs O & M'!$F$16 -> 8 | U183: =R183*S183*T183 -> 2047.551 | V183: =U183/'DNSP Inputs O & M'!F120*(S174+S175)/S174 * 'DNSP Inputs O & M'!$B$146 -> 614.2653001 | W183: =(V183+V184)/S174 -> 10.93149506 | Z183: ='DNSP Inputs O & M'!G11 -> 130.1274628 | AA183: ='DNSP Inputs O & M'!G129 -> 2 | AB183: ='DNSP Inputs O & M'!$G$16 -> 8 | AC183: =Z183*AA183*AB183 -> 2082.039405 | AD183: =AC183/'DNSP Inputs O & M'!G120*(AA174+AA175)/AA174 * 'DNSP Inputs O & M'!$B$146 -> 624.6118215 | AE183: =(AD183+AD184)/AA174 -> 11.11643565 | AH183: ='DNSP Inputs O & M'!H11 -> 132.3192952 | AI183: ='DNSP Inputs O & M'!H129 -> 2 | AJ183: ='DNSP Inputs O & M'!$H$16 -> 8 | AK183: =AH183*AI183*AJ183 -> 2117.108723 | AL183: =AK183/'DNSP Inputs O & M'!H120*(AI174+AI175)/AI174 * 'DNSP Inputs O & M'!$B$146 -> 635.1326169 | AM183: =(AL183+AL184)/AI174 -> 11.30528499
A184: Elevated platform vehicle costs | B184: ='DNSP Inputs O & M'!D13 -> 77.69564122 | C184: 1 | D184: ='DNSP Inputs O & M'!$D$16 -> 8 | E184: =B184*C184*D184 -> 621.5651298 | F184: =E184/'DNSP Inputs O & M'!D120*(C174+C175)/C174 * 'DNSP Inputs O & M'!$B$146 -> 186.4695389 | J184: ='DNSP Inputs O & M'!E13 -> 79.36920231 | K184: 1 | L184: ='DNSP Inputs O & M'!$E$16 -> 8 | M184: =J184*K184*L184 -> 634.9536185 | N184: =M184/'DNSP Inputs O & M'!E120*(K174+K175)/K174 * 'DNSP Inputs O & M'!$B$146 -> 190.4860855 | R184: ='DNSP Inputs O & M'!F13 -> 80.74617287 | S184: 1 | T184: ='DNSP Inputs O & M'!$F$16 -> 8 | U184: =R184*S184*T184 -> 645.969383 | V184: =U184/'DNSP Inputs O & M'!F120*(S174+S175)/S174 * 'DNSP Inputs O & M'!$B$146 -> 193.7908149 | Z184: ='DNSP Inputs O & M'!G13 -> 82.13129241 | AA184: 1 | AB184: ='DNSP Inputs O & M'!$G$16 -> 8 | AC184: =Z184*AA184*AB184 -> 657.0503393 | AD184: =AC184/'DNSP Inputs O & M'!G120*(AA174+AA175)/AA174 * 'DNSP Inputs O & M'!$B$146 -> 197.1151018 | AH184: ='DNSP Inputs O & M'!H13 -> 83.56418727 | AI184: 1 | AJ184: ='DNSP Inputs O & M'!$H$16 -> 8 | AK184: =AH184*AI184*AJ184 -> 668.5134982 | AL184: =AK184/'DNSP Inputs O & M'!H120*(AI174+AI175)/AI174 * 'DNSP Inputs O & M'!$B$146 -> 200.5540495
A185: Labour - repair of faults
A186: Crew costs | B186: ='DNSP Inputs O & M'!D11 -> 123.7674125 | C186: ='DNSP Inputs O & M'!D129 -> 2 | D186: ='DNSP Inputs O & M'!$D$16 -> 8 | E186: =B186*C186*D186 -> 1980.278601 | F186: =(E186+E187)/'DNSP Inputs O & M'!D131 -> 104.2405341 | G186: =F186*D163 -> 2.970855221 | J186: ='DNSP Inputs O & M'!E11 -> 125.8521179 | K186: ='DNSP Inputs O & M'!E129 -> 2 | L186: ='DNSP Inputs O & M'!$E$16 -> 8 | M186: =J186*K186*L186 -> 2013.633887 | N186: =(M186+M187)/'DNSP Inputs O & M'!E131 -> 106.1132815 | O186: =N186*L163 -> 3.024228522 | R186: ='DNSP Inputs O & M'!F11 -> 127.9719375 | S186: ='DNSP Inputs O & M'!F129 -> 2 | T186: ='DNSP Inputs O & M'!$F$16 -> 8 | U186: =R186*S186*T186 -> 2047.551 | V186: =(U186+U187)/'DNSP Inputs O & M'!F131 -> 107.9134769 | W186: =V186*T163 -> 3.075534092 | Z186: ='DNSP Inputs O & M'!G11 -> 130.1274628 | AA186: ='DNSP Inputs O & M'!G129 -> 2 | AB186: ='DNSP Inputs O & M'!$G$16 -> 8 | AC186: =Z186*AA186*AB186 -> 2082.039405 | AD186: =(AC186+AC187)/'DNSP Inputs O & M'!G131 -> 109.7391724 | AE186: =AD186*AB163 -> 3.127566415 | AH186: ='DNSP Inputs O & M'!H11 -> 132.3192952 | AI186: ='DNSP Inputs O & M'!H129 -> 2 | AJ186: ='DNSP Inputs O & M'!$H$16 -> 8 | AK186: =AH186*AI186*AJ186 -> 2117.108723 | AL186: =(AK186+AK187)/'DNSP Inputs O & M'!H131 -> 111.6034544 | AM186: =AL186*AJ163 -> 3.18069845
A187: Elevated platform vehicle costs | B187: ='DNSP Inputs O & M'!D13 -> 77.69564122 | C187: 1 | D187: ='DNSP Inputs O & M'!$D$16 -> 8 | E187: =B187*C187*D187 -> 621.5651298 | J187: ='DNSP Inputs O & M'!E13 -> 79.36920231 | K187: 1 | L187: ='DNSP Inputs O & M'!$E$16 -> 8 | M187: =J187*K187*L187 -> 634.9536185 | R187: ='DNSP Inputs O & M'!F13 -> 80.74617287 | S187: 1 | T187: ='DNSP Inputs O & M'!$F$16 -> 8 | U187: =R187*S187*T187 -> 645.969383 | Z187: ='DNSP Inputs O & M'!G13 -> 82.13129241 | AA187: 1 | AB187: ='DNSP Inputs O & M'!$G$16 -> 8 | AC187: =Z187*AA187*AB187 -> 657.0503393 | AH187: ='DNSP Inputs O & M'!H13 -> 83.56418727 | AI187: 1 | AJ187: ='DNSP Inputs O & M'!$H$16 -> 8 | AK187: =AH187*AI187*AJ187 -> 668.5134982
A188: Other Maintenance and Repair costs | G188: ='DNSP Inputs O & M'!D142 -> 1.990112895 | O188: ='DNSP Inputs O & M'!E142 -> 2.054038552 | W188: ='DNSP Inputs O & M'!F142 -> 2.050328921 | AE188: ='DNSP Inputs O & M'!G142 -> 2.089274086 | AM188: ='DNSP Inputs O & M'!H142 -> 2.104129601
A190: Overheads | B190: ='DNSP Inputs O & M'!D17 -> 0.3074223 | G190: =B190*SUM(G174:G188) -> 6.63921186 | J190: ='DNSP Inputs O & M'!E17 -> 0.3074223 | O190: =J190*SUM(O174:O188) -> 6.7335923 | R190: ='DNSP Inputs O & M'!F17 -> 0.3074223 | W190: =R190*SUM(W174:W188) -> 6.804285103 | Z190: ='DNSP Inputs O & M'!G17 -> 0.3074223 | AE190: =Z190*SUM(AE174:AE188) -> 6.889108473 | AH190: ='DNSP Inputs O & M'!H17 -> 0.3074223 | AM190: =AH190*SUM(AM174:AM188) -> 6.96806586
G192: =SUM(G174,G178,G183,G186,G188,G190) -> 28.23560178 | O192: =SUM(O174,O178,O183,O186,O188,O190) -> 28.63698805 | W192: =SUM(W174,W178,W183,W186,W188,W190) -> 28.93763426 | AE192: =SUM(AE174,AE178,AE183,AE186,AE188,AE190) -> 29.2983757 | AM192: =SUM(AM174,AM178,AM183,AM186,AM188,AM190) -> 29.63416998
A196: Energy Efficient Lights - Cost build-up
A198: Addiitonal assumptions
A199: Proportion of luminaire that will fail before bulk change | D199: ='DNSP Inputs O & M'!$D$123 -> 0.114 | L199: ='DNSP Inputs O & M'!$E$123 -> 0.114 | T199: ='DNSP Inputs O & M'!$F$123 -> 0.114 | AB199: ='DNSP Inputs O & M'!$G$123 -> 0.114 | AJ199: ='DNSP Inputs O & M'!$H$123 -> 0.114
A200: Proportion of lamps that will fail before bulk change (per year) | D200: =D199/'DNSP Inputs O & M'!$D$151 -> 0.0057 | L200: =L199/'DNSP Inputs O & M'!$E$151 -> 0.0057 | T200: =T199/'DNSP Inputs O & M'!$F$151 -> 0.0057 | AB200: =AB199/'DNSP Inputs O & M'!$G$151 -> 0.0057 | AJ200: =AJ199/'DNSP Inputs O & M'!$H$151 -> 0.0057
A201: Overheads are applied to material and labour components
A202: All costs and charges are exclusive of GST
B204: Urban | J204: Urban | R204: Urban | Z204: Urban | AH204: Urban
